{"text_format":"1","workbook":"xlsx","n_sheets":6,"sheets":["無地画面","高速コマ入力処理実行ボタン","入力","特別教室コード・表示内容変更","インターフェース画面設定","呼出ファイル"],"not_rendered":{"charts":0,"images":0,"macros":1,"external_links":0,"defined_names":0,"comments":1,"pivot_tables":0},"unopened":[],"bounds":{"document_bytes":16777216,"sheet_cells":100000,"rows_first":2000,"rows_last":500,"rows_between":2000,"halvings":0,"cell_chars":16384,"cell_head_chars":4096},"cells_cut":0,"cells_raw":0,"read":"whole","date_system":"1900"}

{"sheet":"無地画面","index":0,"n_rows":0,"n_cols":0,"rows_kept":0,"cut":false,"hidden":false,"merged":[]}

{"sheet":"高速コマ入力処理実行ボタン","index":1,"n_rows":102,"n_cols":5,"rows_kept":102,"cut":false,"hidden":false,"merged":[]}
[]
[]
[]
[]
[]
[]
[]
[]
[]
[]
[]
[]
[]
[]
[]
[]
[]
[]
[]
[]
[]
[]
[]
[]
[]
[]
[]
[]
[]
[]
[]
[]
[]
[]
[]
[]
[]
[]
[]
[]
[]
[]
[]
[]
[]
[]
[]
[]
[]
[]
[]
[]
[]
[]
[]
[]
[]
[]
[]
[]
[]
[]
[]
[]
[]
[]
[]
[]
[]
[]
[]
[]
[]
[]
[]
[]
[]
[]
[]
[]
[]
[]
[]
[]
[]
[]
[]
[]
[]
[]
[]
[]
[]
[]
[]
[]
[]
[]
[]
[]
[null,null,"E4903057189AF4BA多田記一",1,"150ninn60kurasukomanyuuryokusisutemu2daitourokuver1.xlsm"]
[null,null,"3AC014F1CE951EA4KiitiTada"]

{"sheet":"入力","index":2,"n_rows":2226,"n_cols":54,"rows_kept":2226,"cut":false,"hidden":false,"merged":[[1,8,1,10],[1,11,1,17]]}
[null,null,"入力テーブル"]
[null,null,"未入力セルの総計",null,null,{"$f":"AC1558","v":500},{"$f":"TODAY()","v":"2022-10-28"},null,"年度入力→",null,null,"平成２６年度"]
["NO","教科","担当１","単位数","時数","科目","担当2","C1","C2","C3","C4","C5","C6","C7","C8","C9","C10","C11","C12","C13","C14","C15","C16","C17","C18","C19","C20","入力数","未入力"]
[null,null,null,null,null,null,null,null,null,null,null,null,null,null,null,null,null,null,null,null,null,null,null,null,null,null,null,{"$f":"COUNTA(H4:AA4)","v":0}]
[1,null,{"$f":"IF(G1572=\"\",\"\",G1572)","v":"小杉"},4,{"$f":"IF(COUNTA(H5:AA5)=0,\"\",COUNTA(H5:AA5))","v":12},"国Ⅰ","小杉","*12","*12","*12","*12","*14","*14","*14","*14","*17","*17","*17","*17",null,null,null,null,null,null,null,null,12,{"$f":"AB5-AB4","v":12}]
[null,null,null,null,null,null,null,null,null,null,null,null,null,null,null,null,null,null,null,null,null,null,null,null,null,null,null,0]
[1,null,null,null,{"$f":"IF(COUNTA(H7:AA7)=0,\"\",COUNTA(H7:AA7))","v":""},null,null,null,null,null,null,null,null,null,null,null,null,null,null,null,null,null,null,null,null,null,null,0,{"$f":"AB7-AB6","v":0}]
[null,null,null,null,null,null,null,null,null,null,null,null,null,null,null,null,null,null,null,null,null,null,null,null,null,null,null,0]
[1,null,null,null,{"$f":"IF(COUNTA(H9:AA9)=0,\"\",COUNTA(H9:AA9))","v":""},null,null,null,null,null,null,null,null,null,null,null,null,null,null,null,null,null,null,null,null,null,null,0,{"$f":"AB9-AB8","v":0}]
[null,null,null,null,null,null,null,null,null,null,null,null,null,null,null,null,null,null,null,null,null,null,null,null,null,null,null,0]
[1,null,null,null,{"$f":"IF(COUNTA(H11:AA11)=0,\"\",COUNTA(H11:AA11))","v":""},null,null,null,null,null,null,null,null,null,null,null,null,null,null,null,null,null,null,null,null,null,null,0,{"$f":"AB11-AB10","v":0}]
[null,null,null,null,null,null,null,null,null,null,null,null,null,null,null,null,null,null,null,null,null,null,null,null,null,null,null,0]
[1,null,null,null,{"$f":"IF(COUNTA(H13:AA13)=0,\"\",COUNTA(H13:AA13))","v":""},null,null,null,null,null,null,null,null,null,null,null,null,null,null,null,null,null,null,null,null,null,null,0,{"$f":"AB13-AB12","v":0}]
[null,null,null,null,null,null,null,null,null,null,null,null,null,null,null,null,null,null,null,null,null,null,null,null,null,null,null,0]
[2,null,{"$f":"IF(G1574=\"\",\"\",G1574)","v":"桜井"},4,{"$f":"IF(COUNTA(H15:AA15)=0,\"\",COUNTA(H15:AA15))","v":12},"国Ⅰ","桜井","*11","*11","*11","*11","*15","*15","*15","*15","*16","*16","*16","*16",null,null,null,null,null,null,null,null,12,{"$f":"AB15-AB14","v":12}]
[null,null,null,null,null,null,null,null,null,null,null,null,null,null,null,null,null,null,null,null,null,null,null,null,null,null,null,0]
[2," ",null,3,{"$f":"IF(COUNTA(H17:AA17)=0,\"\",COUNTA(H17:AA17))","v":3},"現文","桜井","*34","*34","*34",null,null,null,null,null,null,null,null,null,null,null,null,null,null,null,null,null,3,{"$f":"AB17-AB16","v":3}]
[null,null,null,null,null,null,null,null,null,null,null,null,null,null,null,null,null,null,null,null,null,null,null,null,null,null,null,0]
[2,null,null,null,{"$f":"IF(COUNTA(H19:AA19)=0,\"\",COUNTA(H19:AA19))","v":""},null,null,null,null,null,null,null,null,null,null,null,null,null,null,null,null,null,null,null,null,null,null,0,{"$f":"AB19-AB18","v":0}]
[null,null,null,null,null,null,null,null,null,null,null,null,null,null,null,null,null,null,null,null,null,null,null,null,null,null,null,0]
[2,null,null,null,{"$f":"IF(COUNTA(H21:AA21)=0,\"\",COUNTA(H21:AA21))","v":""},null,null,null,null,null,null,null,null,null,null,null,null,null,null,null,null,null,null,null,null,null,null,0,{"$f":"AB21-AB20","v":0}]
[null,null,null,null,null,null,null,46,null,null,null,null,null,null,null,null,null,null,null,null,null,null,null,null,null,null,null,1]
[2,null,null,null,{"$f":"IF(COUNTA(H23:AA23)=0,\"\",COUNTA(H23:AA23))","v":1},"LHR","桜井","*16",null,null,null,null,null,null,null,null,null,null,null,null,null,null,null,null,null,null,null,1,{"$f":"AB23-AB22","v":0}]
[null,null,null,null,null,null,null,null,null,null,null,null,null,null,null,null,null,null,null,null,null,null,null,null,null,null,null,0]
[3,"国",{"$f":"IF(G1576=\"\",\"\",G1576)","v":"小野島"},4,{"$f":"IF(COUNTA(H25:AA25)=0,\"\",COUNTA(H25:AA25))","v":8},"国Ⅰ","小野島","*13","*13","*13","*13","*18","*18","*18","*18",null,null,null,null,null,null,null,null,null,null,null,null,8,{"$f":"AB25-AB24","v":8}]
[null,null,null,null,null,null,null,null,null,null,null,null,null,null,null,null,null,null,null,null,null,null,null,null,null,null,null,0]
[3,null,null,4,{"$f":"IF(COUNTA(H27:AA27)=0,\"\",COUNTA(H27:AA27))","v":8},"国Ⅱ","小野島","*27","*27","*27","*27","*28","*28","*28","*28",null,null,null,null,null,null,null,null,null,null,null,null,8,{"$f":"AB27-AB26","v":8}]
[null,null,null,null,null,null,null,null,null,null,null,null,null,null,null,null,null,null,null,null,null,null,null,null,null,null,null,0]
[3,null,null,null,{"$f":"IF(COUNTA(H29:AA29)=0,\"\",COUNTA(H29:AA29))","v":""},null,null,null,null,null,null,null,null,null,null,null,null,null,null,null,null,null,null,null,null,null,null,0,{"$f":"AB29-AB28","v":0}]
[null,null,null,null,null,null,null,null,null,null,null,null,null,null,null,null,null,null,null,null,null,null,null,null,null,null,null,0]
[3,null,null,null,{"$f":"IF(COUNTA(H31:AA31)=0,\"\",COUNTA(H31:AA31))","v":""},null,null,null,null,null,null,null,null,null,null,null,null,null,null,null,null,null,null,null,null,null,null,0,{"$f":"AB31-AB30","v":0}]
[null,null,null,null,null,null,null,null,null,null,null,null,null,null,null,null,null,null,null,null,null,null,null,null,null,null,null,0]
[3,null,null,null,{"$f":"IF(COUNTA(H33:AA33)=0,\"\",COUNTA(H33:AA33))","v":""},null,null,null,null,null,null,null,null,null,null,null,null,null,null,null,null,null,null,null,null,null,null,0,{"$f":"AB33-AB32","v":0}]
[null,null,null,null,null,null,null,null,null,null,null,null,null,null,null,null,null,null,null,null,null,null,null,null,null,null,null,0]
[4,null,{"$f":"IF(G1578=\"\",\"\",G1578)","v":"榎本"},4,{"$f":"IF(COUNTA(H35:AA35)=0,\"\",COUNTA(H35:AA35))","v":12},"国Ⅱ","榎本","*23","*23","*23","*23","*24","*24","*24","*24","*25","*25","*25","*25",null,null,null,null,null,null,null,null,12,{"$f":"AB35-AB34","v":12}]
[null,null,null,null,null,null,null,null,null,null,null,null,null,null,null,null,null,null,null,null,null,null,null,null,null,null,null,0]
[4,null,null,2,{"$f":"IF(COUNTA(H37:AA37)=0,\"\",COUNTA(H37:AA37))","v":2},"国Ⅱ","榎本","*37","*37",null,null,null,null,null,null,null,null,null,null,null,null,null,null,null,null,null,null,2,{"$f":"AB37-AB36","v":2}]
[null,null,null,null,null,null,null,null,null,null,null,null,null,null,null,null,null,null,null,null,null,null,null,null,null,null,null,0]
[4,null,null,null,{"$f":"IF(COUNTA(H39:AA39)=0,\"\",COUNTA(H39:AA39))","v":""},null,null,null,null,null,null,null,null,null,null,null,null,null,null,null,null,null,null,null,null,null,null,0,{"$f":"AB39-AB38","v":0}]
[null,null,null,null,null,null,null,null,null,null,null,null,null,null,null,null,null,null,null,null,null,null,null,null,null,null,null,0]
[4,null,null,null,{"$f":"IF(COUNTA(H41:AA41)=0,\"\",COUNTA(H41:AA41))","v":""},null,null,null,null,null,null,null,null,null,null,null,null,null,null,null,null,null,null,null,null,null,null,0,{"$f":"AB41-AB40","v":0}]
[null,null,null,null,null,null,null,46,null,null,null,null,null,null,null,null,null,null,null,null,null,null,null,null,null,null,null,1]
[4,null,null,null,{"$f":"IF(COUNTA(H43:AA43)=0,\"\",COUNTA(H43:AA43))","v":1},"LHR","榎本","*25",null,null,null,null,null,null,null,null,null,null,null,null,null,null,null,null,null,null,null,1,{"$f":"AB43-AB42","v":0}]
[null,null,null,null,null,null,null,null,null,null,null,null,null,null,null,null,null,null,null,null,null,null,null,null,null,null,null,0]
[5,null,{"$f":"IF(G1580=\"\",\"\",G1580)","v":"矢島"},4,{"$f":"IF(COUNTA(H45:AA45)=0,\"\",COUNTA(H45:AA45))","v":8},"国Ⅱ","矢島","*21","*21","*21","*21","*22","*22","*22","*22",null,null,null,null,null,null,null,null,null,null,null,null,8,{"$f":"AB45-AB44","v":8}]
[null,null,null,null,null,null,null,null,null,null,null,null,null,null,null,null,null,null,null,null,null,null,null,null,null,null,null,0]
[5,null,null,2,{"$f":"IF(COUNTA(H47:AA47)=0,\"\",COUNTA(H47:AA47))","v":2},"古典","矢島","*36","*36",null,null,null,null,null,null,null,null,null,null,null,null,null,null,null,null,null,null,2,{"$f":"AB47-AB46","v":2}]
[null,null,null,null,null,null,null,null,null,null,null,null,null,null,null,null,null,null,null,null,null,null,null,null,null,null,null,0]
[5,null,null,null,{"$f":"IF(COUNTA(H49:AA49)=0,\"\",COUNTA(H49:AA49))","v":""},null,null,null,null,null,null,null,null,null,null,null,null,null,null,null,null,null,null,null,null,null,null,0,{"$f":"AB49-AB48","v":0}]
[null,null,null,null,null,null,null,null,null,null,null,null,null,null,null,null,null,null,null,null,null,null,null,null,null,null,null,0]
[5,null,null,null,{"$f":"IF(COUNTA(H51:AA51)=0,\"\",COUNTA(H51:AA51))","v":""},null,null,null,null,null,null,null,null,null,null,null,null,null,null,null,null,null,null,null,null,null,null,0,{"$f":"AB51-AB50","v":0}]
[null,null,null,null,null,null,null,null,null,null,null,null,null,null,null,null,null,null,null,null,null,null,null,null,null,null,null,0]
[5,null,null,null,{"$f":"IF(COUNTA(H53:AA53)=0,\"\",COUNTA(H53:AA53))","v":""},null,null,null,null,null,null,null,null,null,null,null,null,null,null,null,null,null,null,null,null,null,null,0,{"$f":"AB53-AB52","v":0}]
[null,null,null,null,null,null,null,null,null,null,null,null,null,null,null,null,null,null,null,null,null,null,null,null,null,null,null,0]
[6,null,{"$f":"IF(G1582=\"\",\"\",G1582)","v":"関根"},3,{"$f":"IF(COUNTA(H55:AA55)=0,\"\",COUNTA(H55:AA55))","v":9},"現文","関根","*32","*32","*32","*35","*35","*35","*37","*37","*37",null,null,null,null,null,null,null,null,null,null,null,9,{"$f":"AB55-AB54","v":9}]
[null,null,null,null,null,null,null,null,null,null,null,null,null,null,null,null,null,null,null,null,null,null,null,null,null,null,null,0]
[6,null,null,4,{"$f":"IF(COUNTA(H57:AA57)=0,\"\",COUNTA(H57:AA57))","v":4},"古典","関根","*31","*31","*31","*31",null,null,null,null,null,null,null,null,null,null,null,null,null,null,null,null,4,{"$f":"AB57-AB56","v":4}]
[null,null,null,null,null,null,null,null,null,null,null,null,null,null,null,null,null,null,null,null,null,null,null,null,null,null,null,0]
[6,null,null,null,{"$f":"IF(COUNTA(H59:AA59)=0,\"\",COUNTA(H59:AA59))","v":""},null,null,null,null,null,null,null,null,null,null,null,null,null,null,null,null,null,null,null,null,null,null,0,{"$f":"AB59-AB58","v":0}]
[null,null,null,null,null,null,null,null,null,null,null,null,null,null,null,null,null,null,null,null,null,null,null,null,null,null,null,0]
[6,null,null,null,{"$f":"IF(COUNTA(H61:AA61)=0,\"\",COUNTA(H61:AA61))","v":""},null,null,null,null,null,null,null,null,null,null,null,null,null,null,null,null,null,null,null,null,null,null,0,{"$f":"AB61-AB60","v":0}]
[null,null,null,null,null,null,null,46,null,null,null,null,null,null,null,null,null,null,null,null,null,null,null,null,null,null,null,1]
[6,null,null,null,{"$f":"IF(COUNTA(H63:AA63)=0,\"\",COUNTA(H63:AA63))","v":1},"LHR","関根","*35",null,null,null,null,null,null,null,null,null,null,null,null,null,null,null,null,null,null,null,1,{"$f":"AB63-AB62","v":0}]
[null,null,null,null,null,null,null,null,null,null,null,null,null,null,null,null,null,null,null,null,null,null,null,null,null,null,null,0]
[7," ",{"$f":"IF(G1584=\"\",\"\",G1584)","v":"松本ﾔ"},4,{"$f":"IF(COUNTA(H65:AA65)=0,\"\",COUNTA(H65:AA65))","v":4},"国Ⅱ","松本ﾔ","*26","*26","*26","*26",null,null,null,null,null,null,null,null,null,null,null,null,null,null,null,null,4,{"$f":"AB65-AB64","v":4}]
[null,null,null,null,null,null,null,null,null,null,null,null,null,null,null,null,null,null,null,null,null,null,null,null,null,null,null,0]
[7," ",null,3,{"$f":"IF(COUNTA(H67:AA67)=0,\"\",COUNTA(H67:AA67))","v":6},"現文","松本ﾔ","*36","*36","*36","*38","*38","*38",null,null,null,null,null,null,null,null,null,null,null,null,null,null,6,{"$f":"AB67-AB66","v":6}]
[null,null,null,null,null,null,null,null,null,null,null,null,null,null,null,null,null,null,null,null,null,null,null,null,null,null,null,{"$f":"COUNTA(H68:AA68)","v":0}]
[7,null,null,null,{"$f":"IF(COUNTA(H69:AA69)=0,\"\",COUNTA(H69:AA69))","v":""},null,null,null,null,null,null,null,null,null,null,null,null,null,null,null,null,null,null,null,null,null,null,0,{"$f":"AB69-AB68","v":0}]
[null,null,null,null,null,null,null,null,null,null,null,null,null,null,null,null,null,null,null,null,null,null,null,null,null,null,null,0]
[7,null,null,null,{"$f":"IF(COUNTA(H71:AA71)=0,\"\",COUNTA(H71:AA71))","v":""},null,null,null,null,null,null,null,null,null,null,null,null,null,null,null,null,null,null,null,null,null,null,0,{"$f":"AB71-AB70","v":0}]
[null,null,null,null,null,null,null,null,null,null,null,null,null,null,null,null,null,null,null,null,null,null,null,null,null,null,null,0]
[7,null,null,null,{"$f":"IF(COUNTA(H73:AA73)=0,\"\",COUNTA(H73:AA73))","v":""},null,null,null,null,null,null,null,null,null,null,null,null,null,null,null,null,null,null,null,null,null,null,0,{"$f":"AB73-AB72","v":0}]
[null,null,null,null,null,null,null,null,null,null,null,null,null,null,null,null,null,null,null,null,null,null,null,null,null,null,null,0]
[8,null,{"$f":"IF(G1586=\"\",\"\",G1586)","v":"千田"},null,{"$f":"IF(COUNTA(H75:AA75)=0,\"\",COUNTA(H75:AA75))","v":""},null,null,null,null,null,null,null,null,null,null,null,null,null,null,null,null,null,null,null,null,null,null,0,{"$f":"AB75-AB74","v":0}]
[null,null,null,null,null,null,null,null,null,null,null,null,null,null,null,null,null,null,null,null,null,null,null,null,null,null,null,0]
[8,null,null,null,{"$f":"IF(COUNTA(H77:AA77)=0,\"\",COUNTA(H77:AA77))","v":""},null,null,null,null,null,null,null,null,null,null,null,null,null,null,null,null,null,null,null,null,null,null,0,{"$f":"AB77-AB76","v":0}]
[null,null,null,null,null,null,null,null,null,null,null,null,null,null,null,null,null,null,null,null,null,null,null,null,null,null,null,0]
[8,null,null,null,{"$f":"IF(COUNTA(H79:AA79)=0,\"\",COUNTA(H79:AA79))","v":""},null,null,null,null,null,null,null,null,null,null,null,null,null,null,null,null,null,null,null,null,null,null,0,{"$f":"AB79-AB78","v":0}]
[null,null,null,null,null,null,null,null,null,null,null,null,null,null,null,null,null,null,null,null,null,null,null,null,null,null,null,0]
[8," ",null,null,{"$f":"IF(COUNTA(H81:AA81)=0,\"\",COUNTA(H81:AA81))","v":""},null,null,null,null,null,null,null,null,null,null,null,null,null,null,null,null,null,null,null,null,null,null,0,{"$f":"AB81-AB80","v":0}]
[null,null,null,null,null,null,null,null,null,null,null,null,null,null,null,null,null,null,null,null,null,null,null,null,null,null,null,0]
[8," ",null,null,{"$f":"IF(COUNTA(H83:AA83)=0,\"\",COUNTA(H83:AA83))","v":""},null,null,null,null,null,null,null,null,null,null,null,null,null,null,null,null,null,null,null,null,null,null,0,{"$f":"AB83-AB82","v":0}]
[null,null,null,null,null,null,null,null,null,null,null,null,null,null,null,null,null,null,null,null,null,null,null,null,null,null,null,0]
[9,null,{"$f":"IF(G1588=\"\",\"\",G1588)","v":"山田"},null,{"$f":"IF(COUNTA(H85:AA85)=0,\"\",COUNTA(H85:AA85))","v":""},null,null,null,null,null,null,null,null,null,null,null,null,null,null,null,null,null,null,null,null,null,null,0,{"$f":"AB85-AB84","v":0}]
[null,null,null,null,null,null,null,null,null,null,null,null,null,null,null,null,null,null,null,null,null,null,null,null,null,null,null,0]
[9,null,null,null,{"$f":"IF(COUNTA(H87:AA87)=0,\"\",COUNTA(H87:AA87))","v":""},null,null,null,null,null,null,null,null,null,null,null,null,null,null,null,null,null,null,null,null,null,null,0,{"$f":"AB87-AB86","v":0}]
[null,null,null,null,null,null,null,null,null,null,null,null,null,null,null,null,null,null,null,null,null,null,null,null,null,null,null,0]
[9,null,null,null,{"$f":"IF(COUNTA(H89:AA89)=0,\"\",COUNTA(H89:AA89))","v":""},null,null,null,null,null,null,null,null,null,null,null,null,null,null,null,null,null,null,null,null,null,null,0,{"$f":"AB89-AB88","v":0}]
[null,null,null,null,null,null,null,null,null,null,null,null,null,null,null,null,null,null,null,null,null,null,null,null,null,null,null,0]
[9,null,null,null,{"$f":"IF(COUNTA(H91:AA91)=0,\"\",COUNTA(H91:AA91))","v":""},null,null,null,null,null,null,null,null,null,null,null,null,null,null,null,null,null,null,null,null,null,null,0,{"$f":"AB91-AB90","v":0}]
[null,null,null,null,null,null,null,null,null,null,null,null,null,null,null,null,null,null,null,null,null,null,null,null,null,null,null,0]
[9,null,null,null,{"$f":"IF(COUNTA(H93:AA93)=0,\"\",COUNTA(H93:AA93))","v":""},null,null,null,null,null,null,null,null,null,null,null,null,null,null,null,null,null,null,null,null,null,null,0,{"$f":"AB93-AB92","v":0}]
[null,null,null,null,null,null,null,null,null,null,null,null,null,null,null,null,null,null,null,null,null,null,null,null,null,null,null,0]
[10,null,{"$f":"IF(G1590=\"\",\"\",G1590)","v":"t10"},null,{"$f":"IF(COUNTA(H95:AA95)=0,\"\",COUNTA(H95:AA95))","v":""},null,null,null,null,null,null,null,null,null,null,null,null,null,null,null,null,null,null,null,null,null,null,0,{"$f":"AB95-AB94","v":0}]
[null,null,null,null,null,null,null,null,null,null,null,null,null,null,null,null,null,null,null,null,null,null,null,null,null,null,null,0]
[10,null,null,null,{"$f":"IF(COUNTA(H97:AA97)=0,\"\",COUNTA(H97:AA97))","v":""},null,null,null,null,null,null,null,null,null,null,null,null,null,null,null,null,null,null,null,null,null,null,0,{"$f":"AB97-AB96","v":0}]
[null,null,null,null,null,null,null,null,null,null,null,null,null,null,null,null,null,null,null,null,null,null,null,null,null,null,null,0]
[10,null,null,null,{"$f":"IF(COUNTA(H99:AA99)=0,\"\",COUNTA(H99:AA99))","v":""},null,null,null,null,null,null,null,null,null,null,null,null,null,null,null,null,null,null,null,null,null,null,0,{"$f":"AB99-AB98","v":0}]
[null,null,null,null,null,null,null,null,null,null,null,null,null,null,null,null,null,null,null,null,null,null,null,null,null,null,null,0]
[10,null,null,null,{"$f":"IF(COUNTA(H101:AA101)=0,\"\",COUNTA(H101:AA101))","v":""},null,null,null,null,null,null,null,null,null,null,null,null,null,null,null,null,null,null,null,null,null,null,0,{"$f":"AB101-AB100","v":0}]
[null,null,null,null,null,null,null,null,null,null,null,null,null,null,null,null,null,null,null,null,null,null,null,null,null,null,null,0]
[10,null,null,null,{"$f":"IF(COUNTA(H103:AA103)=0,\"\",COUNTA(H103:AA103))","v":""},null,null,null,null,null,null,null,null,null,null,null,null,null,null,null,null,null,null,null,null,null,null,0,{"$f":"AB103-AB102","v":0}]
[null,null,null,null,null,null,null,null,null,null,null,null,null,null,null,null,null,null,null,null,null,null,null,null,null,null,null,0]
[11,null,{"$f":"IF(G1592=\"\",\"\",G1592)","v":"t11"},null,{"$f":"IF(COUNTA(H105:AA105)=0,\"\",COUNTA(H105:AA105))","v":""},null,null,null,null,null,null,null,null,null,null,null,null,null,null,null,null,null,null,null,null,null,null,0,{"$f":"AB105-AB104","v":0}]
[null,null,null,null,null,null,null,null,null,null,null,null,null,null,null,null,null,null,null,null,null,null,null,null,null,null,null,0]
[11," ",null,null,{"$f":"IF(COUNTA(H107:AA107)=0,\"\",COUNTA(H107:AA107))","v":""},null,null,null,null,null,null,null,null,null,null,null,null,null,null,null,null,null,null,null,null,null,null,0,{"$f":"AB107-AB106","v":0}]
[null,null,null,null,null,null,null,null,null,null,null,null,null,null,null,null,null,null,null,null,null,null,null,null,null,null,null,0]
[11,null,null,null,{"$f":"IF(COUNTA(H109:AA109)=0,\"\",COUNTA(H109:AA109))","v":""},null,null,null,null,null,null,null,null,null,null,null,null,null,null,null,null,null,null,null,null,null,null,0,{"$f":"AB109-AB108","v":0}]
[null,null,null,null,null,null,null,null,null,null,null,null,null,null,null,null,null,null,null,null,null,null,null,null,null,null,null,0]
[11,null,null,null,{"$f":"IF(COUNTA(H111:AA111)=0,\"\",COUNTA(H111:AA111))","v":""},null,null,null,null,null,null,null,null,null,null,null,null,null,null,null,null,null,null,null,null,null,null,0,{"$f":"AB111-AB110","v":0}]
[null,null,null,null,null,null,null,null,null,null,null,null,null,null,null,null,null,null,null,null,null,null,null,null,null,null,null,0]
[11,null,null,null,{"$f":"IF(COUNTA(H113:AA113)=0,\"\",COUNTA(H113:AA113))","v":""},null,null,null,null,null,null,null,null,null,null,null,null,null,null,null,null,null,null,null,null,null,null,0,{"$f":"AB113-AB112","v":0}]
[null,null,null,null,null,null,null,null,null,null,null,null,null,null,null,null,null,null,null,null,null,null,null,null,null,null,null,0]
[12,null,{"$f":"IF(G1594=\"\",\"\",G1594)","v":"t12"},null,{"$f":"IF(COUNTA(H115:AA115)=0,\"\",COUNTA(H115:AA115))","v":""},null,null,null,null,null,null,null,null,null,null,null,null,null,null,null,null,null,null,null,null,null,null,0,{"$f":"AB115-AB114","v":0}]
[null,null,null,null,null,null,null,null,null,null,null,null,null,null,null,null,null,null,null,null,null,null,null,null,null,null,null,0]
[12,null,null,null,{"$f":"IF(COUNTA(H117:AA117)=0,\"\",COUNTA(H117:AA117))","v":""},null,null,null,null,null,null,null,null,null,null,null,null,null,null,null,null,null,null,null,null,null,null,0,{"$f":"AB117-AB116","v":0}]
[null,null,null,null,null,null,null,null,null,null,null,null,null,null,null,null,null,null,null,null,null,null,null,null,null,null,null,0]
[12,null,null,null,{"$f":"IF(COUNTA(H119:AA119)=0,\"\",COUNTA(H119:AA119))","v":""},null,null,null,null,null,null,null,null,null,null,null,null,null,null,null,null,null,null,null,null,null,null,0,{"$f":"AB119-AB118","v":0}]
[null,null,null,null,null,null,null,null,null,null,null,null,null,null,null,null,null,null,null,null,null,null,null,null,null,null,null,0]
[12,null,null,null,{"$f":"IF(COUNTA(H121:AA121)=0,\"\",COUNTA(H121:AA121))","v":""},null,null,null,null,null,null,null,null,null,null,null,null,null,null,null,null,null,null,null,null,null,null,0,{"$f":"AB121-AB120","v":0}]
[null,null,null,null,null,null,null,null,null,null,null,null,null,null,null,null,null,null,null,null,null,null,null,null,null,null,null,0]
[12,null,null,null,{"$f":"IF(COUNTA(H123:AA123)=0,\"\",COUNTA(H123:AA123))","v":""},null,null,null,null,null,null,null,null,null,null,null,null,null,null,null,null,null,null,null,null,null,null,0,{"$f":"AB123-AB122","v":0}]
[null,null,null,null,null,null,null,null,null,null,null,null,null,null,null,null,null,null,null,null,null,null,null,null,null,null,null,0]
[13,null,{"$f":"IF(G1596=\"\",\"\",G1596)","v":"t13"},null,{"$f":"IF(COUNTA(H125:AA125)=0,\"\",COUNTA(H125:AA125))","v":""},null,null,null,null,null,null,null,null,null,null,null,null,null,null,null,null,null,null,null,null,null,null,0,{"$f":"AB125-AB124","v":0}]
[null,null,null,null,null,null,null,null,null,null,null,null,null,null,null,null,null,null,null,null,null,null,null,null,null,null,null,0]
[13,null,null,null,{"$f":"IF(COUNTA(H127:AA127)=0,\"\",COUNTA(H127:AA127))","v":""},null,null,null,null,null,null,null,null,null,null,null,null,null,null,null,null,null,null,null,null,null,null,0,{"$f":"AB127-AB126","v":0}]
[null,null,null,null,null,null,null,null,null,null,null,null,null,null,null,null,null,null,null,null,null,null,null,null,null,null,null,0]
[13,null,null,null,{"$f":"IF(COUNTA(H129:AA129)=0,\"\",COUNTA(H129:AA129))","v":""},null,null,null,null,null,null,null,null,null,null,null,null,null,null,null,null,null,null,null,null,null,null,0,{"$f":"AB129-AB128","v":0}]
[null,null,null,null,null,null,null,null,null,null,null,null,null,null,null,null,null,null,null,null,null,null,null,null,null,null,null,0]
[13,null,null,null,{"$f":"IF(COUNTA(H131:AA131)=0,\"\",COUNTA(H131:AA131))","v":""},null,null,null,null,null,null,null,null,null,null,null,null,null,null,null,null,null,null,null,null,null,null,0,{"$f":"AB131-AB130","v":0}]
[null,null,null,null,null,null,null,null,null,null,null,null,null,null,null,null,null,null,null,null,null,null,null,null,null,null,null,0]
[13,"語",null,null,{"$f":"IF(COUNTA(H133:AA133)=0,\"\",COUNTA(H133:AA133))","v":""},null,null,null,null,null,null,null,null,null,null,null,null,null,null,null,null,null,null,null,null,null,null,0,{"$f":"AB133-AB132","v":0}]
[null,null,null,null,null,null,null,null,null,null,null,null,null,null,null,null,null,null,null,null,null,null,null,null,null,null,null,0]
[14,null,{"$f":"IF(G1598=\"\",\"\",G1598)","v":"t14"},null,{"$f":"IF(COUNTA(H135:AA135)=0,\"\",COUNTA(H135:AA135))","v":""},null,null,null,null,null,null,null,null,null,null,null,null,null,null,null,null,null,null,null,null,null,null,0,{"$f":"AB135-AB134","v":0}]
[null,null,null,null,null,null,null,null,null,null,null,null,null,null,null,null,null,null,null,null,null,null,null,null,null,null,null,0]
[14,null,null,null,{"$f":"IF(COUNTA(H137:AA137)=0,\"\",COUNTA(H137:AA137))","v":""},null,null,null,null,null,null,null,null,null,null,null,null,null,null,null,null,null,null,null,null,null,null,0,{"$f":"AB137-AB136","v":0}]
[null,null,null,null,null,null,null,null,null,null,null,null,null,null,null,null,null,null,null,null,null,null,null,null,null,null,null,0]
[14,null,null,null,{"$f":"IF(COUNTA(H139:AA139)=0,\"\",COUNTA(H139:AA139))","v":""},null,null,null,null,null,null,null,null,null,null,null,null,null,null,null,null,null,null,null,null,null,null,0,{"$f":"AB139-AB138","v":0}]
[null,null,null,null,null,null,null,null,null,null,null,null,null,null,null,null,null,null,null,null,null,null,null,null,null,null,null,0]
[14,null,null,null,{"$f":"IF(COUNTA(H141:AA141)=0,\"\",COUNTA(H141:AA141))","v":""},null,null,null,null,null,null,null,null,null,null,null,null,null,null,null,null,null,null,null,null,null,null,0,{"$f":"AB141-AB140","v":0}]
[null,null,null,null,null,null,null,null,null,null,null,null,null,null,null,null,null,null,null,null,null,null,null,null,null,null,null,0]
[14,null,null,null,{"$f":"IF(COUNTA(H143:AA143)=0,\"\",COUNTA(H143:AA143))","v":""},null,null,null,null,null,null,null,null,null,null,null,null,null,null,null,null,null,null,null,null,null,null,0,{"$f":"AB143-AB142","v":0}]
[null,null,null,null,null,null,null,null,null,null,null,null,null,null,null,null,null,null,null,null,null,null,null,null,null,null,null,0]
[15,null,{"$f":"IF(G1600=\"\",\"\",G1600)","v":"t15"},null,{"$f":"IF(COUNTA(H145:AA145)=0,\"\",COUNTA(H145:AA145))","v":""},null,null,null,null,null,null,null,null,null,null,null,null,null,null,null,null,null,null,null,null,null,null,0,{"$f":"AB145-AB144","v":0}]
[null,null,null,null,null,null,null,null,null,null,null,null,null,null,null,null,null,null,null,null,null,null,null,null,null,null,null,0]
[15," ",null,null,{"$f":"IF(COUNTA(H147:AA147)=0,\"\",COUNTA(H147:AA147))","v":""},null,null,null,null,null,null,null,null,null,null,null,null,null,null,null,null,null,null,null,null,null,null,0,{"$f":"AB147-AB146","v":0}]
[null,null,null,null,null,null,null,null,null,null,null,null,null,null,null,null,null,null,null,null,null,null,null,null,null,null,null,0]
[15,null,null,null,{"$f":"IF(COUNTA(H149:AA149)=0,\"\",COUNTA(H149:AA149))","v":""},null,null,null,null,null,null,null,null,null,null,null,null,null,null,null,null,null,null,null,null,null,null,0,{"$f":"AB149-AB148","v":0}]
[null,null,null,null,null,null,null,null,null,null,null,null,null,null,null,null,null,null,null,null,null,null,null,null,null,null,null,0]
[15,null,null,null,{"$f":"IF(COUNTA(H151:AA151)=0,\"\",COUNTA(H151:AA151))","v":""},null,null,null,null,null,null,null,null,null,null,null,null,null,null,null,null,null,null,null,null,null,null,0,{"$f":"AB151-AB150","v":0}]
[null,null,null,null,null,null,null,null,null,null,null,null,null,null,null,null,null,null,null,null,null,null,null,null,null,null,null,0]
[15," ",null,null,{"$f":"IF(COUNTA(H153:AA153)=0,\"\",COUNTA(H153:AA153))","v":""},null,null,null,null,null,null,null,null,null,null,null,null,null,null,null,null,null,null,null,null,null,null,0,{"$f":"AB153-AB152","v":0}]
[null,null,null,null,null,null,null,null,null,null,null,null,null,null,null,null,null,null,null,null,null,null,null,null,null,null,null,0]
[16," ",{"$f":"IF(G1602=\"\",\"\",G1602)","v":"新井"},2,{"$f":"IF(COUNTA(H155:AA155)=0,\"\",COUNTA(H155:AA155))","v":4},"地理","新井","*11","*11","*12","*12",null,null,null,null,null,null,null,null,null,null,null,null,null,null,null,null,4,{"$f":"AB155-AB154","v":4}]
[null,null,null,null,null,null,null,null,null,null,null,null,null,null,null,null,null,null,null,null,null,null,null,null,null,null,null,0]
[16," ",null,4,{"$f":"IF(COUNTA(H157:AA157)=0,\"\",COUNTA(H157:AA157))","v":12},"日史","新井","*31","*31","*31","*31","*32","*32","*32","*32","*33","*33","*33","*33",null,null,null,null,null,null,null,null,12,{"$f":"AB157-AB156","v":12}]
[null,null,null,null,null,null,null,null,null,null,null,null,null,null,null,null,null,null,null,null,null,null,null,null,null,null,null,0]
[16,null,null,null,{"$f":"IF(COUNTA(H159:AA159)=0,\"\",COUNTA(H159:AA159))","v":""},null,null,null,null,null,null,null,null,null,null,null,null,null,null,null,null,null,null,null,null,null,null,0,{"$f":"AB159-AB158","v":0}]
[null,null,null,null,null,null,null,null,null,null,null,null,null,null,null,null,null,null,null,null,null,null,null,null,null,null,null,0]
[16,null,null,null,{"$f":"IF(COUNTA(H161:AA161)=0,\"\",COUNTA(H161:AA161))","v":""},null,null,null,null,null,null,null,null,null,null,null,null,null,null,null,null,null,null,null,null,null,null,0,{"$f":"AB161-AB160","v":0}]
[null,null,null,null,null,null,null,46,null,null,null,null,null,null,null,null,null,null,null,null,null,null,null,null,null,null,null,{"$f":"COUNTA(H162:AA162)","v":1}]
[16,null,null,null,{"$f":"IF(COUNTA(H163:AA163)=0,\"\",COUNTA(H163:AA163))","v":1},"LHR","新井","*12",null,null,null,null,null,null,null,null,null,null,null,null,null,null,null,null,null,null,null,1,{"$f":"AB163-AB162","v":0}]
[null,null,null,null,null,null,null,null,null,null,null,null,null,null,null,null,null,null,null,null,null,null,null,null,null,null,null,0]
[17,"地",{"$f":"IF(G1604=\"\",\"\",G1604)","v":"福田"},2,{"$f":"IF(COUNTA(H165:AA165)=0,\"\",COUNTA(H165:AA165))","v":8},"地理","福田","*13","*13","*15","*15","*16","*16","*18","*18",null,null,null,null,null,null,null,null,null,null,null,null,8,{"$f":"AB165-AB164","v":8}]
[null,null,null,null,null,null,null,null,null,null,null,null,null,null,null,null,null,null,null,null,null,null,null,null,null,null,null,0]
[17," ",null,4,{"$f":"IF(COUNTA(H167:AA167)=0,\"\",COUNTA(H167:AA167))","v":8},"世史","福田","*21","*21","*21","*21","*22","*22","*22","*22",null,null,null,null,null,null,null,null,null,null,null,null,8,{"$f":"AB167-AB166","v":8}]
[null,null,null,null,null,null,null,null,null,null,null,null,null,null,null,null,null,null,null,null,null,null,null,null,null,null,null,0]
[17,null,null,null,{"$f":"IF(COUNTA(H169:AA169)=0,\"\",COUNTA(H169:AA169))","v":""},null,null,null,null,null,null,null,null,null,null,null,null,null,null,null,null,null,null,null,null,null,null,0,{"$f":"AB169-AB168","v":0}]
[null,null,null,null,null,null,null,null,null,null,null,null,null,null,null,null,null,null,null,null,null,null,null,null,null,null,null,0]
[17,null,null,null,{"$f":"IF(COUNTA(H171:AA171)=0,\"\",COUNTA(H171:AA171))","v":""},null,null,null,null,null,null,null,null,null,null,null,null,null,null,null,null,null,null,null,null,null,null,0,{"$f":"AB171-AB170","v":0}]
[null,null,null,null,null,null,null,46,null,null,null,null,null,null,null,null,null,null,null,null,null,null,null,null,null,null,null,1]
[17," ",null,null,{"$f":"IF(COUNTA(H173:AA173)=0,\"\",COUNTA(H173:AA173))","v":1},"LHR","福田","*15",null,null,null,null,null,null,null,null,null,null,null,null,null,null,null,null,null,null,null,1,{"$f":"AB173-AB172","v":0}]
[null,null,null,null,null,null,null,null,null,null,null,null,null,null,null,null,null,null,null,null,null,null,null,null,null,null,null,0]
[18,null,{"$f":"IF(G1606=\"\",\"\",G1606)","v":"鶴巻"},2,{"$f":"IF(COUNTA(H175:AA175)=0,\"\",COUNTA(H175:AA175))","v":4},"地理","鶴巻","*14","*14","*17","*17",null,null,null,null,null,null,null,null,null,null,null,null,null,null,null,null,4,{"$f":"AB175-AB174","v":4}]
[null,null,null,null,null,null,null,null,null,null,null,null,null,null,null,null,null,null,null,null,null,null,null,null,null,null,null,0]
[18," ",null,2,{"$f":"IF(COUNTA(H177:AA177)=0,\"\",COUNTA(H177:AA177))","v":12},"倫理","鶴巻","*21","*21","*22","*22","*25","*25","*26","*26","*27","*27","*28","*28",null,null,null,null,null,null,null,null,12,{"$f":"AB177-AB176","v":12}]
[null,null,null,null,null,null,null,null,null,null,null,null,null,null,null,null,null,null,null,null,null,null,null,null,null,null,null,0]
[18,null,null,null,{"$f":"IF(COUNTA(H179:AA179)=0,\"\",COUNTA(H179:AA179))","v":""},null,null,null,null,null,null,null,null,null,null,null,null,null,null,null,null,null,null,null,null,null,null,0,{"$f":"AB179-AB178","v":0}]
[null,null,null,null,null,null,null,null,null,null,null,null,null,null,null,null,null,null,null,null,null,null,null,null,null,null,null,0]
[18," ",null,null,{"$f":"IF(COUNTA(H181:AA181)=0,\"\",COUNTA(H181:AA181))","v":""},null,null,null,null,null,null,null,null,null,null,null,null,null,null,null,null,null,null,null,null,null,null,0,{"$f":"AB181-AB180","v":0}]
[null,null,null,null,null,null,null,null,null,null,null,null,null,null,null,null,null,null,null,null,null,null,null,null,null,null,null,0]
[18,null,null,null,{"$f":"IF(COUNTA(H183:AA183)=0,\"\",COUNTA(H183:AA183))","v":""},null,null,null,null,null,null,null,null,null,null,null,null,null,null,null,null,null,null,null,null,null,null,0,{"$f":"AB183-AB182","v":0}]
[null,null,null,null,null,null,null,null,null,null,null,null,null,null,null,null,null,null,null,null,null,null,null,null,null,null,null,0]
[19,null,{"$f":"IF(G1608=\"\",\"\",G1608)","v":"小栗"},4,{"$f":"IF(COUNTA(H185:AA185)=0,\"\",COUNTA(H185:AA185))","v":8},"日史","小栗","*35","*35","*35","*35","*36","*36","*36","*36",null,null,null,null,null,null,null,null,null,null,null,null,8,{"$f":"AB185-AB184","v":8}]
[null,null,null,null,null,null,null,null,null,null,null,null,null,null,null,null,null,null,null,null,null,null,null,null,null,null,null,0]
[19,null,null,2,{"$f":"IF(COUNTA(H187:AA187)=0,\"\",COUNTA(H187:AA187))","v":4},"倫理","小栗","*23","*23","*24","*24",null,null,null,null,null,null,null,null,null,null,null,null,null,null,null,null,4,{"$f":"AB187-AB186","v":4}]
[null,null,null,null,null,null,null,null,null,null,null,null,null,null,null,null,null,null,null,null,null,null,null,null,null,null,null,0]
[19,null,null,2,{"$f":"IF(COUNTA(H189:AA189)=0,\"\",COUNTA(H189:AA189))","v":2},"選日","小栗","*32","*32",null,null,null,null,null,null,null,null,null,null,null,null,null,null,null,null,null,null,2,{"$f":"AB189-AB188","v":2}]
[null,null,null,null,null,null,null,null,null,null,null,null,null,null,null,null,null,null,null,null,null,null,null,null,null,null,null,0]
[19,null,null,null,{"$f":"IF(COUNTA(H191:AA191)=0,\"\",COUNTA(H191:AA191))","v":""},null,null,null,null,null,null,null,null,null,null,null,null,null,null,null,null,null,null,null,null,null,null,0,{"$f":"AB191-AB190","v":0}]
[null,null,null,null,null,null,null,46,null,null,null,null,null,null,null,null,null,null,null,null,null,null,null,null,null,null,null,1]
[19,null,null,null,{"$f":"IF(COUNTA(H193:AA193)=0,\"\",COUNTA(H193:AA193))","v":1},"LHR","小栗","*24",null,null,null,null,null,null,null,null,null,null,null,null,null,null,null,null,null,null,null,1,{"$f":"AB193-AB192","v":0}]
[null,null,null,null,null,null,null,null,null,null,null,null,null,null,null,null,null,null,null,null,null,null,null,null,null,null,null,0]
[20," ",{"$f":"IF(G1610=\"\",\"\",G1610)","v":"程田"},4,{"$f":"IF(COUNTA(H195:AA195)=0,\"\",COUNTA(H195:AA195))","v":12},"世史","程田","*26","*26","*26","*26","*27","*27","*27","*27","*28","*28","*28","*28",null,null,null,null,null,null,null,null,12,{"$f":"AB195-AB194","v":12}]
[null,null,null,null,null,null,null,null,null,null,null,null,null,null,null,null,null,null,null,null,null,null,null,null,null,null,null,0]
[20,null,null,2,{"$f":"IF(COUNTA(H197:AA197)=0,\"\",COUNTA(H197:AA197))","v":4},"政経","程田","*31","*31","*32","*32",null,null,null,null,null,null,null,null,null,null,null,null,null,null,null,null,4,{"$f":"AB197-AB196","v":4}]
[null,null,null,null,null,null,null,null,null,null,null,null,null,null,null,null,null,null,null,null,null,null,null,null,null,null,null,0]
[20,null,null,null,{"$f":"IF(COUNTA(H199:AA199)=0,\"\",COUNTA(H199:AA199))","v":""},null,null,null,null,null,null,null,null,null,null,null,null,null,null,null,null,null,null,null,null,null,null,0,{"$f":"AB199-AB198","v":0}]
[null,null,null,null,null,null,null,null,null,null,null,null,null,null,null,null,null,null,null,null,null,null,null,null,null,null,null,0]
[20," ",null,null,{"$f":"IF(COUNTA(H201:AA201)=0,\"\",COUNTA(H201:AA201))","v":""},null,null,null,null,null,null,null,null,null,null,null,null,null,null,null,null,null,null,null,null,null,null,0,{"$f":"AB201-AB200","v":0}]
[null,null,null,null,null,null,null,null,null,null,null,null,null,null,null,null,null,null,null,null,null,null,null,null,null,null,null,0]
[20,"歴",null,null,{"$f":"IF(COUNTA(H203:AA203)=0,\"\",COUNTA(H203:AA203))","v":""},null,null,null,null,null,null,null,null,null,null,null,null,null,null,null,null,null,null,null,null,null,null,0,{"$f":"AB203-AB202","v":0}]
[null,null,null,null,null,null,null,null,null,null,null,null,null,null,null,null,null,null,null,null,null,null,null,null,null,null,null,0]
[21," ",{"$f":"IF(G1612=\"\",\"\",G1612)","v":"長澤"},4,{"$f":"IF(COUNTA(H205:AA205)=0,\"\",COUNTA(H205:AA205))","v":12},"日史","長澤","*34","*34","*34","*34","*37","*37","*37","*37","*38","*38","*38","*38",null,null,null,null,null,null,null,null,12,{"$f":"AB205-AB204","v":12}]
[null,null,null,null,null,null,null,null,null,null,null,null,null,null,null,null,null,null,null,null,null,null,null,null,null,null,null,0]
[21,null,null,null,{"$f":"IF(COUNTA(H207:AA207)=0,\"\",COUNTA(H207:AA207))","v":""},null,null,null,null,null,null,null,null,null,null,null,null,null,null,null,null,null,null,null,null,null,null,0,{"$f":"AB207-AB206","v":0}]
[null,null,null,null,null,null,null,null,null,null,null,null,null,null,null,null,null,null,null,null,null,null,null,null,null,null,null,0]
[21,null,null,null,{"$f":"IF(COUNTA(H209:AA209)=0,\"\",COUNTA(H209:AA209))","v":""},null,null,null,null,null,null,null,null,null,null,null,null,null,null,null,null,null,null,null,null,null,null,0,{"$f":"AB209-AB208","v":0}]
[null,null,null,null,null,null,null,null,null,null,null,null,null,null,null,null,null,null,null,null,null,null,null,null,null,null,null,0]
[21,null,null,null,{"$f":"IF(COUNTA(H211:AA211)=0,\"\",COUNTA(H211:AA211))","v":""},null,null,null,null,null,null,null,null,null,null,null,null,null,null,null,null,null,null,null,null,null,null,0,{"$f":"AB211-AB210","v":0}]
[null,null,null,null,null,null,null,null,null,null,null,null,null,null,null,null,null,null,null,null,null,null,null,null,null,null,null,0]
[21," ",null,null,{"$f":"IF(COUNTA(H213:AA213)=0,\"\",COUNTA(H213:AA213))","v":""},null,null,null,null,null,null,null,null,null,null,null,null,null,null,null,null,null,null,null,null,null,null,0,{"$f":"AB213-AB212","v":0}]
[null,null,null,null,null,null,null,null,null,null,null,null,null,null,null,null,null,null,null,null,null,null,null,null,null,null,null,0]
[22,null,{"$f":"IF(G1614=\"\",\"\",G1614)","v":"松本ﾀ"},2,{"$f":"IF(COUNTA(H215:AA215)=0,\"\",COUNTA(H215:AA215))","v":2},"選日","松本ﾀ","*31","*31",null,null,null,null,null,null,null,null,null,null,null,null,null,null,null,null,null,null,2,{"$f":"AB215-AB214","v":2}]
[null,null,null,null,null,null,null,null,null,null,null,null,null,null,null,null,null,null,null,null,null,null,null,null,null,null,null,0]
[22,null,null,2,{"$f":"IF(COUNTA(H217:AA217)=0,\"\",COUNTA(H217:AA217))","v":12},"政経","松本ﾀ","*33","*33","*34","*34","*35","*35","*36","*36","*37","*37","*38","*38",null,null,null,null,null,null,null,null,12,{"$f":"AB217-AB216","v":12}]
[null,null,null,null,null,null,null,null,null,null,null,null,null,null,null,null,null,null,null,null,null,null,null,null,null,null,null,0]
[22,null,null,null,{"$f":"IF(COUNTA(H219:AA219)=0,\"\",COUNTA(H219:AA219))","v":""},null,null,null,null,null,null,null,null,null,null,null,null,null,null,null,null,null,null,null,null,null,null,0,{"$f":"AB219-AB218","v":0}]
[null,null,null,null,null,null,null,null,null,null,null,null,null,null,null,null,null,null,null,null,null,null,null,null,null,null,null,0]
[22,null,null,null,{"$f":"IF(COUNTA(H221:AA221)=0,\"\",COUNTA(H221:AA221))","v":""},null,null,null,null,null,null,null,null,null,null,null,null,null,null,null,null,null,null,null,null,null,null,0,{"$f":"AB221-AB220","v":0}]
[null,null,null,null,null,null,null,null,null,null,null,null,null,null,null,null,null,null,null,null,null,null,null,null,null,null,null,0]
[22,null,null,null,{"$f":"IF(COUNTA(H223:AA223)=0,\"\",COUNTA(H223:AA223))","v":""},null,null,null,null,null,null,null,null,null,null,null,null,null,null,null,null,null,null,null,null,null,null,0,{"$f":"AB223-AB222","v":0}]
[null,null,null,null,null,null,null,null,null,null,null,null,null,null,null,null,null,null,null,null,null,null,null,null,null,null,null,0]
[23," ",{"$f":"IF(G1616=\"\",\"\",G1616)","v":"高橋"},4,{"$f":"IF(COUNTA(H225:AA225)=0,\"\",COUNTA(H225:AA225))","v":12},"世史","高橋","*23","*23","*23","*23","*24","*24","*24","*24","*25","*25","*25","*25",null,null,null,null,null,null,null,null,12,{"$f":"AB225-AB224","v":12}]
[null,null,null,null,null,null,null,null,null,null,null,null,null,null,null,null,null,null,null,null,null,null,null,null,null,null,null,{"$f":"COUNTA(H226:AA226)","v":0}]
[23," ",null,null,{"$f":"IF(COUNTA(H227:AA227)=0,\"\",COUNTA(H227:AA227))","v":""},null,null,null,null,null,null,null,null,null,null,null,null,null,null,null,null,null,null,null,null,null,null,0,{"$f":"AB227-AB226","v":0}]
[null,"・",null,null,null,null,null,null,null,null,null,null,null,null,null,null,null,null,null,null,null,null,null,null,null,null,null,0]
[23,null,null,null,{"$f":"IF(COUNTA(H229:AA229)=0,\"\",COUNTA(H229:AA229))","v":""},null,null,null,null,null,null,null,null,null,null,null,null,null,null,null,null,null,null,null,null,null,null,0,{"$f":"AB229-AB228","v":0}]
[null,null,null,null,null,null,null,null,null,null,null,null,null,null,null,null,null,null,null,null,null,null,null,null,null,null,null,0]
[23,null,null,null,{"$f":"IF(COUNTA(H231:AA231)=0,\"\",COUNTA(H231:AA231))","v":""},null,null,null,null,null,null,null,null,null,null,null,null,null,null,null,null,null,null,null,null,null,null,0,{"$f":"AB231-AB230","v":0}]
[null,null,null,null,null,null,null,null,null,null,null,null,null,null,null,null,null,null,null,null,null,null,null,null,null,null,null,0]
[23,null,null,null,{"$f":"IF(COUNTA(H233:AA233)=0,\"\",COUNTA(H233:AA233))","v":""},null,null,null,null,null,null,null,null,null,null,null,null,null,null,null,null,null,null,null,null,null,null,0,{"$f":"AB233-AB232","v":0}]
[null,null,null,null,null,null,null,null,null,null,null,null,null,null,null,null,null,null,null,null,null,null,null,null,null,null,null,0]
[24,null,{"$f":"IF(G1618=\"\",\"\",G1618)","v":"t24"},null,{"$f":"IF(COUNTA(H235:AA235)=0,\"\",COUNTA(H235:AA235))","v":""},null,null,null,null,null,null,null,null,null,null,null,null,null,null,null,null,null,null,null,null,null,null,0,{"$f":"AB235-AB234","v":0}]
[null,null,null,null,null,null,null,null,null,null,null,null,null,null,null,null,null,null,null,null,null,null,null,null,null,null,null,0]
[24,null,null,null,{"$f":"IF(COUNTA(H237:AA237)=0,\"\",COUNTA(H237:AA237))","v":""},null,null,null,null,null,null,null,null,null,null,null,null,null,null,null,null,null,null,null,null,null,null,0,{"$f":"AB237-AB236","v":0}]
[null,null,null,null,null,null,null,null,null,null,null,null,null,null,null,null,null,null,null,null,null,null,null,null,null,null,null,0]
[24,null,null,null,{"$f":"IF(COUNTA(H239:AA239)=0,\"\",COUNTA(H239:AA239))","v":""},null,null,null,null,null,null,null,null,null,null,null,null,null,null,null,null,null,null,null,null,null,null,0,{"$f":"AB239-AB238","v":0}]
[null,null,null,null,null,null,null,null,null,null,null,null,null,null,null,null,null,null,null,null,null,null,null,null,null,null,null,0]
[24,null,null,null,{"$f":"IF(COUNTA(H241:AA241)=0,\"\",COUNTA(H241:AA241))","v":""},null,null,null,null,null,null,null,null,null,null,null,null,null,null,null,null,null,null,null,null,null,null,0,{"$f":"AB241-AB240","v":0}]
[null,null,null,null,null,null,null,null,null,null,null,null,null,null,null,null,null,null,null,null,null,null,null,null,null,null,null,0]
[24,null,null,null,{"$f":"IF(COUNTA(H243:AA243)=0,\"\",COUNTA(H243:AA243))","v":""},null,null,null,null,null,null,null,null,null,null,null,null,null,null,null,null,null,null,null,null,null,null,0,{"$f":"AB243-AB242","v":0}]
[null,null,null,null,null,null,null,null,null,null,null,null,null,null,null,null,null,null,null,null,null,null,null,null,null,null,null,0]
[25," ",{"$f":"IF(G1620=\"\",\"\",G1620)","v":"t25"},null,{"$f":"IF(COUNTA(H245:AA245)=0,\"\",COUNTA(H245:AA245))","v":""},null,null,null,null,null,null,null,null,null,null,null,null,null,null,null,null,null,null,null,null,null,null,0,{"$f":"AB245-AB244","v":0}]
[null,null,null,null,null,null,null,null,null,null,null,null,null,null,null,null,null,null,null,null,null,null,null,null,null,null,null,0]
[25,null,null,null,{"$f":"IF(COUNTA(H247:AA247)=0,\"\",COUNTA(H247:AA247))","v":""},null,null,null,null,null,null,null,null,null,null,null,null,null,null,null,null,null,null,null,null,null,null,0,{"$f":"AB247-AB246","v":0}]
[null,null,null,null,null,null,null,null,null,null,null,null,null,null,null,null,null,null,null,null,null,null,null,null,null,null,null,0]
[25," ",null,null,{"$f":"IF(COUNTA(H249:AA249)=0,\"\",COUNTA(H249:AA249))","v":""},null,null,null,null,null,null,null,null,null,null,null,null,null,null,null,null,null,null,null,null,null,null,0,{"$f":"AB249-AB248","v":0}]
[null,null,null,null,null,null,null,null,null,null,null,null,null,null,null,null,null,null,null,null,null,null,null,null,null,null,null,0]
[25,null,null,null,{"$f":"IF(COUNTA(H251:AA251)=0,\"\",COUNTA(H251:AA251))","v":""},null,null,null,null,null,null,null,null,null,null,null,null,null,null,null,null,null,null,null,null,null,null,0,{"$f":"AB251-AB250","v":0}]
[null,null,null,null,null,null,null,null,null,null,null,null,null,null,null,null,null,null,null,null,null,null,null,null,null,null,null,0]
[25,null,null,null,{"$f":"IF(COUNTA(H253:AA253)=0,\"\",COUNTA(H253:AA253))","v":""},null,null,null,null,null,null,null,null,null,null,null,null,null,null,null,null,null,null,null,null,null,null,0,{"$f":"AB253-AB252","v":0}]
[null,"公",null,null,null,null,null,null,null,null,null,null,null,null,null,null,null,null,null,null,null,null,null,null,null,null,null,0]
[26," ",{"$f":"IF(G1622=\"\",\"\",G1622)","v":"t26"},null,{"$f":"IF(COUNTA(H255:AA255)=0,\"\",COUNTA(H255:AA255))","v":""},null,null,null,null,null,null,null,null,null,null,null,null,null,null,null,null,null,null,null,null,null,null,0,{"$f":"AB255-AB254","v":0}]
[null,null,null,null,null,null,null,null,null,null,null,null,null,null,null,null,null,null,null,null,null,null,null,null,null,null,null,0]
[26,null,null,null,{"$f":"IF(COUNTA(H257:AA257)=0,\"\",COUNTA(H257:AA257))","v":""},null,null,null,null,null,null,null,null,null,null,null,null,null,null,null,null,null,null,null,null,null,null,0,{"$f":"AB257-AB256","v":0}]
[null,null,null,null,null,null,null,null,null,null,null,null,null,null,null,null,null,null,null,null,null,null,null,null,null,null,null,0]
[26," ",null,null,{"$f":"IF(COUNTA(H259:AA259)=0,\"\",COUNTA(H259:AA259))","v":""},null,null,null,null,null,null,null,null,null,null,null,null,null,null,null,null,null,null,null,null,null,null,0,{"$f":"AB259-AB258","v":0}]
[null,null,null,null,null,null,null,null,null,null,null,null,null,null,null,null,null,null,null,null,null,null,null,null,null,null,null,0]
[26,null,null,null,{"$f":"IF(COUNTA(H261:AA261)=0,\"\",COUNTA(H261:AA261))","v":""},null,null,null,null,null,null,null,null,null,null,null,null,null,null,null,null,null,null,null,null,null,null,0,{"$f":"AB261-AB260","v":0}]
[null,null,null,null,null,null,null,null,null,null,null,null,null,null,null,null,null,null,null,null,null,null,null,null,null,null,null,0]
[26,null,null,null,{"$f":"IF(COUNTA(H263:AA263)=0,\"\",COUNTA(H263:AA263))","v":""},null,null,null,null,null,null,null,null,null,null,null,null,null,null,null,null,null,null,null,null,null,null,0,{"$f":"AB263-AB262","v":0}]
[null,null,null,null,null,null,null,null,null,null,null,null,null,null,null,null,null,null,null,null,null,null,null,null,null,null,null,0]
[27,null,{"$f":"IF(G1624=\"\",\"\",G1624)","v":"t27"},null,{"$f":"IF(COUNTA(H265:AA265)=0,\"\",COUNTA(H265:AA265))","v":""},null,null,null,null,null,null,null,null,null,null,null,null,null,null,null,null,null,null,null,null,null,null,0,{"$f":"AB265-AB264","v":0}]
[null,null,null,null,null,null,null,null,null,null,null,null,null,null,null,null,null,null,null,null,null,null,null,null,null,null,null,0]
[27,null,null,null,{"$f":"IF(COUNTA(H267:AA267)=0,\"\",COUNTA(H267:AA267))","v":""},null,null,null,null,null,null,null,null,null,null,null,null,null,null,null,null,null,null,null,null,null,null,0,{"$f":"AB267-AB266","v":0}]
[null,null,null,null,null,null,null,null,null,null,null,null,null,null,null,null,null,null,null,null,null,null,null,null,null,null,null,0]
[27,null,null,null,{"$f":"IF(COUNTA(H269:AA269)=0,\"\",COUNTA(H269:AA269))","v":""},null,null,null,null,null,null,null,null,null,null,null,null,null,null,null,null,null,null,null,null,null,null,0,{"$f":"AB269-AB268","v":0}]
[null,null,null,null,null,null,null,null,null,null,null,null,null,null,null,null,null,null,null,null,null,null,null,null,null,null,null,0]
[27,null,null,null,{"$f":"IF(COUNTA(H271:AA271)=0,\"\",COUNTA(H271:AA271))","v":""},null,null,null,null,null,null,null,null,null,null,null,null,null,null,null,null,null,null,null,null,null,null,0,{"$f":"AB271-AB270","v":0}]
[null,null,null,null,null,null,null,null,null,null,null,null,null,null,null,null,null,null,null,null,null,null,null,null,null,null,null,0]
[27,null,null,null,{"$f":"IF(COUNTA(H273:AA273)=0,\"\",COUNTA(H273:AA273))","v":""},null,null,null,null,null,null,null,null,null,null,null,null,null,null,null,null,null,null,null,null,null,null,0,{"$f":"AB273-AB272","v":0}]
[null,null,null,null,null,null,null,null,null,null,null,null,null,null,null,null,null,null,null,null,null,null,null,null,null,null,null,0]
[28,null,{"$f":"IF(G1626=\"\",\"\",G1626)","v":"t28"},null,{"$f":"IF(COUNTA(H275:AA275)=0,\"\",COUNTA(H275:AA275))","v":""},null,null,null,null,null,null,null,null,null,null,null,null,null,null,null,null,null,null,null,null,null,null,0,{"$f":"AB275-AB274","v":0}]
[null,null,null,null,null,null,null,null,null,null,null,null,null,null,null,null,null,null,null,null,null,null,null,null,null,null,null,0]
[28,null,null,null,{"$f":"IF(COUNTA(H277:AA277)=0,\"\",COUNTA(H277:AA277))","v":""},null,null,null,null,null,null,null,null,null,null,null,null,null,null,null,null,null,null,null,null,null,null,0,{"$f":"AB277-AB276","v":0}]
[null,null,null,null,null,null,null,null,null,null,null,null,null,null,null,null,null,null,null,null,null,null,null,null,null,null,null,0]
[28,null,null,null,{"$f":"IF(COUNTA(H279:AA279)=0,\"\",COUNTA(H279:AA279))","v":""},null,null,null,null,null,null,null,null,null,null,null,null,null,null,null,null,null,null,null,null,null,null,0,{"$f":"AB279-AB278","v":0}]
[null,null,null,null,null,null,null,null,null,null,null,null,null,null,null,null,null,null,null,null,null,null,null,null,null,null,null,0]
[28,null,null,null,{"$f":"IF(COUNTA(H281:AA281)=0,\"\",COUNTA(H281:AA281))","v":""},null,null,null,null,null,null,null,null,null,null,null,null,null,null,null,null,null,null,null,null,null,null,0,{"$f":"AB281-AB280","v":0}]
[null,null,null,null,null,null,null,null,null,null,null,null,null,null,null,null,null,null,null,null,null,null,null,null,null,null,null,0]
[28,null,null,null,{"$f":"IF(COUNTA(H283:AA283)=0,\"\",COUNTA(H283:AA283))","v":""},null,null,null,null,null,null,null,null,null,null,null,null,null,null,null,null,null,null,null,null,null,null,0,{"$f":"AB283-AB282","v":0}]
[null,null,null,null,null,null,null,null,null,null,null,null,null,null,null,null,null,null,null,null,null,null,null,null,null,null,null,0]
[29,null,{"$f":"IF(G1628=\"\",\"\",G1628)","v":"t29"},null,{"$f":"IF(COUNTA(H285:AA285)=0,\"\",COUNTA(H285:AA285))","v":""},null,null,null,null,null,null,null,null,null,null,null,null,null,null,null,null,null,null,null,null,null,null,0,{"$f":"AB285-AB284","v":0}]
[null,null,null,null,null,null,null,null,null,null,null,null,null,null,null,null,null,null,null,null,null,null,null,null,null,null,null,0]
[29,null,null,null,{"$f":"IF(COUNTA(H287:AA287)=0,\"\",COUNTA(H287:AA287))","v":""},null,null,null,null,null,null,null,null,null,null,null,null,null,null,null,null,null,null,null,null,null,null,0,{"$f":"AB287-AB286","v":0}]
[null,null,null,null,null,null,null,null,null,null,null,null,null,null,null,null,null,null,null,null,null,null,null,null,null,null,null,0]
[29,null,null,null,{"$f":"IF(COUNTA(H289:AA289)=0,\"\",COUNTA(H289:AA289))","v":""},null,null,null,null,null,null,null,null,null,null,null,null,null,null,null,null,null,null,null,null,null,null,0,{"$f":"AB289-AB288","v":0}]
[null,null,null,null,null,null,null,null,null,null,null,null,null,null,null,null,null,null,null,null,null,null,null,null,null,null,null,0]
[29,null,null,null,{"$f":"IF(COUNTA(H291:AA291)=0,\"\",COUNTA(H291:AA291))","v":""},null,null,null,null,null,null,null,null,null,null,null,null,null,null,null,null,null,null,null,null,null,null,0,{"$f":"AB291-AB290","v":0}]
[null,null,null,null,null,null,null,null,null,null,null,null,null,null,null,null,null,null,null,null,null,null,null,null,null,null,null,0]
[29,"民",null,null,{"$f":"IF(COUNTA(H293:AA293)=0,\"\",COUNTA(H293:AA293))","v":""},null,null,null,null,null,null,null,null,null,null,null,null,null,null,null,null,null,null,null,null,null,null,0,{"$f":"AB293-AB292","v":0}]
[null,null,null,null,null,null,null,null,null,null,null,null,null,null,null,null,null,null,null,null,null,null,null,null,null,null,null,0]
[30,null,{"$f":"IF(G1630=\"\",\"\",G1630)","v":"t30"},null,{"$f":"IF(COUNTA(H295:AA295)=0,\"\",COUNTA(H295:AA295))","v":""},null,null,null,null,null,null,null,null,null,null,null,null,null,null,null,null,null,null,null,null,null,null,0,{"$f":"AB295-AB294","v":0}]
[null,null,null,null,null,null,null,null,null,null,null,null,null,null,null,null,null,null,null,null,null,null,null,null,null,null,null,0]
[30,null,null,null,{"$f":"IF(COUNTA(H297:AA297)=0,\"\",COUNTA(H297:AA297))","v":""},null,null,null,null,null,null,null,null,null,null,null,null,null,null,null,null,null,null,null,null,null,null,0,{"$f":"AB297-AB296","v":0}]
[null,null,null,null,null,null,null,null,null,null,null,null,null,null,null,null,null,null,null,null,null,null,null,null,null,null,null,0]
[30,null,null,null,{"$f":"IF(COUNTA(H299:AA299)=0,\"\",COUNTA(H299:AA299))","v":""},null,null,null,null,null,null,null,null,null,null,null,null,null,null,null,null,null,null,null,null,null,null,0,{"$f":"AB299-AB298","v":0}]
[null,null,null,null,null,null,null,null,null,null,null,null,null,null,null,null,null,null,null,null,null,null,null,null,null,null,null,0]
[30," ",null,null,{"$f":"IF(COUNTA(H301:AA301)=0,\"\",COUNTA(H301:AA301))","v":""},null,null,null,null,null,null,null,null,null,null,null,null,null,null,null,null,null,null,null,null,null,null,0,{"$f":"AB301-AB300","v":0}]
[null,null,null,null,null,null,null,null,null,null,null,null,null,null,null,null,null,null,null,null,null,null,null,null,null,null,null,0]
[30,null,null,null,{"$f":"IF(COUNTA(H303:AA303)=0,\"\",COUNTA(H303:AA303))","v":""},null,null,null,null,null,null,null,null,null,null,null,null,null,null,null,null,null,null,null,null,null,null,0,{"$f":"AB303-AB302","v":0}]
[null,null,null,null,null,null,null,null,null,null,null,null,null,null,null,null,null,null,null,null,null,null,null,null,null,null,null,0]
[31,null,{"$f":"IF(G1632=\"\",\"\",G1632)","v":"金子"},4,{"$f":"IF(COUNTA(H305:AA305)=0,\"\",COUNTA(H305:AA305))","v":16},"数Ⅰ","金子","*15","*15","*15","*15","*16","*16","*16","*16","*17","*17","*17","*17","*18","*18","*18","*18",null,null,null,null,16,{"$f":"AB305-AB304","v":16}]
[null,null,null,null,null,null,null,null,null,null,null,null,null,null,null,null,null,null,null,null,null,null,null,null,null,null,null,0]
[31,null,null,null,{"$f":"IF(COUNTA(H307:AA307)=0,\"\",COUNTA(H307:AA307))","v":""},null,null,null,null,null,null,null,null,null,null,null,null,null,null,null,null,null,null,null,null,null,null,0,{"$f":"AB307-AB306","v":0}]
[null,null,null,null,null,null,null,null,null,null,null,null,null,null,null,null,null,null,null,null,null,null,null,null,null,null,null,0]
[31,null,null,null,{"$f":"IF(COUNTA(H309:AA309)=0,\"\",COUNTA(H309:AA309))","v":""},null,null,null,null,null,null,null,null,null,null,null,null,null,null,null,null,null,null,null,null,null,null,0,{"$f":"AB309-AB308","v":0}]
[null,null,null,null,null,null,null,null,null,null,null,null,null,null,null,null,null,null,null,null,null,null,null,null,null,null,null,0]
[31,null,null,null,{"$f":"IF(COUNTA(H311:AA311)=0,\"\",COUNTA(H311:AA311))","v":""},null,null,null,null,null,null,null,null,null,null,null,null,null,null,null,null,null,null,null,null,null,null,0,{"$f":"AB311-AB310","v":0}]
[null,null,null,null,null,null,null,46,null,null,null,null,null,null,null,null,null,null,null,null,null,null,null,null,null,null,null,1]
[31,null,null,null,{"$f":"IF(COUNTA(H313:AA313)=0,\"\",COUNTA(H313:AA313))","v":1},"LHR","金子","*18",null,null,null,null,null,null,null,null,null,null,null,null,null,null,null,null,null,null,null,1,{"$f":"AB313-AB312","v":0}]
[null,null,null,null,null,null,null,null,null,null,null,null,null,null,null,null,null,null,null,null,null,null,null,null,null,null,null,0]
[32,null,{"$f":"IF(G1634=\"\",\"\",G1634)","v":"山根ﾀ"},4,{"$f":"IF(COUNTA(H315:AA315)=0,\"\",COUNTA(H315:AA315))","v":8},"数Ⅰ","山根ﾀ","*12","*12","*12","*12","*13","*13","*13","*13",null,null,null,null,null,null,null,null,null,null,null,null,8,{"$f":"AB315-AB314","v":8}]
[null,null,null,null,null,null,null,null,null,null,null,null,null,null,null,null,null,null,null,null,null,null,null,null,null,null,null,0]
[32,null,null,4,{"$f":"IF(COUNTA(H317:AA317)=0,\"\",COUNTA(H317:AA317))","v":8},"数Ⅱ","山根ﾀ","*21","*21","*21","*21","*25","*25","*25","*25",null,null,null,null,null,null,null,null,null,null,null,null,8,{"$f":"AB317-AB316","v":8}]
[null,null,null,null,null,null,null,null,null,null,null,null,null,null,null,null,null,null,null,null,null,null,null,null,null,null,null,0]
[32,null,null,null,{"$f":"IF(COUNTA(H319:AA319)=0,\"\",COUNTA(H319:AA319))","v":""},null,null,null,null,null,null,null,null,null,null,null,null,null,null,null,null,null,null,null,null,null,null,0,{"$f":"AB319-AB318","v":0}]
[null,null,null,null,null,null,null,null,null,null,null,null,null,null,null,null,null,null,null,null,null,null,null,null,null,null,null,{"$f":"COUNTA(H320:AA320)","v":0}]
[32,null,null,null,{"$f":"IF(COUNTA(H321:AA321)=0,\"\",COUNTA(H321:AA321))","v":""},null,null,null,null,null,null,null,null,null,null,null,null,null,null,null,null,null,null,null,null,null,null,0,{"$f":"AB321-AB320","v":0}]
[null,null,null,null,null,null,null,null,null,null,null,null,null,null,null,null,null,null,null,null,null,null,null,null,null,null,null,0]
[32,null,null,null,{"$f":"IF(COUNTA(H323:AA323)=0,\"\",COUNTA(H323:AA323))","v":""},null,null,null,null,null,null,null,null,null,null,null,null,null,null,null,null,null,null,null,null,null,null,0,{"$f":"AB323-AB322","v":0}]
[null,null,null,null,null,null,null,null,null,null,null,null,null,null,null,null,null,null,null,null,null,null,null,null,null,null,null,0]
[33,"数",{"$f":"IF(G1636=\"\",\"\",G1636)","v":"斉藤ﾄ"},4,{"$f":"IF(COUNTA(H325:AA325)=0,\"\",COUNTA(H325:AA325))","v":4},"数Ⅰ","斉藤ﾄ","*14","*14","*14","*14",null,null,null,null,null,null,null,null,null,null,null,null,null,null,null,null,4,{"$f":"AB325-AB324","v":4}]
[null,null,null,null,null,null,null,null,null,null,null,null,null,null,null,null,null,null,null,null,null,null,null,null,null,null,null,0]
[33," ",null,4,{"$f":"IF(COUNTA(H327:AA327)=0,\"\",COUNTA(H327:AA327))","v":12},"数Ⅱ","斉藤ﾄ","*22","*22","*22","*22","*23","*23","*23","*23","*24","*24","*24","*24",null,null,null,null,null,null,null,null,12,{"$f":"AB327-AB326","v":12}]
[null,null,null,null,null,null,null,null,null,null,null,null,null,null,null,null,null,null,null,null,null,null,null,null,null,null,null,0]
[33,null,null,null,{"$f":"IF(COUNTA(H329:AA329)=0,\"\",COUNTA(H329:AA329))","v":""},null,null,null,null,null,null,null,null,null,null,null,null,null,null,null,null,null,null,null,null,null,null,0,{"$f":"AB329-AB328","v":0}]
[null,null,null,null,null,null,null,null,null,null,null,null,null,null,null,null,null,null,null,null,null,null,null,null,null,null,null,0]
[33,null,null,null,{"$f":"IF(COUNTA(H331:AA331)=0,\"\",COUNTA(H331:AA331))","v":""},null,null,null,null,null,null,null,null,null,null,null,null,null,null,null,null,null,null,null,null,null,null,0,{"$f":"AB331-AB330","v":0}]
[null,null,null,null,null,null,null,46,null,null,null,null,null,null,null,null,null,null,null,null,null,null,null,null,null,null,null,1]
[33,null,null,null,{"$f":"IF(COUNTA(H333:AA333)=0,\"\",COUNTA(H333:AA333))","v":1},"LHR","斉藤ﾄ","*23",null,null,null,null,null,null,null,null,null,null,null,null,null,null,null,null,null,null,null,1,{"$f":"AB333-AB332","v":0}]
[null,null,null,null,null,null,null,null,null,null,null,null,null,null,null,null,null,null,null,null,null,null,null,null,null,null,null,0]
[34,null,{"$f":"IF(G1638=\"\",\"\",G1638)","v":"市ノ川"},4,{"$f":"IF(COUNTA(H335:AA335)=0,\"\",COUNTA(H335:AA335))","v":4},"数Ⅰ","市ノ川","*11","*11","*11","*11",null,null,null,null,null,null,null,null,null,null,null,null,null,null,null,null,4,{"$f":"AB335-AB334","v":4}]
[null,null,null,null,null,null,null,null,null,null,null,null,null,null,null,null,null,null,null,null,null,null,null,null,null,null,null,0]
[34,null,null,4,{"$f":"IF(COUNTA(H337:AA337)=0,\"\",COUNTA(H337:AA337))","v":12},"数Ⅱ","市ノ川","*26","*26","*26","*26","*27","*27","*27","*27","*28","*28","*28","*28",null,null,null,null,null,null,null,null,12,{"$f":"AB337-AB336","v":12}]
[null,null,null,null,null,null,null,null,null,null,null,null,null,null,null,null,null,null,null,null,null,null,null,null,null,null,null,0]
[34,null,null,null,{"$f":"IF(COUNTA(H339:AA339)=0,\"\",COUNTA(H339:AA339))","v":""},null,null,null,null,null,null,null,null,null,null,null,null,null,null,null,null,null,null,null,null,null,null,0,{"$f":"AB339-AB338","v":0}]
[null,null,null,null,null,null,null,null,null,null,null,null,null,null,null,null,null,null,null,null,null,null,null,null,null,null,null,0]
[34,null,null,null,{"$f":"IF(COUNTA(H341:AA341)=0,\"\",COUNTA(H341:AA341))","v":""},null,null,null,null,null,null,null,null,null,null,null,null,null,null,null,null,null,null,null,null,null,null,0,{"$f":"AB341-AB340","v":0}]
[null,null,null,null,null,null,null,46,null,null,null,null,null,null,null,null,null,null,null,null,null,null,null,null,null,null,null,1]
[34," ",null,null,{"$f":"IF(COUNTA(H343:AA343)=0,\"\",COUNTA(H343:AA343))","v":1},"LHR","市ノ川","*28",null,null,null,null,null,null,null,null,null,null,null,null,null,null,null,null,null,null,null,1,{"$f":"AB343-AB342","v":0}]
[null,null,null,null,null,null,null,null,null,null,null,null,null,null,null,null,null,null,null,null,null,null,null,null,null,null,null,0]
[35,null,{"$f":"IF(G1640=\"\",\"\",G1640)","v":"多田"},2,{"$f":"IF(COUNTA(H345:AA345)=0,\"\",COUNTA(H345:AA345))","v":8},"数Ⅱ","多田","*31","*31","*32","*32","*33","*33","*34","*34",null,null,null,null,null,null,null,null,null,null,null,null,8,{"$f":"AB345-AB344","v":8}]
[null,null,null,null,null,null,null,null,null,null,null,null,null,null,null,null,null,null,null,null,null,null,null,null,null,null,null,0]
[35,null,null,4,{"$f":"IF(COUNTA(H347:AA347)=0,\"\",COUNTA(H347:AA347))","v":4},"数Ⅲ","多田","*35","*35","*35","*35",null,null,null,null,null,null,null,null,null,null,null,null,null,null,null,null,4,{"$f":"AB347-AB346","v":4}]
[null,null,null,null,null,null,null,null,null,null,null,null,null,null,null,null,null,null,null,null,null,null,null,null,null,null,null,0]
[35,null,null,null,{"$f":"IF(COUNTA(H349:AA349)=0,\"\",COUNTA(H349:AA349))","v":""},null,null,null,null,null,null,null,null,null,null,null,null,null,null,null,null,null,null,null,null,null,null,0,{"$f":"AB349-AB348","v":0}]
[null,null,null,null,null,null,null,null,null,null,null,null,null,null,null,null,null,null,null,null,null,null,null,null,null,null,null,0]
[35,null,null,null,{"$f":"IF(COUNTA(H351:AA351)=0,\"\",COUNTA(H351:AA351))","v":""},null,null,null,null,null,null,null,null,null,null,null,null,null,null,null,null,null,null,null,null,null,null,0,{"$f":"AB351-AB350","v":0}]
[null,null,null,null,null,null,null,46,null,null,null,null,null,null,null,null,null,null,null,null,null,null,null,null,null,null,null,1]
[35,null,null,null,{"$f":"IF(COUNTA(H353:AA353)=0,\"\",COUNTA(H353:AA353))","v":1},"LHR","多田","*34",null,null,null,null,null,null,null,null,null,null,null,null,null,null,null,null,null,null,null,1,{"$f":"AB353-AB352","v":0}]
[null,null,null,null,null,null,null,null,null,null,null,null,null,null,null,null,null,null,null,null,null,null,null,null,null,null,null,0]
[36,null,{"$f":"IF(G1642=\"\",\"\",G1642)","v":"菊川"},2,{"$f":"IF(COUNTA(H355:AA355)=0,\"\",COUNTA(H355:AA355))","v":6},"数Ⅱ","菊川","*36","*36","*37","*37","*38","*38",null,null,null,null,null,null,null,null,null,null,null,null,null,null,6,{"$f":"AB355-AB354","v":6}]
[null,null,null,null,null,null,null,null,null,null,null,null,null,null,null,null,null,null,null,null,null,null,null,null,null,null,null,0]
[36," ",null,2,{"$f":"IF(COUNTA(H357:AA357)=0,\"\",COUNTA(H357:AA357))","v":2},"数Ｂ","菊川","*35","*35",null,null,null,null,null,null,null,null,null,null,null,null,null,null,null,null,null,null,2,{"$f":"AB357-AB356","v":2}]
[null,null,null,null,null,null,null,null,null,null,null,null,null,null,null,null,null,null,null,null,null,null,null,null,null,null,null,0]
[36,null,null,null,{"$f":"IF(COUNTA(H359:AA359)=0,\"\",COUNTA(H359:AA359))","v":""},null,null,null,null,null,null,null,null,null,null,null,null,null,null,null,null,null,null,null,null,null,null,0,{"$f":"AB359-AB358","v":0}]
[null,null,null,null,null,null,null,null,null,null,null,null,null,null,null,null,null,null,null,null,null,null,null,null,null,null,null,0]
[36,null,null,null,{"$f":"IF(COUNTA(H361:AA361)=0,\"\",COUNTA(H361:AA361))","v":""},null,null,null,null,null,null,null,null,null,null,null,null,null,null,null,null,null,null,null,null,null,null,0,{"$f":"AB361-AB360","v":0}]
[null,null,null,null,null,null,null,null,null,null,null,null,null,null,null,null,null,null,null,null,null,null,null,null,null,null,null,0]
[36,null,null,null,{"$f":"IF(COUNTA(H363:AA363)=0,\"\",COUNTA(H363:AA363))","v":""},null,null,null,null,null,null,null,null,null,null,null,null,null,null,null,null,null,null,null,null,null,null,0,{"$f":"AB363-AB362","v":0}]
[null,null,null,null,null,null,null,null,null,null,null,null,null,null,null,null,null,null,null,null,null,null,null,null,null,null,null,0]
[37,null,{"$f":"IF(G1644=\"\",\"\",G1644)","v":"t37"},null,{"$f":"IF(COUNTA(H365:AA365)=0,\"\",COUNTA(H365:AA365))","v":""},null,null,null,null,null,null,null,null,null,null,null,null,null,null,null,null,null,null,null,null,null,null,0,{"$f":"AB365-AB364","v":0}]
[null,null,null,null,null,null,null,null,null,null,null,null,null,null,null,null,null,null,null,null,null,null,null,null,null,null,null,0]
[37,null,null,null,{"$f":"IF(COUNTA(H367:AA367)=0,\"\",COUNTA(H367:AA367))","v":""},null,null,null,null,null,null,null,null,null,null,null,null,null,null,null,null,null,null,null,null,null,null,0,{"$f":"AB367-AB366","v":0}]
[null,null,null,null,null,null,null,null,null,null,null,null,null,null,null,null,null,null,null,null,null,null,null,null,null,null,null,0]
[37,null,null,null,{"$f":"IF(COUNTA(H369:AA369)=0,\"\",COUNTA(H369:AA369))","v":""},null,null,null,null,null,null,null,null,null,null,null,null,null,null,null,null,null,null,null,null,null,null,0,{"$f":"AB369-AB368","v":0}]
[null,null,null,null,null,null,null,null,null,null,null,null,null,null,null,null,null,null,null,null,null,null,null,null,null,null,null,0]
[37,null,null,null,{"$f":"IF(COUNTA(H371:AA371)=0,\"\",COUNTA(H371:AA371))","v":""},null,null,null,null,null,null,null,null,null,null,null,null,null,null,null,null,null,null,null,null,null,null,0,{"$f":"AB371-AB370","v":0}]
[null,null,null,null,null,null,null,null,null,null,null,null,null,null,null,null,null,null,null,null,null,null,null,null,null,null,null,0]
[37,null,null,null,{"$f":"IF(COUNTA(H373:AA373)=0,\"\",COUNTA(H373:AA373))","v":""},null,null,null,null,null,null,null,null,null,null,null,null,null,null,null,null,null,null,null,null,null,null,0,{"$f":"AB373-AB372","v":0}]
[null,null,null,null,null,null,null,null,null,null,null,null,null,null,null,null,null,null,null,null,null,null,null,null,null,null,null,0]
[38,null,{"$f":"IF(G1646=\"\",\"\",G1646)","v":"t38"},null,{"$f":"IF(COUNTA(H375:AA375)=0,\"\",COUNTA(H375:AA375))","v":""},null,null,null,null,null,null,null,null,null,null,null,null,null,null,null,null,null,null,null,null,null,null,0,{"$f":"AB375-AB374","v":0}]
[null,null,null,null,null,null,null,null,null,null,null,null,null,null,null,null,null,null,null,null,null,null,null,null,null,null,null,0]
[38,null,null,null,{"$f":"IF(COUNTA(H377:AA377)=0,\"\",COUNTA(H377:AA377))","v":""},null,null,null,null,null,null,null,null,null,null,null,null,null,null,null,null,null,null,null,null,null,null,0,{"$f":"AB377-AB376","v":0}]
[null,null,null,null,null,null,null,null,null,null,null,null,null,null,null,null,null,null,null,null,null,null,null,null,null,null,null,0]
[38,null,null,null,{"$f":"IF(COUNTA(H379:AA379)=0,\"\",COUNTA(H379:AA379))","v":""},null,null,null,null,null,null,null,null,null,null,null,null,null,null,null,null,null,null,null,null,null,null,0,{"$f":"AB379-AB378","v":0}]
[null,null,null,null,null,null,null,null,null,null,null,null,null,null,null,null,null,null,null,null,null,null,null,null,null,null,null,0]
[38," ",null,null,{"$f":"IF(COUNTA(H381:AA381)=0,\"\",COUNTA(H381:AA381))","v":""},null,null,null,null,null,null,null,null,null,null,null,null,null,null,null,null,null,null,null,null,null,null,0,{"$f":"AB381-AB380","v":0}]
[null,null,null,null,null,null,null,null,null,null,null,null,null,null,null,null,null,null,null,null,null,null,null,null,null,null,null,0]
[38,null,null,null,{"$f":"IF(COUNTA(H383:AA383)=0,\"\",COUNTA(H383:AA383))","v":""},null,null,null,null,null,null,null,null,null,null,null,null,null,null,null,null,null,null,null,null,null,null,0,{"$f":"AB383-AB382","v":0}]
[null,null,null,null,null,null,null,null,null,null,null,null,null,null,null,null,null,null,null,null,null,null,null,null,null,null,null,{"$f":"COUNTA(H384:AA384)","v":0}]
[39," ",{"$f":"IF(G1648=\"\",\"\",G1648)","v":"t39"},null,{"$f":"IF(COUNTA(H385:AA385)=0,\"\",COUNTA(H385:AA385))","v":""},null,null,null,null,null,null,null,null,null,null,null,null,null,null,null,null,null,null,null,null,null,null,0,{"$f":"AB385-AB384","v":0}]
[null,null,null,null,null,null,null,null,null,null,null,null,null,null,null,null,null,null,null,null,null,null,null,null,null,null,null,0]
[39,null,null,null,{"$f":"IF(COUNTA(H387:AA387)=0,\"\",COUNTA(H387:AA387))","v":""},null,null,null,null,null,null,null,null,null,null,null,null,null,null,null,null,null,null,null,null,null,null,0,{"$f":"AB387-AB386","v":0}]
[null,null,null,null,null,null,null,null,null,null,null,null,null,null,null,null,null,null,null,null,null,null,null,null,null,null,null,0]
[39,null,null,null,{"$f":"IF(COUNTA(H389:AA389)=0,\"\",COUNTA(H389:AA389))","v":""},null,null,null,null,null,null,null,null,null,null,null,null,null,null,null,null,null,null,null,null,null,null,0,{"$f":"AB389-AB388","v":0}]
[null,null,null,null,null,null,null,null,null,null,null,null,null,null,null,null,null,null,null,null,null,null,null,null,null,null,null,0]
[39,null,null,null,{"$f":"IF(COUNTA(H391:AA391)=0,\"\",COUNTA(H391:AA391))","v":""},null,null,null,null,null,null,null,null,null,null,null,null,null,null,null,null,null,null,null,null,null,null,0,{"$f":"AB391-AB390","v":0}]
[null,null,null,null,null,null,null,null,null,null,null,null,null,null,null,null,null,null,null,null,null,null,null,null,null,null,null,0]
[39,null,null,null,{"$f":"IF(COUNTA(H393:AA393)=0,\"\",COUNTA(H393:AA393))","v":""},null,null,null,null,null,null,null,null,null,null,null,null,null,null,null,null,null,null,null,null,null,null,0,{"$f":"AB393-AB392","v":0}]
[null,null,null,null,null,null,null,null,null,null,null,null,null,null,null,null,null,null,null,null,null,null,null,null,null,null,null,0]
[40,null,{"$f":"IF(G1650=\"\",\"\",G1650)","v":"t40"},null,{"$f":"IF(COUNTA(H395:AA395)=0,\"\",COUNTA(H395:AA395))","v":""},null,null,null,null,null,null,null,null,null,null,null,null,null,null,null,null,null,null,null,null,null,null,0,{"$f":"AB395-AB394","v":0}]
[null,null,null,null,null,null,null,null,null,null,null,null,null,null,null,null,null,null,null,null,null,null,null,null,null,null,null,0]
[40,null,null,null,{"$f":"IF(COUNTA(H397:AA397)=0,\"\",COUNTA(H397:AA397))","v":""},null,null,null,null,null,null,null,null,null,null,null,null,null,null,null,null,null,null,null,null,null,null,0,{"$f":"AB397-AB396","v":0}]
[null,null,null,null,null,null,null,null,null,null,null,null,null,null,null,null,null,null,null,null,null,null,null,null,null,null,null,0]
[40,null,null,null,{"$f":"IF(COUNTA(H399:AA399)=0,\"\",COUNTA(H399:AA399))","v":""},null,null,null,null,null,null,null,null,null,null,null,null,null,null,null,null,null,null,null,null,null,null,0,{"$f":"AB399-AB398","v":0}]
[null,null,null,null,null,null,null,null,null,null,null,null,null,null,null,null,null,null,null,null,null,null,null,null,null,null,null,0]
[40,null,null,null,{"$f":"IF(COUNTA(H401:AA401)=0,\"\",COUNTA(H401:AA401))","v":""},null,null,null,null,null,null,null,null,null,null,null,null,null,null,null,null,null,null,null,null,null,null,0,{"$f":"AB401-AB400","v":0}]
[null,null,null,null,null,null,null,null,null,null,null,null,null,null,null,null,null,null,null,null,null,null,null,null,null,null,null,0]
[40,"学",null,null,{"$f":"IF(COUNTA(H403:AA403)=0,\"\",COUNTA(H403:AA403))","v":""},null,null,null,null,null,null,null,null,null,null,null,null,null,null,null,null,null,null,null,null,null,null,0,{"$f":"AB403-AB402","v":0}]
[null,null,null,null,null,null,null,null,null,null,null,null,null,null,null,null,null,null,null,null,null,null,null,null,null,null,null,0]
[41,null,{"$f":"IF(G1652=\"\",\"\",G1652)","v":"t41"},null,{"$f":"IF(COUNTA(H405:AA405)=0,\"\",COUNTA(H405:AA405))","v":""},null,null,null,null,null,null,null,null,null,null,null,null,null,null,null,null,null,null,null,null,null,null,0,{"$f":"AB405-AB404","v":0}]
[null,null,null,null,null,null,null,null,null,null,null,null,null,null,null,null,null,null,null,null,null,null,null,null,null,null,null,0]
[41,null,null,null,{"$f":"IF(COUNTA(H407:AA407)=0,\"\",COUNTA(H407:AA407))","v":""},null,null,null,null,null,null,null,null,null,null,null,null,null,null,null,null,null,null,null,null,null,null,0,{"$f":"AB407-AB406","v":0}]
[null,null,null,null,null,null,null,null,null,null,null,null,null,null,null,null,null,null,null,null,null,null,null,null,null,null,null,0]
[41,null,null,null,{"$f":"IF(COUNTA(H409:AA409)=0,\"\",COUNTA(H409:AA409))","v":""},null,null,null,null,null,null,null,null,null,null,null,null,null,null,null,null,null,null,null,null,null,null,0,{"$f":"AB409-AB408","v":0}]
[null,null,null,null,null,null,null,null,null,null,null,null,null,null,null,null,null,null,null,null,null,null,null,null,null,null,null,0]
[41,null,null,null,{"$f":"IF(COUNTA(H411:AA411)=0,\"\",COUNTA(H411:AA411))","v":""},null,null,null,null,null,null,null,null,null,null,null,null,null,null,null,null,null,null,null,null,null,null,0,{"$f":"AB411-AB410","v":0}]
[null,null,null,null,null,null,null,null,null,null,null,null,null,null,null,null,null,null,null,null,null,null,null,null,null,null,null,0]
[41,null,null,null,{"$f":"IF(COUNTA(H413:AA413)=0,\"\",COUNTA(H413:AA413))","v":""},null,null,null,null,null,null,null,null,null,null,null,null,null,null,null,null,null,null,null,null,null,null,0,{"$f":"AB413-AB412","v":0}]
[null,null,null,null,null,null,null,null,null,null,null,null,null,null,null,null,null,null,null,null,null,null,null,null,null,null,null,0]
[42,null,{"$f":"IF(G1654=\"\",\"\",G1654)","v":"t42"},null,{"$f":"IF(COUNTA(H415:AA415)=0,\"\",COUNTA(H415:AA415))","v":""},null,null,null,null,null,null,null,null,null,null,null,null,null,null,null,null,null,null,null,null,null,null,0,{"$f":"AB415-AB414","v":0}]
[null,null,null,null,null,null,null,null,null,null,null,null,null,null,null,null,null,null,null,null,null,null,null,null,null,null,null,0]
[42,null,null,null,{"$f":"IF(COUNTA(H417:AA417)=0,\"\",COUNTA(H417:AA417))","v":""},null,null,null,null,null,null,null,null,null,null,null,null,null,null,null,null,null,null,null,null,null,null,0,{"$f":"AB417-AB416","v":0}]
[null,null,null,null,null,null,null,null,null,null,null,null,null,null,null,null,null,null,null,null,null,null,null,null,null,null,null,0]
[42,null,null,null,{"$f":"IF(COUNTA(H419:AA419)=0,\"\",COUNTA(H419:AA419))","v":""},null,null,null,null,null,null,null,null,null,null,null,null,null,null,null,null,null,null,null,null,null,null,0,{"$f":"AB419-AB418","v":0}]
[null,null,null,null,null,null,null,null,null,null,null,null,null,null,null,null,null,null,null,null,null,null,null,null,null,null,null,0]
[42,null,null,null,{"$f":"IF(COUNTA(H421:AA421)=0,\"\",COUNTA(H421:AA421))","v":""},null,null,null,null,null,null,null,null,null,null,null,null,null,null,null,null,null,null,null,null,null,null,0,{"$f":"AB421-AB420","v":0}]
[null,null,null,null,null,null,null,null,null,null,null,null,null,null,null,null,null,null,null,null,null,null,null,null,null,null,null,0]
[42,null,null,null,{"$f":"IF(COUNTA(H423:AA423)=0,\"\",COUNTA(H423:AA423))","v":""},null,null,null,null,null,null,null,null,null,null,null,null,null,null,null,null,null,null,null,null,null,null,0,{"$f":"AB423-AB422","v":0}]
[null,null,null,null,null,null,null,null,null,null,null,null,null,null,null,null,null,null,null,null,null,null,null,null,null,null,null,0]
[43,null,{"$f":"IF(G1656=\"\",\"\",G1656)","v":"t43"},null,{"$f":"IF(COUNTA(H425:AA425)=0,\"\",COUNTA(H425:AA425))","v":""},null,null,null,null,null,null,null,null,null,null,null,null,null,null,null,null,null,null,null,null,null,null,0,{"$f":"AB425-AB424","v":0}]
[null,null,null,null,null,null,null,null,null,null,null,null,null,null,null,null,null,null,null,null,null,null,null,null,null,null,null,0]
[43,null,null,null,{"$f":"IF(COUNTA(H427:AA427)=0,\"\",COUNTA(H427:AA427))","v":""},null,null,null,null,null,null,null,null,null,null,null,null,null,null,null,null,null,null,null,null,null,null,0,{"$f":"AB427-AB426","v":0}]
[null,null,null,null,null,null,null,null,null,null,null,null,null,null,null,null,null,null,null,null,null,null,null,null,null,null,null,0]
[43,null,null,null,{"$f":"IF(COUNTA(H429:AA429)=0,\"\",COUNTA(H429:AA429))","v":""},null,null,null,null,null,null,null,null,null,null,null,null,null,null,null,null,null,null,null,null,null,null,0,{"$f":"AB429-AB428","v":0}]
[null,null,null,null,null,null,null,null,null,null,null,null,null,null,null,null,null,null,null,null,null,null,null,null,null,null,null,0]
[43,null,null,null,{"$f":"IF(COUNTA(H431:AA431)=0,\"\",COUNTA(H431:AA431))","v":""},null,null,null,null,null,null,null,null,null,null,null,null,null,null,null,null,null,null,null,null,null,null,0,{"$f":"AB431-AB430","v":0}]
[null,null,null,null,null,null,null,null,null,null,null,null,null,null,null,null,null,null,null,null,null,null,null,null,null,null,null,0]
[43,null,null,null,{"$f":"IF(COUNTA(H433:AA433)=0,\"\",COUNTA(H433:AA433))","v":""},null,null,null,null,null,null,null,null,null,null,null,null,null,null,null,null,null,null,null,null,null,null,0,{"$f":"AB433-AB432","v":0}]
[null,null,null,null,null,null,null,null,null,null,null,null,null,null,null,null,null,null,null,null,null,null,null,null,null,null,null,0]
[44,null,{"$f":"IF(G1658=\"\",\"\",G1658)","v":"t44"},null,{"$f":"IF(COUNTA(H435:AA435)=0,\"\",COUNTA(H435:AA435))","v":""},null,null,null,null,null,null,null,null,null,null,null,null,null,null,null,null,null,null,null,null,null,null,0,{"$f":"AB435-AB434","v":0}]
[null,null,null,null,null,null,null,null,null,null,null,null,null,null,null,null,null,null,null,null,null,null,null,null,null,null,null,0]
[44,null,null,null,{"$f":"IF(COUNTA(H437:AA437)=0,\"\",COUNTA(H437:AA437))","v":""},null,null,null,null,null,null,null,null,null,null,null,null,null,null,null,null,null,null,null,null,null,null,0,{"$f":"AB437-AB436","v":0}]
[null,null,null,null,null,null,null,null,null,null,null,null,null,null,null,null,null,null,null,null,null,null,null,null,null,null,null,0]
[44,null,null,null,{"$f":"IF(COUNTA(H439:AA439)=0,\"\",COUNTA(H439:AA439))","v":""},null,null,null,null,null,null,null,null,null,null,null,null,null,null,null,null,null,null,null,null,null,null,0,{"$f":"AB439-AB438","v":0}]
[null,null,null,null,null,null,null,null,null,null,null,null,null,null,null,null,null,null,null,null,null,null,null,null,null,null,null,0]
[44,null,null,null,{"$f":"IF(COUNTA(H441:AA441)=0,\"\",COUNTA(H441:AA441))","v":""},null,null,null,null,null,null,null,null,null,null,null,null,null,null,null,null,null,null,null,null,null,null,0,{"$f":"AB441-AB440","v":0}]
[null,null,null,null,null,null,null,null,null,null,null,null,null,null,null,null,null,null,null,null,null,null,null,null,null,null,null,0]
[44,null,null,null,{"$f":"IF(COUNTA(H443:AA443)=0,\"\",COUNTA(H443:AA443))","v":""},null,null,null,null,null,null,null,null,null,null,null,null,null,null,null,null,null,null,null,null,null,null,0,{"$f":"AB443-AB442","v":0}]
[null,null,null,null,null,null,null,null,null,null,null,null,null,null,null,null,null,null,null,null,null,null,null,null,null,null,null,0]
[45,null,{"$f":"IF(G1660=\"\",\"\",G1660)","v":"t45"},null,{"$f":"IF(COUNTA(H445:AA445)=0,\"\",COUNTA(H445:AA445))","v":""},null,null,null,null,null,null,null,null,null,null,null,null,null,null,null,null,null,null,null,null,null,null,0,{"$f":"AB445-AB444","v":0}]
[null,null,{"$f":"IF(G1661=\"\",\"\",G1661)","v":""},null,null,null,null,null,null,null,null,null,null,null,null,null,null,null,null,null,null,null,null,null,null,null,null,0]
[45,null,null,null,{"$f":"IF(COUNTA(H447:AA447)=0,\"\",COUNTA(H447:AA447))","v":""},null,null,null,null,null,null,null,null,null,null,null,null,null,null,null,null,null,null,null,null,null,null,0,{"$f":"AB447-AB446","v":0}]
[null,null,null,null,null,null,null,null,null,null,null,null,null,null,null,null,null,null,null,null,null,null,null,null,null,null,null,0]
[42,null,null,null,{"$f":"IF(COUNTA(H449:AA449)=0,\"\",COUNTA(H449:AA449))","v":""},null,null,null,null,null,null,null,null,null,null,null,null,null,null,null,null,null,null,null,null,null,null,0,{"$f":"AB449-AB448","v":0}]
[null,null,null,null,null,null,null,null,null,null,null,null,null,null,null,null,null,null,null,null,null,null,null,null,null,null,null,0]
[45,null,null,null,{"$f":"IF(COUNTA(H451:AA451)=0,\"\",COUNTA(H451:AA451))","v":""},null,null,null,null,null,null,null,null,null,null,null,null,null,null,null,null,null,null,null,null,null,null,0,{"$f":"AB451-AB450","v":0}]
[null,null,null,null,null,null,null,null,null,null,null,null,null,null,null,null,null,null,null,null,null,null,null,null,null,null,null,0]
[45,null,null,null,{"$f":"IF(COUNTA(H453:AA453)=0,\"\",COUNTA(H453:AA453))","v":""},null,null,null,null,null,null,null,null,null,null,null,null,null,null,null,null,null,null,null,null,null,null,0,{"$f":"AB453-AB452","v":0}]
[null,null,null,null,null,null,null,null,null,null,null,null,null,null,null,null,null,null,null,null,null,null,null,null,null,null,null,0]
[46,null,{"$f":"IF(G1662=\"\",\"\",G1662)","v":"関"},4,{"$f":"IF(COUNTA(H455:AA455)=0,\"\",COUNTA(H455:AA455))","v":12},"化Ｂ","関","*11","*11","*11","*11","*12","*12","*12","*12","*13","*13","*13","*13",null,null,null,null,null,null,null,null,12,{"$f":"AB455-AB454","v":12}]
[null,null,null,null,null,null,null,null,null,null,null,null,null,null,null,null,null,null,null,null,null,null,null,null,null,null,null,0]
[46,null,null,null,{"$f":"IF(COUNTA(H457:AA457)=0,\"\",COUNTA(H457:AA457))","v":""},null,null,null,null,null,null,null,null,null,null,null,null,null,null,null,null,null,null,null,null,null,null,0,{"$f":"AB457-AB456","v":0}]
[null,null,null,null,null,null,null,null,null,null,null,null,null,null,null,null,null,null,null,null,null,null,null,null,null,null,null,0]
[46,null,null,null,{"$f":"IF(COUNTA(H459:AA459)=0,\"\",COUNTA(H459:AA459))","v":""},null,null,null,null,null,null,null,null,null,null,null,null,null,null,null,null,null,null,null,null,null,null,0,{"$f":"AB459-AB458","v":0}]
[null,null,null,null,null,null,null,null,null,null,null,null,null,null,null,null,null,null,null,null,null,null,null,null,null,null,null,0]
[46,null,null,null,{"$f":"IF(COUNTA(H461:AA461)=0,\"\",COUNTA(H461:AA461))","v":""},null,null,null,null,null,null,null,null,null,null,null,null,null,null,null,null,null,null,null,null,null,null,0,{"$f":"AB461-AB460","v":0}]
[null,null,null,null,null,null,null,46,null,null,null,null,null,null,null,null,null,null,null,null,null,null,null,null,null,null,null,1]
[46,null,null,null,{"$f":"IF(COUNTA(H463:AA463)=0,\"\",COUNTA(H463:AA463))","v":1},"LHR","関","*11",null,null,null,null,null,null,null,null,null,null,null,null,null,null,null,null,null,null,null,1,{"$f":"AB463-AB462","v":0}]
[null,null,null,null,null,null,null,null,null,null,null,null,null,null,null,null,null,null,null,null,null,null,null,null,null,null,null,0]
[47,null,{"$f":"IF(G1664=\"\",\"\",G1664)","v":"上村"},2,{"$f":"IF(COUNTA(H465:AA465)=0,\"\",COUNTA(H465:AA465))","v":10},"物Ｄ","上村","*21","*21","*22","*22","*23","*23","*24","*24","*25","*25",null,null,null,null,null,null,null,null,null,null,10,{"$f":"AB465-AB464","v":10}]
[null,null,null,null,null,null,null,null,null,null,null,null,null,null,null,null,null,null,null,null,null,null,null,null,null,null,null,0]
[47,null,null,2,{"$f":"IF(COUNTA(H467:AA467)=0,\"\",COUNTA(H467:AA467))","v":6},"地学","上村","*32","*32","*34","*34","*37","*37",null,null,null,null,null,null,null,null,null,null,null,null,null,null,6,{"$f":"AB467-AB466","v":6}]
[null,null,null,null,null,null,null,null,null,null,null,null,null,null,null,null,null,null,null,null,null,null,null,null,null,null,null,0]
[47,null,null,null,{"$f":"IF(COUNTA(H469:AA469)=0,\"\",COUNTA(H469:AA469))","v":""},null,null,null,null,null,null,null,null,null,null,null,null,null,null,null,null,null,null,null,null,null,null,0,{"$f":"AB469-AB468","v":0}]
[null,null,null,null,null,null,null,null,null,null,null,null,null,null,null,null,null,null,null,null,null,null,null,null,null,null,null,0]
[47,null,null,null,{"$f":"IF(COUNTA(H471:AA471)=0,\"\",COUNTA(H471:AA471))","v":""},null,null,null,null,null,null,null,null,null,null,null,null,null,null,null,null,null,null,null,null,null,null,0,{"$f":"AB471-AB470","v":0}]
[null,null,null,null,null,null,null,46,null,null,null,null,null,null,null,null,null,null,null,null,null,null,null,null,null,null,null,1]
[47," ",null,null,{"$f":"IF(COUNTA(H473:AA473)=0,\"\",COUNTA(H473:AA473))","v":1},"LHR","上村","*22",null,null,null,null,null,null,null,null,null,null,null,null,null,null,null,null,null,null,null,1,{"$f":"AB473-AB472","v":0}]
[null,null,null,null,null,null,null,null,null,null,null,null,null,null,null,null,null,null,null,null,null,null,null,null,null,null,null,0]
[48,"理",{"$f":"IF(G1666=\"\",\"\",G1666)","v":"中田"},4,{"$f":"IF(COUNTA(H475:AA475)=0,\"\",COUNTA(H475:AA475))","v":8},"化Ｂ","中田","*17","*17","*17","*17","*18","*18","*18","*18",null,null,null,null,null,null,null,null,null,null,null,null,8,{"$f":"AB475-AB474","v":8}]
[null,null,null,null,null,null,null,null,null,null,null,null,null,null,null,null,null,null,null,null,null,null,null,null,null,null,null,0]
[48,null,null,2,{"$f":"IF(COUNTA(H477:AA477)=0,\"\",COUNTA(H477:AA477))","v":6},"物Ｃ","中田","*26","*26","*27","*27","*28","*28",null,null,null,null,null,null,null,null,null,null,null,null,null,null,6,{"$f":"AB477-AB476","v":6}]
[null,null,null,null,null,null,null,null,null,null,null,null,null,null,null,null,null,null,null,null,null,null,null,null,null,null,null,{"$f":"COUNTA(H478:AA478)","v":0}]
[48,null,null,null,{"$f":"IF(COUNTA(H479:AA479)=0,\"\",COUNTA(H479:AA479))","v":""},null,null,null,null,null,null,null,null,null,null,null,null,null,null,null,null,null,null,null,null,null,null,0,{"$f":"AB479-AB478","v":0}]
[null,null,null,null,null,null,null,null,null,null,null,null,null,null,null,null,null,null,null,null,null,null,null,null,null,null,null,0]
[48,null,null,null,{"$f":"IF(COUNTA(H481:AA481)=0,\"\",COUNTA(H481:AA481))","v":""},null,null,null,null,null,null,null,null,null,null,null,null,null,null,null,null,null,null,null,null,null,null,0,{"$f":"AB481-AB480","v":0}]
[null,null,null,null,null,null,null,46,null,null,null,null,null,null,null,null,null,null,null,null,null,null,null,null,null,null,null,1]
[48,null,null,null,{"$f":"IF(COUNTA(H483:AA483)=0,\"\",COUNTA(H483:AA483))","v":1},"LHR","中田","*26",null,null,null,null,null,null,null,null,null,null,null,null,null,null,null,null,null,null,null,1,{"$f":"AB483-AB482","v":0}]
[null,null,null,null,null,null,null,null,null,null,null,null,null,null,null,null,null,null,null,null,null,null,null,null,null,null,null,0]
[49,null,{"$f":"IF(G1668=\"\",\"\",G1668)","v":"金室"},2,{"$f":"IF(COUNTA(H485:AA485)=0,\"\",COUNTA(H485:AA485))","v":10},"物Ｃ","金室","*21","*21","*22","*22","*23","*23","*24","*24","*25","*25",null,null,null,null,null,null,null,null,null,null,10,{"$f":"AB485-AB484","v":10}]
[null,null,null,null,null,null,null,null,null,null,null,null,null,null,null,null,null,null,null,null,null,null,null,null,null,null,null,0]
[49,null,null,2,{"$f":"IF(COUNTA(H487:AA487)=0,\"\",COUNTA(H487:AA487))","v":6},"物Ｄ","金室","*26","*26","*27","*27","*28","*28",null,null,null,null,null,null,null,null,null,null,null,null,null,null,6,{"$f":"AB487-AB486","v":6}]
[null,null,null,null,null,null,null,null,null,null,null,null,null,null,null,null,null,null,null,null,null,null,null,null,null,null,null,0]
[49,null,null,null,{"$f":"IF(COUNTA(H489:AA489)=0,\"\",COUNTA(H489:AA489))","v":""},null,null,null,null,null,null,null,null,null,null,null,null,null,null,null,null,null,null,null,null,null,null,0,{"$f":"AB489-AB488","v":0}]
[null,null,null,null,null,null,null,null,null,null,null,null,null,null,null,null,null,null,null,null,null,null,null,null,null,null,null,0]
[49,null,null,null,{"$f":"IF(COUNTA(H491:AA491)=0,\"\",COUNTA(H491:AA491))","v":""},null,null,null,null,null,null,null,null,null,null,null,null,null,null,null,null,null,null,null,null,null,null,0,{"$f":"AB491-AB490","v":0}]
[null,null,null,null,null,null,null,null,null,null,null,null,null,null,null,null,null,null,null,null,null,null,null,null,null,null,null,0]
[49,null,null,null,{"$f":"IF(COUNTA(H493:AA493)=0,\"\",COUNTA(H493:AA493))","v":""},null,null,null,null,null,null,null,null,null,null,null,null,null,null,null,null,null,null,null,null,null,null,0,{"$f":"AB493-AB492","v":0}]
[null,null,null,null,null,null,null,null,null,null,null,null,null,null,null,null,null,null,null,null,null,null,null,null,null,null,null,0]
[50,null,{"$f":"IF(G1670=\"\",\"\",G1670)","v":"成谷"},4,{"$f":"IF(COUNTA(H495:AA495)=0,\"\",COUNTA(H495:AA495))","v":16},"生物","成谷","*35","*35","*35","*35","*36","*36","*36","*36","*37","*37","*37","*37","*38","*38","*38","*38",null,null,null,null,16,{"$f":"AB495-AB494","v":16}]
[null,null,null,null,null,null,null,null,null,null,null,null,null,null,null,null,null,null,null,null,null,null,null,null,null,null,null,0]
[50,null,null,null,{"$f":"IF(COUNTA(H497:AA497)=0,\"\",COUNTA(H497:AA497))","v":""},null,null,null,null,null,null,null,null,null,null,null,null,null,null,null,null,null,null,null,null,null,null,0,{"$f":"AB497-AB496","v":0}]
[null,null,null,null,null,null,null,null,null,null,null,null,null,null,null,null,null,null,null,null,null,null,null,null,null,null,null,0]
[50,null,null,null,{"$f":"IF(COUNTA(H499:AA499)=0,\"\",COUNTA(H499:AA499))","v":""},null,null,null,null,null,null,null,null,null,null,null,null,null,null,null,null,null,null,null,null,null,null,0,{"$f":"AB499-AB498","v":0}]
[null,null,null,null,null,null,null,null,null,null,null,null,null,null,null,null,null,null,null,null,null,null,null,null,null,null,null,0]
[50,null,null,null,{"$f":"IF(COUNTA(H501:AA501)=0,\"\",COUNTA(H501:AA501))","v":""},null,null,null,null,null,null,null,null,null,null,null,null,null,null,null,null,null,null,null,null,null,null,0,{"$f":"AB501-AB500","v":0}]
[null,null,null,null,null,null,null,46,null,null,null,null,null,null,null,null,null,null,null,null,null,null,null,null,null,null,null,1]
[50," ",null,null,{"$f":"IF(COUNTA(H503:AA503)=0,\"\",COUNTA(H503:AA503))","v":1},"LHR","成谷","*38",null,null,null,null,null,null,null,null,null,null,null,null,null,null,null,null,null,null,null,1,{"$f":"AB503-AB502","v":0}]
[null,null,null,null,null,null,null,null,null,null,null,null,null,null,null,null,null,null,null,null,null,null,null,null,null,null,null,0]
[51,null,{"$f":"IF(G1672=\"\",\"\",G1672)","v":"斉藤ｻ"},4,{"$f":"IF(COUNTA(H505:AA505)=0,\"\",COUNTA(H505:AA505))","v":12},"化Ｂ","斉藤ｻ","*14","*14","*14","*14","*15","*15","*15","*15","*16","*16","*16","*16",null,null,null,null,null,null,null,null,12,{"$f":"AB505-AB504","v":12}]
[null,null,null,null,null,null,null,null,null,null,null,null,null,null,null,null,null,null,null,null,null,null,null,null,null,null,null,0]
[51," ",null,null,{"$f":"IF(COUNTA(H507:AA507)=0,\"\",COUNTA(H507:AA507))","v":""},null,null,null,null,null,null,null,null,null,null,null,null,null,null,null,null,null,null,null,null,null,null,0,{"$f":"AB507-AB506","v":0}]
[null,null,null,null,null,null,null,null,null,null,null,null,null,null,null,null,null,null,null,null,null,null,null,null,null,null,null,0]
[51,null,null,null,{"$f":"IF(COUNTA(H509:AA509)=0,\"\",COUNTA(H509:AA509))","v":""},null,null,null,null,null,null,null,null,null,null,null,null,null,null,null,null,null,null,null,null,null,null,0,{"$f":"AB509-AB508","v":0}]
[null,null,null,null,null,null,null,null,null,null,null,null,null,null,null,null,null,null,null,null,null,null,null,null,null,null,null,0]
[51," ",null,null,{"$f":"IF(COUNTA(H511:AA511)=0,\"\",COUNTA(H511:AA511))","v":""},null,null,null,null,null,null,null,null,null,null,null,null,null,null,null,null,null,null,null,null,null,null,0,{"$f":"AB511-AB510","v":0}]
[null,null,null,null,null,null,null,null,null,null,null,null,null,null,null,null,null,null,null,null,null,null,null,null,null,null,null,0]
[51,null,null,null,{"$f":"IF(COUNTA(H513:AA513)=0,\"\",COUNTA(H513:AA513))","v":""},null,null,null,null,null,null,null,null,null,null,null,null,null,null,null,null,null,null,null,null,null,null,0,{"$f":"AB513-AB512","v":0}]
[null,null,null,null,null,null,null,null,null,null,null,null,null,null,null,null,null,null,null,null,null,null,null,null,null,null,null,0]
[52,null,{"$f":"IF(G1674=\"\",\"\",G1674)","v":"涌井"},4,{"$f":"IF(COUNTA(H515:AA515)=0,\"\",COUNTA(H515:AA515))","v":16},"生物","涌井","*31","*31","*31","*31","*32","*32","*32","*32","*33","*33","*33","*33","*34","*34","*34","*34",null,null,null,null,16,{"$f":"AB515-AB514","v":16}]
[null,null,null,null,null,null,null,null,null,null,null,null,null,null,null,null,null,null,null,null,null,null,null,null,null,null,null,0]
[52,null,null,null,{"$f":"IF(COUNTA(H517:AA517)=0,\"\",COUNTA(H517:AA517))","v":""},null,null,null,null,null,null,null,null,null,null,null,null,null,null,null,null,null,null,null,null,null,null,0,{"$f":"AB517-AB516","v":0}]
[null,null,null,null,null,null,null,null,null,null,null,null,null,null,null,null,null,null,null,null,null,null,null,null,null,null,null,0]
[52,null,null,null,{"$f":"IF(COUNTA(H519:AA519)=0,\"\",COUNTA(H519:AA519))","v":""},null,null,null,null,null,null,null,null,null,null,null,null,null,null,null,null,null,null,null,null,null,null,0,{"$f":"AB519-AB518","v":0}]
[null,null,null,null,null,null,null,null,null,null,null,null,null,null,null,null,null,null,null,null,null,null,null,null,null,null,null,0]
[52,null,null,null,{"$f":"IF(COUNTA(H521:AA521)=0,\"\",COUNTA(H521:AA521))","v":""},null,null,null,null,null,null,null,null,null,null,null,null,null,null,null,null,null,null,null,null,null,null,0,{"$f":"AB521-AB520","v":0}]
[null,null,null,null,null,null,null,null,null,null,null,null,null,null,null,null,null,null,null,null,null,null,null,null,null,null,null,0]
[52,null,null,null,{"$f":"IF(COUNTA(H523:AA523)=0,\"\",COUNTA(H523:AA523))","v":""},null,null,null,null,null,null,null,null,null,null,null,null,null,null,null,null,null,null,null,null,null,null,0,{"$f":"AB523-AB522","v":0}]
[null,null,null,null,null,null,null,null,null,null,null,null,null,null,null,null,null,null,null,null,null,null,null,null,null,null,null,0]
[53,null,{"$f":"IF(G1676=\"\",\"\",G1676)","v":"t53"},null,{"$f":"IF(COUNTA(H525:AA525)=0,\"\",COUNTA(H525:AA525))","v":""},null,null,null,null,null,null,null,null,null,null,null,null,null,null,null,null,null,null,null,null,null,null,0,{"$f":"AB525-AB524","v":0}]
[null,null,null,null,null,null,null,null,null,null,null,null,null,null,null,null,null,null,null,null,null,null,null,null,null,null,null,0]
[53,null,null,null,{"$f":"IF(COUNTA(H527:AA527)=0,\"\",COUNTA(H527:AA527))","v":""},null,null,null,null,null,null,null,null,null,null,null,null,null,null,null,null,null,null,null,null,null,null,0,{"$f":"AB527-AB526","v":0}]
[null,null,null,null,null,null,null,null,null,null,null,null,null,null,null,null,null,null,null,null,null,null,null,null,null,null,null,0]
[53,null,null,null,{"$f":"IF(COUNTA(H529:AA529)=0,\"\",COUNTA(H529:AA529))","v":""},null,null,null,null,null,null,null,null,null,null,null,null,null,null,null,null,null,null,null,null,null,null,0,{"$f":"AB529-AB528","v":0}]
[null,null,null,null,null,null,null,null,null,null,null,null,null,null,null,null,null,null,null,null,null,null,null,null,null,null,null,0]
[53,null,null,null,{"$f":"IF(COUNTA(H531:AA531)=0,\"\",COUNTA(H531:AA531))","v":""},null,null,null,null,null,null,null,null,null,null,null,null,null,null,null,null,null,null,null,null,null,null,0,{"$f":"AB531-AB530","v":0}]
[null,null,null,null,null,null,null,null,null,null,null,null,null,null,null,null,null,null,null,null,null,null,null,null,null,null,null,0]
[53,null,null,null,{"$f":"IF(COUNTA(H533:AA533)=0,\"\",COUNTA(H533:AA533))","v":""},null,null,null,null,null,null,null,null,null,null,null,null,null,null,null,null,null,null,null,null,null,null,0,{"$f":"AB533-AB532","v":0}]
[null,null,null,null,null,null,null,null,null,null,null,null,null,null,null,null,null,null,null,null,null,null,null,null,null,null,null,0]
[54,null,{"$f":"IF(G1678=\"\",\"\",G1678)","v":"t54"},null,{"$f":"IF(COUNTA(H535:AA535)=0,\"\",COUNTA(H535:AA535))","v":""},null,null,null,null,null,null,null,null,null,null,null,null,null,null,null,null,null,null,null,null,null,null,0,{"$f":"AB535-AB534","v":0}]
[null,null,null,null,null,null,null,null,null,null,null,null,null,null,null,null,null,null,null,null,null,null,null,null,null,null,null,0]
[54,null,null,null,{"$f":"IF(COUNTA(H537:AA537)=0,\"\",COUNTA(H537:AA537))","v":""},null,null,null,null,null,null,null,null,null,null,null,null,null,null,null,null,null,null,null,null,null,null,0,{"$f":"AB537-AB536","v":0}]
[null,null,null,null,null,null,null,null,null,null,null,null,null,null,null,null,null,null,null,null,null,null,null,null,null,null,null,0]
[54,null,null,null,{"$f":"IF(COUNTA(H539:AA539)=0,\"\",COUNTA(H539:AA539))","v":""},null,null,null,null,null,null,null,null,null,null,null,null,null,null,null,null,null,null,null,null,null,null,0,{"$f":"AB539-AB538","v":0}]
[null,null,null,null,null,null,null,null,null,null,null,null,null,null,null,null,null,null,null,null,null,null,null,null,null,null,null,0]
[54,null,null,null,{"$f":"IF(COUNTA(H541:AA541)=0,\"\",COUNTA(H541:AA541))","v":""},null,null,null,null,null,null,null,null,null,null,null,null,null,null,null,null,null,null,null,null,null,null,0,{"$f":"AB541-AB540","v":0}]
[null,null,null,null,null,null,null,null,null,null,null,null,null,null,null,null,null,null,null,null,null,null,null,null,null,null,null,{"$f":"COUNTA(H542:AA542)","v":0}]
[54,null,null,null,{"$f":"IF(COUNTA(H543:AA543)=0,\"\",COUNTA(H543:AA543))","v":""},null,null,null,null,null,null,null,null,null,null,null,null,null,null,null,null,null,null,null,null,null,null,0,{"$f":"AB543-AB542","v":0}]
[null,null,null,null,null,null,null,null,null,null,null,null,null,null,null,null,null,null,null,null,null,null,null,null,null,null,null,0]
[55,null,{"$f":"IF(G1680=\"\",\"\",G1680)","v":"t55"},null,{"$f":"IF(COUNTA(H545:AA545)=0,\"\",COUNTA(H545:AA545))","v":""},null,null,null,null,null,null,null,null,null,null,null,null,null,null,null,null,null,null,null,null,null,null,0,{"$f":"AB545-AB544","v":0}]
[null,null,null,null,null,null,null,null,null,null,null,null,null,null,null,null,null,null,null,null,null,null,null,null,null,null,null,0]
[55,null,null,null,{"$f":"IF(COUNTA(H547:AA547)=0,\"\",COUNTA(H547:AA547))","v":""},null,null,null,null,null,null,null,null,null,null,null,null,null,null,null,null,null,null,null,null,null,null,0,{"$f":"AB547-AB546","v":0}]
[null,null,null,null,null,null,null,null,null,null,null,null,null,null,null,null,null,null,null,null,null,null,null,null,null,null,null,0]
[55,null,null,null,{"$f":"IF(COUNTA(H549:AA549)=0,\"\",COUNTA(H549:AA549))","v":""},null,null,null,null,null,null,null,null,null,null,null,null,null,null,null,null,null,null,null,null,null,null,0,{"$f":"AB549-AB548","v":0}]
[null,null,null,null,null,null,null,null,null,null,null,null,null,null,null,null,null,null,null,null,null,null,null,null,null,null,null,0]
[55,null,null,null,{"$f":"IF(COUNTA(H551:AA551)=0,\"\",COUNTA(H551:AA551))","v":""},null,null,null,null,null,null,null,null,null,null,null,null,null,null,null,null,null,null,null,null,null,null,0,{"$f":"AB551-AB550","v":0}]
[null,null,null,null,null,null,null,null,null,null,null,null,null,null,null,null,null,null,null,null,null,null,null,null,null,null,null,0]
[55,"科",null,null,{"$f":"IF(COUNTA(H553:AA553)=0,\"\",COUNTA(H553:AA553))","v":""},null,null,null,null,null,null,null,null,null,null,null,null,null,null,null,null,null,null,null,null,null,null,0,{"$f":"AB553-AB552","v":0}]
[null,null,null,null,null,null,null,null,null,null,null,null,null,null,null,null,null,null,null,null,null,null,null,null,null,null,null,0]
[56,null,{"$f":"IF(G1682=\"\",\"\",G1682)","v":"t56"},null,{"$f":"IF(COUNTA(H555:AA555)=0,\"\",COUNTA(H555:AA555))","v":""},null,null,null,null,null,null,null,null,null,null,null,null,null,null,null,null,null,null,null,null,null,null,0,{"$f":"AB555-AB554","v":0}]
[null,null,null,null,null,null,null,null,null,null,null,null,null,null,null,null,null,null,null,null,null,null,null,null,null,null,null,0]
[56,null,null,null,{"$f":"IF(COUNTA(H557:AA557)=0,\"\",COUNTA(H557:AA557))","v":""},null,null,null,null,null,null,null,null,null,null,null,null,null,null,null,null,null,null,null,null,null,null,0,{"$f":"AB557-AB556","v":0}]
[null,null,null,null,null,null,null,null,null,null,null,null,null,null,null,null,null,null,null,null,null,null,null,null,null,null,null,0]
[56,null,null,null,{"$f":"IF(COUNTA(H559:AA559)=0,\"\",COUNTA(H559:AA559))","v":""},null,null,null,null,null,null,null,null,null,null,null,null,null,null,null,null,null,null,null,null,null,null,0,{"$f":"AB559-AB558","v":0}]
[null,null,null,null,null,null,null,null,null,null,null,null,null,null,null,null,null,null,null,null,null,null,null,null,null,null,null,0]
[56,null,null,null,{"$f":"IF(COUNTA(H561:AA561)=0,\"\",COUNTA(H561:AA561))","v":""},null,null,null,null,null,null,null,null,null,null,null,null,null,null,null,null,null,null,null,null,null,null,0,{"$f":"AB561-AB560","v":0}]
[null,null,null,null,null,null,null,null,null,null,null,null,null,null,null,null,null,null,null,null,null,null,null,null,null,null,null,0]
[56,null,null,null,{"$f":"IF(COUNTA(H563:AA563)=0,\"\",COUNTA(H563:AA563))","v":""},null,null,null,null,null,null,null,null,null,null,null,null,null,null,null,null,null,null,null,null,null,null,0,{"$f":"AB563-AB562","v":0}]
[null,null,null,null,null,null,null,null,null,null,null,null,null,null,null,null,null,null,null,null,null,null,null,null,null,null,null,0]
[57,null,{"$f":"IF(G1684=\"\",\"\",G1684)","v":"t57"},null,{"$f":"IF(COUNTA(H565:AA565)=0,\"\",COUNTA(H565:AA565))","v":""},null,null,null,null,null,null,null,null,null,null,null,null,null,null,null,null,null,null,null,null,null,null,0,{"$f":"AB565-AB564","v":0}]
[null,null,null,null,null,null,null,null,null,null,null,null,null,null,null,null,null,null,null,null,null,null,null,null,null,null,null,0]
[57,null,null,null,{"$f":"IF(COUNTA(H567:AA567)=0,\"\",COUNTA(H567:AA567))","v":""},null,null,null,null,null,null,null,null,null,null,null,null,null,null,null,null,null,null,null,null,null,null,0,{"$f":"AB567-AB566","v":0}]
[null,null,null,null,null,null,null,null,null,null,null,null,null,null,null,null,null,null,null,null,null,null,null,null,null,null,null,0]
[57,null,null,null,{"$f":"IF(COUNTA(H569:AA569)=0,\"\",COUNTA(H569:AA569))","v":""},null,null,null,null,null,null,null,null,null,null,null,null,null,null,null,null,null,null,null,null,null,null,0,{"$f":"AB569-AB568","v":0}]
[null,null,null,null,null,null,null,null,null,null,null,null,null,null,null,null,null,null,null,null,null,null,null,null,null,null,null,0]
[57,null,null,null,{"$f":"IF(COUNTA(H571:AA571)=0,\"\",COUNTA(H571:AA571))","v":""},null,null,null,null,null,null,null,null,null,null,null,null,null,null,null,null,null,null,null,null,null,null,0,{"$f":"AB571-AB570","v":0}]
[null,null,null,null,null,null,null,null,null,null,null,null,null,null,null,null,null,null,null,null,null,null,null,null,null,null,null,0]
[57,null,null,null,{"$f":"IF(COUNTA(H573:AA573)=0,\"\",COUNTA(H573:AA573))","v":""},null,null,null,null,null,null,null,null,null,null,null,null,null,null,null,null,null,null,null,null,null,null,0,{"$f":"AB573-AB572","v":0}]
[null,null,null,null,null,null,null,null,null,null,null,null,null,null,null,null,null,null,null,null,null,null,null,null,null,null,null,0]
[58,null,{"$f":"IF(G1686=\"\",\"\",G186)","v":0},null,{"$f":"IF(COUNTA(H575:AA575)=0,\"\",COUNTA(H575:AA575))","v":""},null,null,null,null,null,null,null,null,null,null,null,null,null,null,null,null,null,null,null,null,null,null,0,{"$f":"AB575-AB574","v":0}]
[null,null,null,null,null,null,null,null,null,null,null,null,null,null,null,null,null,null,null,null,null,null,null,null,null,null,null,0]
[58,null,null,null,{"$f":"IF(COUNTA(H577:AA577)=0,\"\",COUNTA(H577:AA577))","v":""},null,null,null,null,null,null,null,null,null,null,null,null,null,null,null,null,null,null,null,null,null,null,0,{"$f":"AB577-AB576","v":0}]
[null,null,null,null,null,null,null,null,null,null,null,null,null,null,null,null,null,null,null,null,null,null,null,null,null,null,null,0]
[58,null,null,null,{"$f":"IF(COUNTA(H579:AA579)=0,\"\",COUNTA(H579:AA579))","v":""},null,null,null,null,null,null,null,null,null,null,null,null,null,null,null,null,null,null,null,null,null,null,0,{"$f":"AB579-AB578","v":0}]
[null,null,null,null,null,null,null,null,null,null,null,null,null,null,null,null,null,null,null,null,null,null,null,null,null,null,null,0]
[58,null,null,null,{"$f":"IF(COUNTA(H581:AA581)=0,\"\",COUNTA(H581:AA581))","v":""},null,null,null,null,null,null,null,null,null,null,null,null,null,null,null,null,null,null,null,null,null,null,0,{"$f":"AB581-AB580","v":0}]
[null,null,null,null,null,null,null,null,null,null,null,null,null,null,null,null,null,null,null,null,null,null,null,null,null,null,null,0]
[58,null,null,null,{"$f":"IF(COUNTA(H583:AA583)=0,\"\",COUNTA(H583:AA583))","v":""},null,null,null,null,null,null,null,null,null,null,null,null,null,null,null,null,null,null,null,null,null,null,0,{"$f":"AB583-AB582","v":0}]
[null,null,null,null,null,null,null,null,null,null,null,null,null,null,null,null,null,null,null,null,null,null,null,null,null,null,null,0]
[59,null,{"$f":"IF(G1688=\"\",\"\",G1688)","v":"t59"},null,{"$f":"IF(COUNTA(H585:AA585)=0,\"\",COUNTA(H585:AA585))","v":""},null,null,null,null,null,null,null,null,null,null,null,null,null,null,null,null,null,null,null,null,null,null,0,{"$f":"AB585-AB584","v":0}]
[null,null,null,null,null,null,null,null,null,null,null,null,null,null,null,null,null,null,null,null,null,null,null,null,null,null,null,0]
[59,null,null,null,{"$f":"IF(COUNTA(H587:AA587)=0,\"\",COUNTA(H587:AA587))","v":""},null,null,null,null,null,null,null,null,null,null,null,null,null,null,null,null,null,null,null,null,null,null,0,{"$f":"AB587-AB586","v":0}]
[null,null,null,null,null,null,null,null,null,null,null,null,null,null,null,null,null,null,null,null,null,null,null,null,null,null,null,0]
[59,null,null,null,{"$f":"IF(COUNTA(H589:AA589)=0,\"\",COUNTA(H589:AA589))","v":""},null,null,null,null,null,null,null,null,null,null,null,null,null,null,null,null,null,null,null,null,null,null,0,{"$f":"AB589-AB588","v":0}]
[null,null,null,null,null,null,null,null,null,null,null,null,null,null,null,null,null,null,null,null,null,null,null,null,null,null,null,0]
[59,null,null,null,{"$f":"IF(COUNTA(H591:AA591)=0,\"\",COUNTA(H591:AA591))","v":""},null,null,null,null,null,null,null,null,null,null,null,null,null,null,null,null,null,null,null,null,null,null,0,{"$f":"AB591-AB590","v":0}]
[null,null,null,null,null,null,null,null,null,null,null,null,null,null,null,null,null,null,null,null,null,null,null,null,null,null,null,0]
[59,null,null,null,{"$f":"IF(COUNTA(H593:AA593)=0,\"\",COUNTA(H593:AA593))","v":""},null,null,null,null,null,null,null,null,null,null,null,null,null,null,null,null,null,null,null,null,null,null,0,{"$f":"AB593-AB592","v":0}]
[null,null,null,null,null,null,null,null,null,null,null,null,null,null,null,null,null,null,null,null,null,null,null,null,null,null,null,0]
[60,null,{"$f":"IF(G1690=\"\",\"\",G1690)","v":"t60"},null,{"$f":"IF(COUNTA(H595:AA595)=0,\"\",COUNTA(H595:AA595))","v":""},null,null,null,null,null,null,null,null,null,null,null,null,null,null,null,null,null,null,null,null,null,null,0,{"$f":"AB595-AB594","v":0}]
[null,null,null,null,null,null,null,null,null,null,null,null,null,null,null,null,null,null,null,null,null,null,null,null,null,null,null,0]
[60,null,null,null,{"$f":"IF(COUNTA(H597:AA597)=0,\"\",COUNTA(H597:AA597))","v":""},null,null,null,null,null,null,null,null,null,null,null,null,null,null,null,null,null,null,null,null,null,null,0,{"$f":"AB597-AB596","v":0}]
[null,null,null,null,null,null,null,null,null,null,null,null,null,null,null,null,null,null,null,null,null,null,null,null,null,null,null,0]
[60,null,null,null,{"$f":"IF(COUNTA(H599:AA599)=0,\"\",COUNTA(H599:AA599))","v":""},null,null,null,null,null,null,null,null,null,null,null,null,null,null,null,null,null,null,null,null,null,null,0,{"$f":"AB599-AB598","v":0}]
[null,null,null,null,null,null,null,null,null,null,null,null,null,null,null,null,null,null,null,null,null,null,null,null,null,null,null,0]
[60,null,null,null,{"$f":"IF(COUNTA(H601:AA601)=0,\"\",COUNTA(H601:AA601))","v":""},null,null,null,null,null,null,null,null,null,null,null,null,null,null,null,null,null,null,null,null,null,null,0,{"$f":"AB601-AB600","v":0}]
[null,null,null,null,null,null,null,null,null,null,null,null,null,null,null,null,null,null,null,null,null,null,null,null,null,null,null,0]
[60,null,null,null,{"$f":"IF(COUNTA(H603:AA603)=0,\"\",COUNTA(H603:AA603))","v":""},null,null,null,null,null,null,null,null,null,null,null,null,null,null,null,null,null,null,null,null,null,null,0,{"$f":"AB603-AB602","v":0}]
[null,null,null,null,null,null,null,null,null,null,null,null,null,null,null,null,null,null,null,null,null,null,null,null,null,null,null,0]
[61,null,{"$f":"IF(G1692=\"\",\"\",G1692)","v":"名児耶"},null,{"$f":"IF(COUNTA(H605:AA605)=0,\"\",COUNTA(H605:AA605))","v":""},null,null,null,null,null,null,null,null,null,null,null,null,null,null,null,null,null,null,null,null,null,null,0,{"$f":"AB605-AB604","v":0}]
[null,null,null,null,null,null,null,null,null,null,null,null,null,null,null,null,null,null,null,null,null,null,null,null,null,null,null,0]
[61,null,null,null,{"$f":"IF(COUNTA(H607:AA607)=0,\"\",COUNTA(H607:AA607))","v":""},null,null,null,null,null,null,null,null,null,null,null,null,null,null,null,null,null,null,null,null,null,null,0,{"$f":"AB607-AB606","v":0}]
[null,null,null,null,null,null,null,null,null,null,null,null,null,null,null,null,null,null,null,null,null,null,null,null,null,null,null,0]
[61,null,null,null,{"$f":"IF(COUNTA(H609:AA609)=0,\"\",COUNTA(H609:AA609))","v":""},null,null,null,null,null,null,null,null,null,null,null,null,null,null,null,null,null,null,null,null,null,null,0,{"$f":"AB609-AB608","v":0}]
[null,null,null,null,null,null,null,null,null,null,null,null,null,null,null,null,null,null,null,null,null,null,null,null,null,null,null,0]
[61,null,null,null,{"$f":"IF(COUNTA(H611:AA611)=0,\"\",COUNTA(H611:AA611))","v":""},null,null,null,null,null,null,null,null,null,null,null,null,null,null,null,null,null,null,null,null,null,null,0,{"$f":"AB611-AB610","v":0}]
[null,null,null,null,null,null,null,null,null,null,null,null,null,null,null,null,null,null,null,null,null,null,null,null,null,null,null,0]
[61,null,null,null,{"$f":"IF(COUNTA(H613:AA613)=0,\"\",COUNTA(H613:AA613))","v":""},null,null,null,null,null,null,null,null,null,null,null,null,null,null,null,null,null,null,null,null,null,null,0,{"$f":"AB613-AB612","v":0}]
[null,null,null,null,null,null,null,null,null,null,null,null,null,null,null,null,null,null,null,null,null,null,null,null,null,null,null,0]
[61,null,null,null,{"$f":"IF(COUNTA(H615:AA615)=0,\"\",COUNTA(H615:AA615))","v":""},null,null,null,null,null,null,null,null,null,null,null,null,null,null,null,null,null,null,null,null,null,null,0,{"$f":"AB615-AB614","v":0}]
[null,null,null,null,null,null,null,null,null,null,null,null,null,null,null,null,null,null,null,null,null,null,null,null,null,null,null,0]
[61,null,null,null,{"$f":"IF(COUNTA(H617:AA617)=0,\"\",COUNTA(H617:AA617))","v":""},null,null,null,null,null,null,null,null,null,null,null,null,null,null,null,null,null,null,null,null,null,null,0,{"$f":"AB617-AB616","v":0}]
[null,null,null,null,null,null,null,46,null,null,null,null,null,null,null,null,null,null,null,null,null,null,null,null,null,null,null,1]
[61,null,null,null,{"$f":"IF(COUNTA(H619:AA619)=0,\"\",COUNTA(H619:AA619))","v":1},"LHR","名児耶","*14",null,null,null,null,null,null,null,null,null,null,null,null,null,null,null,null,null,null,null,1,{"$f":"AB619-AB618","v":0}]
[null,null,null,null,null,null,null,null,null,null,null,null,null,null,null,null,null,null,null,null,null,null,null,null,null,null,null,0]
[62,"体",{"$f":"IF(G1694=\"\",\"\",G1694)","v":"国延"},null,{"$f":"IF(COUNTA(H621:AA621)=0,\"\",COUNTA(H621:AA621))","v":""},null,null,null,null,null,null,null,null,null,null,null,null,null,null,null,null,null,null,null,null,null,null,0,{"$f":"AB621-AB620","v":0}]
[null,null,null,null,null,null,null,null,null,null,null,null,null,null,null,null,null,null,null,null,null,null,null,null,null,null,null,0]
[62," ",null,null,{"$f":"IF(COUNTA(H623:AA623)=0,\"\",COUNTA(H623:AA623))","v":""},null,null,null,null,null,null,null,null,null,null,null,null,null,null,null,null,null,null,null,null,null,null,0,{"$f":"AB623-AB622","v":0}]
[null,null,null,null,null,null,null,null,null,null,null,null,null,null,null,null,null,null,null,null,null,null,null,null,null,null,null,0]
[62,null,null,null,{"$f":"IF(COUNTA(H625:AA625)=0,\"\",COUNTA(H625:AA625))","v":""},null,null,null,null,null,null,null,null,null,null,null,null,null,null,null,null,null,null,null,null,null,null,0,{"$f":"AB625-AB624","v":0}]
[null,null,null,null,null,null,null,null,null,null,null,null,null,null,null,null,null,null,null,null,null,null,null,null,null,null,null,0]
[62,null,null,null,{"$f":"IF(COUNTA(H627:AA627)=0,\"\",COUNTA(H627:AA627))","v":""},null,null,null,null,null,null,null,null,null,null,null,null,null,null,null,null,null,null,null,null,null,null,0,{"$f":"AB627-AB626","v":0}]
[null,null,null,null,null,null,null,null,null,null,null,null,null,null,null,null,null,null,null,null,null,null,null,null,null,null,null,0]
[62," ",null,null,{"$f":"IF(COUNTA(H629:AA629)=0,\"\",COUNTA(H629:AA629))","v":""},null,null,null,null,null,null,null,null,null,null,null,null,null,null,null,null,null,null,null,null,null,null,0,{"$f":"AB629-AB628","v":0}]
[null,null,null,null,null,null,null,null,null,null,null,null,null,null,null,null,null,null,null,null,null,null,null,null,null,null,null,0]
[62,null,null,null,{"$f":"IF(COUNTA(H631:AA631)=0,\"\",COUNTA(H631:AA631))","v":""},null,null,null,null,null,null,null,null,null,null,null,null,null,null,null,null,null,null,null,null,null,null,0,{"$f":"AB631-AB630","v":0}]
[null,null,null,null,null,null,null,null,null,null,null,null,null,null,null,null,null,null,null,null,null,null,null,null,null,null,null,0]
[62,null,null,null,{"$f":"IF(COUNTA(H633:AA633)=0,\"\",COUNTA(H633:AA633))","v":""},null,null,null,null,null,null,null,null,null,null,null,null,null,null,null,null,null,null,null,null,null,null,0,{"$f":"AB633-AB632","v":0}]
[null,null,null,null,null,null,null,null,null,null,null,null,null,null,null,null,null,null,null,null,null,null,null,null,null,null,null,0]
[62,null,null,null,{"$f":"IF(COUNTA(H635:AA635)=0,\"\",COUNTA(H635:AA635))","v":""},null,null,null,null,null,null,null,null,null,null,null,null,null,null,null,null,null,null,null,null,null,null,0,{"$f":"AB635-AB634","v":0}]
[null,null,null,null,null,null,null,null,null,null,null,null,null,null,null,null,null,null,null,null,null,null,null,null,null,null,null,{"$f":"COUNTA(H636:AA636)","v":0}]
[63,null,{"$f":"IF(G1696=\"\",\"\",G1696)","v":"八木"},null,{"$f":"IF(COUNTA(H637:AA637)=0,\"\",COUNTA(H637:AA637))","v":""},null,null,null,null,null,null,null,null,null,null,null,null,null,null,null,null,null,null,null,null,null,null,0,{"$f":"AB637-AB636","v":0}]
[null,null,null,null,null,null,null,null,null,null,null,null,null,null,null,null,null,null,null,null,null,null,null,null,null,null,null,0]
[63,null,null,null,{"$f":"IF(COUNTA(H639:AA639)=0,\"\",COUNTA(H639:AA639))","v":""},null,null,null,null,null,null,null,null,null,null,null,null,null,null,null,null,null,null,null,null,null,null,0,{"$f":"AB639-AB638","v":0}]
[null,null,null,null,null,null,null,null,null,null,null,null,null,null,null,null,null,null,null,null,null,null,null,null,null,null,null,0]
[63,null,null,null,{"$f":"IF(COUNTA(H641:AA641)=0,\"\",COUNTA(H641:AA641))","v":""},null,null,null,null,null,null,null,null,null,null,null,null,null,null,null,null,null,null,null,null,null,null,0,{"$f":"AB641-AB640","v":0}]
[null,null,null,null,null,null,null,null,null,null,null,null,null,null,null,null,null,null,null,null,null,null,null,null,null,null,null,0]
[63,null,null,null,{"$f":"IF(COUNTA(H643:AA643)=0,\"\",COUNTA(H643:AA643))","v":""},null,null,null,null,null,null,null,null,null,null,null,null,null,null,null,null,null,null,null,null,null,null,0,{"$f":"AB643-AB642","v":0}]
[null,null,null,null,null,null,null,null,null,null,null,null,null,null,null,null,null,null,null,null,null,null,null,null,null,null,null,0]
[63,null,null,null,{"$f":"IF(COUNTA(H645:AA645)=0,\"\",COUNTA(H645:AA645))","v":""},null,null,null,null,null,null,null,null,null,null,null,null,null,null,null,null,null,null,null,null,null,null,0,{"$f":"AB645-AB644","v":0}]
[null,null,null,null,null,null,null,null,null,null,null,null,null,null,null,null,null,null,null,null,null,null,null,null,null,null,null,0]
[63,null,null,null,{"$f":"IF(COUNTA(H647:AA647)=0,\"\",COUNTA(H647:AA647))","v":""},null,null,null,null,null,null,null,null,null,null,null,null,null,null,null,null,null,null,null,null,null,null,0,{"$f":"AB647-AB646","v":0}]
[null,null,null,null,null,null,null,null,null,null,null,null,null,null,null,null,null,null,null,null,null,null,null,null,null,null,null,0]
[63,null,null,null,{"$f":"IF(COUNTA(H649:AA649)=0,\"\",COUNTA(H649:AA649))","v":""},null,null,null,null,null,null,null,null,null,null,null,null,null,null,null,null,null,null,null,null,null,null,0,{"$f":"AB649-AB648","v":0}]
[null,null,null,null,null,null,null,46,null,null,null,null,null,null,null,null,null,null,null,null,null,null,null,null,null,null,null,1]
[63," ",null,null,{"$f":"IF(COUNTA(H651:AA651)=0,\"\",COUNTA(H651:AA651))","v":1},"LHR","八木","*21",null,null,null,null,null,null,null,null,null,null,null,null,null,null,null,null,null,null,null,1,{"$f":"AB651-AB650","v":0}]
[null,null,null,null,null,null,null,null,null,null,null,null,null,null,null,null,null,null,null,null,null,null,null,null,null,null,null,0]
[64,null,{"$f":"IF(G1698=\"\",\"\",G1698)","v":"仙徳"},null,{"$f":"IF(COUNTA(H653:AA653)=0,\"\",COUNTA(H653:AA653))","v":""},null,null,null,null,null,null,null,null,null,null,null,null,null,null,null,null,null,null,null,null,null,null,0,{"$f":"AB653-AB652","v":0}]
[null,null,null,null,null,null,null,null,null,null,null,null,null,null,null,null,null,null,null,null,null,null,null,null,null,null,null,0]
[64,null,null,null,{"$f":"IF(COUNTA(H655:AA655)=0,\"\",COUNTA(H655:AA655))","v":""},null,null,null,null,null,null,null,null,null,null,null,null,null,null,null,null,null,null,null,null,null,null,0,{"$f":"AB655-AB654","v":0}]
[null,null,null,null,null,null,null,null,null,null,null,null,null,null,null,null,null,null,null,null,null,null,null,null,null,null,null,0]
[64,null,null,null,{"$f":"IF(COUNTA(H657:AA657)=0,\"\",COUNTA(H657:AA657))","v":""},null,null,null,null,null,null,null,null,null,null,null,null,null,null,null,null,null,null,null,null,null,null,0,{"$f":"AB657-AB656","v":0}]
[null,null,null,null,null,null,null,null,null,null,null,null,null,null,null,null,null,null,null,null,null,null,null,null,null,null,null,0]
[64,null,null,null,{"$f":"IF(COUNTA(H659:AA659)=0,\"\",COUNTA(H659:AA659))","v":""},null,null,null,null,null,null,null,null,null,null,null,null,null,null,null,null,null,null,null,null,null,null,0,{"$f":"AB659-AB658","v":0}]
[null,null,null,null,null,null,null,null,null,null,null,null,null,null,null,null,null,null,null,null,null,null,null,null,null,null,null,0]
[64,null,null,null,{"$f":"IF(COUNTA(H661:AA661)=0,\"\",COUNTA(H661:AA661))","v":""},null,null,null,null,null,null,null,null,null,null,null,null,null,null,null,null,null,null,null,null,null,null,0,{"$f":"AB661-AB660","v":0}]
[null,null,null,null,null,null,null,null,null,null,null,null,null,null,null,null,null,null,null,null,null,null,null,null,null,null,null,0]
[64,null,null,null,{"$f":"IF(COUNTA(H663:AA663)=0,\"\",COUNTA(H663:AA663))","v":""},null,null,null,null,null,null,null,null,null,null,null,null,null,null,null,null,null,null,null,null,null,null,0,{"$f":"AB663-AB662","v":0}]
[null,null,null,null,null,null,null,null,null,null,null,null,null,null,null,null,null,null,null,null,null,null,null,null,null,null,null,0]
[64,null,null,null,{"$f":"IF(COUNTA(H665:AA665)=0,\"\",COUNTA(H665:AA665))","v":""},null,null,null,null,null,null,null,null,null,null,null,null,null,null,null,null,null,null,null,null,null,null,0,{"$f":"AB665-AB664","v":0}]
[null,null,null,null,null,null,null,46,null,null,null,null,null,null,null,null,null,null,null,null,null,null,null,null,null,null,null,1]
[64,null,null,null,{"$f":"IF(COUNTA(H667:AA667)=0,\"\",COUNTA(H667:AA667))","v":1},"LHR","仙徳","*27",null,null,null,null,null,null,null,null,null,null,null,null,null,null,null,null,null,null,null,1,{"$f":"AB667-AB666","v":0}]
[null,null,null,null,null,null,null,null,null,null,null,null,null,null,null,null,null,null,null,null,null,null,null,null,null,null,null,0]
[65,null,{"$f":"IF(G1700=\"\",\"\",G1700)","v":"大徳"},null,{"$f":"IF(COUNTA(H669:AA669)=0,\"\",COUNTA(H669:AA669))","v":""},null,null,null,null,null,null,null,null,null,null,null,null,null,null,null,null,null,null,null,null,null,null,0,{"$f":"AB669-AB668","v":0}]
[null,null,null,null,null,null,null,null,null,null,null,null,null,null,null,null,null,null,null,null,null,null,null,null,null,null,null,0]
[65,null,null,null,{"$f":"IF(COUNTA(H671:AA671)=0,\"\",COUNTA(H671:AA671))","v":""},null,null,null,null,null,null,null,null,null,null,null,null,null,null,null,null,null,null,null,null,null,null,0,{"$f":"AB671-AB670","v":0}]
[null,null,null,null,null,null,null,null,null,null,null,null,null,null,null,null,null,null,null,null,null,null,null,null,null,null,null,0]
[65,null,null,null,{"$f":"IF(COUNTA(H673:AA673)=0,\"\",COUNTA(H673:AA673))","v":""},null,null,null,null,null,null,null,null,null,null,null,null,null,null,null,null,null,null,null,null,null,null,0,{"$f":"AB673-AB672","v":0}]
[null,null,null,null,null,null,null,null,null,null,null,null,null,null,null,null,null,null,null,null,null,null,null,null,null,null,null,0]
[65,null,null,null,{"$f":"IF(COUNTA(H675:AA675)=0,\"\",COUNTA(H675:AA675))","v":""},null,null,null,null,null,null,null,null,null,null,null,null,null,null,null,null,null,null,null,null,null,null,0,{"$f":"AB675-AB674","v":0}]
[null,null,null,null,null,null,null,null,null,null,null,null,null,null,null,null,null,null,null,null,null,null,null,null,null,null,null,0]
[65,null,null,null,{"$f":"IF(COUNTA(H677:AA677)=0,\"\",COUNTA(H677:AA677))","v":""},null,null,null,null,null,null,null,null,null,null,null,null,null,null,null,null,null,null,null,null,null,null,0,{"$f":"AB677-AB676","v":0}]
[null,null,null,null,null,null,null,null,null,null,null,null,null,null,null,null,null,null,null,null,null,null,null,null,null,null,null,0]
[65," ",null,null,{"$f":"IF(COUNTA(H679:AA679)=0,\"\",COUNTA(H679:AA679))","v":""},null,null,null,null,null,null,null,null,null,null,null,null,null,null,null,null,null,null,null,null,null,null,0,{"$f":"AB679-AB678","v":0}]
[null,null,null,null,null,null,null,null,null,null,null,null,null,null,null,null,null,null,null,null,null,null,null,null,null,null,null,0]
[65," ",null,null,{"$f":"IF(COUNTA(H681:AA681)=0,\"\",COUNTA(H681:AA681))","v":""},null,null,null,null,null,null,null,null,null,null,null,null,null,null,null,null,null,null,null,null,null,null,0,{"$f":"AB681-AB680","v":0}]
[null,null,null,null,null,null,null,null,null,null,null,null,null,null,null,null,null,null,null,null,null,null,null,null,null,null,null,0]
[65,null,null,null,{"$f":"IF(COUNTA(H683:AA683)=0,\"\",COUNTA(H683:AA683))","v":""},null,null,null,null,null,null,null,null,null,null,null,null,null,null,null,null,null,null,null,null,null,null,0,{"$f":"AB683-AB682","v":0}]
[null,null,null,null,null,null,null,null,null,null,null,null,null,null,null,null,null,null,null,null,null,null,null,null,null,null,null,0]
[66,null,{"$f":"IF(G1702=\"\",\"\",G1702)","v":"山崎"},null,{"$f":"IF(COUNTA(H685:AA685)=0,\"\",COUNTA(H685:AA685))","v":""},null,null,null,null,null,null,null,null,null,null,null,null,null,null,null,null,null,null,null,null,null,null,0,{"$f":"AB685-AB684","v":0}]
[null,null,null,null,null,null,null,null,null,null,null,null,null,null,null,null,null,null,null,null,null,null,null,null,null,null,null,0]
[66,null,null,null,{"$f":"IF(COUNTA(H687:AA687)=0,\"\",COUNTA(H687:AA687))","v":""},null,null,null,null,null,null,null,null,null,null,null,null,null,null,null,null,null,null,null,null,null,null,0,{"$f":"AB687-AB686","v":0}]
[null,null,null,null,null,null,null,null,null,null,null,null,null,null,null,null,null,null,null,null,null,null,null,null,null,null,null,0]
[66,null,null,null,{"$f":"IF(COUNTA(H689:AA689)=0,\"\",COUNTA(H689:AA689))","v":""},null,null,null,null,null,null,null,null,null,null,null,null,null,null,null,null,null,null,null,null,null,null,0,{"$f":"AB689-AB688","v":0}]
[null,null,null,null,null,null,null,null,null,null,null,null,null,null,null,null,null,null,null,null,null,null,null,null,null,null,null,0]
[66,null,null,null,{"$f":"IF(COUNTA(H691:AA691)=0,\"\",COUNTA(H691:AA691))","v":""},null,null,null,null,null,null,null,null,null,null,null,null,null,null,null,null,null,null,null,null,null,null,0,{"$f":"AB691-AB690","v":0}]
[null,null,null,null,null,null,null,null,null,null,null,null,null,null,null,null,null,null,null,null,null,null,null,null,null,null,null,0]
[66,null,null,null,{"$f":"IF(COUNTA(H693:AA693)=0,\"\",COUNTA(H693:AA693))","v":""},null,null,null,null,null,null,null,null,null,null,null,null,null,null,null,null,null,null,null,null,null,null,0,{"$f":"AB693-AB692","v":0}]
[null,null,null,null,null,null,null,null,null,null,null,null,null,null,null,null,null,null,null,null,null,null,null,null,null,null,null,0]
[66,null,null,null,{"$f":"IF(COUNTA(H695:AA695)=0,\"\",COUNTA(H695:AA695))","v":""},null,null,null,null,null,null,null,null,null,null,null,null,null,null,null,null,null,null,null,null,null,null,0,{"$f":"AB695-AB694","v":0}]
[null,null,null,null,null,null,null,null,null,null,null,null,null,null,null,null,null,null,null,null,null,null,null,null,null,null,null,0]
[66,null,null,null,{"$f":"IF(COUNTA(H697:AA697)=0,\"\",COUNTA(H697:AA697))","v":""},null,null,null,null,null,null,null,null,null,null,null,null,null,null,null,null,null,null,null,null,null,null,0,{"$f":"AB697-AB696","v":0}]
[null,null,null,null,null,null,null,46,null,null,null,null,null,null,null,null,null,null,null,null,null,null,null,null,null,null,null,1]
[66," ",null,null,{"$f":"IF(COUNTA(H699:AA699)=0,\"\",COUNTA(H699:AA699))","v":1},"LHR","山崎","*32",null,null,null,null,null,null,null,null,null,null,null,null,null,null,null,null,null,null,null,1,{"$f":"AB699-AB698","v":0}]
[null,null,null,null,null,null,null,null,null,null,null,null,null,null,null,null,null,null,null,null,null,null,null,null,null,null,null,{"$f":"COUNTA(H700:AA700)","v":0}]
[67,null,{"$f":"IF(G1704=\"\",\"\",G1704)","v":"井上"},null,{"$f":"IF(COUNTA(H701:AA701)=0,\"\",COUNTA(H701:AA701))","v":""},null,null,null,null,null,null,null,null,null,null,null,null,null,null,null,null,null,null,null,null,null,null,0,{"$f":"AB701-AB700","v":0}]
[null,null,null,null,null,null,null,null,null,null,null,null,null,null,null,null,null,null,null,null,null,null,null,null,null,null,null,0]
[67,null,null,null,{"$f":"IF(COUNTA(H703:AA703)=0,\"\",COUNTA(H703:AA703))","v":""},null,null,null,null,null,null,null,null,null,null,null,null,null,null,null,null,null,null,null,null,null,null,0,{"$f":"AB703-AB702","v":0}]
[null,null,null,null,null,null,null,null,null,null,null,null,null,null,null,null,null,null,null,null,null,null,null,null,null,null,null,0]
[67,null,null,null,{"$f":"IF(COUNTA(H705:AA705)=0,\"\",COUNTA(H705:AA705))","v":""},null,null,null,null,null,null,null,null,null,null,null,null,null,null,null,null,null,null,null,null,null,null,0,{"$f":"AB705-AB704","v":0}]
[null,null,null,null,null,null,null,null,null,null,null,null,null,null,null,null,null,null,null,null,null,null,null,null,null,null,null,0]
[67,null,null,null,{"$f":"IF(COUNTA(H707:AA707)=0,\"\",COUNTA(H707:AA707))","v":""},null,null,null,null,null,null,null,null,null,null,null,null,null,null,null,null,null,null,null,null,null,null,0,{"$f":"AB707-AB706","v":0}]
[null,null,null,null,null,null,null,null,null,null,null,null,null,null,null,null,null,null,null,null,null,null,null,null,null,null,null,0]
[67,null,null,null,{"$f":"IF(COUNTA(H709:AA709)=0,\"\",COUNTA(H709:AA709))","v":""},null,null,null,null,null,null,null,null,null,null,null,null,null,null,null,null,null,null,null,null,null,null,0,{"$f":"AB709-AB708","v":0}]
[null,null,null,null,null,null,null,null,null,null,null,null,null,null,null,null,null,null,null,null,null,null,null,null,null,null,null,0]
[67,null,null,null,{"$f":"IF(COUNTA(H711:AA711)=0,\"\",COUNTA(H711:AA711))","v":""},null,null,null,null,null,null,null,null,null,null,null,null,null,null,null,null,null,null,null,null,null,null,0,{"$f":"AB711-AB710","v":0}]
[null,null,null,null,null,null,null,null,null,null,null,null,null,null,null,null,null,null,null,null,null,null,null,null,null,null,null,0]
[67,null,null,null,{"$f":"IF(COUNTA(H713:AA713)=0,\"\",COUNTA(H713:AA713))","v":""},null,null,null,null,null,null,null,null,null,null,null,null,null,null,null,null,null,null,null,null,null,null,0,{"$f":"AB713-AB712","v":0}]
[null,null,null,null,null,null,null,46,null,null,null,null,null,null,null,null,null,null,null,null,null,null,null,null,null,null,null,1]
[67," ",null,null,{"$f":"IF(COUNTA(H715:AA715)=0,\"\",COUNTA(H715:AA715))","v":1},"LHR","井上","*37",null,null,null,null,null,null,null,null,null,null,null,null,null,null,null,null,null,null,null,1,{"$f":"AB715-AB714","v":0}]
[null,null,null,null,null,null,null,null,null,null,null,null,null,null,null,null,null,null,null,null,null,null,null,null,null,null,null,0]
[68,null,{"$f":"IF(G1706=\"\",\"\",G1706)","v":"t68"},null,{"$f":"IF(COUNTA(H717:AA717)=0,\"\",COUNTA(H717:AA717))","v":""},null,null,null,null,null,null,null,null,null,null,null,null,null,null,null,null,null,null,null,null,null,null,0,{"$f":"AB717-AB716","v":0}]
[null,null,null,null,null,null,null,null,null,null,null,null,null,null,null,null,null,null,null,null,null,null,null,null,null,null,null,0]
[68,null,null,null,{"$f":"IF(COUNTA(H719:AA719)=0,\"\",COUNTA(H719:AA719))","v":""},null,null,null,null,null,null,null,null,null,null,null,null,null,null,null,null,null,null,null,null,null,null,0,{"$f":"AB719-AB718","v":0}]
[null,null,null,null,null,null,null,null,null,null,null,null,null,null,null,null,null,null,null,null,null,null,null,null,null,null,null,0]
[68,null,null,null,{"$f":"IF(COUNTA(H721:AA721)=0,\"\",COUNTA(H721:AA721))","v":""},null,null,null,null,null,null,null,null,null,null,null,null,null,null,null,null,null,null,null,null,null,null,0,{"$f":"AB721-AB720","v":0}]
[null,null,null,null,null,null,null,null,null,null,null,null,null,null,null,null,null,null,null,null,null,null,null,null,null,null,null,0]
[68,null,null,null,{"$f":"IF(COUNTA(H723:AA723)=0,\"\",COUNTA(H723:AA723))","v":""},null,null,null,null,null,null,null,null,null,null,null,null,null,null,null,null,null,null,null,null,null,null,0,{"$f":"AB723-AB722","v":0}]
[null,null,null,null,null,null,null,null,null,null,null,null,null,null,null,null,null,null,null,null,null,null,null,null,null,null,null,0]
[68,null,null,null,{"$f":"IF(COUNTA(H725:AA725)=0,\"\",COUNTA(H725:AA725))","v":""},null,null,null,null,null,null,null,null,null,null,null,null,null,null,null,null,null,null,null,null,null,null,0,{"$f":"AB725-AB724","v":0}]
[null,null,null,null,null,null,null,null,null,null,null,null,null,null,null,null,null,null,null,null,null,null,null,null,null,null,null,0]
[68," ",null,null,{"$f":"IF(COUNTA(H727:AA727)=0,\"\",COUNTA(H727:AA727))","v":""},null,null,null,null,null,null,null,null,null,null,null,null,null,null,null,null,null,null,null,null,null,null,0,{"$f":"AB727-AB726","v":0}]
[null,null,null,null,null,null,null,null,null,null,null,null,null,null,null,null,null,null,null,null,null,null,null,null,null,null,null,0]
[68,null,null,null,{"$f":"IF(COUNTA(H729:AA729)=0,\"\",COUNTA(H729:AA729))","v":""},null,null,null,null,null,null,null,null,null,null,null,null,null,null,null,null,null,null,null,null,null,null,0,{"$f":"AB729-AB728","v":0}]
[null,null,null,null,null,null,null,null,null,null,null,null,null,null,null,null,null,null,null,null,null,null,null,null,null,null,null,0]
[68,"育",null,null,{"$f":"IF(COUNTA(H731:AA731)=0,\"\",COUNTA(H731:AA731))","v":""},null,null,null,null,null,null,null,null,null,null,null,null,null,null,null,null,null,null,null,null,null,null,0,{"$f":"AB731-AB730","v":0}]
[null,null,null,null,null,null,null,null,null,null,null,null,null,null,null,null,null,null,null,null,null,null,null,null,null,null,null,0]
[69,null,{"$f":"IF(G1708=\"\",\"\",G1708)","v":"t69"},null,{"$f":"IF(COUNTA(H733:AA733)=0,\"\",COUNTA(H733:AA733))","v":""},null,null,null,null,null,null,null,null,null,null,null,null,null,null,null,null,null,null,null,null,null,null,0,{"$f":"AB733-AB732","v":0}]
[null,null,null,null,null,null,null,null,null,null,null,null,null,null,null,null,null,null,null,null,null,null,null,null,null,null,null,0]
[69,null,null,null,{"$f":"IF(COUNTA(H735:AA735)=0,\"\",COUNTA(H735:AA735))","v":""},null,null,null,null,null,null,null,null,null,null,null,null,null,null,null,null,null,null,null,null,null,null,0,{"$f":"AB735-AB734","v":0}]
[null,null,null,null,null,null,null,null,null,null,null,null,null,null,null,null,null,null,null,null,null,null,null,null,null,null,null,0]
[69,null,null,null,{"$f":"IF(COUNTA(H737:AA737)=0,\"\",COUNTA(H737:AA737))","v":""},null,null,null,null,null,null,null,null,null,null,null,null,null,null,null,null,null,null,null,null,null,null,0,{"$f":"AB737-AB736","v":0}]
[null,null,null,null,null,null,null,null,null,null,null,null,null,null,null,null,null,null,null,null,null,null,null,null,null,null,null,0]
[69,null,null,null,{"$f":"IF(COUNTA(H739:AA739)=0,\"\",COUNTA(H739:AA739))","v":""},null,null,null,null,null,null,null,null,null,null,null,null,null,null,null,null,null,null,null,null,null,null,0,{"$f":"AB739-AB738","v":0}]
[null,null,null,null,null,null,null,null,null,null,null,null,null,null,null,null,null,null,null,null,null,null,null,null,null,null,null,0]
[69,null,null,null,{"$f":"IF(COUNTA(H741:AA741)=0,\"\",COUNTA(H741:AA741))","v":""},null,null,null,null,null,null,null,null,null,null,null,null,null,null,null,null,null,null,null,null,null,null,0,{"$f":"AB741-AB740","v":0}]
[null,null,null,null,null,null,null,null,null,null,null,null,null,null,null,null,null,null,null,null,null,null,null,null,null,null,null,0]
[69,null,null,null,{"$f":"IF(COUNTA(H743:AA743)=0,\"\",COUNTA(H743:AA743))","v":""},null,null,null,null,null,null,null,null,null,null,null,null,null,null,null,null,null,null,null,null,null,null,0,{"$f":"AB743-AB742","v":0}]
[null,null,null,null,null,null,null,null,null,null,null,null,null,null,null,null,null,null,null,null,null,null,null,null,null,null,null,0]
[69,null,null,null,{"$f":"IF(COUNTA(H745:AA745)=0,\"\",COUNTA(H745:AA745))","v":""},null,null,null,null,null,null,null,null,null,null,null,null,null,null,null,null,null,null,null,null,null,null,0,{"$f":"AB745-AB744","v":0}]
[null,null,null,null,null,null,null,null,null,null,null,null,null,null,null,null,null,null,null,null,null,null,null,null,null,null,null,0]
[69,null,null,null,{"$f":"IF(COUNTA(H747:AA747)=0,\"\",COUNTA(H747:AA747))","v":""},null,null,null,null,null,null,null,null,null,null,null,null,null,null,null,null,null,null,null,null,null,null,0,{"$f":"AB747-AB746","v":0}]
[null,null,null,null,null,null,null,null,null,null,null,null,null,null,null,null,null,null,null,null,null,null,null,null,null,null,null,0]
[70,null,{"$f":"IF(G1710=\"\",\"\",G1710)","v":"杉山"},null,{"$f":"IF(COUNTA(H749:AA749)=0,\"\",COUNTA(H749:AA749))","v":""},null,null,null,null,null,null,null,null,null,null,null,null,null,null,null,null,null,null,null,null,null,null,0,{"$f":"AB749-AB748","v":0}]
[null,null,null,null,null,null,null,null,null,null,null,null,null,null,null,null,null,null,null,null,null,null,null,null,null,null,null,0]
[70,null,null,null,{"$f":"IF(COUNTA(H751:AA751)=0,\"\",COUNTA(H751:AA751))","v":""},null,null,null,null,null,null,null,null,null,null,null,null,null,null,null,null,null,null,null,null,null,null,0,{"$f":"AB751-AB750","v":0}]
[null,null,null,null,null,null,null,null,null,null,null,null,null,null,null,null,null,null,null,null,null,null,null,null,null,null,null,0]
[70,null,null,null,{"$f":"IF(COUNTA(H753:AA753)=0,\"\",COUNTA(H753:AA753))","v":""},null,null,null,null,null,null,null,null,null,null,null,null,null,null,null,null,null,null,null,null,null,null,0,{"$f":"AB753-AB752","v":0}]
[null,null,null,null,null,null,null,null,null,null,null,null,null,null,null,null,null,null,null,null,null,null,null,null,null,null,null,0]
[70,null,null,null,{"$f":"IF(COUNTA(H755:AA755)=0,\"\",COUNTA(H755:AA755))","v":""},null,null,null,null,null,null,null,null,null,null,null,null,null,null,null,null,null,null,null,null,null,null,0,{"$f":"AB755-AB754","v":0}]
[null,null,null,null,null,null,null,46,null,null,null,null,null,null,null,null,null,null,null,null,null,null,null,null,null,null,null,1]
[70," ",null,null,{"$f":"IF(COUNTA(H757:AA757)=0,\"\",COUNTA(H757:AA757))","v":1},"LHR","杉山","*17",null,null,null,null,null,null,null,null,null,null,null,null,null,null,null,null,null,null,null,1,{"$f":"AB757-AB756","v":0}]
[null,null,null,null,null,null,null,null,null,null,null,null,null,null,null,null,null,null,null,null,null,null,null,null,null,null,null,0]
[71,"芸",{"$f":"IF(G1712=\"\",\"\",G1712)","v":"高橋"},null,{"$f":"IF(COUNTA(H759:AA759)=0,\"\",COUNTA(H759:AA759))","v":""},null,null,null,null,null,null,null,null,null,null,null,null,null,null,null,null,null,null,null,null,null,null,0,{"$f":"AB759-AB758","v":0}]
[null,null,null,null,null,null,null,null,null,null,null,null,null,null,null,null,null,null,null,null,null,null,null,null,null,null,null,0]
[71,null,null,null,{"$f":"IF(COUNTA(H761:AA761)=0,\"\",COUNTA(H761:AA761))","v":""},null,null,null,null,null,null,null,null,null,null,null,null,null,null,null,null,null,null,null,null,null,null,0,{"$f":"AB761-AB760","v":0}]
[null,null,null,null,null,null,null,null,null,null,null,null,null,null,null,null,null,null,null,null,null,null,null,null,null,null,null,0]
[71,null,null,null,{"$f":"IF(COUNTA(H763:AA763)=0,\"\",COUNTA(H763:AA763))","v":""},null,null,null,null,null,null,null,null,null,null,null,null,null,null,null,null,null,null,null,null,null,null,0,{"$f":"AB763-AB762","v":0}]
[null,null,null,null,null,null,null,null,null,null,null,null,null,null,null,null,null,null,null,null,null,null,null,null,null,null,null,{"$f":"COUNTA(H764:AA764)","v":0}]
[71,null,null,null,{"$f":"IF(COUNTA(H765:AA765)=0,\"\",COUNTA(H765:AA765))","v":""},null,null,null,null,null,null,null,null,null,null,null,null,null,null,null,null,null,null,null,null,null,null,0,{"$f":"AB765-AB764","v":0}]
[null,null,null,null,null,null,null,null,null,null,null,null,null,null,null,null,null,null,null,null,null,null,null,null,null,null,null,0]
[71,null,null,null,{"$f":"IF(COUNTA(H767:AA767)=0,\"\",COUNTA(H767:AA767))","v":""},null,null,null,null,null,null,null,null,null,null,null,null,null,null,null,null,null,null,null,null,null,null,0,{"$f":"AB767-AB766","v":0}]
[null,null,null,null,null,null,null,null,null,null,null,null,null,null,null,null,null,null,null,null,null,null,null,null,null,null,null,0]
[72," ",{"$f":"IF(G1714=\"\",\"\",G1714)","v":"後藤"},null,{"$f":"IF(COUNTA(H769:AA769)=0,\"\",COUNTA(H769:AA769))","v":""},null,null,null,null,null,null,null,null,null,null,null,null,null,null,null,null,null,null,null,null,null,null,0,{"$f":"AB769-AB768","v":0}]
[null,null,null,null,null,null,null,null,null,null,null,null,null,null,null,null,null,null,null,null,null,null,null,null,null,null,null,0]
[72,null,null,null,{"$f":"IF(COUNTA(H771:AA771)=0,\"\",COUNTA(H771:AA771))","v":""},null,null,null,null,null,null,null,null,null,null,null,null,null,null,null,null,null,null,null,null,null,null,0,{"$f":"AB771-AB770","v":0}]
[null,null,null,null,null,null,null,null,null,null,null,null,null,null,null,null,null,null,null,null,null,null,null,null,null,null,null,0]
[72,null,null,null,{"$f":"IF(COUNTA(H773:AA773)=0,\"\",COUNTA(H773:AA773))","v":""},null,null,null,null,null,null,null,null,null,null,null,null,null,null,null,null,null,null,null,null,null,null,0,{"$f":"AB773-AB772","v":0}]
[null,null,null,null,null,null,null,null,null,null,null,null,null,null,null,null,null,null,null,null,null,null,null,null,null,null,null,0]
[72,null,null,null,{"$f":"IF(COUNTA(H775:AA775)=0,\"\",COUNTA(H775:AA775))","v":""},null,null,null,null,null,null,null,null,null,null,null,null,null,null,null,null,null,null,null,null,null,null,0,{"$f":"AB775-AB774","v":0}]
[null,null,null,null,null,null,null,null,null,null,null,null,null,null,null,null,null,null,null,null,null,null,null,null,null,null,null,0]
[72," ",null,null,{"$f":"IF(COUNTA(H777:AA777)=0,\"\",COUNTA(H777:AA777))","v":""},null,null,null,null,null,null,null,null,null,null,null,null,null,null,null,null,null,null,null,null,null,null,0,{"$f":"AB777-AB776","v":0}]
[null,null,null,null,null,null,null,null,null,null,null,null,null,null,null,null,null,null,null,null,null,null,null,null,null,null,null,0]
[73,null,{"$f":"IF(G1716=\"\",\"\",G1716)","v":"上原"},null,{"$f":"IF(COUNTA(H779:AA779)=0,\"\",COUNTA(H779:AA779))","v":""},null,null,null,null,null,null,null,null,null,null,null,null,null,null,null,null,null,null,null,null,null,null,0,{"$f":"AB779-AB778","v":0}]
[null,null,null,null,null,null,null,null,null,null,null,null,null,null,null,null,null,null,null,null,null,null,null,null,null,null,null,0]
[73,null,null,null,{"$f":"IF(COUNTA(H781:AA781)=0,\"\",COUNTA(H781:AA781))","v":""},null,null,null,null,null,null,null,null,null,null,null,null,null,null,null,null,null,null,null,null,null,null,0,{"$f":"AB781-AB780","v":0}]
[null,null,null,null,null,null,null,null,null,null,null,null,null,null,null,null,null,null,null,null,null,null,null,null,null,null,null,0]
[73,null,null,null,{"$f":"IF(COUNTA(H783:AA783)=0,\"\",COUNTA(H783:AA783))","v":""},null,null,null,null,null,null,null,null,null,null,null,null,null,null,null,null,null,null,null,null,null,null,0,{"$f":"AB783-AB782","v":0}]
[null,null,null,null,null,null,null,null,null,null,null,null,null,null,null,null,null,null,null,null,null,null,null,null,null,null,null,0]
[73,null,null,null,{"$f":"IF(COUNTA(H785:AA785)=0,\"\",COUNTA(H785:AA785))","v":""},null,null,null,null,null,null,null,null,null,null,null,null,null,null,null,null,null,null,null,null,null,null,0,{"$f":"AB785-AB784","v":0}]
[null,null,null,null,null,null,null,null,null,null,null,null,null,null,null,null,null,null,null,null,null,null,null,null,null,null,null,0]
[73,null,null,null,{"$f":"IF(COUNTA(H787:AA787)=0,\"\",COUNTA(H787:AA787))","v":""},null,null,null,null,null,null,null,null,null,null,null,null,null,null,null,null,null,null,null,null,null,null,0,{"$f":"AB787-AB786","v":0}]
[null,null,null,null,null,null,null,null,null,null,null,null,null,null,null,null,null,null,null,null,null,null,null,null,null,null,null,0]
[74,null,{"$f":"IF(G1718=\"\",\"\",G1718)","v":"秦"},null,{"$f":"IF(COUNTA(H789:AA789)=0,\"\",COUNTA(H789:AA789))","v":""},null,null,null,null,null,null,null,null,null,null,null,null,null,null,null,null,null,null,null,null,null,null,0,{"$f":"AB789-AB788","v":0}]
[null,null,null,null,null,null,null,null,null,null,null,null,null,null,null,null,null,null,null,null,null,null,null,null,null,null,null,0]
[74,null,null,null,{"$f":"IF(COUNTA(H791:AA791)=0,\"\",COUNTA(H791:AA791))","v":""},null,null,null,null,null,null,null,null,null,null,null,null,null,null,null,null,null,null,null,null,null,null,0,{"$f":"AB791-AB790","v":0}]
[null,null,null,null,null,null,null,null,null,null,null,null,null,null,null,null,null,null,null,null,null,null,null,null,null,null,null,0]
[74,null,null,null,{"$f":"IF(COUNTA(H793:AA793)=0,\"\",COUNTA(H793:AA793))","v":""},null,null,null,null,null,null,null,null,null,null,null,null,null,null,null,null,null,null,null,null,null,null,0,{"$f":"AB793-AB792","v":0}]
[null,null,null,null,null,null,null,null,null,null,null,null,null,null,null,null,null,null,null,null,null,null,null,null,null,null,null,0]
[74,null,null,null,{"$f":"IF(COUNTA(H795:AA795)=0,\"\",COUNTA(H795:AA795))","v":""},null,null,null,null,null,null,null,null,null,null,null,null,null,null,null,null,null,null,null,null,null,null,0,{"$f":"AB795-AB794","v":0}]
[null,null,null,null,null,null,null,null,null,null,null,null,null,null,null,null,null,null,null,null,null,null,null,null,null,null,null,0]
[74,"術",null,null,{"$f":"IF(COUNTA(H797:AA797)=0,\"\",COUNTA(H797:AA797))","v":""},null,null,null,null,null,null,null,null,null,null,null,null,null,null,null,null,null,null,null,null,null,null,0,{"$f":"AB797-AB796","v":0}]
[null,null,null,null,null,null,null,null,null,null,null,null,null,null,null,null,null,null,null,null,null,null,null,null,null,null,null,0]
[75,null,{"$f":"IF(G1720=\"\",\"\",G1720)","v":"t75"},null,{"$f":"IF(COUNTA(H799:AA799)=0,\"\",COUNTA(H799:AA799))","v":""},null,null,null,null,null,null,null,null,null,null,null,null,null,null,null,null,null,null,null,null,null,null,0,{"$f":"AB799-AB798","v":0}]
[null,null,null,null,null,null,null,null,null,null,null,null,null,null,null,null,null,null,null,null,null,null,null,null,null,null,null,0]
[75,null,null,null,{"$f":"IF(COUNTA(H801:AA801)=0,\"\",COUNTA(H801:AA801))","v":""},null,null,null,null,null,null,null,null,null,null,null,null,null,null,null,null,null,null,null,null,null,null,0,{"$f":"AB801-AB800","v":0}]
[null,null,null,null,null,null,null,null,null,null,null,null,null,null,null,null,null,null,null,null,null,null,null,null,null,null,null,0]
[75,null,null,null,{"$f":"IF(COUNTA(H803:AA803)=0,\"\",COUNTA(H803:AA803))","v":""},null,null,null,null,null,null,null,null,null,null,null,null,null,null,null,null,null,null,null,null,null,null,0,{"$f":"AB803-AB802","v":0}]
[null,null,null,null,null,null,null,null,null,null,null,null,null,null,null,null,null,null,null,null,null,null,null,null,null,null,null,0]
[75,null,null,null,{"$f":"IF(COUNTA(H805:AA805)=0,\"\",COUNTA(H805:AA805))","v":""},null,null,null,null,null,null,null,null,null,null,null,null,null,null,null,null,null,null,null,null,null,null,0,{"$f":"AB805-AB804","v":0}]
[null,null,null,null,null,null,null,null,null,null,null,null,null,null,null,null,null,null,null,null,null,null,null,null,null,null,null,0]
[75,null,null,null,{"$f":"IF(COUNTA(H807:AA807)=0,\"\",COUNTA(H807:AA807))","v":""},null,null,null,null,null,null,null,null,null,null,null,null,null,null,null,null,null,null,null,null,null,null,0,{"$f":"AB807-AB806","v":0}]
[null,null,null,null,null,null,null,null,null,null,null,null,null,null,null,null,null,null,null,null,null,null,null,null,null,null,null,0]
[76," ",{"$f":"IF(G1722=\"\",\"\",G1722)","v":"木島"},4,{"$f":"IF(COUNTA(H809:AA809)=0,\"\",COUNTA(H809:AA809))","v":12},"英Ⅰ","木島","*11","*11","*11","*11","*12","*12","*12","*12","*13","*13","*13","*13",null,null,null,null,null,null,null,null,12,{"$f":"AB809-AB808","v":12}]
[null,null,null,null,null,null,null,null,null,null,null,null,null,null,null,null,null,null,null,null,null,null,null,null,null,null,null,0]
[76,null,null,2,{"$f":"IF(COUNTA(H811:AA811)=0,\"\",COUNTA(H811:AA811))","v":4},"ＯＣ","木島","*15","*15","*16","*16",null,null,null,null,null,null,null,null,null,null,null,null,null,null,null,null,4,{"$f":"AB811-AB810","v":4}]
[null,null,null,null,null,null,null,null,null,null,null,null,null,null,null,null,null,null,null,null,null,null,null,null,null,null,null,0]
[76,null,null,null,{"$f":"IF(COUNTA(H813:AA813)=0,\"\",COUNTA(H813:AA813))","v":""},null,null,null,null,null,null,null,null,null,null,null,null,null,null,null,null,null,null,null,null,null,null,0,{"$f":"AB813-AB812","v":0}]
[null,null,null,null,null,null,null,null,null,null,null,null,null,null,null,null,null,null,null,null,null,null,null,null,null,null,null,0]
[76,null,null,null,{"$f":"IF(COUNTA(H815:AA815)=0,\"\",COUNTA(H815:AA815))","v":""},null,null,null,null,null,null,null,null,null,null,null,null,null,null,null,null,null,null,null,null,null,null,0,{"$f":"AB815-AB814","v":0}]
[null,null,null,null,null,null,null,46,null,null,null,null,null,null,null,null,null,null,null,null,null,null,null,null,null,null,null,1]
[76,null,null,null,{"$f":"IF(COUNTA(H817:AA817)=0,\"\",COUNTA(H817:AA817))","v":1},"LHR","木島","*13",null,null,null,null,null,null,null,null,null,null,null,null,null,null,null,null,null,null,null,1,{"$f":"AB817-AB816","v":0}]
[null,null,null,null,null,null,null,null,null,null,null,null,null,null,null,null,null,null,null,null,null,null,null,null,null,null,null,0]
[77,null,{"$f":"IF(G1724=\"\",\"\",G1724)","v":"安藤"},4,{"$f":"IF(COUNTA(H819:AA819)=0,\"\",COUNTA(H819:AA819))","v":12},"英Ⅰ","安藤","*14","*14","*14","*14","*15","*15","*15","*15","*16","*16","*16","*16",null,null,null,null,null,null,null,null,12,{"$f":"AB819-AB818","v":12}]
[null,null,null,null,null,null,null,null,null,null,null,null,null,null,null,null,null,null,null,null,null,null,null,null,null,null,null,0]
[77,null,null,2,{"$f":"IF(COUNTA(H821:AA821)=0,\"\",COUNTA(H821:AA821))","v":4},"ＯＣ","安藤","*17","*17","*18","*18",null,null,null,null,null,null,null,null,null,null,null,null,null,null,null,null,4,{"$f":"AB821-AB820","v":4}]
[null,null,null,null,null,null,null,null,null,null,null,null,null,null,null,null,null,null,null,null,null,null,null,null,null,null,null,0]
[77,null,null,null,{"$f":"IF(COUNTA(H823:AA823)=0,\"\",COUNTA(H823:AA823))","v":""},null,null,null,null,null,null,null,null,null,null,null,null,null,null,null,null,null,null,null,null,null,null,0,{"$f":"AB823-AB822","v":0}]
[null,null,null,null,null,null,null,null,null,null,null,null,null,null,null,null,null,null,null,null,null,null,null,null,null,null,null,0]
[77,null,null,null,{"$f":"IF(COUNTA(H825:AA825)=0,\"\",COUNTA(H825:AA825))","v":""},null,null,null,null,null,null,null,null,null,null,null,null,null,null,null,null,null,null,null,null,null,null,0,{"$f":"AB825-AB824","v":0}]
[null,null,null,null,null,null,null,null,null,null,null,null,null,null,null,null,null,null,null,null,null,null,null,null,null,null,null,0]
[77,null,null,null,{"$f":"IF(COUNTA(H827:AA827)=0,\"\",COUNTA(H827:AA827))","v":""},null,null,null,null,null,null,null,null,null,null,null,null,null,null,null,null,null,null,null,null,null,null,0,{"$f":"AB827-AB826","v":0}]
[null,null,null,null,null,null,null,null,null,null,null,null,null,null,null,null,null,null,null,null,null,null,null,null,null,null,null,{"$f":"COUNTA(H828:AA828)","v":0}]
[78,"英",{"$f":"IF(G1726=\"\",\"\",G1726)","v":"小井川"},4,{"$f":"IF(COUNTA(H829:AA829)=0,\"\",COUNTA(H829:AA829))","v":8},"Ｗ","小井川","*33","*33","*33","*33","*36","*36","*36","*36",null,null,null,null,null,null,null,null,null,null,null,null,8,{"$f":"AB829-AB828","v":8}]
[null,null,null,null,null,null,null,null,null,null,null,null,null,null,null,null,null,null,null,null,null,null,null,null,null,null,null,0]
[78,null,null,null,{"$f":"IF(COUNTA(H831:AA831)=0,\"\",COUNTA(H831:AA831))","v":""},null,null,null,null,null,null,null,null,null,null,null,null,null,null,null,null,null,null,null,null,null,null,0,{"$f":"AB831-AB830","v":0}]
[null,null,null,null,null,null,null,null,null,null,null,null,null,null,null,null,null,null,null,null,null,null,null,null,null,null,null,0]
[78,null,null,null,{"$f":"IF(COUNTA(H833:AA833)=0,\"\",COUNTA(H833:AA833))","v":""},null,null,null,null,null,null,null,null,null,null,null,null,null,null,null,null,null,null,null,null,null,null,0,{"$f":"AB833-AB832","v":0}]
[null,null,null,null,null,null,null,null,null,null,null,null,null,null,null,null,null,null,null,null,null,null,null,null,null,null,null,0]
[78,null,null,null,{"$f":"IF(COUNTA(H835:AA835)=0,\"\",COUNTA(H835:AA835))","v":""},null,null,null,null,null,null,null,null,null,null,null,null,null,null,null,null,null,null,null,null,null,null,0,{"$f":"AB835-AB834","v":0}]
[null,null,null,null,null,null,null,null,null,null,null,null,null,null,null,null,null,null,null,null,null,null,null,null,null,null,null,0]
[78,null,null,null,{"$f":"IF(COUNTA(H837:AA837)=0,\"\",COUNTA(H837:AA837))","v":""},null,null,null,null,null,null,null,null,null,null,null,null,null,null,null,null,null,null,null,null,null,null,0,{"$f":"AB837-AB836","v":0}]
[null,null,null,null,null,null,null,null,null,null,null,null,null,null,null,null,null,null,null,null,null,null,null,null,null,null,null,0]
[79,null,{"$f":"IF(G1728=\"\",\"\",G1728)","v":"清水ﾀ"},4,{"$f":"IF(COUNTA(H839:AA839)=0,\"\",COUNTA(H839:AA839))","v":8},"英Ⅰ","清水ﾀ","*17","*17","*17","*17","*18","*18","*18","*18",null,null,null,null,null,null,null,null,null,null,null,null,8,{"$f":"AB839-AB838","v":8}]
[null,null,null,null,null,null,null,null,null,null,null,null,null,null,null,null,null,null,null,null,null,null,null,null,null,null,null,0]
[79,null,null,null,{"$f":"IF(COUNTA(H841:AA841)=0,\"\",COUNTA(H841:AA841))","v":""},null,null,null,null,null,null,null,null,null,null,null,null,null,null,null,null,null,null,null,null,null,null,0,{"$f":"AB841-AB840","v":0}]
[null,null,null,null,null,null,null,null,null,null,null,null,null,null,null,null,null,null,null,null,null,null,null,null,null,null,null,0]
[79,null,null,null,{"$f":"IF(COUNTA(H843:AA843)=0,\"\",COUNTA(H843:AA843))","v":""},null,null,null,null,null,null,null,null,null,null,null,null,null,null,null,null,null,null,null,null,null,null,0,{"$f":"AB843-AB842","v":0}]
[null,null,null,null,null,null,null,null,null,null,null,null,null,null,null,null,null,null,null,null,null,null,null,null,null,null,null,0]
[79,null,null,null,{"$f":"IF(COUNTA(H845:AA845)=0,\"\",COUNTA(H845:AA845))","v":""},null,null,null,null,null,null,null,null,null,null,null,null,null,null,null,null,null,null,null,null,null,null,0,{"$f":"AB845-AB844","v":0}]
[null,null,null,null,null,null,null,null,null,null,null,null,null,null,null,null,null,null,null,null,null,null,null,null,null,null,null,0]
[79,null,null,null,{"$f":"IF(COUNTA(H847:AA847)=0,\"\",COUNTA(H847:AA847))","v":""},null,null,null,null,null,null,null,null,null,null,null,null,null,null,null,null,null,null,null,null,null,null,0,{"$f":"AB847-AB846","v":0}]
[null,null,null,null,null,null,null,null,null,null,null,null,null,null,null,null,null,null,null,null,null,null,null,null,null,null,null,0]
[80,null,{"$f":"IF(G1730=\"\",\"\",G1730)","v":"清水ﾖ"},4,{"$f":"IF(COUNTA(H849:AA849)=0,\"\",COUNTA(H849:AA849))","v":8},"Ｒ","清水ﾖ","*34","*34","*34","*34","*35","*35","*35","*35",null,null,null,null,null,null,null,null,null,null,null,null,8,{"$f":"AB849-AB848","v":8}]
[null,null,null,null,null,null,null,null,null,null,null,null,null,null,null,null,null,null,null,null,null,null,null,null,null,null,null,0]
[80,null,null,null,{"$f":"IF(COUNTA(H851:AA851)=0,\"\",COUNTA(H851:AA851))","v":""},null,null,null,null,null,null,null,null,null,null,null,null,null,null,null,null,null,null,null,null,null,null,0,{"$f":"AB851-AB850","v":0}]
[null,null,null,null,null,null,null,null,null,null,null,null,null,null,null,null,null,null,null,null,null,null,null,null,null,null,null,0]
[80,null,null,null,{"$f":"IF(COUNTA(H853:AA853)=0,\"\",COUNTA(H853:AA853))","v":""},null,null,null,null,null,null,null,null,null,null,null,null,null,null,null,null,null,null,null,null,null,null,0,{"$f":"AB853-AB852","v":0}]
[null,null,null,null,null,null,null,null,null,null,null,null,null,null,null,null,null,null,null,null,null,null,null,null,null,null,null,0]
[80,null,null,null,{"$f":"IF(COUNTA(H855:AA855)=0,\"\",COUNTA(H855:AA855))","v":""},null,null,null,null,null,null,null,null,null,null,null,null,null,null,null,null,null,null,null,null,null,null,0,{"$f":"AB855-AB854","v":0}]
[null,null,null,null,null,null,null,null,null,null,null,null,null,null,null,null,null,null,null,null,null,null,null,null,null,null,null,0]
[80,null,null,null,{"$f":"IF(COUNTA(H857:AA857)=0,\"\",COUNTA(H857:AA857))","v":""},null,null,null,null,null,null,null,null,null,null,null,null,null,null,null,null,null,null,null,null,null,null,0,{"$f":"AB857-AB856","v":0}]
[null,null,null,null,null,null,null,null,null,null,null,null,null,null,null,null,null,null,null,null,null,null,null,null,null,null,null,0]
[81,null,{"$f":"IF(G1732=\"\",\"\",G1732)","v":"加藤"},4,{"$f":"IF(COUNTA(H859:AA859)=0,\"\",COUNTA(H859:AA859))","v":8},"Ｒ","加藤","*32","*32","*32","*32","*33","*33","*33","*33",null,null,null,null,null,null,null,null,null,null,null,null,8,{"$f":"AB859-AB858","v":8}]
[null,null,null,null,null,null,null,null,null,null,null,null,null,null,null,null,null,null,null,null,null,null,null,null,null,null,null,0]
[81,null,null,null,{"$f":"IF(COUNTA(H861:AA861)=0,\"\",COUNTA(H861:AA861))","v":""},null,null,null,null,null,null,null,null,null,null,null,null,null,null,null,null,null,null,null,null,null,null,0,{"$f":"AB861-AB860","v":0}]
[null,null,null,null,null,null,null,null,null,null,null,null,null,null,null,null,null,null,null,null,null,null,null,null,null,null,null,0]
[81,null,null,null,{"$f":"IF(COUNTA(H863:AA863)=0,\"\",COUNTA(H863:AA863))","v":""},null,null,null,null,null,null,null,null,null,null,null,null,null,null,null,null,null,null,null,null,null,null,0,{"$f":"AB863-AB862","v":0}]
[null,null,null,null,null,null,null,null,null,null,null,null,null,null,null,null,null,null,null,null,null,null,null,null,null,null,null,0]
[81,null,null,null,{"$f":"IF(COUNTA(H865:AA865)=0,\"\",COUNTA(H865:AA865))","v":""},null,null,null,null,null,null,null,null,null,null,null,null,null,null,null,null,null,null,null,null,null,null,0,{"$f":"AB865-AB864","v":0}]
[null,null,null,null,null,null,null,46,null,null,null,null,null,null,null,null,null,null,null,null,null,null,null,null,null,null,null,1]
[81,null,null,null,{"$f":"IF(COUNTA(H867:AA867)=0,\"\",COUNTA(H867:AA867))","v":1},"LHR","加藤","*33",null,null,null,null,null,null,null,null,null,null,null,null,null,null,null,null,null,null,null,1,{"$f":"AB867-AB866","v":0}]
[null,null,null,null,null,null,null,null,null,null,null,null,null,null,null,null,null,null,null,null,null,null,null,null,null,null,null,0]
[82,null,{"$f":"IF(G1734=\"\",\"\",G1734)","v":"松田"},4,{"$f":"IF(COUNTA(H869:AA869)=0,\"\",COUNTA(H869:AA869))","v":8},"Ｒ","松田","*36","*36","*36","*36","*38","*38","*38","*38",null,null,null,null,null,null,null,null,null,null,null,null,8,{"$f":"AB869-AB868","v":8}]
[null,null,null,null,null,null,null,null,null,null,null,null,null,null,null,null,null,null,null,null,null,null,null,null,null,null,null,0]
[82,null,null,null,{"$f":"IF(COUNTA(H871:AA871)=0,\"\",COUNTA(H871:AA871))","v":""},null,null,null,null,null,null,null,null,null,null,null,null,null,null,null,null,null,null,null,null,null,null,0,{"$f":"AB871-AB870","v":0}]
[null,null,null,null,null,null,null,null,null,null,null,null,null,null,null,null,null,null,null,null,null,null,null,null,null,null,null,0]
[82,null,null,null,{"$f":"IF(COUNTA(H873:AA873)=0,\"\",COUNTA(H873:AA873))","v":""},null,null,null,null,null,null,null,null,null,null,null,null,null,null,null,null,null,null,null,null,null,null,0,{"$f":"AB873-AB872","v":0}]
[null,null,null,null,null,null,null,null,null,null,null,null,null,null,null,null,null,null,null,null,null,null,null,null,null,null,null,0]
[82,null,null,null,{"$f":"IF(COUNTA(H875:AA875)=0,\"\",COUNTA(H875:AA875))","v":""},null,null,null,null,null,null,null,null,null,null,null,null,null,null,null,null,null,null,null,null,null,null,0,{"$f":"AB875-AB874","v":0}]
[null,null,null,null,null,null,null,46,null,null,null,null,null,null,null,null,null,null,null,null,null,null,null,null,null,null,null,1]
[82," ",null,null,{"$f":"IF(COUNTA(H877:AA877)=0,\"\",COUNTA(H877:AA877))","v":1},"LHR","松田","*36",null,null,null,null,null,null,null,null,null,null,null,null,null,null,null,null,null,null,null,1,{"$f":"AB877-AB876","v":0}]
[null,null,null,null,null,null,null,null,null,null,null,null,null,null,null,null,null,null,null,null,null,null,null,null,null,null,null,0]
[83,null,{"$f":"IF(G1736=\"\",\"\",G1736)","v":"小林"},2,{"$f":"IF(COUNTA(H879:AA879)=0,\"\",COUNTA(H879:AA879))","v":8},"ＯＣ","小林","*11","*11","*12","*12","*13","*13","*14","*14",null,null,null,null,null,null,null,null,null,null,null,null,8,{"$f":"AB879-AB878","v":8}]
[null,null,null,null,null,null,null,null,null,null,null,null,null,null,null,null,null,null,null,null,null,null,null,null,null,null,null,0]
[83," ",null,4,{"$f":"IF(COUNTA(H881:AA881)=0,\"\",COUNTA(H881:AA881))","v":8},"Ｒ","小林","*31","*31","*31","*31","*37","*37","*37","*37",null,null,null,null,null,null,null,null,null,null,null,null,8,{"$f":"AB881-AB880","v":8}]
[null,null,null,null,null,null,null,null,null,null,null,null,null,null,null,null,null,null,null,null,null,null,null,null,null,null,null,0]
[83,null,null,null,{"$f":"IF(COUNTA(H883:AA883)=0,\"\",COUNTA(H883:AA883))","v":""},null,null,null,null,null,null,null,null,null,null,null,null,null,null,null,null,null,null,null,null,null,null,0,{"$f":"AB883-AB882","v":0}]
[null,null,null,null,null,null,null,null,null,null,null,null,null,null,null,null,null,null,null,null,null,null,null,null,null,null,null,0]
[83,null,null,null,{"$f":"IF(COUNTA(H885:AA885)=0,\"\",COUNTA(H885:AA885))","v":""},null,null,null,null,null,null,null,null,null,null,null,null,null,null,null,null,null,null,null,null,null,null,0,{"$f":"AB885-AB884","v":0}]
[null,null,null,null,null,null,null,null,null,null,null,null,null,null,null,null,null,null,null,null,null,null,null,null,null,null,null,0]
[83," ",null,null,{"$f":"IF(COUNTA(H887:AA887)=0,\"\",COUNTA(H887:AA887))","v":""},null,null,null,null,null,null,null,null,null,null,null,null,null,null,null,null,null,null,null,null,null,null,0,{"$f":"AB887-AB886","v":0}]
[null,null,null,null,null,null,null,null,null,null,null,null,null,null,null,null,null,null,null,null,null,null,null,null,null,null,null,0]
[84,null,{"$f":"IF(G1738=\"\",\"\",G1738)","v":"舘"},4,{"$f":"IF(COUNTA(H889:AA889)=0,\"\",COUNTA(H889:AA889))","v":4},"Ｗ","舘","*38","*38","*38","*38",null,null,null,null,null,null,null,null,null,null,null,null,null,null,null,null,4,{"$f":"AB889-AB888","v":4}]
[null,null,null,null,null,null,null,null,null,null,null,null,null,null,null,null,null,null,null,null,null,null,null,null,null,null,null,0]
[84,null,null,null,{"$f":"IF(COUNTA(H891:AA891)=0,\"\",COUNTA(H891:AA891))","v":""},null,null,null,null,null,null,null,null,null,null,null,null,null,null,null,null,null,null,null,null,null,null,0,{"$f":"AB891-AB890","v":0}]
[null,null,null,null,null,null,null,null,null,null,null,null,null,null,null,null,null,null,null,null,null,null,null,null,null,null,null,{"$f":"COUNTA(H892:AA892)","v":0}]
[84,null,null,null,{"$f":"IF(COUNTA(H893:AA893)=0,\"\",COUNTA(H893:AA893))","v":""},null,null,null,null,null,null,null,null,null,null,null,null,null,null,null,null,null,null,null,null,null,null,0,{"$f":"AB893-AB892","v":0}]
[null,null,null,null,null,null,null,null,null,null,null,null,null,null,null,null,null,null,null,null,null,null,null,null,null,null,null,0]
[84," ",null,null,{"$f":"IF(COUNTA(H895:AA895)=0,\"\",COUNTA(H895:AA895))","v":""},null,null,null,null,null,null,null,null,null,null,null,null,null,null,null,null,null,null,null,null,null,null,0,{"$f":"AB895-AB894","v":0}]
[null,null,null,null,null,null,null,null,null,null,null,null,null,null,null,null,null,null,null,null,null,null,null,null,null,null,null,0]
[84,null,null,null,{"$f":"IF(COUNTA(H897:AA897)=0,\"\",COUNTA(H897:AA897))","v":""},null,null,null,null,null,null,null,null,null,null,null,null,null,null,null,null,null,null,null,null,null,null,0,{"$f":"AB897-AB896","v":0}]
[null,null,null,null,null,null,null,null,null,null,null,null,null,null,null,null,null,null,null,null,null,null,null,null,null,null,null,0]
[85,null,{"$f":"IF(G1740=\"\",\"\",G1740)","v":"t85"},null,{"$f":"IF(COUNTA(H899:AA899)=0,\"\",COUNTA(H899:AA899))","v":""},null,null,null,null,null,null,null,null,null,null,null,null,null,null,null,null,null,null,null,null,null,null,0,{"$f":"AB899-AB898","v":0}]
[null,null,null,null,null,null,null,null,null,null,null,null,null,null,null,null,null,null,null,null,null,null,null,null,null,null,null,0]
[85,null,null,null,{"$f":"IF(COUNTA(H901:AA901)=0,\"\",COUNTA(H901:AA901))","v":""},null,null,null,null,null,null,null,null,null,null,null,null,null,null,null,null,null,null,null,null,null,null,0,{"$f":"AB901-AB900","v":0}]
[null,null,null,null,null,null,null,null,null,null,null,null,null,null,null,null,null,null,null,null,null,null,null,null,null,null,null,0]
[85,null,null,null,{"$f":"IF(COUNTA(H903:AA903)=0,\"\",COUNTA(H903:AA903))","v":""},null,null,null,null,null,null,null,null,null,null,null,null,null,null,null,null,null,null,null,null,null,null,0,{"$f":"AB903-AB902","v":0}]
[null,null,null,null,null,null,null,null,null,null,null,null,null,null,null,null,null,null,null,null,null,null,null,null,null,null,null,0]
[85,null,null,null,{"$f":"IF(COUNTA(H905:AA905)=0,\"\",COUNTA(H905:AA905))","v":""},null,null,null,null,null,null,null,null,null,null,null,null,null,null,null,null,null,null,null,null,null,null,0,{"$f":"AB905-AB904","v":0}]
[null,null,null,null,null,null,null,null,null,null,null,null,null,null,null,null,null,null,null,null,null,null,null,null,null,null,null,0]
[85,"語",null,null,{"$f":"IF(COUNTA(H907:AA907)=0,\"\",COUNTA(H907:AA907))","v":""},null,null,null,null,null,null,null,null,null,null,null,null,null,null,null,null,null,null,null,null,null,null,0,{"$f":"AB907-AB906","v":0}]
[null,null,null,null,null,null,null,null,null,null,null,null,null,null,null,null,null,null,null,null,null,null,null,null,null,null,null,0]
[86," ",{"$f":"IF(G1742=\"\",\"\",G1742)","v":"t86"},null,{"$f":"IF(COUNTA(H909:AA909)=0,\"\",COUNTA(H909:AA909))","v":""},null,null,null,null,null,null,null,null,null,null,null,null,null,null,null,null,null,null,null,null,null,null,0,{"$f":"AB909-AB908","v":0}]
[null,null,null,null,null,null,null,null,null,null,null,null,null,null,null,null,null,null,null,null,null,null,null,null,null,null,null,0]
[96,null,null,null,{"$f":"IF(COUNTA(H911:AA911)=0,\"\",COUNTA(H911:AA911))","v":""},null,null,null,null,null,null,null,null,null,null,null,null,null,null,null,null,null,null,null,null,null,null,0,{"$f":"AB911-AB910","v":0}]
[null,null,null,null,null,null,null,null,null,null,null,null,null,null,null,null,null,null,null,null,null,null,null,null,null,null,null,0]
[86," ",null,null,{"$f":"IF(COUNTA(H913:AA913)=0,\"\",COUNTA(H913:AA913))","v":""},null,null,null,null,null,null,null,null,null,null,null,null,null,null,null,null,null,null,null,null,null,null,0,{"$f":"AB913-AB912","v":0}]
[null,null,null,null,null,null,null,null,null,null,null,null,null,null,null,null,null,null,null,null,null,null,null,null,null,null,null,0]
[86,null,null,null,{"$f":"IF(COUNTA(H915:AA915)=0,\"\",COUNTA(H915:AA915))","v":""},null,null,null,null,null,null,null,null,null,null,null,null,null,null,null,null,null,null,null,null,null,null,0,{"$f":"AB915-AB914","v":0}]
[null,null,null,null,null,null,null,null,null,null,null,null,null,null,null,null,null,null,null,null,null,null,null,null,null,null,null,0]
[86," ",null,null,{"$f":"IF(COUNTA(H917:AA917)=0,\"\",COUNTA(H917:AA917))","v":""},null,null,null,null,null,null,null,null,null,null,null,null,null,null,null,null,null,null,null,null,null,null,0,{"$f":"AB917-AB916","v":0}]
[null,null,null,null,null,null,null,null,null,null,null,null,null,null,null,null,null,null,null,null,null,null,null,null,null,null,null,0]
[87,null,{"$f":"IF(G1744=\"\",\"\",G1744)","v":"t87"},null,{"$f":"IF(COUNTA(H919:AA919)=0,\"\",COUNTA(H919:AA919))","v":""},null,null,null,null,null,null,null,null,null,null,null,null,null,null,null,null,null,null,null,null,null,null,0,{"$f":"AB919-AB918","v":0}]
[null,null,null,null,null,null,null,null,null,null,null,null,null,null,null,null,null,null,null,null,null,null,null,null,null,null,null,0]
[87,null,null,null,{"$f":"IF(COUNTA(H921:AA921)=0,\"\",COUNTA(H921:AA921))","v":""},null,null,null,null,null,null,null,null,null,null,null,null,null,null,null,null,null,null,null,null,null,null,0,{"$f":"AB921-AB920","v":0}]
[null,null,null,null,null,null,null,null,null,null,null,null,null,null,null,null,null,null,null,null,null,null,null,null,null,null,null,0]
[87,null,null,null,{"$f":"IF(COUNTA(H923:AA923)=0,\"\",COUNTA(H923:AA923))","v":""},null,null,null,null,null,null,null,null,null,null,null,null,null,null,null,null,null,null,null,null,null,null,0,{"$f":"AB923-AB922","v":0}]
[null,null,null,null,null,null,null,null,null,null,null,null,null,null,null,null,null,null,null,null,null,null,null,null,null,null,null,0]
[87,null,null,null,{"$f":"IF(COUNTA(H925:AA925)=0,\"\",COUNTA(H925:AA925))","v":""},null,null,null,null,null,null,null,null,null,null,null,null,null,null,null,null,null,null,null,null,null,null,0,{"$f":"AB925-AB924","v":0}]
[null,null,null,null,null,null,null,null,null,null,null,null,null,null,null,null,null,null,null,null,null,null,null,null,null,null,null,0]
[87,null,null,null,{"$f":"IF(COUNTA(H927:AA927)=0,\"\",COUNTA(H927:AA927))","v":""},null,null,null,null,null,null,null,null,null,null,null,null,null,null,null,null,null,null,null,null,null,null,0,{"$f":"AB927-AB926","v":0}]
[null,null,null,null,null,null,null,null,null,null,null,null,null,null,null,null,null,null,null,null,null,null,null,null,null,null,null,0]
[88,null,{"$f":"IF(G1746=\"\",\"\",G1746)","v":"t88"},null,{"$f":"IF(COUNTA(H929:AA929)=0,\"\",COUNTA(H929:AA929))","v":""},null,null,null,null,null,null,null,null,null,null,null,null,null,null,null,null,null,null,null,null,null,null,0,{"$f":"AB929-AB928","v":0}]
[null,null,null,null,null,null,null,null,null,null,null,null,null,null,null,null,null,null,null,null,null,null,null,null,null,null,null,0]
[88,null,null,null,{"$f":"IF(COUNTA(H931:AA931)=0,\"\",COUNTA(H931:AA931))","v":""},null,null,null,null,null,null,null,null,null,null,null,null,null,null,null,null,null,null,null,null,null,null,0,{"$f":"AB931-AB930","v":0}]
[null,null,null,null,null,null,null,null,null,null,null,null,null,null,null,null,null,null,null,null,null,null,null,null,null,null,null,0]
[88,null,null,null,{"$f":"IF(COUNTA(H933:AA933)=0,\"\",COUNTA(H933:AA933))","v":""},null,null,null,null,null,null,null,null,null,null,null,null,null,null,null,null,null,null,null,null,null,null,0,{"$f":"AB933-AB932","v":0}]
[null,null,null,null,null,null,null,null,null,null,null,null,null,null,null,null,null,null,null,null,null,null,null,null,null,null,null,0]
[88,null,null,null,{"$f":"IF(COUNTA(H935:AA935)=0,\"\",COUNTA(H935:AA935))","v":""},null,null,null,null,null,null,null,null,null,null,null,null,null,null,null,null,null,null,null,null,null,null,0,{"$f":"AB935-AB934","v":0}]
[null,null,null,null,null,null,null,null,null,null,null,null,null,null,null,null,null,null,null,null,null,null,null,null,null,null,null,0]
[88,null,null,null,{"$f":"IF(COUNTA(H937:AA937)=0,\"\",COUNTA(H937:AA937))","v":""},null,null,null,null,null,null,null,null,null,null,null,null,null,null,null,null,null,null,null,null,null,null,0,{"$f":"AB937-AB936","v":0}]
[null,null,null,null,null,null,null,null,null,null,null,null,null,null,null,null,null,null,null,null,null,null,null,null,null,null,null,0]
[89,null,{"$f":"IF(G1748=\"\",\"\",G1748)","v":"t89"},null,{"$f":"IF(COUNTA(H939:AA939)=0,\"\",COUNTA(H939:AA939))","v":""},null,null,null,null,null,null,null,null,null,null,null,null,null,null,null,null,null,null,null,null,null,null,0,{"$f":"AB939-AB938","v":0}]
[null,null,null,null,null,null,null,null,null,null,null,null,null,null,null,null,null,null,null,null,null,null,null,null,null,null,null,0]
[89,null,null,null,{"$f":"IF(COUNTA(H941:AA941)=0,\"\",COUNTA(H941:AA941))","v":""},null,null,null,null,null,null,null,null,null,null,null,null,null,null,null,null,null,null,null,null,null,null,0,{"$f":"AB941-AB940","v":0}]
[null,null,null,null,null,null,null,null,null,null,null,null,null,null,null,null,null,null,null,null,null,null,null,null,null,null,null,0]
[89,null,null,null,{"$f":"IF(COUNTA(H943:AA943)=0,\"\",COUNTA(H943:AA943))","v":""},null,null,null,null,null,null,null,null,null,null,null,null,null,null,null,null,null,null,null,null,null,null,0,{"$f":"AB943-AB942","v":0}]
[null,null,null,null,null,null,null,null,null,null,null,null,null,null,null,null,null,null,null,null,null,null,null,null,null,null,null,0]
[89,null,null,null,{"$f":"IF(COUNTA(H945:AA945)=0,\"\",COUNTA(H945:AA945))","v":""},null,null,null,null,null,null,null,null,null,null,null,null,null,null,null,null,null,null,null,null,null,null,0,{"$f":"AB945-AB944","v":0}]
[null,null,null,null,null,null,null,null,null,null,null,null,null,null,null,null,null,null,null,null,null,null,null,null,null,null,null,0]
[89,null,null,null,{"$f":"IF(COUNTA(H947:AA947)=0,\"\",COUNTA(H947:AA947))","v":""},null,null,null,null,null,null,null,null,null,null,null,null,null,null,null,null,null,null,null,null,null,null,0,{"$f":"AB947-AB946","v":0}]
[null,null,null,null,null,null,null,null,null,null,null,null,null,null,null,null,null,null,null,null,null,null,null,null,null,null,null,0]
[90,null,{"$f":"IF(G1750=\"\",\"\",G1750)","v":"t90"},null,{"$f":"IF(COUNTA(H949:AA949)=0,\"\",COUNTA(H949:AA949))","v":""},null,null,null,null,null,null,null,null,null,null,null,null,null,null,null,null,null,null,null,null,null,null,0,{"$f":"AB949-AB948","v":0}]
[null,null,null,null,null,null,null,null,null,null,null,null,null,null,null,null,null,null,null,null,null,null,null,null,null,null,null,0]
[90,null,null,null,{"$f":"IF(COUNTA(H951:AA951)=0,\"\",COUNTA(H951:AA951))","v":""},null,null,null,null,null,null,null,null,null,null,null,null,null,null,null,null,null,null,null,null,null,null,0,{"$f":"AB951-AB950","v":0}]
[null,null,null,null,null,null,null,null,null,null,null,null,null,null,null,null,null,null,null,null,null,null,null,null,null,null,null,0]
[90,null,null,null,{"$f":"IF(COUNTA(H953:AA953)=0,\"\",COUNTA(H953:AA953))","v":""},null,null,null,null,null,null,null,null,null,null,null,null,null,null,null,null,null,null,null,null,null,null,0,{"$f":"AB953-AB952","v":0}]
[null,null,null,null,null,null,null,null,null,null,null,null,null,null,null,null,null,null,null,null,null,null,null,null,null,null,null,0]
[90,null,null,null,{"$f":"IF(COUNTA(H955:AA955)=0,\"\",COUNTA(H955:AA955))","v":""},null,null,null,null,null,null,null,null,null,null,null,null,null,null,null,null,null,null,null,null,null,null,0,{"$f":"AB955-AB954","v":0}]
[null,null,null,null,null,null,null,null,null,null,null,null,null,null,null,null,null,null,null,null,null,null,null,null,null,null,null,0]
[90,null,null,null,{"$f":"IF(COUNTA(H957:AA957)=0,\"\",COUNTA(H957:AA957))","v":""},null,null,null,null,null,null,null,null,null,null,null,null,null,null,null,null,null,null,null,null,null,null,0,{"$f":"AB957-AB956","v":0}]
[null,null,null,null,null,null,null,null,null,null,null,null,null,null,null,null,null,null,null,null,null,null,null,null,null,null,null,0]
[91,null,{"$f":"IF(G1752=\"\",\"\",G1752)","v":"村山"},null,{"$f":"IF(COUNTA(H959:AA959)=0,\"\",COUNTA(H959:AA959))","v":""},null,null,null,null,null,null,null,null,null,null,null,null,null,null,null,null,null,null,null,null,null,null,0,{"$f":"AB959-AB958","v":0}]
[null,null,null,null,null,null,null,null,null,null,null,null,null,null,null,null,null,null,null,null,null,null,null,null,null,null,null,0]
[91,null,null,null,{"$f":"IF(COUNTA(H961:AA961)=0,\"\",COUNTA(H961:AA961))","v":""},null,null,null,null,null,null,null,null,null,null,null,null,null,null,null,null,null,null,null,null,null,null,0,{"$f":"AB961-AB960","v":0}]
[null,null,null,null,null,null,null,null,null,null,null,null,null,null,null,null,null,null,null,null,null,null,null,null,null,null,null,0]
[91,null,null,null,{"$f":"IF(COUNTA(H963:AA963)=0,\"\",COUNTA(H963:AA963))","v":""},null,null,null,null,null,null,null,null,null,null,null,null,null,null,null,null,null,null,null,null,null,null,0,{"$f":"AB963-AB962","v":0}]
[null,null,null,null,null,null,null,null,null,null,null,null,null,null,null,null,null,null,null,null,null,null,null,null,null,null,null,0]
[91,null,null,null,{"$f":"IF(COUNTA(H965:AA965)=0,\"\",COUNTA(H965:AA965))","v":""},null,null,null,null,null,null,null,null,null,null,null,null,null,null,null,null,null,null,null,null,null,null,0,{"$f":"AB965-AB964","v":0}]
[null,null,null,null,null,null,null,null,null,null,null,null,null,null,null,null,null,null,null,null,null,null,null,null,null,null,null,0]
[91,null,null,null,{"$f":"IF(COUNTA(H967:AA967)=0,\"\",COUNTA(H967:AA967))","v":""},null,null,null,null,null,null,null,null,null,null,null,null,null,null,null,null,null,null,null,null,null,null,0,{"$f":"AB967-AB966","v":0}]
[null,null,null,null,null,null,null,null,null,null,null,null,null,null,null,null,null,null,null,null,null,null,null,null,null,null,null,0]
[92,"家",{"$f":"IF(G1754=\"\",\"\",G1754)","v":"川崎"},null,{"$f":"IF(COUNTA(H969:AA969)=0,\"\",COUNTA(H969:AA969))","v":""},null,null,null,null,null,null,null,null,null,null,null,null,null,null,null,null,null,null,null,null,null,null,0,{"$f":"AB969-AB968","v":0}]
[null,null,null,null,null,null,null,null,null,null,null,null,null,null,null,null,null,null,null,null,null,null,null,null,null,null,null,0]
[92,null,null,null,{"$f":"IF(COUNTA(H971:AA971)=0,\"\",COUNTA(H971:AA971))","v":""},null,null,null,null,null,null,null,null,null,null,null,null,null,null,null,null,null,null,null,null,null,null,0,{"$f":"AB971-AB970","v":0}]
[null,null,null,null,null,null,null,null,null,null,null,null,null,null,null,null,null,null,null,null,null,null,null,null,null,null,null,0]
[92,null,null,null,{"$f":"IF(COUNTA(H973:AA973)=0,\"\",COUNTA(H973:AA973))","v":""},null,null,null,null,null,null,null,null,null,null,null,null,null,null,null,null,null,null,null,null,null,null,0,{"$f":"AB973-AB972","v":0}]
[null,null,null,null,null,null,null,null,null,null,null,null,null,null,null,null,null,null,null,null,null,null,null,null,null,null,null,0]
[92,null,null,null,{"$f":"IF(COUNTA(H975:AA975)=0,\"\",COUNTA(H975:AA975))","v":""},null,null,null,null,null,null,null,null,null,null,null,null,null,null,null,null,null,null,null,null,null,null,0,{"$f":"AB975-AB974","v":0}]
[null,null,null,null,null,null,null,46,null,null,null,null,null,null,null,null,null,null,null,null,null,null,null,null,null,null,null,1]
[92,null,null,null,{"$f":"IF(COUNTA(H977:AA977)=0,\"\",COUNTA(H977:AA977))","v":1},"LHR","川崎","*31",null,null,null,null,null,null,null,null,null,null,null,null,null,null,null,null,null,null,null,1,{"$f":"AB977-AB976","v":0}]
[null,null,null,null,null,null,null,null,null,null,null,null,null,null,null,null,null,null,null,null,null,null,null,null,null,null,null,0]
[93,null,{"$f":"IF(G1756=\"\",\"\",G1756)","v":"寺西"},null,{"$f":"IF(COUNTA(H979:AA979)=0,\"\",COUNTA(H979:AA979))","v":""},null,null,null,null,null,null,null,null,null,null,null,null,null,null,null,null,null,null,null,null,null,null,0,{"$f":"AB979-AB978","v":0}]
[null,null,null,null,null,null,null,null,null,null,null,null,null,null,null,null,null,null,null,null,null,null,null,null,null,null,null,0]
[93,null,null,null,{"$f":"IF(COUNTA(H981:AA981)=0,\"\",COUNTA(H981:AA981))","v":""},null,null,null,null,null,null,null,null,null,null,null,null,null,null,null,null,null,null,null,null,null,null,0,{"$f":"AB981-AB980","v":0}]
[null,null,null,null,null,null,null,null,null,null,null,null,null,null,null,null,null,null,null,null,null,null,null,null,null,null,null,0]
[93,null,null,null,{"$f":"IF(COUNTA(H983:AA983)=0,\"\",COUNTA(H983:AA983))","v":""},null,null,null,null,null,null,null,null,null,null,null,null,null,null,null,null,null,null,null,null,null,null,0,{"$f":"AB983-AB982","v":0}]
[null,null,null,null,null,null,null,null,null,null,null,null,null,null,null,null,null,null,null,null,null,null,null,null,null,null,null,0]
[93,null,null,null,{"$f":"IF(COUNTA(H985:AA985)=0,\"\",COUNTA(H985:AA985))","v":""},null,null,null,null,null,null,null,null,null,null,null,null,null,null,null,null,null,null,null,null,null,null,0,{"$f":"AB985-AB984","v":0}]
[null,null,null,null,null,null,null,null,null,null,null,null,null,null,null,null,null,null,null,null,null,null,null,null,null,null,null,{"$f":"COUNTA(H986:AA986)","v":0}]
[null,null,null,null,{"$f":"IF(COUNTA(H987:AA987)=0,\"\",COUNTA(H987:AA987))","v":""},null,null,null,null,null,null,null,null,null,null,null,null,null,null,null,null,null,null,null,null,null,null,0,{"$f":"AB987-AB986","v":0}]
[null,null,null,null,null,null,null,null,null,null,null,null,null,null,null,null,null,null,null,null,null,null,null,null,null,null,null,0]
[94,null,{"$f":"IF(G1758=\"\",\"\",G1758)","v":"t94"},null,{"$f":"IF(COUNTA(H989:AA989)=0,\"\",COUNTA(H989:AA989))","v":""},null,null,null,null,null,null,null,null,null,null,null,null,null,null,null,null,null,null,null,null,null,null,0,{"$f":"AB989-AB988","v":0}]
[null,null,null,null,null,null,null,null,null,null,null,null,null,null,null,null,null,null,null,null,null,null,null,null,null,null,null,0]
[94,null,null,null,{"$f":"IF(COUNTA(H991:AA991)=0,\"\",COUNTA(H991:AA991))","v":""},null,null,null,null,null,null,null,null,null,null,null,null,null,null,null,null,null,null,null,null,null,null,0,{"$f":"AB991-AB990","v":0}]
[null,null,null,null,null,null,null,null,null,null,null,null,null,null,null,null,null,null,null,null,null,null,null,null,null,null,null,0]
[94,null,null,null,{"$f":"IF(COUNTA(H993:AA993)=0,\"\",COUNTA(H993:AA993))","v":""},null,null,null,null,null,null,null,null,null,null,null,null,null,null,null,null,null,null,null,null,null,null,0,{"$f":"AB993-AB992","v":0}]
[null,null,null,null,null,null,null,null,null,null,null,null,null,null,null,null,null,null,null,null,null,null,null,null,null,null,null,0]
[94,null,null,null,{"$f":"IF(COUNTA(H995:AA995)=0,\"\",COUNTA(H995:AA995))","v":""},null,null,null,null,null,null,null,null,null,null,null,null,null,null,null,null,null,null,null,null,null,null,0,{"$f":"AB995-AB994","v":0}]
[null,null,null,null,null,null,null,null,null,null,null,null,null,null,null,null,null,null,null,null,null,null,null,null,null,null,null,0]
[94,"庭",null,null,{"$f":"IF(COUNTA(H997:AA997)=0,\"\",COUNTA(H997:AA997))","v":""},null,null,null,null,null,null,null,null,null,null,null,null,null,null,null,null,null,null,null,null,null,null,0,{"$f":"AB997-AB996","v":0}]
[null,null,null,null,null,null,null,null,null,null,null,null,null,null,null,null,null,null,null,null,null,null,null,null,null,null,null,0]
[95,null,{"$f":"IF(G1760=\"\",\"\",G1760)","v":"t95"},null,{"$f":"IF(COUNTA(H999:AA999)=0,\"\",COUNTA(H999:AA999))","v":""},null,null,null,null,null,null,null,null,null,null,null,null,null,null,null,null,null,null,null,null,null,null,0,{"$f":"AB999-AB998","v":0}]
[null,null,null,null,null,null,null,null,null,null,null,null,null,null,null,null,null,null,null,null,null,null,null,null,null,null,null,0]
[95,null,null,null,{"$f":"IF(COUNTA(H1001:AA1001)=0,\"\",COUNTA(H1001:AA1001))","v":""},null,null,null,null,null,null,null,null,null,null,null,null,null,null,null,null,null,null,null,null,null,null,0,{"$f":"AB1001-AB1000","v":0}]
[null,null,null,null,null,null,null,null,null,null,null,null,null,null,null,null,null,null,null,null,null,null,null,null,null,null,null,0]
[95,null,null,null,{"$f":"IF(COUNTA(H1003:AA1003)=0,\"\",COUNTA(H1003:AA1003))","v":""},null,null,null,null,null,null,null,null,null,null,null,null,null,null,null,null,null,null,null,null,null,null,0,{"$f":"AB1003-AB1002","v":0}]
[null,null,null,null,null,null,null,null,null,null,null,null,null,null,null,null,null,null,null,null,null,null,null,null,null,null,null,0]
[95,null,null,null,{"$f":"IF(COUNTA(H1005:AA1005)=0,\"\",COUNTA(H1005:AA1005))","v":""},null,null,null,null,null,null,null,null,null,null,null,null,null,null,null,null,null,null,null,null,null,null,0,{"$f":"AB1005-AB1004","v":0}]
[null,null,null,null,null,null,null,null,null,null,null,null,null,null,null,null,null,null,null,null,null,null,null,null,null,null,null,0]
[95,null,null,null,{"$f":"IF(COUNTA(H1007:AA1007)=0,\"\",COUNTA(H1007:AA1007))","v":""},null,null,null,null,null,null,null,null,null,null,null,null,null,null,null,null,null,null,null,null,null,null,0,{"$f":"AB1007-AB1006","v":0}]
[null,null,null,null,null,null,null,null,null,null,null,null,null,null,null,null,null,null,null,null,null,null,null,null,null,null,null,0]
[96,null,{"$f":"IF(G1762=\"\",\"\",G1762)","v":"宮木"},2,{"$f":"IF(COUNTA(H1009:AA1009)=0,\"\",COUNTA(H1009:AA1009))","v":16},"文書","宮木","*11","*11","*12","*12","*13","*13","*14","*14","*15","*15","*16","*16","*17","*17","*18","*18",null,null,null,null,16,{"$f":"AB1009-AB1008","v":16}]
[null,null,null,null,null,null,null,null,null,null,null,null,null,null,null,null,null,null,null,null,null,null,null,null,null,null,null,0]
[96,null,null,null,{"$f":"IF(COUNTA(H1011:AA1011)=0,\"\",COUNTA(H1011:AA1011))","v":""},null,null,null,null,null,null,null,null,null,null,null,null,null,null,null,null,null,null,null,null,null,null,0,{"$f":"AB1011-AB1010","v":0}]
[null,null,null,null,null,null,null,null,null,null,null,null,null,null,null,null,null,null,null,null,null,null,null,null,null,null,null,0]
[96,null,null,null,{"$f":"IF(COUNTA(H1013:AA1013)=0,\"\",COUNTA(H1013:AA1013))","v":""},null,null,null,null,null,null,null,null,null,null,null,null,null,null,null,null,null,null,null,null,null,null,0,{"$f":"AB1013-AB1012","v":0}]
[null,null,null,null,null,null,null,null,null,null,null,null,null,null,null,null,null,null,null,null,null,null,null,null,null,null,null,0]
[96,null,null,null,{"$f":"IF(COUNTA(H1015:AA1015)=0,\"\",COUNTA(H1015:AA1015))","v":""},null,null,null,null,null,null,null,null,null,null,null,null,null,null,null,null,null,null,null,null,null,null,0,{"$f":"AB1015-AB1014","v":0}]
[null,null,null,null,null,null,null,null,null,null,null,null,null,null,null,null,null,null,null,null,null,null,null,null,null,null,null,0]
[96,null,null,null,{"$f":"IF(COUNTA(H1017:AA1017)=0,\"\",COUNTA(H1017:AA1017))","v":""},null,null,null,null,null,null,null,null,null,null,null,null,null,null,null,null,null,null,null,null,null,null,0,{"$f":"AB1017-AB1016","v":0}]
[null,"情",null,null,null,null,null,null,null,null,null,null,null,null,null,null,null,null,null,null,null,null,null,null,null,null,null,0]
[97,null,{"$f":"IF(G1764=\"\",\"\",G1764)","v":"t97"},null,{"$f":"IF(COUNTA(H1019:AA1019)=0,\"\",COUNTA(H1019:AA1019))","v":""},null,null,null,null,null,null,null,null,null,null,null,null,null,null,null,null,null,null,null,null,null,null,0,{"$f":"AB1019-AB1018","v":0}]
[null,null,null,null,null,null,null,null,null,null,null,null,null,null,null,null,null,null,null,null,null,null,null,null,null,null,null,0]
[97,null,null,null,{"$f":"IF(COUNTA(H1021:AA1021)=0,\"\",COUNTA(H1021:AA1021))","v":""},null,null,null,null,null,null,null,null,null,null,null,null,null,null,null,null,null,null,null,null,null,null,0,{"$f":"AB1021-AB1020","v":0}]
[null,null,null,null,null,null,null,null,null,null,null,null,null,null,null,null,null,null,null,null,null,null,null,null,null,null,null,0]
[97,null,null,null,{"$f":"IF(COUNTA(H1023:AA1023)=0,\"\",COUNTA(H1023:AA1023))","v":""},null,null,null,null,null,null,null,null,null,null,null,null,null,null,null,null,null,null,null,null,null,null,0,{"$f":"AB1023-AB1022","v":0}]
[null,null,null,null,null,null,null,null,null,null,null,null,null,null,null,null,null,null,null,null,null,null,null,null,null,null,null,0]
[97,null,null,null,{"$f":"IF(COUNTA(H1025:AA1025)=0,\"\",COUNTA(H1025:AA1025))","v":""},null,null,null,null,null,null,null,null,null,null,null,null,null,null,null,null,null,null,null,null,null,null,0,{"$f":"AB1025-AB1024","v":0}]
[null,null,null,null,null,null,null,null,null,null,null,null,null,null,null,null,null,null,null,null,null,null,null,null,null,null,null,0]
[97,null,null,null,{"$f":"IF(COUNTA(H1027:AA1027)=0,\"\",COUNTA(H1027:AA1027))","v":""},null,null,null,null,null,null,null,null,null,null,null,null,null,null,null,null,null,null,null,null,null,null,0,{"$f":"AB1027-AB1026","v":0}]
[null,null,null,null,null,null,null,null,null,null,null,null,null,null,null,null,null,null,null,null,null,null,null,null,null,null,null,0]
[98,null,{"$f":"IF(G1766=\"\",\"\",G1766)","v":"t98"},null,{"$f":"IF(COUNTA(H1029:AA1029)=0,\"\",COUNTA(H1029:AA1029))","v":""},null,null,null,null,null,null,null,null,null,null,null,null,null,null,null,null,null,null,null,null,null,null,0,{"$f":"AB1029-AB1028","v":0}]
[null,null,null,null,null,null,null,null,null,null,null,null,null,null,null,null,null,null,null,null,null,null,null,null,null,null,null,0]
[98,null,null,null,{"$f":"IF(COUNTA(H1031:AA1031)=0,\"\",COUNTA(H1031:AA1031))","v":""},null,null,null,null,null,null,null,null,null,null,null,null,null,null,null,null,null,null,null,null,null,null,0,{"$f":"AB1031-AB1030","v":0}]
[null,null,null,null,null,null,null,null,null,null,null,null,null,null,null,null,null,null,null,null,null,null,null,null,null,null,null,0]
[98,null,null,null,{"$f":"IF(COUNTA(H1033:AA1033)=0,\"\",COUNTA(H1033:AA1033))","v":""},null,null,null,null,null,null,null,null,null,null,null,null,null,null,null,null,null,null,null,null,null,null,0,{"$f":"AB1033-AB1032","v":0}]
[null,null,null,null,null,null,null,null,null,null,null,null,null,null,null,null,null,null,null,null,null,null,null,null,null,null,null,0]
[98,null,null,null,{"$f":"IF(COUNTA(H1035:AA1035)=0,\"\",COUNTA(H1035:AA1035))","v":""},null,null,null,null,null,null,null,null,null,null,null,null,null,null,null,null,null,null,null,null,null,null,0,{"$f":"AB1035-AB1034","v":0}]
[null,null,null,null,null,null,null,null,null,null,null,null,null,null,null,null,null,null,null,null,null,null,null,null,null,null,null,0]
[98,null,null,null,{"$f":"IF(COUNTA(H1037:AA1037)=0,\"\",COUNTA(H1037:AA1037))","v":""},null,null,null,null,null,null,null,null,null,null,null,null,null,null,null,null,null,null,null,null,null,null,0,{"$f":"AB1037-AB1036","v":0}]
[null,null,null,null,null,null,null,null,null,null,null,null,null,null,null,null,null,null,null,null,null,null,null,null,null,null,null,0]
[99,null,{"$f":"IF(G1768=\"\",\"\",G1768)","v":"t99"},null,{"$f":"IF(COUNTA(H1039:AA1039)=0,\"\",COUNTA(H1039:AA1039))","v":""},null,null,null,null,null,null,null,null,null,null,null,null,null,null,null,null,null,null,null,null,null,null,0,{"$f":"AB1039-AB1038","v":0}]
[null,null,null,null,null,null,null,null,null,null,null,null,null,null,null,null,null,null,null,null,null,null,null,null,null,null,null,0]
[99,null,null,null,{"$f":"IF(COUNTA(H1041:AA1041)=0,\"\",COUNTA(H1041:AA1041))","v":""},null,null,null,null,null,null,null,null,null,null,null,null,null,null,null,null,null,null,null,null,null,null,0,{"$f":"AB1041-AB1040","v":0}]
[null,null,null,null,null,null,null,null,null,null,null,null,null,null,null,null,null,null,null,null,null,null,null,null,null,null,null,0]
[99,null,null,null,{"$f":"IF(COUNTA(H1043:AA1043)=0,\"\",COUNTA(H1043:AA1043))","v":""},null,null,null,null,null,null,null,null,null,null,null,null,null,null,null,null,null,null,null,null,null,null,0,{"$f":"AB1043-AB1042","v":0}]
[null,null,null,null,null,null,null,null,null,null,null,null,null,null,null,null,null,null,null,null,null,null,null,null,null,null,null,0]
[99,null,null,null,{"$f":"IF(COUNTA(H1045:AA1045)=0,\"\",COUNTA(H1045:AA1045))","v":""},null,null,null,null,null,null,null,null,null,null,null,null,null,null,null,null,null,null,null,null,null,null,0,{"$f":"AB1045-AB1044","v":0}]
[null,null,null,null,null,null,null,null,null,null,null,null,null,null,null,null,null,null,null,null,null,null,null,null,null,null,null,0]
[99,"報",null,null,{"$f":"IF(COUNTA(H1047:AA1047)=0,\"\",COUNTA(H1047:AA1047))","v":""},null,null,null,null,null,null,null,null,null,null,null,null,null,null,null,null,null,null,null,null,null,null,0,{"$f":"AB1047-AB1046","v":0}]
[null,null,null,null,null,null,null,null,null,null,null,null,null,null,null,null,null,null,null,null,null,null,null,null,null,null,null,0]
[100,null,{"$f":"IF(G1770=\"\",\"\",G1770)","v":"t100"},null,{"$f":"IF(COUNTA(H1049:AA1049)=0,\"\",COUNTA(H1049:AA1049))","v":""},null,null,null,null,null,null,null,null,null,null,null,null,null,null,null,null,null,null,null,null,null,null,0,{"$f":"AB1049-AB1048","v":0}]
[null,null,null,null,null,null,null,null,null,null,null,null,null,null,null,null,null,null,null,null,null,null,null,null,null,null,null,{"$f":"COUNTA(H1050:AA1050)","v":0}]
[100,null,null,null,{"$f":"IF(COUNTA(H1051:AA1051)=0,\"\",COUNTA(H1051:AA1051))","v":""},null,null,null,null,null,null,null,null,null,null,null,null,null,null,null,null,null,null,null,null,null,null,0,{"$f":"AB1051-AB1050","v":0}]
[null,null,null,null,null,null,null,null,null,null,null,null,null,null,null,null,null,null,null,null,null,null,null,null,null,null,null,0]
[100,null,null,null,{"$f":"IF(COUNTA(H1053:AA1053)=0,\"\",COUNTA(H1053:AA1053))","v":""},null,null,null,null,null,null,null,null,null,null,null,null,null,null,null,null,null,null,null,null,null,null,0,{"$f":"AB1053-AB1052","v":0}]
[null,null,null,null,null,null,null,null,null,null,null,null,null,null,null,null,null,null,null,null,null,null,null,null,null,null,null,0]
[100,null,null,null,{"$f":"IF(COUNTA(H1055:AA1055)=0,\"\",COUNTA(H1055:AA1055))","v":""},null,null,null,null,null,null,null,null,null,null,null,null,null,null,null,null,null,null,null,null,null,null,0,{"$f":"AB1055-AB1054","v":0}]
[null,null,null,null,null,null,null,null,null,null,null,null,null,null,null,null,null,null,null,null,null,null,null,null,null,null,null,0]
[100,null,null,null,{"$f":"IF(COUNTA(H1057:AA1057)=0,\"\",COUNTA(H1057:AA1057))","v":""},null,null,null,null,null,null,null,null,null,null,null,null,null,null,null,null,null,null,null,null,null,null,0,{"$f":"AB1057-AB1056","v":0}]
[null,null,null,null,null,null,null,null,null,null,null,null,null,null,null,null,null,null,null,null,null,null,null,null,null,null,null,0]
[101,null,{"$f":"IF(G1772=\"\",\"\",G1772)","v":"t101"},null,{"$f":"IF(COUNTA(H1059:AA1059)=0,\"\",COUNTA(H1059:AA1059))","v":""},null,null,null,null,null,null,null,null,null,null,null,null,null,null,null,null,null,null,null,null,null,null,0,{"$f":"AB1059-AB1058","v":0}]
[null,null,null,null,null,null,null,null,null,null,null,null,null,null,null,null,null,null,null,null,null,null,null,null,null,null,null,0]
[101,null,null,null,{"$f":"IF(COUNTA(H1061:AA1061)=0,\"\",COUNTA(H1061:AA1061))","v":""},null,null,null,null,null,null,null,null,null,null,null,null,null,null,null,null,null,null,null,null,null,null,0,{"$f":"AB1061-AB1060","v":0}]
[null,null,null,null,null,null,null,null,null,null,null,null,null,null,null,null,null,null,null,null,null,null,null,null,null,null,null,0]
[101,null,null,null,{"$f":"IF(COUNTA(H1063:AA1063)=0,\"\",COUNTA(H1063:AA1063))","v":""},null,null,null,null,null,null,null,null,null,null,null,null,null,null,null,null,null,null,null,null,null,null,0,{"$f":"AB1063-AB1062","v":0}]
[null,null,null,null,null,null,null,null,null,null,null,null,null,null,null,null,null,null,null,null,null,null,null,null,null,null,null,0]
[101,null,null,null,{"$f":"IF(COUNTA(H1065:AA1065)=0,\"\",COUNTA(H1065:AA1065))","v":""},null,null,null,null,null,null,null,null,null,null,null,null,null,null,null,null,null,null,null,null,null,null,0,{"$f":"AB1065-AB1064","v":0}]
[null,null,null,null,null,null,null,null,null,null,null,null,null,null,null,null,null,null,null,null,null,null,null,null,null,null,null,0]
[101,null,null,null,{"$f":"IF(COUNTA(H1067:AA1067)=0,\"\",COUNTA(H1067:AA1067))","v":""},null,null,null,null,null,null,null,null,null,null,null,null,null,null,null,null,null,null,null,null,null,null,0,{"$f":"AB1067-AB1066","v":0}]
[null,null,null,null,null,null,null,null,null,null,null,null,null,null,null,null,null,null,null,null,null,null,null,null,null,null,null,0]
[102,null,{"$f":"IF(G1774=\"\",\"\",G1774)","v":"t102"},null,{"$f":"IF(COUNTA(H1069:AA1069)=0,\"\",COUNTA(H1069:AA1069))","v":""},null,null,null,null,null,null,null,null,null,null,null,null,null,null,null,null,null,null,null,null,null,null,0,{"$f":"AB1069-AB1068","v":0}]
[null,null,null,null,null,null,null,null,null,null,null,null,null,null,null,null,null,null,null,null,null,null,null,null,null,null,null,0]
[102,null,null,null,{"$f":"IF(COUNTA(H1071:AA1071)=0,\"\",COUNTA(H1071:AA1071))","v":""},null,null,null,null,null,null,null,null,null,null,null,null,null,null,null,null,null,null,null,null,null,null,0,{"$f":"AB1071-AB1070","v":0}]
[null,null,null,null,null,null,null,null,null,null,null,null,null,null,null,null,null,null,null,null,null,null,null,null,null,null,null,0]
[102,null,null,null,{"$f":"IF(COUNTA(H1073:AA1073)=0,\"\",COUNTA(H1073:AA1073))","v":""},null,null,null,null,null,null,null,null,null,null,null,null,null,null,null,null,null,null,null,null,null,null,0,{"$f":"AB1073-AB1072","v":0}]
[null,null,null,null,null,null,null,null,null,null,null,null,null,null,null,null,null,null,null,null,null,null,null,null,null,null,null,0]
[102,null,null,null,{"$f":"IF(COUNTA(H1075:AA1075)=0,\"\",COUNTA(H1075:AA1075))","v":""},null,null,null,null,null,null,null,null,null,null,null,null,null,null,null,null,null,null,null,null,null,null,0,{"$f":"AB1075-AB1074","v":0}]
[null,null,null,null,null,null,null,null,null,null,null,null,null,null,null,null,null,null,null,null,null,null,null,null,null,null,null,0]
[102,null,null,null,{"$f":"IF(COUNTA(H1077:AA1077)=0,\"\",COUNTA(H1077:AA1077))","v":""},null,null,null,null,null,null,null,null,null,null,null,null,null,null,null,null,null,null,null,null,null,null,0,{"$f":"AB1077-AB1076","v":0}]
[null,"専",null,null,null,null,null,null,null,null,null,null,null,null,null,null,null,null,null,null,null,null,null,null,null,null,null,0]
[103,null,{"$f":"IF(G1776=\"\",\"\",G1776)","v":"t103"},null,{"$f":"IF(COUNTA(H1079:AA1079)=0,\"\",COUNTA(H1079:AA1079))","v":""},null,null,null,null,null,null,null,null,null,null,null,null,null,null,null,null,null,null,null,null,null,null,0,{"$f":"AB1079-AB1078","v":0}]
[null,null,null,null,null,null,null,null,null,null,null,null,null,null,null,null,null,null,null,null,null,null,null,null,null,null,null,0]
[103,null,null,null,{"$f":"IF(COUNTA(H1081:AA1081)=0,\"\",COUNTA(H1081:AA1081))","v":""},null,null,null,null,null,null,null,null,null,null,null,null,null,null,null,null,null,null,null,null,null,null,0,{"$f":"AB1081-AB1080","v":0}]
[null,null,null,null,null,null,null,null,null,null,null,null,null,null,null,null,null,null,null,null,null,null,null,null,null,null,null,0]
[103,null,null,null,{"$f":"IF(COUNTA(H1083:AA1083)=0,\"\",COUNTA(H1083:AA1083))","v":""},null,null,null,null,null,null,null,null,null,null,null,null,null,null,null,null,null,null,null,null,null,null,0,{"$f":"AB1083-AB1082","v":0}]
[null,null,null,null,null,null,null,null,null,null,null,null,null,null,null,null,null,null,null,null,null,null,null,null,null,null,null,0]
[103,null,null,null,{"$f":"IF(COUNTA(H1085:AA1085)=0,\"\",COUNTA(H1085:AA1085))","v":""},null,null,null,null,null,null,null,null,null,null,null,null,null,null,null,null,null,null,null,null,null,null,0,{"$f":"AB1085-AB1084","v":0}]
[null,null,null,null,null,null,null,null,null,null,null,null,null,null,null,null,null,null,null,null,null,null,null,null,null,null,null,0]
[103,null,null,null,{"$f":"IF(COUNTA(H1087:AA1087)=0,\"\",COUNTA(H1087:AA1087))","v":""},null,null,null,null,null,null,null,null,null,null,null,null,null,null,null,null,null,null,null,null,null,null,0,{"$f":"AB1087-AB1086","v":0}]
[null,null,null,null,null,null,null,null,null,null,null,null,null,null,null,null,null,null,null,null,null,null,null,null,null,null,null,0]
[104,null,{"$f":"IF(G1778=\"\",\"\",G1778)","v":"t104"},null,{"$f":"IF(COUNTA(H1089:AA1089)=0,\"\",COUNTA(H1089:AA1089))","v":""},null,null,null,null,null,null,null,null,null,null,null,null,null,null,null,null,null,null,null,null,null,null,0,{"$f":"AB1089-AB1088","v":0}]
[null,null,null,null,null,null,null,null,null,null,null,null,null,null,null,null,null,null,null,null,null,null,null,null,null,null,null,0]
[104,null,null,null,{"$f":"IF(COUNTA(H1091:AA1091)=0,\"\",COUNTA(H1091:AA1091))","v":""},null,null,null,null,null,null,null,null,null,null,null,null,null,null,null,null,null,null,null,null,null,null,0,{"$f":"AB1091-AB1090","v":0}]
[null,null,null,null,null,null,null,null,null,null,null,null,null,null,null,null,null,null,null,null,null,null,null,null,null,null,null,0]
[104,null,null,null,{"$f":"IF(COUNTA(H1093:AA1093)=0,\"\",COUNTA(H1093:AA1093))","v":""},null,null,null,null,null,null,null,null,null,null,null,null,null,null,null,null,null,null,null,null,null,null,0,{"$f":"AB1093-AB1092","v":0}]
[null,null,null,null,null,null,null,null,null,null,null,null,null,null,null,null,null,null,null,null,null,null,null,null,null,null,null,0]
[104,null,null,null,{"$f":"IF(COUNTA(H1095:AA1095)=0,\"\",COUNTA(H1095:AA1095))","v":""},null,null,null,null,null,null,null,null,null,null,null,null,null,null,null,null,null,null,null,null,null,null,0,{"$f":"AB1095-AB1094","v":0}]
[null,null,null,null,null,null,null,null,null,null,null,null,null,null,null,null,null,null,null,null,null,null,null,null,null,null,null,0]
[104,null,null,null,{"$f":"IF(COUNTA(H1097:AA1097)=0,\"\",COUNTA(H1097:AA1097))","v":""},null,null,null,null,null,null,null,null,null,null,null,null,null,null,null,null,null,null,null,null,null,null,0,{"$f":"AB1097-AB1096","v":0}]
[null,null,null,null,null,null,null,null,null,null,null,null,null,null,null,null,null,null,null,null,null,null,null,null,null,null,null,0]
[105,null,{"$f":"IF(G1780=\"\",\"\",G1780)","v":"t105"},null,{"$f":"IF(COUNTA(H1099:AA1099)=0,\"\",COUNTA(H1099:AA1099))","v":""},null,null,null,null,null,null,null,null,null,null,null,null,null,null,null,null,null,null,null,null,null,null,0,{"$f":"AB1099-AB1098","v":0}]
[null,null,null,null,null,null,null,null,null,null,null,null,null,null,null,null,null,null,null,null,null,null,null,null,null,null,null,0]
[105,null,null,null,{"$f":"IF(COUNTA(H1101:AA1101)=0,\"\",COUNTA(H1101:AA1101))","v":""},null,null,null,null,null,null,null,null,null,null,null,null,null,null,null,null,null,null,null,null,null,null,0,{"$f":"AB1101-AB1100","v":0}]
[null,null,null,null,null,null,null,null,null,null,null,null,null,null,null,null,null,null,null,null,null,null,null,null,null,null,null,0]
[105,null,null,null,{"$f":"IF(COUNTA(H1103:AA1103)=0,\"\",COUNTA(H1103:AA1103))","v":""},null,null,null,null,null,null,null,null,null,null,null,null,null,null,null,null,null,null,null,null,null,null,0,{"$f":"AB1103-AB1102","v":0}]
[null,null,null,null,null,null,null,null,null,null,null,null,null,null,null,null,null,null,null,null,null,null,null,null,null,null,null,0]
[105,null,null,null,{"$f":"IF(COUNTA(H1105:AA1105)=0,\"\",COUNTA(H1105:AA1105))","v":""},null,null,null,null,null,null,null,null,null,null,null,null,null,null,null,null,null,null,null,null,null,null,0,{"$f":"AB1105-AB1104","v":0}]
[null,null,null,null,null,null,null,null,null,null,null,null,null,null,null,null,null,null,null,null,null,null,null,null,null,null,null,0]
[105,"門",null,null,{"$f":"IF(COUNTA(H1107:AA1107)=0,\"\",COUNTA(H1107:AA1107))","v":""},null,null,null,null,null,null,null,null,null,null,null,null,null,null,null,null,null,null,null,null,null,null,0,{"$f":"AB1107-AB1106","v":0}]
[null,null,null,null,null,null,null,null,null,null,null,null,null,null,null,null,null,null,null,null,null,null,null,null,null,null,null,0]
[106,null,{"$f":"IF(G1782=\"\",\"\",G1782)","v":"t106"},null,{"$f":"IF(COUNTA(H1109:AA1109)=0,\"\",COUNTA(H1109:AA1109))","v":""},null,null,null,null,null,null,null,null,null,null,null,null,null,null,null,null,null,null,null,null,null,null,0,{"$f":"AB1109-AB1108","v":0}]
[null,null,null,null,null,null,null,null,null,null,null,null,null,null,null,null,null,null,null,null,null,null,null,null,null,null,null,0]
[106,null,null,null,{"$f":"IF(COUNTA(H1111:AA1111)=0,\"\",COUNTA(H1111:AA1111))","v":""},null,null,null,null,null,null,null,null,null,null,null,null,null,null,null,null,null,null,null,null,null,null,0,{"$f":"AB1111-AB1110","v":0}]
[null,null,null,null,null,null,null,null,null,null,null,null,null,null,null,null,null,null,null,null,null,null,null,null,null,null,null,0]
[106,null,null,null,{"$f":"IF(COUNTA(H1113:AA1113)=0,\"\",COUNTA(H1113:AA1113))","v":""},null,null,null,null,null,null,null,null,null,null,null,null,null,null,null,null,null,null,null,null,null,null,0,{"$f":"AB1113-AB1112","v":0}]
[null,null,null,null,null,null,null,null,null,null,null,null,null,null,null,null,null,null,null,null,null,null,null,null,null,null,null,{"$f":"COUNTA(H1114:AA1114)","v":0}]
[106,null,null,null,{"$f":"IF(COUNTA(H1115:AA1115)=0,\"\",COUNTA(H1115:AA1115))","v":""},null,null,null,null,null,null,null,null,null,null,null,null,null,null,null,null,null,null,null,null,null,null,0,{"$f":"AB1115-AB1114","v":0}]
[null,null,null,null,null,null,null,null,null,null,null,null,null,null,null,null,null,null,null,null,null,null,null,null,null,null,null,0]
[106,null,null,null,{"$f":"IF(COUNTA(H1117:AA1117)=0,\"\",COUNTA(H1117:AA1117))","v":""},null,null,null,null,null,null,null,null,null,null,null,null,null,null,null,null,null,null,null,null,null,null,0,{"$f":"AB1117-AB1116","v":0}]
[null,null,null,null,null,null,null,null,null,null,null,null,null,null,null,null,null,null,null,null,null,null,null,null,null,null,null,0]
[107,null,{"$f":"IF(G1784=\"\",\"\",G1784)","v":"t107"},null,{"$f":"IF(COUNTA(H1119:AA1119)=0,\"\",COUNTA(H1119:AA1119))","v":""},null,null,null,null,null,null,null,null,null,null,null,null,null,null,null,null,null,null,null,null,null,null,0,{"$f":"AB1119-AB1118","v":0}]
[null,null,null,null,null,null,null,null,null,null,null,null,null,null,null,null,null,null,null,null,null,null,null,null,null,null,null,0]
[107,null,null,null,{"$f":"IF(COUNTA(H1121:AA1121)=0,\"\",COUNTA(H1121:AA1121))","v":""},null,null,null,null,null,null,null,null,null,null,null,null,null,null,null,null,null,null,null,null,null,null,0,{"$f":"AB1121-AB1120","v":0}]
[null,null,null,null,null,null,null,null,null,null,null,null,null,null,null,null,null,null,null,null,null,null,null,null,null,null,null,0]
[107,null,null,null,{"$f":"IF(COUNTA(H1123:AA1123)=0,\"\",COUNTA(H1123:AA1123))","v":""},null,null,null,null,null,null,null,null,null,null,null,null,null,null,null,null,null,null,null,null,null,null,0,{"$f":"AB1123-AB1122","v":0}]
[null,null,null,null,null,null,null,null,null,null,null,null,null,null,null,null,null,null,null,null,null,null,null,null,null,null,null,0]
[107,null,null,null,{"$f":"IF(COUNTA(H1125:AA1125)=0,\"\",COUNTA(H1125:AA1125))","v":""},null,null,null,null,null,null,null,null,null,null,null,null,null,null,null,null,null,null,null,null,null,null,0,{"$f":"AB1125-AB1124","v":0}]
[null,null,null,null,null,null,null,null,null,null,null,null,null,null,null,null,null,null,null,null,null,null,null,null,null,null,null,0]
[107,null,null,null,{"$f":"IF(COUNTA(H1127:AA1127)=0,\"\",COUNTA(H1127:AA1127))","v":""},null,null,null,null,null,null,null,null,null,null,null,null,null,null,null,null,null,null,null,null,null,null,0,{"$f":"AB1127-AB1126","v":0}]
[null,null,null,null,null,null,null,null,null,null,null,null,null,null,null,null,null,null,null,null,null,null,null,null,null,null,null,0]
[108,null,{"$f":"IF(G1786=\"\",\"\",G1786)","v":"t108"},null,{"$f":"IF(COUNTA(H1129:AA1129)=0,\"\",COUNTA(H1129:AA1129))","v":""},null,null,null,null,null,null,null,null,null,null,null,null,null,null,null,null,null,null,null,null,null,null,0,{"$f":"AB1129-AB1128","v":0}]
[null,null,null,null,null,null,null,null,null,null,null,null,null,null,null,null,null,null,null,null,null,null,null,null,null,null,null,0]
[108,null,null,null,{"$f":"IF(COUNTA(H1131:AA1131)=0,\"\",COUNTA(H1131:AA1131))","v":""},null,null,null,null,null,null,null,null,null,null,null,null,null,null,null,null,null,null,null,null,null,null,0,{"$f":"AB1131-AB1130","v":0}]
[null,null,null,null,null,null,null,null,null,null,null,null,null,null,null,null,null,null,null,null,null,null,null,null,null,null,null,0]
[108,null,null,null,{"$f":"IF(COUNTA(H1133:AA1133)=0,\"\",COUNTA(H1133:AA1133))","v":""},null,null,null,null,null,null,null,null,null,null,null,null,null,null,null,null,null,null,null,null,null,null,0,{"$f":"AB1133-AB1132","v":0}]
[null,null,null,null,null,null,null,null,null,null,null,null,null,null,null,null,null,null,null,null,null,null,null,null,null,null,null,0]
[108,null,null,null,{"$f":"IF(COUNTA(H1135:AA1135)=0,\"\",COUNTA(H1135:AA1135))","v":""},null,null,null,null,null,null,null,null,null,null,null,null,null,null,null,null,null,null,null,null,null,null,0,{"$f":"AB1135-AB1134","v":0}]
[null,null,null,null,null,null,null,null,null,null,null,null,null,null,null,null,null,null,null,null,null,null,null,null,null,null,null,0]
[108,"１",null,null,{"$f":"IF(COUNTA(H1137:AA1137)=0,\"\",COUNTA(H1137:AA1137))","v":""},null,null,null,null,null,null,null,null,null,null,null,null,null,null,null,null,null,null,null,null,null,null,0,{"$f":"AB1137-AB1136","v":0}]
[null,null,null,null,null,null,null,null,null,null,null,null,null,null,null,null,null,null,null,null,null,null,null,null,null,null,null,0]
[109,null,{"$f":"IF(G1788=\"\",\"\",G1788)","v":"t109"},null,{"$f":"IF(COUNTA(H1139:AA1139)=0,\"\",COUNTA(H1139:AA1139))","v":""},null,null,null,null,null,null,null,null,null,null,null,null,null,null,null,null,null,null,null,null,null,null,0,{"$f":"AB1139-AB1138","v":0}]
[null,null,null,null,null,null,null,null,null,null,null,null,null,null,null,null,null,null,null,null,null,null,null,null,null,null,null,0]
[109,null,null,null,{"$f":"IF(COUNTA(H1141:AA1141)=0,\"\",COUNTA(H1141:AA1141))","v":""},null,null,null,null,null,null,null,null,null,null,null,null,null,null,null,null,null,null,null,null,null,null,0,{"$f":"AB1141-AB1140","v":0}]
[null,null,null,null,null,null,null,null,null,null,null,null,null,null,null,null,null,null,null,null,null,null,null,null,null,null,null,0]
[109,null,null,null,{"$f":"IF(COUNTA(H1143:AA1143)=0,\"\",COUNTA(H1143:AA1143))","v":""},null,null,null,null,null,null,null,null,null,null,null,null,null,null,null,null,null,null,null,null,null,null,0,{"$f":"AB1143-AB1142","v":0}]
[null,null,null,null,null,null,null,null,null,null,null,null,null,null,null,null,null,null,null,null,null,null,null,null,null,null,null,0]
[109,null,null,null,{"$f":"IF(COUNTA(H1145:AA1145)=0,\"\",COUNTA(H1145:AA1145))","v":""},null,null,null,null,null,null,null,null,null,null,null,null,null,null,null,null,null,null,null,null,null,null,0,{"$f":"AB1145-AB1144","v":0}]
[null,null,null,null,null,null,null,null,null,null,null,null,null,null,null,null,null,null,null,null,null,null,null,null,null,null,null,0]
[109,null,null,null,{"$f":"IF(COUNTA(H1147:AA1147)=0,\"\",COUNTA(H1147:AA1147))","v":""},null,null,null,null,null,null,null,null,null,null,null,null,null,null,null,null,null,null,null,null,null,null,0,{"$f":"AB1147-AB1146","v":0}]
[null,null,null,null,null,null,null,null,null,null,null,null,null,null,null,null,null,null,null,null,null,null,null,null,null,null,null,0]
[110,null,{"$f":"IF(G1790=\"\",\"\",G1790)","v":"t110"},null,{"$f":"IF(COUNTA(H1149:AA1149)=0,\"\",COUNTA(H1149:AA1149))","v":""},null,null,null,null,null,null,null,null,null,null,null,null,null,null,null,null,null,null,null,null,null,null,0,{"$f":"AB1149-AB1148","v":0}]
[null,null,null,null,null,null,null,null,null,null,null,null,null,null,null,null,null,null,null,null,null,null,null,null,null,null,null,0]
[110,null,null,null,{"$f":"IF(COUNTA(H1151:AA1151)=0,\"\",COUNTA(H1151:AA1151))","v":""},null,null,null,null,null,null,null,null,null,null,null,null,null,null,null,null,null,null,null,null,null,null,0,{"$f":"AB1151-AB1150","v":0}]
[null,null,null,null,null,null,null,null,null,null,null,null,null,null,null,null,null,null,null,null,null,null,null,null,null,null,null,0]
[110,null,null,null,{"$f":"IF(COUNTA(H1153:AA1153)=0,\"\",COUNTA(H1153:AA1153))","v":""},null,null,null,null,null,null,null,null,null,null,null,null,null,null,null,null,null,null,null,null,null,null,0,{"$f":"AB1153-AB1152","v":0}]
[null,null,null,null,null,null,null,null,null,null,null,null,null,null,null,null,null,null,null,null,null,null,null,null,null,null,null,0]
[110,null,null,null,{"$f":"IF(COUNTA(H1155:AA1155)=0,\"\",COUNTA(H1155:AA1155))","v":""},null,null,null,null,null,null,null,null,null,null,null,null,null,null,null,null,null,null,null,null,null,null,0,{"$f":"AB1155-AB1154","v":0}]
[null,null,null,null,null,null,null,null,null,null,null,null,null,null,null,null,null,null,null,null,null,null,null,null,null,null,null,0]
[110,null,null,null,{"$f":"IF(COUNTA(H1157:AA1157)=0,\"\",COUNTA(H1157:AA1157))","v":""},null,null,null,null,null,null,null,null,null,null,null,null,null,null,null,null,null,null,null,null,null,null,0,{"$f":"AB1157-AB1156","v":0}]
[null,null,null,null,null,null,null,null,null,null,null,null,null,null,null,null,null,null,null,null,null,null,null,null,null,null,null,0]
[111,null,{"$f":"IF(G1792=\"\",\"\",G1792)","v":"t111"},null,{"$f":"IF(COUNTA(H1159:AA1159)=0,\"\",COUNTA(H1159:AA1159))","v":""},null,null,null,null,null,null,null,null,null,null,null,null,null,null,null,null,null,null,null,null,null,null,0,{"$f":"AB1159-AB1158","v":0}]
[null,null,null,null,null,null,null,null,null,null,null,null,null,null,null,null,null,null,null,null,null,null,null,null,null,null,null,0]
[111,null,null,null,{"$f":"IF(COUNTA(H1161:AA1161)=0,\"\",COUNTA(H1161:AA1161))","v":""},null,null,null,null,null,null,null,null,null,null,null,null,null,null,null,null,null,null,null,null,null,null,0,{"$f":"AB1161-AB1160","v":0}]
[null,null,null,null,null,null,null,null,null,null,null,null,null,null,null,null,null,null,null,null,null,null,null,null,null,null,null,0]
[111,null,null,null,{"$f":"IF(COUNTA(H1163:AA1163)=0,\"\",COUNTA(H1163:AA1163))","v":""},null,null,null,null,null,null,null,null,null,null,null,null,null,null,null,null,null,null,null,null,null,null,0,{"$f":"AB1163-AB1162","v":0}]
[null,null,null,null,null,null,null,null,null,null,null,null,null,null,null,null,null,null,null,null,null,null,null,null,null,null,null,0]
[111,null,null,null,{"$f":"IF(COUNTA(H1165:AA1165)=0,\"\",COUNTA(H1165:AA1165))","v":""},null,null,null,null,null,null,null,null,null,null,null,null,null,null,null,null,null,null,null,null,null,null,0,{"$f":"AB1165-AB1164","v":0}]
[null,null,null,null,null,null,null,null,null,null,null,null,null,null,null,null,null,null,null,null,null,null,null,null,null,null,null,0]
[111,null,null,null,{"$f":"IF(COUNTA(H1167:AA1167)=0,\"\",COUNTA(H1167:AA1167))","v":""},null,null,null,null,null,null,null,null,null,null,null,null,null,null,null,null,null,null,null,null,null,null,0,{"$f":"AB1167-AB1166","v":0}]
[null,null,null,null,null,null,null,null,null,null,null,null,null,null,null,null,null,null,null,null,null,null,null,null,null,null,null,0]
[112,null,{"$f":"IF(G1794=\"\",\"\",G1794)","v":"t112"},null,{"$f":"IF(COUNTA(H1169:AA1169)=0,\"\",COUNTA(H1169:AA1169))","v":""},null,null,null,null,null,null,null,null,null,null,null,null,null,null,null,null,null,null,null,null,null,null,0,{"$f":"AB1169-AB1168","v":0}]
[null,null,null,null,null,null,null,null,null,null,null,null,null,null,null,null,null,null,null,null,null,null,null,null,null,null,null,0]
[112,null,null,null,{"$f":"IF(COUNTA(H1171:AA1171)=0,\"\",COUNTA(H1171:AA1171))","v":""},null,null,null,null,null,null,null,null,null,null,null,null,null,null,null,null,null,null,null,null,null,null,0,{"$f":"AB1171-AB1170","v":0}]
[null,null,null,null,null,null,null,null,null,null,null,null,null,null,null,null,null,null,null,null,null,null,null,null,null,null,null,0]
[112,null,null,null,{"$f":"IF(COUNTA(H1173:AA1173)=0,\"\",COUNTA(H1173:AA1173))","v":""},null,null,null,null,null,null,null,null,null,null,null,null,null,null,null,null,null,null,null,null,null,null,0,{"$f":"AB1173-AB1172","v":0}]
[null,null,null,null,null,null,null,null,null,null,null,null,null,null,null,null,null,null,null,null,null,null,null,null,null,null,null,0]
[112,null,null,null,{"$f":"IF(COUNTA(H1175:AA1175)=0,\"\",COUNTA(H1175:AA1175))","v":""},null,null,null,null,null,null,null,null,null,null,null,null,null,null,null,null,null,null,null,null,null,null,0,{"$f":"AB1175-AB1174","v":0}]
[null,null,null,null,null,null,null,null,null,null,null,null,null,null,null,null,null,null,null,null,null,null,null,null,null,null,null,0]
[112,null,null,null,{"$f":"IF(COUNTA(H1177:AA1177)=0,\"\",COUNTA(H1177:AA1177))","v":""},null,null,null,null,null,null,null,null,null,null,null,null,null,null,null,null,null,null,null,null,null,null,0,{"$f":"AB1177-AB1176","v":0}]
[null,"専",null,null,null,null,null,null,null,null,null,null,null,null,null,null,null,null,null,null,null,null,null,null,null,null,null,{"$f":"COUNTA(H1178:AA1178)","v":0}]
[113,null,{"$f":"IF(G1796=\"\",\"\",G1796)","v":"t113"},null,{"$f":"IF(COUNTA(H1179:AA1179)=0,\"\",COUNTA(H1179:AA1179))","v":""},null,null,null,null,null,null,null,null,null,null,null,null,null,null,null,null,null,null,null,null,null,null,0,{"$f":"AB1179-AB1178","v":0}]
[null,null,null,null,null,null,null,null,null,null,null,null,null,null,null,null,null,null,null,null,null,null,null,null,null,null,null,0]
[113,null,null,null,{"$f":"IF(COUNTA(H1181:AA1181)=0,\"\",COUNTA(H1181:AA1181))","v":""},null,null,null,null,null,null,null,null,null,null,null,null,null,null,null,null,null,null,null,null,null,null,0,{"$f":"AB1181-AB1180","v":0}]
[null,null,null,null,null,null,null,null,null,null,null,null,null,null,null,null,null,null,null,null,null,null,null,null,null,null,null,0]
[113,null,null,null,{"$f":"IF(COUNTA(H1183:AA1183)=0,\"\",COUNTA(H1183:AA1183))","v":""},null,null,null,null,null,null,null,null,null,null,null,null,null,null,null,null,null,null,null,null,null,null,0,{"$f":"AB1183-AB1182","v":0}]
[null,null,null,null,null,null,null,null,null,null,null,null,null,null,null,null,null,null,null,null,null,null,null,null,null,null,null,0]
[113,null,null,null,{"$f":"IF(COUNTA(H1185:AA1185)=0,\"\",COUNTA(H1185:AA1185))","v":""},null,null,null,null,null,null,null,null,null,null,null,null,null,null,null,null,null,null,null,null,null,null,0,{"$f":"AB1185-AB1184","v":0}]
[null,null,null,null,null,null,null,null,null,null,null,null,null,null,null,null,null,null,null,null,null,null,null,null,null,null,null,0]
[113,null,null,null,{"$f":"IF(COUNTA(H1187:AA1187)=0,\"\",COUNTA(H1187:AA1187))","v":""},null,null,null,null,null,null,null,null,null,null,null,null,null,null,null,null,null,null,null,null,null,null,0,{"$f":"AB1187-AB1186","v":0}]
[null,null,null,null,null,null,null,null,null,null,null,null,null,null,null,null,null,null,null,null,null,null,null,null,null,null,null,0]
[114,null,{"$f":"IF(G1798=\"\",\"\",G1798)","v":"t114"},null,{"$f":"IF(COUNTA(H1189:AA1189)=0,\"\",COUNTA(H1189:AA1189))","v":""},null,null,null,null,null,null,null,null,null,null,null,null,null,null,null,null,null,null,null,null,null,null,0,{"$f":"AB1189-AB1188","v":0}]
[null,null,null,null,null,null,null,null,null,null,null,null,null,null,null,null,null,null,null,null,null,null,null,null,null,null,null,0]
[114,null,null,null,{"$f":"IF(COUNTA(H1191:AA1191)=0,\"\",COUNTA(H1191:AA1191))","v":""},null,null,null,null,null,null,null,null,null,null,null,null,null,null,null,null,null,null,null,null,null,null,0,{"$f":"AB1191-AB1190","v":0}]
[null,null,null,null,null,null,null,null,null,null,null,null,null,null,null,null,null,null,null,null,null,null,null,null,null,null,null,0]
[114,null,null,null,{"$f":"IF(COUNTA(H1193:AA1193)=0,\"\",COUNTA(H1193:AA1193))","v":""},null,null,null,null,null,null,null,null,null,null,null,null,null,null,null,null,null,null,null,null,null,null,0,{"$f":"AB1193-AB1192","v":0}]
[null,null,null,null,null,null,null,null,null,null,null,null,null,null,null,null,null,null,null,null,null,null,null,null,null,null,null,0]
[114,null,null,null,{"$f":"IF(COUNTA(H1195:AA1195)=0,\"\",COUNTA(H1195:AA1195))","v":""},null,null,null,null,null,null,null,null,null,null,null,null,null,null,null,null,null,null,null,null,null,null,0,{"$f":"AB1195-AB1194","v":0}]
[null,null,null,null,null,null,null,null,null,null,null,null,null,null,null,null,null,null,null,null,null,null,null,null,null,null,null,0]
[114,null,null,null,{"$f":"IF(COUNTA(H1197:AA1197)=0,\"\",COUNTA(H1197:AA1197))","v":""},null,null,null,null,null,null,null,null,null,null,null,null,null,null,null,null,null,null,null,null,null,null,0,{"$f":"AB1197-AB1196","v":0}]
[null,null,null,null,null,null,null,null,null,null,null,null,null,null,null,null,null,null,null,null,null,null,null,null,null,null,null,0]
[115,null,{"$f":"IF(G1800=\"\",\"\",G1800)","v":"t115"},null,{"$f":"IF(COUNTA(H1199:AA1199)=0,\"\",COUNTA(H1199:AA1199))","v":""},null,null,null,null,null,null,null,null,null,null,null,null,null,null,null,null,null,null,null,null,null,null,0,{"$f":"AB1199-AB1198","v":0}]
[null,null,null,null,null,null,null,null,null,null,null,null,null,null,null,null,null,null,null,null,null,null,null,null,null,null,null,0]
[115,null,null,null,{"$f":"IF(COUNTA(H1201:AA1201)=0,\"\",COUNTA(H1201:AA1201))","v":""},null,null,null,null,null,null,null,null,null,null,null,null,null,null,null,null,null,null,null,null,null,null,0,{"$f":"AB1201-AB1200","v":0}]
[null,null,null,null,null,null,null,null,null,null,null,null,null,null,null,null,null,null,null,null,null,null,null,null,null,null,null,0]
[115,null,null,null,{"$f":"IF(COUNTA(H1203:AA1203)=0,\"\",COUNTA(H1203:AA1203))","v":""},null,null,null,null,null,null,null,null,null,null,null,null,null,null,null,null,null,null,null,null,null,null,0,{"$f":"AB1203-AB1202","v":0}]
[null,null,null,null,null,null,null,null,null,null,null,null,null,null,null,null,null,null,null,null,null,null,null,null,null,null,null,0]
[115,null,null,null,{"$f":"IF(COUNTA(H1205:AA1205)=0,\"\",COUNTA(H1205:AA1205))","v":""},null,null,null,null,null,null,null,null,null,null,null,null,null,null,null,null,null,null,null,null,null,null,0,{"$f":"AB1205-AB1204","v":0}]
[null,null,null,null,null,null,null,null,null,null,null,null,null,null,null,null,null,null,null,null,null,null,null,null,null,null,null,0]
[115,"門",null,null,{"$f":"IF(COUNTA(H1207:AA1207)=0,\"\",COUNTA(H1207:AA1207))","v":""},null,null,null,null,null,null,null,null,null,null,null,null,null,null,null,null,null,null,null,null,null,null,0,{"$f":"AB1207-AB1206","v":0}]
[null,null,null,null,null,null,null,null,null,null,null,null,null,null,null,null,null,null,null,null,null,null,null,null,null,null,null,0]
[116,null,{"$f":"IF(G1802=\"\",\"\",G1802)","v":"t116"},null,{"$f":"IF(COUNTA(H1209:AA1209)=0,\"\",COUNTA(H1209:AA1209))","v":""},null,null,null,null,null,null,null,null,null,null,null,null,null,null,null,null,null,null,null,null,null,null,0,{"$f":"AB1209-AB1208","v":0}]
[null,null,null,null,null,null,null,null,null,null,null,null,null,null,null,null,null,null,null,null,null,null,null,null,null,null,null,0]
[116,null,null,null,{"$f":"IF(COUNTA(H1211:AA1211)=0,\"\",COUNTA(H1211:AA1211))","v":""},null,null,null,null,null,null,null,null,null,null,null,null,null,null,null,null,null,null,null,null,null,null,0,{"$f":"AB1211-AB1210","v":0}]
[null,null,null,null,null,null,null,null,null,null,null,null,null,null,null,null,null,null,null,null,null,null,null,null,null,null,null,0]
[116,null,null,null,{"$f":"IF(COUNTA(H1213:AA1213)=0,\"\",COUNTA(H1213:AA1213))","v":""},null,null,null,null,null,null,null,null,null,null,null,null,null,null,null,null,null,null,null,null,null,null,0,{"$f":"AB1213-AB1212","v":0}]
[null,null,null,null,null,null,null,null,null,null,null,null,null,null,null,null,null,null,null,null,null,null,null,null,null,null,null,0]
[116,null,null,null,{"$f":"IF(COUNTA(H1215:AA1215)=0,\"\",COUNTA(H1215:AA1215))","v":""},null,null,null,null,null,null,null,null,null,null,null,null,null,null,null,null,null,null,null,null,null,null,0,{"$f":"AB1215-AB1214","v":0}]
[null,null,null,null,null,null,null,null,null,null,null,null,null,null,null,null,null,null,null,null,null,null,null,null,null,null,null,0]
[116,null,null,null,{"$f":"IF(COUNTA(H1217:AA1217)=0,\"\",COUNTA(H1217:AA1217))","v":""},null,null,null,null,null,null,null,null,null,null,null,null,null,null,null,null,null,null,null,null,null,null,0,{"$f":"AB1217-AB1216","v":0}]
[null,null,null,null,null,null,null,null,null,null,null,null,null,null,null,null,null,null,null,null,null,null,null,null,null,null,null,0]
[117,null,{"$f":"IF(G1804=\"\",\"\",G1804)","v":"t117"},null,{"$f":"IF(COUNTA(H1219:AA1219)=0,\"\",COUNTA(H1219:AA1219))","v":""},null,null,null,null,null,null,null,null,null,null,null,null,null,null,null,null,null,null,null,null,null,null,0,{"$f":"AB1219-AB1218","v":0}]
[null,null,null,null,null,null,null,null,null,null,null,null,null,null,null,null,null,null,null,null,null,null,null,null,null,null,null,0]
[117,null,null,null,{"$f":"IF(COUNTA(H1221:AA1221)=0,\"\",COUNTA(H1221:AA1221))","v":""},null,null,null,null,null,null,null,null,null,null,null,null,null,null,null,null,null,null,null,null,null,null,0,{"$f":"AB1221-AB1220","v":0}]
[null,null,null,null,null,null,null,null,null,null,null,null,null,null,null,null,null,null,null,null,null,null,null,null,null,null,null,0]
[117,null,null,null,{"$f":"IF(COUNTA(H1223:AA1223)=0,\"\",COUNTA(H1223:AA1223))","v":""},null,null,null,null,null,null,null,null,null,null,null,null,null,null,null,null,null,null,null,null,null,null,0,{"$f":"AB1223-AB1222","v":0}]
[null,null,null,null,null,null,null,null,null,null,null,null,null,null,null,null,null,null,null,null,null,null,null,null,null,null,null,0]
[117,null,null,null,{"$f":"IF(COUNTA(H1225:AA1225)=0,\"\",COUNTA(H1225:AA1225))","v":""},null,null,null,null,null,null,null,null,null,null,null,null,null,null,null,null,null,null,null,null,null,null,0,{"$f":"AB1225-AB1224","v":0}]
[null,null,null,null,null,null,null,null,null,null,null,null,null,null,null,null,null,null,null,null,null,null,null,null,null,null,null,0]
[117,null,null,null,{"$f":"IF(COUNTA(H1227:AA1227)=0,\"\",COUNTA(H1227:AA1227))","v":""},null,null,null,null,null,null,null,null,null,null,null,null,null,null,null,null,null,null,null,null,null,null,0,{"$f":"AB1227-AB1226","v":0}]
[null,null,null,null,null,null,null,null,null,null,null,null,null,null,null,null,null,null,null,null,null,null,null,null,null,null,null,0]
[118,null,{"$f":"IF(G1806=\"\",\"\",G1806)","v":"t118"},null,{"$f":"IF(COUNTA(H1229:AA1229)=0,\"\",COUNTA(H1229:AA1229))","v":""},null,null,null,null,null,null,null,null,null,null,null,null,null,null,null,null,null,null,null,null,null,null,0,{"$f":"AB1229-AB1228","v":0}]
[null,null,null,null,null,null,null,null,null,null,null,null,null,null,null,null,null,null,null,null,null,null,null,null,null,null,null,0]
[118,null,null,null,{"$f":"IF(COUNTA(H1231:AA1231)=0,\"\",COUNTA(H1231:AA1231))","v":""},null,null,null,null,null,null,null,null,null,null,null,null,null,null,null,null,null,null,null,null,null,null,0,{"$f":"AB1231-AB1230","v":0}]
[null,null,null,null,null,null,null,null,null,null,null,null,null,null,null,null,null,null,null,null,null,null,null,null,null,null,null,0]
[118,null,null,null,{"$f":"IF(COUNTA(H1233:AA1233)=0,\"\",COUNTA(H1233:AA1233))","v":""},null,null,null,null,null,null,null,null,null,null,null,null,null,null,null,null,null,null,null,null,null,null,0,{"$f":"AB1233-AB1232","v":0}]
[null,null,null,null,null,null,null,null,null,null,null,null,null,null,null,null,null,null,null,null,null,null,null,null,null,null,null,0]
[118,null,null,null,{"$f":"IF(COUNTA(H1235:AA1235)=0,\"\",COUNTA(H1235:AA1235))","v":""},null,null,null,null,null,null,null,null,null,null,null,null,null,null,null,null,null,null,null,null,null,null,0,{"$f":"AB1235-AB1234","v":0}]
[null,null,null,null,null,null,null,null,null,null,null,null,null,null,null,null,null,null,null,null,null,null,null,null,null,null,null,0]
[118,"２",null,null,{"$f":"IF(COUNTA(H1237:AA1237)=0,\"\",COUNTA(H1237:AA1237))","v":""},null,null,null,null,null,null,null,null,null,null,null,null,null,null,null,null,null,null,null,null,null,null,0,{"$f":"AB1237-AB1236","v":0}]
[null,null,null,null,null,null,null,null,null,null,null,null,null,null,null,null,null,null,null,null,null,null,null,null,null,null,null,0]
[119,null,{"$f":"IF(G1808=\"\",\"\",G1808)","v":"t119"},null,{"$f":"IF(COUNTA(H1239:AA1239)=0,\"\",COUNTA(H1239:AA1239))","v":""},null,null,null,null,null,null,null,null,null,null,null,null,null,null,null,null,null,null,null,null,null,null,0,{"$f":"AB1239-AB1238","v":0}]
[null,null,null,null,null,null,null,null,null,null,null,null,null,null,null,null,null,null,null,null,null,null,null,null,null,null,null,0]
[119,null,null,null,{"$f":"IF(COUNTA(H1241:AA1241)=0,\"\",COUNTA(H1241:AA1241))","v":""},null,null,null,null,null,null,null,null,null,null,null,null,null,null,null,null,null,null,null,null,null,null,0,{"$f":"AB1241-AB1240","v":0}]
[null,null,null,null,null,null,null,null,null,null,null,null,null,null,null,null,null,null,null,null,null,null,null,null,null,null,null,{"$f":"COUNTA(H1242:AA1242)","v":0}]
[119,null,null,null,{"$f":"IF(COUNTA(H1243:AA1243)=0,\"\",COUNTA(H1243:AA1243))","v":""},null,null,null,null,null,null,null,null,null,null,null,null,null,null,null,null,null,null,null,null,null,null,0,{"$f":"AB1243-AB1242","v":0}]
[null,null,null,null,null,null,null,null,null,null,null,null,null,null,null,null,null,null,null,null,null,null,null,null,null,null,null,0]
[119,null,null,null,{"$f":"IF(COUNTA(H1245:AA1245)=0,\"\",COUNTA(H1245:AA1245))","v":""},null,null,null,null,null,null,null,null,null,null,null,null,null,null,null,null,null,null,null,null,null,null,0,{"$f":"AB1245-AB1244","v":0}]
[null,null,null,null,null,null,null,null,null,null,null,null,null,null,null,null,null,null,null,null,null,null,null,null,null,null,null,0]
[119,null,null,null,{"$f":"IF(COUNTA(H1247:AA1247)=0,\"\",COUNTA(H1247:AA1247))","v":""},null,null,null,null,null,null,null,null,null,null,null,null,null,null,null,null,null,null,null,null,null,null,0,{"$f":"AB1247-AB1246","v":0}]
[null,null,null,null,null,null,null,null,null,null,null,null,null,null,null,null,null,null,null,null,null,null,null,null,null,null,null,0]
[120,null,{"$f":"IF(G1810=\"\",\"\",G1810)","v":"t120"},null,{"$f":"IF(COUNTA(H1249:AA1249)=0,\"\",COUNTA(H1249:AA1249))","v":""},null,null,null,null,null,null,null,null,null,null,null,null,null,null,null,null,null,null,null,null,null,null,0,{"$f":"AB1249-AB1248","v":0}]
[null,null,null,null,null,null,null,null,null,null,null,null,null,null,null,null,null,null,null,null,null,null,null,null,null,null,null,0]
[120,null,null,null,{"$f":"IF(COUNTA(H1251:AA1251)=0,\"\",COUNTA(H1251:AA1251))","v":""},null,null,null,null,null,null,null,null,null,null,null,null,null,null,null,null,null,null,null,null,null,null,0,{"$f":"AB1251-AB1250","v":0}]
[null,null,null,null,null,null,null,null,null,null,null,null,null,null,null,null,null,null,null,null,null,null,null,null,null,null,null,0]
[120,null,null,null,{"$f":"IF(COUNTA(H1253:AA1253)=0,\"\",COUNTA(H1253:AA1253))","v":""},null,null,null,null,null,null,null,null,null,null,null,null,null,null,null,null,null,null,null,null,null,null,0,{"$f":"AB1253-AB1252","v":0}]
[null,null,null,null,null,null,null,null,null,null,null,null,null,null,null,null,null,null,null,null,null,null,null,null,null,null,null,0]
[120,null,null,null,{"$f":"IF(COUNTA(H1255:AA1255)=0,\"\",COUNTA(H1255:AA1255))","v":""},null,null,null,null,null,null,null,null,null,null,null,null,null,null,null,null,null,null,null,null,null,null,0,{"$f":"AB1255-AB1254","v":0}]
[null,null,null,null,null,null,null,null,null,null,null,null,null,null,null,null,null,null,null,null,null,null,null,null,null,null,null,0]
[120,null,null,null,{"$f":"IF(COUNTA(H1257:AA1257)=0,\"\",COUNTA(H1257:AA1257))","v":""},null,null,null,null,null,null,null,null,null,null,null,null,null,null,null,null,null,null,null,null,null,null,0,{"$f":"AB1257-AB1256","v":0}]
[null,null,null,null,null,null,null,null,null,null,null,null,null,null,null,null,null,null,null,null,null,null,null,null,null,null,null,0]
[121,null,{"$f":"IF(G1812=\"\",\"\",G1812)","v":"t121"},null,{"$f":"IF(COUNTA(H1259:AA1259)=0,\"\",COUNTA(H1259:AA1259))","v":""},null,null,null,null,null,null,null,null,null,null,null,null,null,null,null,null,null,null,null,null,null,null,0,{"$f":"AB1259-AB1258","v":0}]
[null,null,null,null,null,null,null,null,null,null,null,null,null,null,null,null,null,null,null,null,null,null,null,null,null,null,null,0]
[121,null,null,null,{"$f":"IF(COUNTA(H1261:AA1261)=0,\"\",COUNTA(H1261:AA1261))","v":""},null,null,null,null,null,null,null,null,null,null,null,null,null,null,null,null,null,null,null,null,null,null,0,{"$f":"AB1261-AB1260","v":0}]
[null,null,null,null,null,null,null,null,null,null,null,null,null,null,null,null,null,null,null,null,null,null,null,null,null,null,null,0]
[121,null,null,null,{"$f":"IF(COUNTA(H1263:AA1263)=0,\"\",COUNTA(H1263:AA1263))","v":""},null,null,null,null,null,null,null,null,null,null,null,null,null,null,null,null,null,null,null,null,null,null,0,{"$f":"AB1263-AB1262","v":0}]
[null,null,null,null,null,null,null,null,null,null,null,null,null,null,null,null,null,null,null,null,null,null,null,null,null,null,null,0]
[121,null,null,null,{"$f":"IF(COUNTA(H1265:AA1265)=0,\"\",COUNTA(H1265:AA1265))","v":""},null,null,null,null,null,null,null,null,null,null,null,null,null,null,null,null,null,null,null,null,null,null,0,{"$f":"AB1265-AB1264","v":0}]
[null,null,null,null,null,null,null,null,null,null,null,null,null,null,null,null,null,null,null,null,null,null,null,null,null,null,null,0]
[121,null,null,null,{"$f":"IF(COUNTA(H1267:AA1267)=0,\"\",COUNTA(H1267:AA1267))","v":""},null,null,null,null,null,null,null,null,null,null,null,null,null,null,null,null,null,null,null,null,null,null,0,{"$f":"AB1267-AB1266","v":0}]
[null,null,null,null,null,null,null,null,null,null,null,null,null,null,null,null,null,null,null,null,null,null,null,null,null,null,null,0]
[122,null,{"$f":"IF(G1814=\"\",\"\",G1814)","v":"t122"},null,{"$f":"IF(COUNTA(H1269:AA1269)=0,\"\",COUNTA(H1269:AA1269))","v":""},null,null,null,null,null,null,null,null,null,null,null,null,null,null,null,null,null,null,null,null,null,null,0,{"$f":"AB1269-AB1268","v":0}]
[null,null,null,null,null,null,null,null,null,null,null,null,null,null,null,null,null,null,null,null,null,null,null,null,null,null,null,0]
[122,null,null,null,{"$f":"IF(COUNTA(H1271:AA1271)=0,\"\",COUNTA(H1271:AA1271))","v":""},null,null,null,null,null,null,null,null,null,null,null,null,null,null,null,null,null,null,null,null,null,null,0,{"$f":"AB1271-AB1270","v":0}]
[null,null,null,null,null,null,null,null,null,null,null,null,null,null,null,null,null,null,null,null,null,null,null,null,null,null,null,0]
[122,null,null,null,{"$f":"IF(COUNTA(H1273:AA1273)=0,\"\",COUNTA(H1273:AA1273))","v":""},null,null,null,null,null,null,null,null,null,null,null,null,null,null,null,null,null,null,null,null,null,null,0,{"$f":"AB1273-AB1272","v":0}]
[null,null,null,null,null,null,null,null,null,null,null,null,null,null,null,null,null,null,null,null,null,null,null,null,null,null,null,0]
[122,null,null,null,{"$f":"IF(COUNTA(H1275:AA1275)=0,\"\",COUNTA(H1275:AA1275))","v":""},null,null,null,null,null,null,null,null,null,null,null,null,null,null,null,null,null,null,null,null,null,null,0,{"$f":"AB1275-AB1274","v":0}]
[null,null,null,null,null,null,null,null,null,null,null,null,null,null,null,null,null,null,null,null,null,null,null,null,null,null,null,0]
[122,null,null,null,{"$f":"IF(COUNTA(H1277:AA1277)=0,\"\",COUNTA(H1277:AA1277))","v":""},null,null,null,null,null,null,null,null,null,null,null,null,null,null,null,null,null,null,null,null,null,null,0,{"$f":"AB1277-AB1276","v":0}]
[null,"専",null,null,null,null,null,null,null,null,null,null,null,null,null,null,null,null,null,null,null,null,null,null,null,null,null,0]
[123,null,{"$f":"IF(G1816=\"\",\"\",G1816)","v":"t123"},null,{"$f":"IF(COUNTA(H1279:AA1279)=0,\"\",COUNTA(H1279:AA1279))","v":""},null,null,null,null,null,null,null,null,null,null,null,null,null,null,null,null,null,null,null,null,null,null,0,{"$f":"AB1279-AB1278","v":0}]
[null,null,null,null,null,null,null,null,null,null,null,null,null,null,null,null,null,null,null,null,null,null,null,null,null,null,null,0]
[123,null,null,null,{"$f":"IF(COUNTA(H1281:AA1281)=0,\"\",COUNTA(H1281:AA1281))","v":""},null,null,null,null,null,null,null,null,null,null,null,null,null,null,null,null,null,null,null,null,null,null,0,{"$f":"AB1281-AB1280","v":0}]
[null,null,null,null,null,null,null,null,null,null,null,null,null,null,null,null,null,null,null,null,null,null,null,null,null,null,null,0]
[123,null,null,null,{"$f":"IF(COUNTA(H1283:AA1283)=0,\"\",COUNTA(H1283:AA1283))","v":""},null,null,null,null,null,null,null,null,null,null,null,null,null,null,null,null,null,null,null,null,null,null,0,{"$f":"AB1283-AB1282","v":0}]
[null,null,null,null,null,null,null,null,null,null,null,null,null,null,null,null,null,null,null,null,null,null,null,null,null,null,null,0]
[123,null,null,null,{"$f":"IF(COUNTA(H1285:AA1285)=0,\"\",COUNTA(H1285:AA1285))","v":""},null,null,null,null,null,null,null,null,null,null,null,null,null,null,null,null,null,null,null,null,null,null,0,{"$f":"AB1285-AB1284","v":0}]
[null,null,null,null,null,null,null,null,null,null,null,null,null,null,null,null,null,null,null,null,null,null,null,null,null,null,null,0]
[123,null,null,null,{"$f":"IF(COUNTA(H1287:AA1287)=0,\"\",COUNTA(H1287:AA1287))","v":""},null,null,null,null,null,null,null,null,null,null,null,null,null,null,null,null,null,null,null,null,null,null,0,{"$f":"AB1287-AB1286","v":0}]
[null,null,null,null,null,null,null,null,null,null,null,null,null,null,null,null,null,null,null,null,null,null,null,null,null,null,null,0]
[124,null,{"$f":"IF(G1818=\"\",\"\",G1818)","v":"t124"},null,{"$f":"IF(COUNTA(H1289:AA1289)=0,\"\",COUNTA(H1289:AA1289))","v":""},null,null,null,null,null,null,null,null,null,null,null,null,null,null,null,null,null,null,null,null,null,null,0,{"$f":"AB1289-AB1288","v":0}]
[null,null,null,null,null,null,null,null,null,null,null,null,null,null,null,null,null,null,null,null,null,null,null,null,null,null,null,0]
[124,null,null,null,{"$f":"IF(COUNTA(H1291:AA1291)=0,\"\",COUNTA(H1291:AA1291))","v":""},null,null,null,null,null,null,null,null,null,null,null,null,null,null,null,null,null,null,null,null,null,null,0,{"$f":"AB1291-AB1290","v":0}]
[null,null,null,null,null,null,null,null,null,null,null,null,null,null,null,null,null,null,null,null,null,null,null,null,null,null,null,0]
[124,null,null,null,{"$f":"IF(COUNTA(H1293:AA1293)=0,\"\",COUNTA(H1293:AA1293))","v":""},null,null,null,null,null,null,null,null,null,null,null,null,null,null,null,null,null,null,null,null,null,null,0,{"$f":"AB1293-AB1292","v":0}]
[null,null,null,null,null,null,null,null,null,null,null,null,null,null,null,null,null,null,null,null,null,null,null,null,null,null,null,0]
[124,null,null,null,{"$f":"IF(COUNTA(H1295:AA1295)=0,\"\",COUNTA(H1295:AA1295))","v":""},null,null,null,null,null,null,null,null,null,null,null,null,null,null,null,null,null,null,null,null,null,null,0,{"$f":"AB1295-AB1294","v":0}]
[null,null,null,null,null,null,null,null,null,null,null,null,null,null,null,null,null,null,null,null,null,null,null,null,null,null,null,0]
[124,null,null,null,{"$f":"IF(COUNTA(H1297:AA1297)=0,\"\",COUNTA(H1297:AA1297))","v":""},null,null,null,null,null,null,null,null,null,null,null,null,null,null,null,null,null,null,null,null,null,null,0,{"$f":"AB1297-AB1296","v":0}]
[null,null,null,null,null,null,null,null,null,null,null,null,null,null,null,null,null,null,null,null,null,null,null,null,null,null,null,0]
[125,null,{"$f":"IF(G1820=\"\",\"\",G1820)","v":"t125"},null,{"$f":"IF(COUNTA(H1299:AA1299)=0,\"\",COUNTA(H1299:AA1299))","v":""},null,null,null,null,null,null,null,null,null,null,null,null,null,null,null,null,null,null,null,null,null,null,0,{"$f":"AB1299-AB1298","v":0}]
[null,null,null,null,null,null,null,null,null,null,null,null,null,null,null,null,null,null,null,null,null,null,null,null,null,null,null,0]
[125,null,null,null,{"$f":"IF(COUNTA(H1301:AA1301)=0,\"\",COUNTA(H1301:AA1301))","v":""},null,null,null,null,null,null,null,null,null,null,null,null,null,null,null,null,null,null,null,null,null,null,0,{"$f":"AB1301-AB1300","v":0}]
[null,null,null,null,null,null,null,null,null,null,null,null,null,null,null,null,null,null,null,null,null,null,null,null,null,null,null,0]
[125,null,null,null,{"$f":"IF(COUNTA(H1303:AA1303)=0,\"\",COUNTA(H1303:AA1303))","v":""},null,null,null,null,null,null,null,null,null,null,null,null,null,null,null,null,null,null,null,null,null,null,0,{"$f":"AB1303-AB1302","v":0}]
[null,null,null,null,null,null,null,null,null,null,null,null,null,null,null,null,null,null,null,null,null,null,null,null,null,null,null,0]
[125,null,null,null,{"$f":"IF(COUNTA(H1305:AA1305)=0,\"\",COUNTA(H1305:AA1305))","v":""},null,null,null,null,null,null,null,null,null,null,null,null,null,null,null,null,null,null,null,null,null,null,0,{"$f":"AB1305-AB1304","v":0}]
[null,null,null,null,null,null,null,null,null,null,null,null,null,null,null,null,null,null,null,null,null,null,null,null,null,null,null,{"$f":"COUNTA(H1306:AA1306)","v":0}]
[125,"門",null,null,{"$f":"IF(COUNTA(H1307:AA1307)=0,\"\",COUNTA(H1307:AA1307))","v":""},null,null,null,null,null,null,null,null,null,null,null,null,null,null,null,null,null,null,null,null,null,null,0,{"$f":"AB1307-AB1306","v":0}]
[null,null,null,null,null,null,null,null,null,null,null,null,null,null,null,null,null,null,null,null,null,null,null,null,null,null,null,0]
[126,null,{"$f":"IF(G1822=\"\",\"\",G1822)","v":"t126"},null,{"$f":"IF(COUNTA(H1309:AA1309)=0,\"\",COUNTA(H1309:AA1309))","v":""},null,null,null,null,null,null,null,null,null,null,null,null,null,null,null,null,null,null,null,null,null,null,0,{"$f":"AB1309-AB1308","v":0}]
[null,null,null,null,null,null,null,null,null,null,null,null,null,null,null,null,null,null,null,null,null,null,null,null,null,null,null,0]
[126,null,null,null,{"$f":"IF(COUNTA(H1311:AA1311)=0,\"\",COUNTA(H1311:AA1311))","v":""},null,null,null,null,null,null,null,null,null,null,null,null,null,null,null,null,null,null,null,null,null,null,0,{"$f":"AB1311-AB1310","v":0}]
[null,null,null,null,null,null,null,null,null,null,null,null,null,null,null,null,null,null,null,null,null,null,null,null,null,null,null,0]
[126,null,null,null,{"$f":"IF(COUNTA(H1313:AA1313)=0,\"\",COUNTA(H1313:AA1313))","v":""},null,null,null,null,null,null,null,null,null,null,null,null,null,null,null,null,null,null,null,null,null,null,0,{"$f":"AB1313-AB1312","v":0}]
[null,null,null,null,null,null,null,null,null,null,null,null,null,null,null,null,null,null,null,null,null,null,null,null,null,null,null,0]
[126,null,null,null,{"$f":"IF(COUNTA(H1315:AA1315)=0,\"\",COUNTA(H1315:AA1315))","v":""},null,null,null,null,null,null,null,null,null,null,null,null,null,null,null,null,null,null,null,null,null,null,0,{"$f":"AB1315-AB1314","v":0}]
[null,null,null,null,null,null,null,null,null,null,null,null,null,null,null,null,null,null,null,null,null,null,null,null,null,null,null,0]
[126,null,null,null,{"$f":"IF(COUNTA(H1317:AA1317)=0,\"\",COUNTA(H1317:AA1317))","v":""},null,null,null,null,null,null,null,null,null,null,null,null,null,null,null,null,null,null,null,null,null,null,0,{"$f":"AB1317-AB1316","v":0}]
[null,null,null,null,null,null,null,null,null,null,null,null,null,null,null,null,null,null,null,null,null,null,null,null,null,null,null,0]
[127,null,{"$f":"IF(G1824=\"\",\"\",G1824)","v":"t127"},null,{"$f":"IF(COUNTA(H1319:AA1319)=0,\"\",COUNTA(H1319:AA1319))","v":""},null,null,null,null,null,null,null,null,null,null,null,null,null,null,null,null,null,null,null,null,null,null,0,{"$f":"AB1319-AB1318","v":0}]
[null,null,null,null,null,null,null,null,null,null,null,null,null,null,null,null,null,null,null,null,null,null,null,null,null,null,null,0]
[127,null,null,null,{"$f":"IF(COUNTA(H1321:AA1321)=0,\"\",COUNTA(H1321:AA1321))","v":""},null,null,null,null,null,null,null,null,null,null,null,null,null,null,null,null,null,null,null,null,null,null,0,{"$f":"AB1321-AB1320","v":0}]
[null,null,null,null,null,null,null,null,null,null,null,null,null,null,null,null,null,null,null,null,null,null,null,null,null,null,null,0]
[127,null,null,null,{"$f":"IF(COUNTA(H1323:AA1323)=0,\"\",COUNTA(H1323:AA1323))","v":""},null,null,null,null,null,null,null,null,null,null,null,null,null,null,null,null,null,null,null,null,null,null,0,{"$f":"AB1323-AB1322","v":0}]
[null,null,null,null,null,null,null,null,null,null,null,null,null,null,null,null,null,null,null,null,null,null,null,null,null,null,null,0]
[127,null,null,null,{"$f":"IF(COUNTA(H1325:AA1325)=0,\"\",COUNTA(H1325:AA1325))","v":""},null,null,null,null,null,null,null,null,null,null,null,null,null,null,null,null,null,null,null,null,null,null,0,{"$f":"AB1325-AB1324","v":0}]
[null,null,null,null,null,null,null,null,null,null,null,null,null,null,null,null,null,null,null,null,null,null,null,null,null,null,null,0]
[127,null,null,null,{"$f":"IF(COUNTA(H1327:AA1327)=0,\"\",COUNTA(H1327:AA1327))","v":""},null,null,null,null,null,null,null,null,null,null,null,null,null,null,null,null,null,null,null,null,null,null,0,{"$f":"AB1327-AB1326","v":0}]
[null,null,null,null,null,null,null,null,null,null,null,null,null,null,null,null,null,null,null,null,null,null,null,null,null,null,null,0]
[128,null,{"$f":"IF(G1826=\"\",\"\",G1826)","v":"t128"},null,{"$f":"IF(COUNTA(H1329:AA1329)=0,\"\",COUNTA(H1329:AA1329))","v":""},null,null,null,null,null,null,null,null,null,null,null,null,null,null,null,null,null,null,null,null,null,null,0,{"$f":"AB1329-AB1328","v":0}]
[null,null,null,null,null,null,null,null,null,null,null,null,null,null,null,null,null,null,null,null,null,null,null,null,null,null,null,0]
[128,null,null,null,{"$f":"IF(COUNTA(H1331:AA1331)=0,\"\",COUNTA(H1331:AA1331))","v":""},null,null,null,null,null,null,null,null,null,null,null,null,null,null,null,null,null,null,null,null,null,null,0,{"$f":"AB1331-AB1330","v":0}]
[null,null,null,null,null,null,null,null,null,null,null,null,null,null,null,null,null,null,null,null,null,null,null,null,null,null,null,0]
[128,null,null,null,{"$f":"IF(COUNTA(H1333:AA1333)=0,\"\",COUNTA(H1333:AA1333))","v":""},null,null,null,null,null,null,null,null,null,null,null,null,null,null,null,null,null,null,null,null,null,null,0,{"$f":"AB1333-AB1332","v":0}]
[null,null,null,null,null,null,null,null,null,null,null,null,null,null,null,null,null,null,null,null,null,null,null,null,null,null,null,0]
[128,null,null,null,{"$f":"IF(COUNTA(H1335:AA1335)=0,\"\",COUNTA(H1335:AA1335))","v":""},null,null,null,null,null,null,null,null,null,null,null,null,null,null,null,null,null,null,null,null,null,null,0,{"$f":"AB1335-AB1334","v":0}]
[null,null,null,null,null,null,null,null,null,null,null,null,null,null,null,null,null,null,null,null,null,null,null,null,null,null,null,0]
[128,"３",null,null,{"$f":"IF(COUNTA(H1337:AA1337)=0,\"\",COUNTA(H1337:AA1337))","v":""},null,null,null,null,null,null,null,null,null,null,null,null,null,null,null,null,null,null,null,null,null,null,0,{"$f":"AB1337-AB1336","v":0}]
[null,null,null,null,null,null,null,null,null,null,null,null,null,null,null,null,null,null,null,null,null,null,null,null,null,null,null,0]
[129,null,{"$f":"IF(G1828=\"\",\"\",G1828)","v":"t129"},null,{"$f":"IF(COUNTA(H1339:AA1339)=0,\"\",COUNTA(H1339:AA1339))","v":""},null,null,null,null,null,null,null,null,null,null,null,null,null,null,null,null,null,null,null,null,null,null,0,{"$f":"AB1339-AB1338","v":0}]
[null,null,null,null,null,null,null,null,null,null,null,null,null,null,null,null,null,null,null,null,null,null,null,null,null,null,null,0]
[129,null,null,null,{"$f":"IF(COUNTA(H1341:AA1341)=0,\"\",COUNTA(H1341:AA1341))","v":""},null,null,null,null,null,null,null,null,null,null,null,null,null,null,null,null,null,null,null,null,null,null,0,{"$f":"AB1341-AB1340","v":0}]
[null,null,null,null,null,null,null,null,null,null,null,null,null,null,null,null,null,null,null,null,null,null,null,null,null,null,null,0]
[129,null,null,null,{"$f":"IF(COUNTA(H1343:AA1343)=0,\"\",COUNTA(H1343:AA1343))","v":""},null,null,null,null,null,null,null,null,null,null,null,null,null,null,null,null,null,null,null,null,null,null,0,{"$f":"AB1343-AB1342","v":0}]
[null,null,null,null,null,null,null,null,null,null,null,null,null,null,null,null,null,null,null,null,null,null,null,null,null,null,null,0]
[129,null,null,null,{"$f":"IF(COUNTA(H1345:AA1345)=0,\"\",COUNTA(H1345:AA1345))","v":""},null,null,null,null,null,null,null,null,null,null,null,null,null,null,null,null,null,null,null,null,null,null,0,{"$f":"AB1345-AB1344","v":0}]
[null,null,null,null,null,null,null,null,null,null,null,null,null,null,null,null,null,null,null,null,null,null,null,null,null,null,null,0]
[129,null,null,null,{"$f":"IF(COUNTA(H1347:AA1347)=0,\"\",COUNTA(H1347:AA1347))","v":""},null,null,null,null,null,null,null,null,null,null,null,null,null,null,null,null,null,null,null,null,null,null,0,{"$f":"AB1347-AB1346","v":0}]
[null,null,null,null,null,null,null,null,null,null,null,null,null,null,null,null,null,null,null,null,null,null,null,null,null,null,null,0]
[130,null,{"$f":"IF(G1830=\"\",\"\",G1830)","v":"t130"},null,{"$f":"IF(COUNTA(H1349:AA1349)=0,\"\",COUNTA(H1349:AA1349))","v":""},null,null,null,null,null,null,null,null,null,null,null,null,null,null,null,null,null,null,null,null,null,null,0,{"$f":"AB1349-AB1348","v":0}]
[null,null,null,null,null,null,null,null,null,null,null,null,null,null,null,null,null,null,null,null,null,null,null,null,null,null,null,0]
[130,null,null,null,{"$f":"IF(COUNTA(H1351:AA1351)=0,\"\",COUNTA(H1351:AA1351))","v":""},null,null,null,null,null,null,null,null,null,null,null,null,null,null,null,null,null,null,null,null,null,null,0,{"$f":"AB1351-AB1350","v":0}]
[null,null,null,null,null,null,null,null,null,null,null,null,null,null,null,null,null,null,null,null,null,null,null,null,null,null,null,0]
[130,null,null,null,{"$f":"IF(COUNTA(H1353:AA1353)=0,\"\",COUNTA(H1353:AA1353))","v":""},null,null,null,null,null,null,null,null,null,null,null,null,null,null,null,null,null,null,null,null,null,null,0,{"$f":"AB1353-AB1352","v":0}]
[null,null,null,null,null,null,null,null,null,null,null,null,null,null,null,null,null,null,null,null,null,null,null,null,null,null,null,0]
[130,null,null,null,{"$f":"IF(COUNTA(H1355:AA1355)=0,\"\",COUNTA(H1355:AA1355))","v":""},null,null,null,null,null,null,null,null,null,null,null,null,null,null,null,null,null,null,null,null,null,null,0,{"$f":"AB1355-AB1354","v":0}]
[null,null,null,null,null,null,null,null,null,null,null,null,null,null,null,null,null,null,null,null,null,null,null,null,null,null,null,0]
[130,null,null,null,{"$f":"IF(COUNTA(H1357:AA1357)=0,\"\",COUNTA(H1357:AA1357))","v":""},null,null,null,null,null,null,null,null,null,null,null,null,null,null,null,null,null,null,null,null,null,null,0,{"$f":"AB1357-AB1356","v":0}]
[null,null,null,null,null,null,null,null,null,null,null,null,null,null,null,null,null,null,null,null,null,null,null,null,null,null,null,0]
[131,null,{"$f":"IF(G1832=\"\",\"\",G1832)","v":"t131"},null,{"$f":"IF(COUNTA(H1359:AA1359)=0,\"\",COUNTA(H1359:AA1359))","v":""},null,null,null,null,null,null,null,null,null,null,null,null,null,null,null,null,null,null,null,null,null,null,0,{"$f":"AB1359-AB1358","v":0}]
[null,null,null,null,null,null,null,null,null,null,null,null,null,null,null,null,null,null,null,null,null,null,null,null,null,null,null,0]
[131,null,null,null,{"$f":"IF(COUNTA(H1361:AA1361)=0,\"\",COUNTA(H1361:AA1361))","v":""},null,null,null,null,null,null,null,null,null,null,null,null,null,null,null,null,null,null,null,null,null,null,0,{"$f":"AB1361-AB1360","v":0}]
[null,null,null,null,null,null,null,null,null,null,null,null,null,null,null,null,null,null,null,null,null,null,null,null,null,null,null,0]
[131,null,null,null,{"$f":"IF(COUNTA(H1363:AA1363)=0,\"\",COUNTA(H1363:AA1363))","v":""},null,null,null,null,null,null,null,null,null,null,null,null,null,null,null,null,null,null,null,null,null,null,0,{"$f":"AB1363-AB1362","v":0}]
[null,null,null,null,null,null,null,null,null,null,null,null,null,null,null,null,null,null,null,null,null,null,null,null,null,null,null,0]
[131,null,null,null,{"$f":"IF(COUNTA(H1365:AA1365)=0,\"\",COUNTA(H1365:AA1365))","v":""},null,null,null,null,null,null,null,null,null,null,null,null,null,null,null,null,null,null,null,null,null,null,0,{"$f":"AB1365-AB1364","v":0}]
[null,null,null,null,null,null,null,null,null,null,null,null,null,null,null,null,null,null,null,null,null,null,null,null,null,null,null,0]
[131,null,null,null,{"$f":"IF(COUNTA(H1367:AA1367)=0,\"\",COUNTA(H1367:AA1367))","v":""},null,null,null,null,null,null,null,null,null,null,null,null,null,null,null,null,null,null,null,null,null,null,0,{"$f":"AB1367-AB1366","v":0}]
[null,null,null,null,null,null,null,null,null,null,null,null,null,null,null,null,null,null,null,null,null,null,null,null,null,null,null,0]
[132,null,{"$f":"IF(G1834=\"\",\"\",G1834)","v":"t132"},null,{"$f":"IF(COUNTA(H1369:AA1369)=0,\"\",COUNTA(H1369:AA1369))","v":""},null,null,null,null,null,null,null,null,null,null,null,null,null,null,null,null,null,null,null,null,null,null,0,{"$f":"AB1369-AB1368","v":0}]
[null,null,null,null,null,null,null,null,null,null,null,null,null,null,null,null,null,null,null,null,null,null,null,null,null,null,null,{"$f":"COUNTA(H1370:AA1370)","v":0}]
[132,null,null,null,{"$f":"IF(COUNTA(H1371:AA1371)=0,\"\",COUNTA(H1371:AA1371))","v":""},null,null,null,null,null,null,null,null,null,null,null,null,null,null,null,null,null,null,null,null,null,null,0,{"$f":"AB1371-AB1370","v":0}]
[null,null,null,null,null,null,null,null,null,null,null,null,null,null,null,null,null,null,null,null,null,null,null,null,null,null,null,0]
[132,null,null,null,{"$f":"IF(COUNTA(H1373:AA1373)=0,\"\",COUNTA(H1373:AA1373))","v":""},null,null,null,null,null,null,null,null,null,null,null,null,null,null,null,null,null,null,null,null,null,null,0,{"$f":"AB1373-AB1372","v":0}]
[null,null,null,null,null,null,null,null,null,null,null,null,null,null,null,null,null,null,null,null,null,null,null,null,null,null,null,0]
[132,null,null,null,{"$f":"IF(COUNTA(H1375:AA1375)=0,\"\",COUNTA(H1375:AA1375))","v":""},null,null,null,null,null,null,null,null,null,null,null,null,null,null,null,null,null,null,null,null,null,null,0,{"$f":"AB1375-AB1374","v":0}]
[null,null,null,null,null,null,null,null,null,null,null,null,null,null,null,null,null,null,null,null,null,null,null,null,null,null,null,0]
[132,null,null,null,{"$f":"IF(COUNTA(H1377:AA1377)=0,\"\",COUNTA(H1377:AA1377))","v":""},null,null,null,null,null,null,null,null,null,null,null,null,null,null,null,null,null,null,null,null,null,null,0,{"$f":"AB1377-AB1376","v":0}]
[null,"専",null,null,null,null,null,null,null,null,null,null,null,null,null,null,null,null,null,null,null,null,null,null,null,null,null,0]
[133,null,{"$f":"IF(G1836=\"\",\"\",G1836)","v":"t133"},null,{"$f":"IF(COUNTA(H1379:AA1379)=0,\"\",COUNTA(H1379:AA1379))","v":""},null,null,null,null,null,null,null,null,null,null,null,null,null,null,null,null,null,null,null,null,null,null,0,{"$f":"AB1379-AB1378","v":0}]
[null,null,null,null,null,null,null,null,null,null,null,null,null,null,null,null,null,null,null,null,null,null,null,null,null,null,null,0]
[133,null,null,null,{"$f":"IF(COUNTA(H1381:AA1381)=0,\"\",COUNTA(H1381:AA1381))","v":""},null,null,null,null,null,null,null,null,null,null,null,null,null,null,null,null,null,null,null,null,null,null,0,{"$f":"AB1381-AB1380","v":0}]
[null,null,null,null,null,null,null,null,null,null,null,null,null,null,null,null,null,null,null,null,null,null,null,null,null,null,null,0]
[133,null,null,null,{"$f":"IF(COUNTA(H1383:AA1383)=0,\"\",COUNTA(H1383:AA1383))","v":""},null,null,null,null,null,null,null,null,null,null,null,null,null,null,null,null,null,null,null,null,null,null,0,{"$f":"AB1383-AB1382","v":0}]
[null,null,null,null,null,null,null,null,null,null,null,null,null,null,null,null,null,null,null,null,null,null,null,null,null,null,null,0]
[133,null,null,null,{"$f":"IF(COUNTA(H1385:AA1385)=0,\"\",COUNTA(H1385:AA1385))","v":""},null,null,null,null,null,null,null,null,null,null,null,null,null,null,null,null,null,null,null,null,null,null,0,{"$f":"AB1385-AB1384","v":0}]
[null,null,null,null,null,null,null,null,null,null,null,null,null,null,null,null,null,null,null,null,null,null,null,null,null,null,null,0]
[133,null,null,null,{"$f":"IF(COUNTA(H1387:AA1387)=0,\"\",COUNTA(H1387:AA1387))","v":""},null,null,null,null,null,null,null,null,null,null,null,null,null,null,null,null,null,null,null,null,null,null,0,{"$f":"AB1387-AB1386","v":0}]
[null,null,null,null,null,null,null,null,null,null,null,null,null,null,null,null,null,null,null,null,null,null,null,null,null,null,null,0]
[134,null,{"$f":"IF(G1838=\"\",\"\",G1838)","v":"t134"},null,{"$f":"IF(COUNTA(H1389:AA1389)=0,\"\",COUNTA(H1389:AA1389))","v":""},null,null,null,null,null,null,null,null,null,null,null,null,null,null,null,null,null,null,null,null,null,null,0,{"$f":"AB1389-AB1388","v":0}]
[null,null,null,null,null,null,null,null,null,null,null,null,null,null,null,null,null,null,null,null,null,null,null,null,null,null,null,0]
[134,null,null,null,{"$f":"IF(COUNTA(H1391:AA1391)=0,\"\",COUNTA(H1391:AA1391))","v":""},null,null,null,null,null,null,null,null,null,null,null,null,null,null,null,null,null,null,null,null,null,null,0,{"$f":"AB1391-AB1390","v":0}]
[null,null,null,null,null,null,null,null,null,null,null,null,null,null,null,null,null,null,null,null,null,null,null,null,null,null,null,0]
[134,null,null,null,{"$f":"IF(COUNTA(H1393:AA1393)=0,\"\",COUNTA(H1393:AA1393))","v":""},null,null,null,null,null,null,null,null,null,null,null,null,null,null,null,null,null,null,null,null,null,null,0,{"$f":"AB1393-AB1392","v":0}]
[null,null,null,null,null,null,null,null,null,null,null,null,null,null,null,null,null,null,null,null,null,null,null,null,null,null,null,0]
[134,null,null,null,{"$f":"IF(COUNTA(H1395:AA1395)=0,\"\",COUNTA(H1395:AA1395))","v":""},null,null,null,null,null,null,null,null,null,null,null,null,null,null,null,null,null,null,null,null,null,null,0,{"$f":"AB1395-AB1394","v":0}]
[null,null,null,null,null,null,null,null,null,null,null,null,null,null,null,null,null,null,null,null,null,null,null,null,null,null,null,0]
[134,null,null,null,{"$f":"IF(COUNTA(H1397:AA1397)=0,\"\",COUNTA(H1397:AA1397))","v":""},null,null,null,null,null,null,null,null,null,null,null,null,null,null,null,null,null,null,null,null,null,null,0,{"$f":"AB1397-AB1396","v":0}]
[null,null,null,null,null,null,null,null,null,null,null,null,null,null,null,null,null,null,null,null,null,null,null,null,null,null,null,0]
[135,null,{"$f":"IF(G1840=\"\",\"\",G1840)","v":"t135"},null,{"$f":"IF(COUNTA(H1399:AA1399)=0,\"\",COUNTA(H1399:AA1399))","v":""},null,null,null,null,null,null,null,null,null,null,null,null,null,null,null,null,null,null,null,null,null,null,0,{"$f":"AB1399-AB1398","v":0}]
[null,null,null,null,null,null,null,null,null,null,null,null,null,null,null,null,null,null,null,null,null,null,null,null,null,null,null,0]
[135,null,null,null,{"$f":"IF(COUNTA(H1401:AA1401)=0,\"\",COUNTA(H1401:AA1401))","v":""},null,null,null,null,null,null,null,null,null,null,null,null,null,null,null,null,null,null,null,null,null,null,0,{"$f":"AB1401-AB1400","v":0}]
[null,null,null,null,null,null,null,null,null,null,null,null,null,null,null,null,null,null,null,null,null,null,null,null,null,null,null,0]
[135,null,null,null,{"$f":"IF(COUNTA(H1403:AA1403)=0,\"\",COUNTA(H1403:AA1403))","v":""},null,null,null,null,null,null,null,null,null,null,null,null,null,null,null,null,null,null,null,null,null,null,0,{"$f":"AB1403-AB1402","v":0}]
[null,null,null,null,null,null,null,null,null,null,null,null,null,null,null,null,null,null,null,null,null,null,null,null,null,null,null,0]
[135,null,null,null,{"$f":"IF(COUNTA(H1405:AA1405)=0,\"\",COUNTA(H1405:AA1405))","v":""},null,null,null,null,null,null,null,null,null,null,null,null,null,null,null,null,null,null,null,null,null,null,0,{"$f":"AB1405-AB1404","v":0}]
[null,null,null,null,null,null,null,null,null,null,null,null,null,null,null,null,null,null,null,null,null,null,null,null,null,null,null,0]
[135,"門",null,null,{"$f":"IF(COUNTA(H1407:AA1407)=0,\"\",COUNTA(H1407:AA1407))","v":""},null,null,null,null,null,null,null,null,null,null,null,null,null,null,null,null,null,null,null,null,null,null,0,{"$f":"AB1407-AB1406","v":0}]
[null,null,null,null,null,null,null,null,null,null,null,null,null,null,null,null,null,null,null,null,null,null,null,null,null,null,null,0]
[136,null,{"$f":"IF(G1842=\"\",\"\",G1842)","v":"t136"},null,{"$f":"IF(COUNTA(H1409:AA1409)=0,\"\",COUNTA(H1409:AA1409))","v":""},null,null,null,null,null,null,null,null,null,null,null,null,null,null,null,null,null,null,null,null,null,null,0,{"$f":"AB1409-AB1408","v":0}]
[null,null,null,null,null,null,null,null,null,null,null,null,null,null,null,null,null,null,null,null,null,null,null,null,null,null,null,0]
[136,null,null,null,{"$f":"IF(COUNTA(H1411:AA1411)=0,\"\",COUNTA(H1411:AA1411))","v":""},null,null,null,null,null,null,null,null,null,null,null,null,null,null,null,null,null,null,null,null,null,null,0,{"$f":"AB1411-AB1410","v":0}]
[null,null,null,null,null,null,null,null,null,null,null,null,null,null,null,null,null,null,null,null,null,null,null,null,null,null,null,0]
[136,null,null,null,{"$f":"IF(COUNTA(H1413:AA1413)=0,\"\",COUNTA(H1413:AA1413))","v":""},null,null,null,null,null,null,null,null,null,null,null,null,null,null,null,null,null,null,null,null,null,null,0,{"$f":"AB1413-AB1412","v":0}]
[null,null,null,null,null,null,null,null,null,null,null,null,null,null,null,null,null,null,null,null,null,null,null,null,null,null,null,0]
[136,null,null,null,{"$f":"IF(COUNTA(H1415:AA1415)=0,\"\",COUNTA(H1415:AA1415))","v":""},null,null,null,null,null,null,null,null,null,null,null,null,null,null,null,null,null,null,null,null,null,null,0,{"$f":"AB1415-AB1414","v":0}]
[null,null,null,null,null,null,null,null,null,null,null,null,null,null,null,null,null,null,null,null,null,null,null,null,null,null,null,0]
[136,null,null,null,{"$f":"IF(COUNTA(H1417:AA1417)=0,\"\",COUNTA(H1417:AA1417))","v":""},null,null,null,null,null,null,null,null,null,null,null,null,null,null,null,null,null,null,null,null,null,null,0,{"$f":"AB1417-AB1416","v":0}]
[null,null,null,null,null,null,null,null,null,null,null,null,null,null,null,null,null,null,null,null,null,null,null,null,null,null,null,0]
[137,null,{"$f":"IF(G1844=\"\",\"\",G1844)","v":"t137"},null,{"$f":"IF(COUNTA(H1419:AA1419)=0,\"\",COUNTA(H1419:AA1419))","v":""},null,null,null,null,null,null,null,null,null,null,null,null,null,null,null,null,null,null,null,null,null,null,0,{"$f":"AB1419-AB1418","v":0}]
[null,null,null,null,null,null,null,null,null,null,null,null,null,null,null,null,null,null,null,null,null,null,null,null,null,null,null,0]
[137,null,null,null,{"$f":"IF(COUNTA(H1421:AA1421)=0,\"\",COUNTA(H1421:AA1421))","v":""},null,null,null,null,null,null,null,null,null,null,null,null,null,null,null,null,null,null,null,null,null,null,0,{"$f":"AB1421-AB1420","v":0}]
[null,null,null,null,null,null,null,null,null,null,null,null,null,null,null,null,null,null,null,null,null,null,null,null,null,null,null,0]
[137,null,null,null,{"$f":"IF(COUNTA(H1423:AA1423)=0,\"\",COUNTA(H1423:AA1423))","v":""},null,null,null,null,null,null,null,null,null,null,null,null,null,null,null,null,null,null,null,null,null,null,0,{"$f":"AB1423-AB1422","v":0}]
[null,null,null,null,null,null,null,null,null,null,null,null,null,null,null,null,null,null,null,null,null,null,null,null,null,null,null,0]
[137,null,null,null,{"$f":"IF(COUNTA(H1425:AA1425)=0,\"\",COUNTA(H1425:AA1425))","v":""},null,null,null,null,null,null,null,null,null,null,null,null,null,null,null,null,null,null,null,null,null,null,0,{"$f":"AB1425-AB1424","v":0}]
[null,null,null,null,null,null,null,null,null,null,null,null,null,null,null,null,null,null,null,null,null,null,null,null,null,null,null,0]
[137,null,null,null,{"$f":"IF(COUNTA(H1427:AA1427)=0,\"\",COUNTA(H1427:AA1427))","v":""},null,null,null,null,null,null,null,null,null,null,null,null,null,null,null,null,null,null,null,null,null,null,0,{"$f":"AB1427-AB1426","v":0}]
[null,null,null,null,null,null,null,null,null,null,null,null,null,null,null,null,null,null,null,null,null,null,null,null,null,null,null,0]
[138,null,{"$f":"IF(G1846=\"\",\"\",G1846)","v":"t138"},null,{"$f":"IF(COUNTA(H1429:AA1429)=0,\"\",COUNTA(H1429:AA1429))","v":""},null,null,null,null,null,null,null,null,null,null,null,null,null,null,null,null,null,null,null,null,null,null,0,{"$f":"AB1429-AB1428","v":0}]
[null,null,null,null,null,null,null,null,null,null,null,null,null,null,null,null,null,null,null,null,null,null,null,null,null,null,null,0]
[138,null,null,null,{"$f":"IF(COUNTA(H1431:AA1431)=0,\"\",COUNTA(H1431:AA1431))","v":""},null,null,null,null,null,null,null,null,null,null,null,null,null,null,null,null,null,null,null,null,null,null,0,{"$f":"AB1431-AB1430","v":0}]
[null,null,null,null,null,null,null,null,null,null,null,null,null,null,null,null,null,null,null,null,null,null,null,null,null,null,null,0]
[138,null,null,null,{"$f":"IF(COUNTA(H1433:AA1433)=0,\"\",COUNTA(H1433:AA1433))","v":""},null,null,null,null,null,null,null,null,null,null,null,null,null,null,null,null,null,null,null,null,null,null,0,{"$f":"AB1433-AB1432","v":0}]
[null,null,null,null,null,null,null,null,null,null,null,null,null,null,null,null,null,null,null,null,null,null,null,null,null,null,null,{"$f":"COUNTA(H1434:AA1434)","v":0}]
[138,null,null,null,{"$f":"IF(COUNTA(H1435:AA1435)=0,\"\",COUNTA(H1435:AA1435))","v":""},null,null,null,null,null,null,null,null,null,null,null,null,null,null,null,null,null,null,null,null,null,null,0,{"$f":"AB1435-AB1434","v":0}]
[null,null,null,null,null,null,null,null,null,null,null,null,null,null,null,null,null,null,null,null,null,null,null,null,null,null,null,0]
[138,"４",null,null,{"$f":"IF(COUNTA(H1437:AA1437)=0,\"\",COUNTA(H1437:AA1437))","v":""},null,null,null,null,null,null,null,null,null,null,null,null,null,null,null,null,null,null,null,null,null,null,0,{"$f":"AB1437-AB1436","v":0}]
[null,null,null,null,null,null,null,null,null,null,null,null,null,null,null,null,null,null,null,null,null,null,null,null,null,null,null,0]
[139,null,{"$f":"IF(G1848=\"\",\"\",G1848)","v":"t139"},null,{"$f":"IF(COUNTA(H1439:AA1439)=0,\"\",COUNTA(H1439:AA1439))","v":""},null,null,null,null,null,null,null,null,null,null,null,null,null,null,null,null,null,null,null,null,null,null,0,{"$f":"AB1439-AB1438","v":0}]
[null,null,null,null,null,null,null,null,null,null,null,null,null,null,null,null,null,null,null,null,null,null,null,null,null,null,null,0]
[139,null,null,null,{"$f":"IF(COUNTA(H1441:AA1441)=0,\"\",COUNTA(H1441:AA1441))","v":""},null,null,null,null,null,null,null,null,null,null,null,null,null,null,null,null,null,null,null,null,null,null,0,{"$f":"AB1441-AB1440","v":0}]
[null,null,null,null,null,null,null,null,null,null,null,null,null,null,null,null,null,null,null,null,null,null,null,null,null,null,null,0]
[139,null,null,null,{"$f":"IF(COUNTA(H1443:AA1443)=0,\"\",COUNTA(H1443:AA1443))","v":""},null,null,null,null,null,null,null,null,null,null,null,null,null,null,null,null,null,null,null,null,null,null,0,{"$f":"AB1443-AB1442","v":0}]
[null,null,null,null,null,null,null,null,null,null,null,null,null,null,null,null,null,null,null,null,null,null,null,null,null,null,null,0]
[139,null,null,null,{"$f":"IF(COUNTA(H1445:AA1445)=0,\"\",COUNTA(H1445:AA1445))","v":""},null,null,null,null,null,null,null,null,null,null,null,null,null,null,null,null,null,null,null,null,null,null,0,{"$f":"AB1445-AB1444","v":0}]
[null,null,null,null,null,null,null,null,null,null,null,null,null,null,null,null,null,null,null,null,null,null,null,null,null,null,null,0]
[139,null,null,null,{"$f":"IF(COUNTA(H1447:AA1447)=0,\"\",COUNTA(H1447:AA1447))","v":""},null,null,null,null,null,null,null,null,null,null,null,null,null,null,null,null,null,null,null,null,null,null,0,{"$f":"AB1447-AB1446","v":0}]
[null,null,null,null,null,null,null,null,null,null,null,null,null,null,null,null,null,null,null,null,null,null,null,null,null,null,null,0]
[140,null,{"$f":"IF(G1850=\"\",\"\",G1850)","v":"t140"},null,{"$f":"IF(COUNTA(H1449:AA1449)=0,\"\",COUNTA(H1449:AA1449))","v":""},null,null,null,null,null,null,null,null,null,null,null,null,null,null,null,null,null,null,null,null,null,null,0,{"$f":"AB1449-AB1448","v":0}]
[null,null,null,null,null,null,null,null,null,null,null,null,null,null,null,null,null,null,null,null,null,null,null,null,null,null,null,0]
[140,null,null,null,{"$f":"IF(COUNTA(H1451:AA1451)=0,\"\",COUNTA(H1451:AA1451))","v":""},null,null,null,null,null,null,null,null,null,null,null,null,null,null,null,null,null,null,null,null,null,null,0,{"$f":"AB1451-AB1450","v":0}]
[null,null,null,null,null,null,null,null,null,null,null,null,null,null,null,null,null,null,null,null,null,null,null,null,null,null,null,0]
[140,null,null,null,{"$f":"IF(COUNTA(H1453:AA1453)=0,\"\",COUNTA(H1453:AA1453))","v":""},null,null,null,null,null,null,null,null,null,null,null,null,null,null,null,null,null,null,null,null,null,null,0,{"$f":"AB1453-AB1452","v":0}]
[null,null,null,null,null,null,null,null,null,null,null,null,null,null,null,null,null,null,null,null,null,null,null,null,null,null,null,0]
[140,null,null,null,{"$f":"IF(COUNTA(H1455:AA1455)=0,\"\",COUNTA(H1455:AA1455))","v":""},null,null,null,null,null,null,null,null,null,null,null,null,null,null,null,null,null,null,null,null,null,null,0,{"$f":"AB1455-AB1454","v":0}]
[null,null,null,null,null,null,null,null,null,null,null,null,null,null,null,null,null,null,null,null,null,null,null,null,null,null,null,0]
[140,null,null,null,{"$f":"IF(COUNTA(H1457:AA1457)=0,\"\",COUNTA(H1457:AA1457))","v":""},null,null,null,null,null,null,null,null,null,null,null,null,null,null,null,null,null,null,null,null,null,null,0,{"$f":"AB1457-AB1456","v":0}]
[null,null,null,null,null,null,null,null,null,null,null,null,null,null,null,null,null,null,null,null,null,null,null,null,null,null,null,0]
[141,null,{"$f":"IF(G1852=\"\",\"\",G1852)","v":"t141"},null,{"$f":"IF(COUNTA(H1459:AA1459)=0,\"\",COUNTA(H1459:AA1459))","v":""},null,null,null,null,null,null,null,null,null,null,null,null,null,null,null,null,null,null,null,null,null,null,0,{"$f":"AB1459-AB1458","v":0}]
[null,null,null,null,null,null,null,null,null,null,null,null,null,null,null,null,null,null,null,null,null,null,null,null,null,null,null,0]
[141,null,null,null,{"$f":"IF(COUNTA(H1461:AA1461)=0,\"\",COUNTA(H1461:AA1461))","v":""},null,null,null,null,null,null,null,null,null,null,null,null,null,null,null,null,null,null,null,null,null,null,0,{"$f":"AB1461-AB1460","v":0}]
[null,null,null,null,null,null,null,null,null,null,null,null,null,null,null,null,null,null,null,null,null,null,null,null,null,null,null,0]
[141,null,null,null,{"$f":"IF(COUNTA(H1463:AA1463)=0,\"\",COUNTA(H1463:AA1463))","v":""},null,null,null,null,null,null,null,null,null,null,null,null,null,null,null,null,null,null,null,null,null,null,0,{"$f":"AB1463-AB1462","v":0}]
[null,null,null,null,null,null,null,null,null,null,null,null,null,null,null,null,null,null,null,null,null,null,null,null,null,null,null,0]
[141,null,null,null,{"$f":"IF(COUNTA(H1465:AA1465)=0,\"\",COUNTA(H1465:AA1465))","v":""},null,null,null,null,null,null,null,null,null,null,null,null,null,null,null,null,null,null,null,null,null,null,0,{"$f":"AB1465-AB1464","v":0}]
[null,null,null,null,null,null,null,null,null,null,null,null,null,null,null,null,null,null,null,null,null,null,null,null,null,null,null,0]
[141,null,null,null,{"$f":"IF(COUNTA(H1467:AA1467)=0,\"\",COUNTA(H1467:AA1467))","v":""},null,null,null,null,null,null,null,null,null,null,null,null,null,null,null,null,null,null,null,null,null,null,0,{"$f":"AB1467-AB1466","v":0}]
[null,null,null,null,null,null,null,null,null,null,null,null,null,null,null,null,null,null,null,null,null,null,null,null,null,null,null,0]
[142,null,{"$f":"IF(G1854=\"\",\"\",G1854)","v":"t142"},null,{"$f":"IF(COUNTA(H1469:AA1469)=0,\"\",COUNTA(H1469:AA1469))","v":""},null,null,null,null,null,null,null,null,null,null,null,null,null,null,null,null,null,null,null,null,null,null,0,{"$f":"AB1469-AB1468","v":0}]
[null,null,null,null,null,null,null,null,null,null,null,null,null,null,null,null,null,null,null,null,null,null,null,null,null,null,null,0]
[142,null,null,null,{"$f":"IF(COUNTA(H1471:AA1471)=0,\"\",COUNTA(H1471:AA1471))","v":""},null,null,null,null,null,null,null,null,null,null,null,null,null,null,null,null,null,null,null,null,null,null,0,{"$f":"AB1471-AB1470","v":0}]
[null,null,null,null,null,null,null,null,null,null,null,null,null,null,null,null,null,null,null,null,null,null,null,null,null,null,null,0]
[142,null,null,null,{"$f":"IF(COUNTA(H1473:AA1473)=0,\"\",COUNTA(H1473:AA1473))","v":""},null,null,null,null,null,null,null,null,null,null,null,null,null,null,null,null,null,null,null,null,null,null,0,{"$f":"AB1473-AB1472","v":0}]
[null,null,null,null,null,null,null,null,null,null,null,null,null,null,null,null,null,null,null,null,null,null,null,null,null,null,null,0]
[142,null,null,null,{"$f":"IF(COUNTA(H1475:AA1475)=0,\"\",COUNTA(H1475:AA1475))","v":""},null,null,null,null,null,null,null,null,null,null,null,null,null,null,null,null,null,null,null,null,null,null,0,{"$f":"AB1475-AB1474","v":0}]
[null,null,null,null,null,null,null,null,null,null,null,null,null,null,null,null,null,null,null,null,null,null,null,null,null,null,null,0]
[142,null,null,null,{"$f":"IF(COUNTA(H1477:AA1477)=0,\"\",COUNTA(H1477:AA1477))","v":""},null,null,null,null,null,null,null,null,null,null,null,null,null,null,null,null,null,null,null,null,null,null,0,{"$f":"AB1477-AB1476","v":0}]
[null,"専",null,null,null,null,null,null,null,null,null,null,null,null,null,null,null,null,null,null,null,null,null,null,null,null,null,0]
[143,null,{"$f":"IF(G1856=\"\",\"\",G1856)","v":"t143"},null,{"$f":"IF(COUNTA(H1479:AA1479)=0,\"\",COUNTA(H1479:AA1479))","v":""},null,null,null,null,null,null,null,null,null,null,null,null,null,null,null,null,null,null,null,null,null,null,0,{"$f":"AB1479-AB1478","v":0}]
[null,null,null,null,null,null,null,null,null,null,null,null,null,null,null,null,null,null,null,null,null,null,null,null,null,null,null,0]
[143,null,null,null,{"$f":"IF(COUNTA(H1481:AA1481)=0,\"\",COUNTA(H1481:AA1481))","v":""},null,null,null,null,null,null,null,null,null,null,null,null,null,null,null,null,null,null,null,null,null,null,0,{"$f":"AB1481-AB1480","v":0}]
[null,null,null,null,null,null,null,null,null,null,null,null,null,null,null,null,null,null,null,null,null,null,null,null,null,null,null,0]
[143,null,null,null,{"$f":"IF(COUNTA(H1483:AA1483)=0,\"\",COUNTA(H1483:AA1483))","v":""},null,null,null,null,null,null,null,null,null,null,null,null,null,null,null,null,null,null,null,null,null,null,0,{"$f":"AB1483-AB1482","v":0}]
[null,null,null,null,null,null,null,null,null,null,null,null,null,null,null,null,null,null,null,null,null,null,null,null,null,null,null,0]
[143,null,null,null,{"$f":"IF(COUNTA(H1485:AA1485)=0,\"\",COUNTA(H1485:AA1485))","v":""},null,null,null,null,null,null,null,null,null,null,null,null,null,null,null,null,null,null,null,null,null,null,0,{"$f":"AB1485-AB1484","v":0}]
[null,null,null,null,null,null,null,null,null,null,null,null,null,null,null,null,null,null,null,null,null,null,null,null,null,null,null,0]
[143,null,null,null,{"$f":"IF(COUNTA(H1487:AA1487)=0,\"\",COUNTA(H1487:AA1487))","v":""},null,null,null,null,null,null,null,null,null,null,null,null,null,null,null,null,null,null,null,null,null,null,0,{"$f":"AB1487-AB1486","v":0}]
[null,null,null,null,null,null,null,null,null,null,null,null,null,null,null,null,null,null,null,null,null,null,null,null,null,null,null,0]
[144,null,{"$f":"IF(G1858=\"\",\"\",G1858)","v":"t144"},null,{"$f":"IF(COUNTA(H1489:AA1489)=0,\"\",COUNTA(H1489:AA1489))","v":""},null,null,null,null,null,null,null,null,null,null,null,null,null,null,null,null,null,null,null,null,null,null,0,{"$f":"AB1489-AB1488","v":0}]
[null,null,null,null,null,null,null,null,null,null,null,null,null,null,null,null,null,null,null,null,null,null,null,null,null,null,null,0]
[144,null,null,null,{"$f":"IF(COUNTA(H1491:AA1491)=0,\"\",COUNTA(H1491:AA1491))","v":""},null,null,null,null,null,null,null,null,null,null,null,null,null,null,null,null,null,null,null,null,null,null,0,{"$f":"AB1491-AB1490","v":0}]
[null,null,null,null,null,null,null,null,null,null,null,null,null,null,null,null,null,null,null,null,null,null,null,null,null,null,null,0]
[144,null,null,null,{"$f":"IF(COUNTA(H1493:AA1493)=0,\"\",COUNTA(H1493:AA1493))","v":""},null,null,null,null,null,null,null,null,null,null,null,null,null,null,null,null,null,null,null,null,null,null,0,{"$f":"AB1493-AB1492","v":0}]
[null,null,null,null,null,null,null,null,null,null,null,null,null,null,null,null,null,null,null,null,null,null,null,null,null,null,null,0]
[144,null,null,null,{"$f":"IF(COUNTA(H1495:AA1495)=0,\"\",COUNTA(H1495:AA1495))","v":""},null,null,null,null,null,null,null,null,null,null,null,null,null,null,null,null,null,null,null,null,null,null,0,{"$f":"AB1495-AB1494","v":0}]
[null,null,null,null,null,null,null,null,null,null,null,null,null,null,null,null,null,null,null,null,null,null,null,null,null,null,null,0]
[144,null,null,null,{"$f":"IF(COUNTA(H1497:AA1497)=0,\"\",COUNTA(H1497:AA1497))","v":""},null,null,null,null,null,null,null,null,null,null,null,null,null,null,null,null,null,null,null,null,null,null,0,{"$f":"AB1497-AB1496","v":0}]
[null,null,null,null,null,null,null,null,null,null,null,null,null,null,null,null,null,null,null,null,null,null,null,null,null,null,null,{"$f":"COUNTA(H1498:AA1498)","v":0}]
[145,null,{"$f":"IF(G1860=\"\",\"\",G1860)","v":"t145"},null,{"$f":"IF(COUNTA(H1499:AA1499)=0,\"\",COUNTA(H1499:AA1499))","v":""},null,null,null,null,null,null,null,null,null,null,null,null,null,null,null,null,null,null,null,null,null,null,0,{"$f":"AB1499-AB1498","v":0}]
[null,null,null,null,null,null,null,null,null,null,null,null,null,null,null,null,null,null,null,null,null,null,null,null,null,null,null,0]
[145,null,null,null,{"$f":"IF(COUNTA(H1501:AA1501)=0,\"\",COUNTA(H1501:AA1501))","v":""},null,null,null,null,null,null,null,null,null,null,null,null,null,null,null,null,null,null,null,null,null,null,0,{"$f":"AB1501-AB1500","v":0}]
[null,null,null,null,null,null,null,null,null,null,null,null,null,null,null,null,null,null,null,null,null,null,null,null,null,null,null,0]
[145,null,null,null,{"$f":"IF(COUNTA(H1503:AA1503)=0,\"\",COUNTA(H1503:AA1503))","v":""},null,null,null,null,null,null,null,null,null,null,null,null,null,null,null,null,null,null,null,null,null,null,0,{"$f":"AB1503-AB1502","v":0}]
[null,null,null,null,null,null,null,null,null,null,null,null,null,null,null,null,null,null,null,null,null,null,null,null,null,null,null,0]
[145,null,null,null,{"$f":"IF(COUNTA(H1505:AA1505)=0,\"\",COUNTA(H1505:AA1505))","v":""},null,null,null,null,null,null,null,null,null,null,null,null,null,null,null,null,null,null,null,null,null,null,0,{"$f":"AB1505-AB1504","v":0}]
[null,null,null,null,null,null,null,null,null,null,null,null,null,null,null,null,null,null,null,null,null,null,null,null,null,null,null,0]
[145,"門",null,null,{"$f":"IF(COUNTA(H1507:AA1507)=0,\"\",COUNTA(H1507:AA1507))","v":""},null,null,null,null,null,null,null,null,null,null,null,null,null,null,null,null,null,null,null,null,null,null,0,{"$f":"AB1507-AB1506","v":0}]
[null,null,null,null,null,null,null,null,null,null,null,null,null,null,null,null,null,null,null,null,null,null,null,null,null,null,null,0]
[146,null,{"$f":"IF(G1862=\"\",\"\",G1862)","v":"t146"},null,{"$f":"IF(COUNTA(H1509:AA1509)=0,\"\",COUNTA(H1509:AA1509))","v":""},null,null,null,null,null,null,null,null,null,null,null,null,null,null,null,null,null,null,null,null,null,null,0,{"$f":"AB1509-AB1508","v":0}]
[null,null,null,null,null,null,null,null,null,null,null,null,null,null,null,null,null,null,null,null,null,null,null,null,null,null,null,0]
[146,null,null,null,{"$f":"IF(COUNTA(H1511:AA1511)=0,\"\",COUNTA(H1511:AA1511))","v":""},null,null,null,null,null,null,null,null,null,null,null,null,null,null,null,null,null,null,null,null,null,null,0,{"$f":"AB1511-AB1510","v":0}]
[null,null,null,null,null,null,null,null,null,null,null,null,null,null,null,null,null,null,null,null,null,null,null,null,null,null,null,0]
[146,null,null,null,{"$f":"IF(COUNTA(H1513:AA1513)=0,\"\",COUNTA(H1513:AA1513))","v":""},null,null,null,null,null,null,null,null,null,null,null,null,null,null,null,null,null,null,null,null,null,null,0,{"$f":"AB1513-AB1512","v":0}]
[null,null,null,null,null,null,null,null,null,null,null,null,null,null,null,null,null,null,null,null,null,null,null,null,null,null,null,0]
[146,null,null,null,{"$f":"IF(COUNTA(H1515:AA1515)=0,\"\",COUNTA(H1515:AA1515))","v":""},null,null,null,null,null,null,null,null,null,null,null,null,null,null,null,null,null,null,null,null,null,null,0,{"$f":"AB1515-AB1514","v":0}]
[null,null,null,null,null,null,null,null,null,null,null,null,null,null,null,null,null,null,null,null,null,null,null,null,null,null,null,0]
[146,null,null,null,{"$f":"IF(COUNTA(H1517:AA1517)=0,\"\",COUNTA(H1517:AA1517))","v":""},null,null,null,null,null,null,null,null,null,null,null,null,null,null,null,null,null,null,null,null,null,null,0,{"$f":"AB1517-AB1516","v":0}]
[null,null,null,null,null,null,null,null,null,null,null,null,null,null,null,null,null,null,null,null,null,null,null,null,null,null,null,0]
[147,null,{"$f":"IF(G1864=\"\",\"\",G1864)","v":"t147"},null,{"$f":"IF(COUNTA(H1519:AA1519)=0,\"\",COUNTA(H1519:AA1519))","v":""},null,null,null,null,null,null,null,null,null,null,null,null,null,null,null,null,null,null,null,null,null,null,0,{"$f":"AB1519-AB1518","v":0}]
[null,null,null,null,null,null,null,null,null,null,null,null,null,null,null,null,null,null,null,null,null,null,null,null,null,null,null,0]
[147,null,null,null,{"$f":"IF(COUNTA(H1521:AA1521)=0,\"\",COUNTA(H1521:AA1521))","v":""},null,null,null,null,null,null,null,null,null,null,null,null,null,null,null,null,null,null,null,null,null,null,0,{"$f":"AB1521-AB1520","v":0}]
[null,null,null,null,null,null,null,null,null,null,null,null,null,null,null,null,null,null,null,null,null,null,null,null,null,null,null,0]
[147,null,null,null,{"$f":"IF(COUNTA(H1523:AA1523)=0,\"\",COUNTA(H1523:AA1523))","v":""},null,null,null,null,null,null,null,null,null,null,null,null,null,null,null,null,null,null,null,null,null,null,0,{"$f":"AB1523-AB1522","v":0}]
[null,null,null,null,null,null,null,null,null,null,null,null,null,null,null,null,null,null,null,null,null,null,null,null,null,null,null,0]
[147,null,null,null,{"$f":"IF(COUNTA(H1525:AA1525)=0,\"\",COUNTA(H1525:AA1525))","v":""},null,null,null,null,null,null,null,null,null,null,null,null,null,null,null,null,null,null,null,null,null,null,0,{"$f":"AB1525-AB1524","v":0}]
[null,null,null,null,null,null,null,null,null,null,null,null,null,null,null,null,null,null,null,null,null,null,null,null,null,null,null,0]
[147,null,null,null,{"$f":"IF(COUNTA(H1527:AA1527)=0,\"\",COUNTA(H1527:AA1527))","v":""},null,null,null,null,null,null,null,null,null,null,null,null,null,null,null,null,null,null,null,null,null,null,0,{"$f":"AB1527-AB1526","v":0}]
[null,null,null,null,null,null,null,null,null,null,null,null,null,null,null,null,null,null,null,null,null,null,null,null,null,null,null,0]
[148,null,{"$f":"IF(G1866=\"\",\"\",G1866)","v":"t148"},null,{"$f":"IF(COUNTA(H1529:AA1529)=0,\"\",COUNTA(H1529:AA1529))","v":""},null,null,null,null,null,null,null,null,null,null,null,null,null,null,null,null,null,null,null,null,null,null,0,{"$f":"AB1529-AB1528","v":0}]
[null,null,null,null,null,null,null,null,null,null,null,null,null,null,null,null,null,null,null,null,null,null,null,null,null,null,null,0]
[148,null,null,null,{"$f":"IF(COUNTA(H1531:AA1531)=0,\"\",COUNTA(H1531:AA1531))","v":""},null,null,null,null,null,null,null,null,null,null,null,null,null,null,null,null,null,null,null,null,null,null,0,{"$f":"AB1531-AB1530","v":0}]
[null,null,null,null,null,null,null,null,null,null,null,null,null,null,null,null,null,null,null,null,null,null,null,null,null,null,null,0]
[148,null,null,null,{"$f":"IF(COUNTA(H1533:AA1533)=0,\"\",COUNTA(H1533:AA1533))","v":""},null,null,null,null,null,null,null,null,null,null,null,null,null,null,null,null,null,null,null,null,null,null,0,{"$f":"AB1533-AB1532","v":0}]
[null,null,null,null,null,null,null,null,null,null,null,null,null,null,null,null,null,null,null,null,null,null,null,null,null,null,null,0]
[148,null,null,null,{"$f":"IF(COUNTA(H1535:AA1535)=0,\"\",COUNTA(H1535:AA1535))","v":""},null,null,null,null,null,null,null,null,null,null,null,null,null,null,null,null,null,null,null,null,null,null,0,{"$f":"AB1535-AB1534","v":0}]
[null,null,null,null,null,null,null,null,null,null,null,null,null,null,null,null,null,null,null,null,null,null,null,null,null,null,null,0]
[148,"５",null,null,{"$f":"IF(COUNTA(H1537:AA1537)=0,\"\",COUNTA(H1537:AA1537))","v":""},null,null,null,null,null,null,null,null,null,null,null,null,null,null,null,null,null,null,null,null,null,null,0,{"$f":"AB1537-AB1536","v":0}]
[null,null,null,null,null,null,null,null,null,null,null,null,null,null,null,null,null,null,null,null,null,null,null,null,null,null,null,0]
[149,null,{"$f":"IF(G1868=\"\",\"\",G1868)","v":"t149"},null,{"$f":"IF(COUNTA(H1539:AA1539)=0,\"\",COUNTA(H1539:AA1539))","v":""},null,null,null,null,null,null,null,null,null,null,null,null,null,null,null,null,null,null,null,null,null,null,0,{"$f":"AB1539-AB1538","v":0}]
[null,null,null,null,null,null,null,null,null,null,null,null,null,null,null,null,null,null,null,null,null,null,null,null,null,null,null,0]
[149,null,null,null,{"$f":"IF(COUNTA(H1541:AA1541)=0,\"\",COUNTA(H1541:AA1541))","v":""},null,null,null,null,null,null,null,null,null,null,null,null,null,null,null,null,null,null,null,null,null,null,0,{"$f":"AB1541-AB1540","v":0}]
[null,null,null,null,null,null,null,null,null,null,null,null,null,null,null,null,null,null,null,null,null,null,null,null,null,null,null,0]
[149,null,null,null,{"$f":"IF(COUNTA(H1543:AA1543)=0,\"\",COUNTA(H1543:AA1543))","v":""},null,null,null,null,null,null,null,null,null,null,null,null,null,null,null,null,null,null,null,null,null,null,0,{"$f":"AB1543-AB1542","v":0}]
[null,null,null,null,null,null,null,null,null,null,null,null,null,null,null,null,null,null,null,null,null,null,null,null,null,null,null,0]
[149,null,null,null,{"$f":"IF(COUNTA(H1545:AA1545)=0,\"\",COUNTA(H1545:AA1545))","v":""},null,null,null,null,null,null,null,null,null,null,null,null,null,null,null,null,null,null,null,null,null,null,0,{"$f":"AB1545-AB1544","v":0}]
[null,null,null,null,null,null,null,null,null,null,null,null,null,null,null,null,null,null,null,null,null,null,null,null,null,null,null,0]
[149,null,null,null,{"$f":"IF(COUNTA(H1547:AA1547)=0,\"\",COUNTA(H1547:AA1547))","v":""},null,null,null,null,null,null,null,null,null,null,null,null,null,null,null,null,null,null,null,null,null,null,0,{"$f":"AB1547-AB1546","v":0}]
[null,null,null,null,null,null,null,null,null,null,null,null,null,null,null,null,null,null,null,null,null,null,null,null,null,null,null,0]
[150,null,{"$f":"IF(G1870=\"\",\"\",G1870)","v":"t150"},null,{"$f":"IF(COUNTA(H1549:AA1549)=0,\"\",COUNTA(H1549:AA1549))","v":""},null,null,null,null,null,null,null,null,null,null,null,null,null,null,null,null,null,null,null,null,null,null,0,{"$f":"AB1549-AB1548","v":0}]
[null,null,null,null,null,null,null,null,null,null,null,null,null,null,null,null,null,null,null,null,null,null,null,null,null,null,null,0]
[150,null,null,null,{"$f":"IF(COUNTA(H1551:AA1551)=0,\"\",COUNTA(H1551:AA1551))","v":""},null,null,null,null,null,null,null,null,null,null,null,null,null,null,null,null,null,null,null,null,null,null,0,{"$f":"AB1551-AB1550","v":0}]
[null,null,null,null,null,null,null,null,null,null,null,null,null,null,null,null,null,null,null,null,null,null,null,null,null,null,null,0]
[150,null,null,null,{"$f":"IF(COUNTA(H1553:AA1553)=0,\"\",COUNTA(H1553:AA1553))","v":""},null,null,null,null,null,null,null,null,null,null,null,null,null,null,null,null,null,null,null,null,null,null,0,{"$f":"AB1553-AB1552","v":0}]
[null,null,null,null,null,null,null,null,null,null,null,null,null,null,null,null,null,null,null,null,null,null,null,null,null,null,null,0]
[150,null,null,null,{"$f":"IF(COUNTA(H1555:AA1555)=0,\"\",COUNTA(H1555:AA1555))","v":""},null,null,null,null,null,null,null,null,null,null,null,null,null,null,null,null,null,null,null,null,null,null,0,{"$f":"AB1555-AB1554","v":0}]
[null,null,null,null,null,null,null,null,null,null,null,null,null,null,null,null,null,null,null,null,null,null,null,null,null,null,null,0]
[150,null,null,null,{"$f":"IF(COUNTA(H1557:AA1557)=0,\"\",COUNTA(H1557:AA1557))","v":""},null,null,null,null,null,null,null,null,null,null,null,null,null,null,null,null,null,null,null,null,null,null,0,{"$f":"AB1557-AB1556","v":0}]
[null,null,"授業コマ数",null,{"$f":"SUM(E4:E1557)","v":524},null,null,null,null,null,null,null,null,null,null,null,null,null,null,null,null,null,null,null,null,null,"未入力セル合計",null,{"$f":"SUM(AC4:AC1557)","v":500}]
[]
[]
[null,null,null,null,null,null,null,"全職員曜日"]
[null,null,null,null,null,null,null,null,null,null,"  月",null,null,null,null,null,null,null,"　火",null,null,null,null,null,null,null,"　水",null,null,null,null,null,null,null,"  木",null,null,null,null,null,null,null,"  金",null,null,null,null,null,null,"　土"]
[null,null,null,null,null,null,null,1,2,3,4,5,6,7,8,1,2,3,4,5,6,7,8,1,2,3,4,5,6,7,8,1,2,3,4,5,6,7,8,1,2,3,4,5,6,7,8,1,2,3,4,5,6]
[null,null,null,null,null,null,null,1,2,3,4,5,6,7,8,9,10,11,12,13,14,15,16,17,18,19,20,21,22,23,24,25,26,27,28,29,30,31,32,33,34,35,36,37,38,39,40,41,42,43,44,45,46]
[null,null,null,null,null,null,"*.-",null,null,null,null,null,null,"*","*",null,null,null,null,null,null,"*","*",null,null,null,null,null,null,"*","*",null,null,null,null,null,null,"*","*",null,null,null,null,null,"土1,2","*","*",null,null,"必修ク","必修ク","*","*"]
[null,null,null,null,null,null,"ｺﾒﾝﾄ",null,null,null,null,null,null,"*","*",null,null,null,null,null,null,"*","*",null,null,null,null,null,null,"*","*",null,null,null,null,null,null,"*","*",null,null,null,null,null,"-","*","*",null,null,"-","-","*","*"]
[]
[null,"個別職員一週間に入れる場合ここに＊・ーを入力"]
[null,null,null,"↓",null,"個別職員"]
[null,null,null,"*.-",null,null,null,null,null,null,"  月",null,null,null,null,null,null,null,"　火",null,null,null,null,null,null,null,"　水",null,null,null,null,null,null,null,"  木",null,null,null,null,null,null,null,"  金",null,null,null,null,null,null,"　土",null,null,null,"入力"]
[null,null,null,"ｺﾒﾝﾄ","職員NO","教科","担当",1,2,3,4,5,6,7,8,1,2,3,4,5,6,7,8,1,2,3,4,5,6,7,8,1,2,3,4,5,6,7,8,1,2,3,4,5,6,7,8,1,2,3,4,5,6,"コマ数"]
[null,null,null,null,1,null,"小杉",null,"研修","校務",null,null,"研修",null,null,null,null,null,null,null,null,null,null,null,null,"教務",null,null,null,null,null,"学年会",null,null,null,null,null,null,null,null,null,"研修","教科会","教育課",null,null,null,null,null,null,null,null,null,{"$f":"COUNTA(H1572:BA1572)","v":8}]
[null,null,null,null,null,null,"1年主"]
[null,null,null,null,2," ","桜井",null,null,null,null,"進路",null,null,null,null,null,null,null,null,null,null,null,null,null,null,null,null,null,null,null,"学年会",null,null,null,null,null,null,null,null,null,null,"教科会",null,null,null,null,null,null,null,null,null,null,{"$f":"COUNTA(H1574:BA1574)","v":3}]
[null,null,null,null,null,null,"1-6担"]
[null,null,null,null,3,"国","小野島",null,null,null,"教科外",null,null,null,null,null,null,null,null,null,null,null,null,null,null,null,null,null,null,null,null,"学年会",null,null,null,null,null,null,null,null,null,null,"教科会",null,null,null,null,null,null,null,null,null,null,{"$f":"COUNTA(H1576:BA1576)","v":3}]
[null,null,null,null,null,null,"1-3副"]
[null,null,null,null,4,null,"榎本",null,null,null,null,null,null,null,null,null,null,null,"学年会",null,null,null,null,null,null,null,null,null,null,null,null,null,null,null,null,null,null,null,null,null,null,null,"教科会",null,null,null,null,null,null,null,null,null,null,{"$f":"COUNTA(H1578:BA1578)","v":2}]
[null,null,null,null,null,null,"2-5担"]
[null,null,null,null,5,null,"矢島",null,"研修","研修","教科外",null,"研修",null,null,null,null,null,"学年会",null,null,null,null,"研修","研修","研修","研修","研修","研修",null,null,null,null,null,null,"研修",null,null,null,null,null,"研修","教科会",null,null,null,null,null,null,null,null,null,null,{"$f":"COUNTA(H1580:BA1580)","v":14}]
[null,null,null,null,null,null,"2-12副"]
[null,null,null,null,6,null,"関根",null,null,null,null,null,null,null,null,"学年会",null,null,"3-H",null,null,null,null,null,null,null,null,null,null,null,null,null,null,"3-H","生徒指",null,null,null,null,null,null,null,"教科会",null,null,null,null,null,null,null,null,null,null,{"$f":"COUNTA(H1582:BA1582)","v":5}]
[null,null,null,null,null,null,"3-5担",null,null,null,null,null,null,null,null,null,null,null,"表現",null,null,null,null,null,null,null,null,null,null,null,null,null,null,"表現"]
[null,null,null,null,7," ","松本ﾔ",null,null,"研修","教科外",null,null,null,null,"学年会",null,"3-C",null,null,null,null,null,null,null,null,null,null,null,null,null,null,null,null,"3-C","研修",null,null,null,null,null,null,"教科会",null,null,null,null,null,null,null,null,null,null,{"$f":"COUNTA(H1584:BA1584)","v":7}]
[null,null,null,null,null,null,"3-48副",null,null,null,null,null,null,null,null,null,null,"表現",null,null,null,null,null,null,null,null,null,null,null,null,null,null,null,null,"表現"]
[null,null,null,null,8," ","千田",null,null,null,null,null,null,null,null,null,null,"3-A","3-C",null,null,null,null,null,null,null,null,null,null,null,null,"3-A","3-C",null,null,null,null,null,null,null,"3-C","3-A",null,null,null,null,null,null,null,null,null,null,null,{"$f":"COUNTA(H1586:BA1586)","v":6}]
[null,null,null,null,null,null,null,null,null,null,null,null,null,null,null,null,null,"現文","現文",null,null,null,null,null,null,null,null,null,null,null,null,"現文","現文",null,null,null,null,null,null,null,"現文","現文"]
[null,null,null,null,9,null,"山田",null,null,null,null,null,null,null,null,null,null,"3-C","3-H",null,null,null,null,null,null,null,null,null,null,null,null,null,null,"3-H","3-C",null,null,null,null,null,null,null,null,null,null,null,null,null,null,null,null,null,null,{"$f":"COUNTA(H1588:BA1588)","v":4}]
[null,null,null,null,null,null,null,null,null,null,null,null,null,null,null,null,null,"表現","表現",null,null,null,null,null,null,null,null,null,null,null,null,null,null,"表現","表現"]
[null,null,null,null,10,"語","t10",null,null,null,null,null,null,null,null,null,null,null,null,null,null,null,null,null,null,null,null,null,null,null,null,null,null,null,null,null,null,null,null,null,null,null,null,null,null,null,null,null,null,null,null,null,null,{"$f":"COUNTA(H1590:BA1590)","v":0}]
[]
[null,null,null,null,11," ","t11",null,null,null,null,null,null,null,null,null,null,null,null,null,null,null,null,null,null,null,null,null,null,null,null,null,null,null,null,null,null,null,null,null,null,null,null,null,null,null,null,null,null,null,null,null,null,{"$f":"COUNTA(H1592:BA1592)","v":0}]
[]
[null,null,null,null,12,null,"t12",null,null,null,null,null,null,null,null,null,null,null,null,null,null,null,null,null,null,null,null,null,null,null,null,null,null,null,null,null,null,null,null,null,null,null,null,null,null,null,null,null,null,null,null,null,null,{"$f":"COUNTA(H1594:BA1594)","v":0}]
[]
[null,null,null,null,13,null,"t13",null,null,null,null,null,null,null,null,null,null,null,null,null,null,null,null,null,null,null,null,null,null,null,null,null,null,null,null,null,null,null,null,null,null,null,null,null,null,null,null,null,null,null,null,null,null,{"$f":"COUNTA(H1596:BA1596)","v":0}]
[]
[null,null,null,null,14,null,"t14",null,null,null,null,null,null,null,null,null,null,null,null,null,null,null,null,null,null,null,null,null,null,null,null,null,null,null,null,null,null,null,null,null,null,null,null,null,null,null,null,null,null,null,null,null,null,{"$f":"COUNTA(H1598:BA1598)","v":0}]
[]
[null,null,null,null,15," ","t15",null,null,null,null,null,null,null,null,null,null,null,null,null,null,null,null,null,null,null,null,null,null,null,null,null,null,null,null,null,null,null,null,null,null,null,null,null,null,null,null,null,null,null,null,null,null,{"$f":"COUNTA(H1600:BA1600)","v":0}]
[]
[null,null,null,null,16," ","新井",null,null,null,null,null,null,null,null,null,null,null,null,"教科会",null,null,null,null,null,null,null,null,null,null,null,"学年会",null,null,null,null,null,null,null,null,null,null,null,null,null,null,null,null,null,null,null,null,null,{"$f":"COUNTA(H1602:BA1602)","v":2}]
[null,null,null,null,null,null,"1-2担"]
[null,null,null,null,17,"地","福田",null,null,null,"教科外",null,null,null,null,null,null,null,null,"教科会",null,null,null,null,null,null,null,null,null,null,null,"学年会",null,null,null,null,null,null,null,null,null,null,null,null,null,null,null,null,null,null,null,null,null,{"$f":"COUNTA(H1604:BA1604)","v":3}]
[null,null,null,null,null,null,"1-5担 "]
[null,null,null,null,18," ","鶴巻",null,null,null,null,null,null,null,null,null,null,null,null,"教科会",null,null,null,null,null,"教務",null,null,null,null,null,"学年会",null,null,null,null,null,null,null,null,null,null,null,"教育課",null,null,null,null,null,null,null,null,null,{"$f":"COUNTA(H1606:BA1606)","v":4}]
[null,null,null,null,null,null,"1-57副"]
[null,null,null,null,19,"歴","小栗",null,null,null,null,"進路",null,null,null,null,null,null,"学年会","教科会","研修",null,null,null,null,null,null,null,null,null,null,null,"研修",null,null,null,null,null,null,null,null,null,null,null,null,null,null,null,null,null,null,null,null,{"$f":"COUNTA(H1608:BA1608)","v":5}]
[null,null,null,null,null,null,"2-4担"]
[null,null,null,null,20,null,"程田",null,null,null,null,null,null,null,null,"学年会",null,null,null,"教科会",null,null,null,null,null,"教務",null,null,null,null,null,null,null,null,null,null,null,null,null,null,null,null,null,"教育課",null,null,null,null,null,null,null,null,null,{"$f":"COUNTA(H1610:BA1610)","v":4}]
[null,null,null,null,null,null,"3年主"]
[null,null,null,null,21,"  ・","長澤",null,"研修",null,null,null,null,null,null,"学年会",null,null,null,"教科会","研修",null,null,"研修","研修","研修","研修","研修","研修",null,null,null,"研修",null,"生徒指",null,null,null,null,null,null,"研修",null,null,null,null,null,null,null,null,null,null,null,{"$f":"COUNTA(H1612:BA1612)","v":13}]
[null,null,null,null,null,null,"3年付"]
[null,null,null,null,22," ","松本ﾀ",null,null,"校務",null,null,null,null,null,null,null,null,null,"*","*",null,null,null,null,null,null,"*","*",null,null,null,null,null,"生徒指",null,null,null,null,null,null,null,null,null,null,null,null,null,null,null,null,null,null,{"$f":"COUNTA(H1614:BA1614)","v":6}]
[null,null,null,null,null,null,"生徒主"]
[null,null,null,null,23,"公","高橋",null,null,null,null,null,null,null,null,null,null,null,null,null,null,null,null,null,null,null,null,null,null,null,null,null,null,null,null,null,null,null,null,null,null,null,null,null,null,null,null,null,null,null,null,null,null,{"$f":"COUNTA(H1616:BA1616)","v":0}]
[]
[null,null,null,null,24," ","t24",null,null,null,null,null,null,null,null,null,null,null,null,null,null,null,null,null,null,null,null,null,null,null,null,null,null,null,null,null,null,null,null,null,null,null,null,null,null,null,null,null,null,null,null,null,null,{"$f":"COUNTA(H1618:BA1618)","v":0}]
[]
[null,null,null,null,25,"民","t25",null,null,null,null,null,null,null,null,null,null,null,null,null,null,null,null,null,null,null,null,null,null,null,null,null,null,null,null,null,null,null,null,null,null,null,null,null,null,null,null,null,null,null,null,null,null,{"$f":"COUNTA(H1620:BA1620)","v":0}]
[]
[null,null,null,null,26," ","t26",null,null,null,null,null,null,null,null,null,null,null,null,null,null,null,null,null,null,null,null,null,null,null,null,null,null,null,null,null,null,null,null,null,null,null,null,null,null,null,null,null,null,null,null,null,null,{"$f":"COUNTA(H1622:BA1622)","v":0}]
[]
[null,null,null,null,27,null,"t27",null,null,null,null,null,null,null,null,null,null,null,null,null,null,null,null,null,null,null,null,null,null,null,null,null,null,null,null,null,null,null,null,null,null,null,null,null,null,null,null,null,null,null,null,null,null,{"$f":"COUNTA(H1624:BA1624)","v":0}]
[]
[null,null,null,null,28,null,"t28",null,null,null,null,null,null,null,null,null,null,null,null,null,null,null,null,null,null,null,null,null,null,null,null,null,null,null,null,null,null,null,null,null,null,null,null,null,null,null,null,null,null,null,null,null,null,{"$f":"COUNTA(H1626:BA1626)","v":0}]
[]
[null,null,null,null,29,null,"t29",null,null,null,null,null,null,null,null,null,null,null,null,null,null,null,null,null,null,null,null,null,null,null,null,null,null,null,null,null,null,null,null,null,null,null,null,null,null,null,null,null,null,null,null,null,null,{"$f":"COUNTA(H1628:BA1628)","v":0}]
[]
[null,null,null,null,30,null,"t30",null,null,null,null,null,null,null,null,null,null,null,null,null,null,null,null,null,null,null,null,null,null,null,null,null,null,null,null,null,null,null,null,null,null,null,null,null,null,null,null,null,null,null,null,null,null,{"$f":"COUNTA(H1630:BA1630)","v":0}]
[]
[null,null,null,null,31,null,"金子",null,null,null,null,null,null,null,null,null,null,null,null,"*","*",null,null,null,null,null,null,null,null,null,null,"学年会",null,null,null,null,null,null,null,null,null,"教科会",null,null,null,null,null,null,null,null,null,null,null,{"$f":"COUNTA(H1632:BA1632)","v":4}]
[null,null,null,null,null,null,"1-8担"]
[null,null,null,null,32,null,"山根ﾀ",null,null,null,null,null,null,null,null,null,null,null,null,null,null,null,null,null,null,null,null,null,null,null,null,"学年会",null,null,null,null,null,null,null,null,null,"教科会",null,null,null,null,null,null,null,null,null,null,null,{"$f":"COUNTA(H1634:BA1634)","v":2}]
[null,null,null,null,null,null,"1-2副"]
[null,null,null,null,33,"数","斉藤ﾄ",null,null,null,"教科外",null,null,null,null,null,null,null,"学年会",null,null,null,null,null,null,null,null,null,null,null,null,null,null,null,null,null,null,null,null,null,null,"教科会",null,"教育課",null,null,null,null,null,null,null,null,null,{"$f":"COUNTA(H1636:BA1636)","v":4}]
[null,null,null,null,null,null,"2-3担"]
[null,null,null,null,34," ","市ノ川",null,null,null,null,null,null,null,null,null,null,null,"学年会",null,null,null,null,null,null,null,null,null,null,null,null,null,null,null,"生徒指",null,null,null,null,"*","*","*","*","*","*",null,null,null,null,null,null,null,null,{"$f":"COUNTA(H1638:BA1638)","v":8}]
[null,null,null,null,null,null,"2-8担"]
[null,null,null,null,35,null,"多田",null,"3-D",null,null,null,null,null,null,"学年会",null,null,null,null,null,null,null,null,null,null,null,null,null,null,null,null,null,"3-D",null,null,null,null,null,null,null,"教科会",null,null,null,null,null,null,null,null,null,null,null,{"$f":"COUNTA(H1640:BA1640)","v":4}]
[null,null,null,null,null,null,"3-4担",null,"数Ｃ",null,null,null,null,null,null,null,null,null,null,null,null,null,null,null,null,null,null,null,null,null,null,null,null,"数Ｃ"]
[null,null,null,null,36,null,"菊川",null,"3-D","校務",null,"進路",null,null,null,null,null,null,null,"*","*",null,null,null,null,null,"*","*","*",null,null,null,null,"3-D",null,null,null,null,null,null,null,"教科会",null,null,null,null,null,null,null,null,null,null,null,{"$f":"COUNTA(H1642:BA1642)","v":10}]
[null,null,null,null,null,null,"進路主",null,"数Ｃ",null,null,null,null,null,null,null,null,null,null,null,null,null,null,null,null,null,null,null,null,null,null,null,null,"数Ｃ"]
[null,null,null,null,37," ","t37",null,null,null,null,null,null,null,null,null,null,null,null,null,null,null,null,null,null,null,null,null,null,null,null,null,null,null,null,null,null,null,null,null,null,null,null,null,null,null,null,null,null,null,null,null,null,{"$f":"COUNTA(H1644:BA1644)","v":0}]
[]
[null,null,null,null,38,null,"t38",null,null,null,null,null,null,null,null,null,null,null,null,null,null,null,null,null,null,null,null,null,null,null,null,null,null,null,null,null,null,null,null,null,null,null,null,null,null,null,null,null,null,null,null,null,null,{"$f":"COUNTA(H1646:BA1646)","v":0}]
[]
[null,null,null,null,39," ","t39",null,null,null,null,null,null,null,null,null,null,null,null,null,null,null,null,null,null,null,null,null,null,null,null,null,null,null,null,null,null,null,null,null,null,null,null,null,null,null,null,null,null,null,null,null,null,{"$f":"COUNTA(H1648:BA1648)","v":0}]
[]
[null,null,null,null,40,"学","t40",null,null,null,null,null,null,null,null,null,null,null,null,null,null,null,null,null,null,null,null,null,null,null,null,null,null,null,null,null,null,null,null,null,null,null,null,null,null,null,null,null,null,null,null,null,null,{"$f":"COUNTA(H1650:BA1650)","v":0}]
[]
[null,null,null,null,41,null,"t41",null,null,null,null,null,null,null,null,null,null,null,null,null,null,null,null,null,null,null,null,null,null,null,null,null,null,null,null,null,null,null,null,null,null,null,null,null,null,null,null,null,null,null,null,null,null,{"$f":"COUNTA(H1652:BA1652)","v":0}]
[]
[null,null,null,null,42,null,"t42",null,null,null,null,null,null,null,null,null,null,null,null,null,null,null,null,null,null,null,null,null,null,null,null,null,null,null,null,null,null,null,null,null,null,null,null,null,null,null,null,null,null,null,null,null,null,{"$f":"COUNTA(H1654:BA1654)","v":0}]
[]
[null,null,null,null,43,null,"t43",null,null,null,null,null,null,null,null,null,null,null,null,null,null,null,null,null,null,null,null,null,null,null,null,null,null,null,null,null,null,null,null,null,null,null,null,null,null,null,null,null,null,null,null,null,null,{"$f":"COUNTA(H1656:BA1656)","v":0}]
[]
[null,null,null,null,44,null,"t44",null,null,null,null,null,null,null,null,null,null,null,null,null,null,null,null,null,null,null,null,null,null,null,null,null,null,null,null,null,null,null,null,null,null,null,null,null,null,null,null,null,null,null,null,null,null,{"$f":"COUNTA(H1658:BA1658)","v":0}]
[]
[null,null,null,null,45,null,"t45",null,null,null,null,null,null,null,null,null,null,null,null,null,null,null,null,null,null,null,null,null,null,null,null,null,null,null,null,null,null,null,null,null,null,null,null,null,null,null,null,null,null,null,null,null,null,{"$f":"COUNTA(H1660:BA1660)","v":0}]
[]
[null,null,null,null,46,null,"関",null,null,null,null,"進路",null,null,null,null,null,null,null,null,null,null,null,null,null,null,"3-E",null,null,null,null,"学年会",null,null,null,null,null,null,null,null,"教科会",null,null,null,null,null,null,"3-E",null,null,null,null,null,{"$f":"COUNTA(H1662:BA1662)","v":5}]
[null,null,null,null,null,null,"1-1担",null,null,null,null,null,null,null,null,null,null,null,null,null,null,null,null,null,null,null,"物化",null,null,null,null,null,null,null,null,null,null,null,null,null,null,null,null,null,null,null,null,"物化"]
[null,null,null,null,47," ","上村",null,null,"校務",null,"進路",null,null,null,null,null,null,"学年会",null,null,null,null,null,null,null,null,null,null,null,null,null,null,null,null,null,null,null,null,null,"教科会",null,null,null,null,null,null,null,null,null,null,null,null,{"$f":"COUNTA(H1664:BA1664)","v":4}]
[null,null,null,null,null,null,"2-2担"]
[null,null,null,null,48,"理","中田",null,null,null,null,null,null,null,null,null,null,null,"学年会","*","*",null,null,null,null,null,null,null,null,null,null,null,null,null,null,null,null,null,null,null,"教科会",null,null,null,null,null,null,null,null,null,null,null,null,{"$f":"COUNTA(H1666:BA1666)","v":4}]
[null,null,null,null,null,null,"2-6担"]
[null,null,null,null,49,null,"金室",null,null,null,null,null,null,null,null,null,null,null,"学年会",null,null,null,null,null,null,"教務",null,null,null,null,null,null,null,null,null,null,null,null,null,null,"教科会",null,null,"教育課",null,null,null,null,null,null,null,null,null,{"$f":"COUNTA(H1668:BA1668)","v":4}]
[null,null,null,null,null,null,"2-8副"]
[null,null,null,null,50,null,"成谷",null,null,null,null,null,null,null,null,"学年会",null,null,null,null,null,null,null,null,null,null,null,null,null,null,null,null,null,null,null,null,null,null,null,null,"教科会",null,null,null,null,null,null,null,null,null,null,null,null,{"$f":"COUNTA(H1670:BA1670)","v":2}]
[null,null,null,null,null,null,"3-8担"]
[null,null,null,null,51," ","斉藤ｻ",null,null,"校務",null,"進路",null,null,null,"学年会",null,null,null,null,null,null,null,null,null,null,"3-E",null,null,null,null,null,null,null,null,null,null,null,null,null,"教科会",null,null,null,null,null,null,"3-E",null,null,null,null,null,{"$f":"COUNTA(H1672:BA1672)","v":6}]
[null,null,null,null,null,null,"3-25副",null,null,null,null,null,null,null,null,null,null,null,null,null,null,null,null,null,null,null,"物化",null,null,null,null,null,null,null,null,null,null,null,null,null,null,null,null,null,null,null,null,"物化"]
[null,null,null,null,52," ","涌井",null,null,null,null,"進路",null,null,null,"学年会",null,null,null,null,null,null,null,null,null,null,null,null,null,null,null,null,null,null,null,null,null,null,null,null,"教科会",null,null,null,null,null,null,null,null,null,null,null,null,{"$f":"COUNTA(H1674:BA1674)","v":3}]
[null,null,null,null,null,null,"3-3副"]
[null,null,null,null,53,null,"t53",null,null,null,null,null,null,null,null,null,null,null,null,null,null,null,null,null,null,null,null,null,null,null,null,null,null,null,null,null,null,null,null,null,null,null,null,null,null,null,null,null,null,null,null,null,null,{"$f":"COUNTA(H1676:BA1676)","v":0}]
[]
[null,null,null,null,54,null,"t54",null,null,null,null,null,null,null,null,null,null,null,null,null,null,null,null,null,null,null,null,null,null,null,null,null,null,null,null,null,null,null,null,null,null,null,null,null,null,null,null,null,null,null,null,null,null,{"$f":"COUNTA(H1678:BA1678)","v":0}]
[]
[null,null,null,null,55,"科","t55",null,null,null,null,null,null,null,null,null,null,null,null,null,null,null,null,null,null,null,null,null,null,null,null,null,null,null,null,null,null,null,null,null,null,null,null,null,null,null,null,null,null,null,null,null,null,{"$f":"COUNTA(H1680:BA1680)","v":0}]
[]
[null,null,null,null,56," ","t56",null,null,null,null,null,null,null,null,null,null,null,null,null,null,null,null,null,null,null,null,null,null,null,null,null,null,null,null,null,null,null,null,null,null,null,null,null,null,null,null,null,null,null,null,null,null,{"$f":"COUNTA(H1682:BA1682)","v":0}]
[]
[null,null,null,null,57,null,"t57",null,null,null,null,null,null,null,null,null,null,null,null,null,null,null,null,null,null,null,null,null,null,null,null,null,null,null,null,null,null,null,null,null,null,null,null,null,null,null,null,null,null,null,null,null,null,{"$f":"COUNTA(H1684:BA1684)","v":0}]
[]
[null,null,null,null,58,null,"t58",null,null,null,null,null,null,null,null,null,null,null,null,null,null,null,null,null,null,null,null,null,null,null,null,null,null,null,null,null,null,null,null,null,null,null,null,null,null,null,null,null,null,null,null,null,null,{"$f":"COUNTA(H1686:BA1686)","v":0}]
[]
[null,null,null,null,59,null,"t59",null,null,null,null,null,null,null,null,null,null,null,null,null,null,null,null,null,null,null,null,null,null,null,null,null,null,null,null,null,null,null,null,null,null,null,null,null,null,null,null,null,null,null,null,null,null,{"$f":"COUNTA(H1688:BA1688)","v":0}]
[]
[null,null,null,null,60,null,"t60",null,null,null,null,null,null,null,null,null,null,null,null,null,null,null,null,null,null,null,null,null,null,null,null,null,null,null,null,null,null,null,null,null,null,null,null,null,null,null,null,null,null,null,null,null,null,{"$f":"COUNTA(H1690:BA1690)","v":0}]
[]
[null,null,null,null,61,null,"名児耶","1-AB","1-CD","3-BD",null,"2-GH",null,null,null,null,null,"1-D","1-CD","2-GH","1-AB",null,null,"2-GH",null,null,"1-AB","3-D","3-D",null,null,"学年会",null,null,null,null,null,null,null,"1-CD","3-AD",null,"1-E","3-CFG",null,null,null,null,null,null,null,null,null,{"$f":"COUNTA(H1692:BA1692)","v":17}]
[null,null,null,null,null,null,"1-4担","体育","体育","体育",null,"体育",null,null,null,null,null,"保健","体育","体育","体育",null,null,"体育",null,null,"体育","選体","選体",null,null,"",null,null,null,null,null,null,null,"体育","体育",null,"保健","体育"]
[null,null,null,null,62," ","国延","1-AB","1-EF",null,"3-SD","1-GH","",null,null,"1-GH",null,null,"1-CD","1-F","",null,null,"1-EF",null,"1-H","1-AB","3-D","3-D",null,null,"学年会","3-AD","1-GH","生徒指",null,null,null,null,"1-CD",null,"1-EF",null,"1-G",null,null,null,null,null,null,null,null,null,{"$f":"COUNTA(H1694:BA1694)","v":21}]
[null,null,null,null,null,null,"1年付","体育","体育",null,"体育","体育","",null,null,"体育",null,null,"体育","保健","",null,null,"体育",null,"保健","体育","選体","選体",null,null,"","体育","体育","",null,null,null,null,"体育",null,"体育",null,"保健"]
[null,null,null,null,63,"体","八木","","1-EF",null,"教科外",null,"3-367",null,null,"2-2","3-BEI",null,"学年会",null,"2-AB",null,null,"1-EF","3-CFG","2-EF",null,"3-D","3-D",null,null,null,null,null,"2-AB","2-EF",null,null,null,"2-EF",null,"2-AB","3-BEH","2-A",null,null,null,null,null,null,null,null,null,{"$f":"COUNTA(H1696:BA1696)","v":19}]
[null,null,null,null,null,null,"2-1担","","体育",null,"","","体育",null,null,"保健","体育",null,"",null,"体育",null,null,"体育","体育","体育",null,"選体","選体",null,null,null,null,null,"体育","体育",null,null,null,"体育",null,"体育","体育","保健"]
[null,null,null,null,64,null,"仙徳","2-CD","",null,"3-SD","2-GH","3-367",null,null,null,"3-BEI","2-CD","学年会","2-GH","",null,null,"2-GH","3-CFG",null,"2-G","3-D","3-D",null,null,"2-CD","3-AD",null,"生徒指",null,null,null,null,null,"2-H",null,"3-BEH","教育課",null,null,null,null,null,null,null,null,null,{"$f":"COUNTA(H1698:BA1698)","v":21}]
[null,null,null,null,null,null,"2-7担","体育","",null,"体育","体育","体育",null,null,null,"体育","体育","","体育","",null,null,"体育","体育",null,"保健","選体","選体",null,null,"体育","体育",null,"",null,null,null,null,null,"保健",null,"体育",""]
[null,null,null,null,65,null,"大徳","2-CD","1-CD","3-BD","","2-E","",null,null,"1-GH","","2-CD","学年会",null,"1-AB",null,null,null,"2-F","2-EF",null,"3-D","3-D",null,null,"2-CD",null,null,"生徒指","2-EF",null,null,null,"2-EF","3-AD","1-EF",null,"3-CFG",null,null,null,null,null,null,null,null,null,{"$f":"COUNTA(H1700:BA1700)","v":22}]
[null,null,null,null,null,null,"2-6副","体育","体育","体育",null,"保健","",null,null,"体育","","体育","",null,"体育",null,null,null,"保健","体育",null,"選体","選体",null,null,"体育",null,null,"","体育",null,null,null,"体育","体育","体育",null,"体育"]
[null,null,null,null,66," ","山崎",null,null,"3-BD","3-SD","1-GH","3-367",null,null,"学年会","3-BEI",null,null,"1-A","",null,null,null,"3-CFG",null,null,"3-D","3-4",null,null,"1-B","3-AD","1-GH",null,"1-C",null,null,null,null,"3-AD",null,"3-BEH","3-CFG",null,null,null,null,null,null,null,null,null,{"$f":"COUNTA(H1702:BA1702)","v":18}]
[null,null,null,null,null,null,"3-2担",null,null,"体育","体育","体育","体育",null,null,"","体育",null,null,"保健","",null,null,null,"体育",null,null,"選体","3-D",null,null,"保健","体育","体育",null,"保健",null,null,null,null,"体育",null,"体育","体育"]
[null,null,null,null,67," 育","井上",null,null,"3-BD","3-SD","","3-367",null,null,"学年会","3-BEI",null,"2-D",null,"2-AB",null,null,null,"3-CFG",null,"2-C","3-D","3-D",null,null,null,"3-AD",null,"2-AB",null,null,null,null,null,"3-AD","2-AB","3-BEH","3-CFG",null,null,null,null,null,null,null,null,null,{"$f":"COUNTA(H1704:BA1704)","v":18}]
[null,null,null,null,null,null,"3-7担",null,null,"体育","体育","","体育",null,null,"","体育",null,"保健",null,"体育",null,null,null,"体育",null,"保健","選体","選体",null,null,null,"体育",null,"体育",null,null,null,null,null,"体育","体育","体育","体育"]
[null,null,null,null,68,null,"t68",null,null,null,null,null,null,null,null,null,null,null,null,null,null,null,null,null,null,null,null,null,null,null,null,null,null,null,null,null,null,null,null,null,null,null,null,null,null,null,null,null,null,null,null,null,null,{"$f":"COUNTA(H1706:BA1706)","v":0}]
[]
[null,null,null,null,69," ","t69",null,null,null,null,null,null,null,null,null,null,null,null,null,null,null,null,null,null,null,null,null,null,null,null,null,null,null,null,null,null,null,null,null,null,null,null,null,null,null,null,null,null,null,null,null,null,{"$f":"COUNTA(H1708:BA1708)","v":0}]
[]
[null,null,null,null,70," ","杉山","3-AFH","3-AFH","2-ABC","2-ABC",null,null,null,null,"1-E","1-E",null,null,"3-CEG","3-CEG",null,null,"3-24","3-24","教務",null,"1-B","1-B",null,null,"学年会",null,null,null,null,null,null,null,"3-G","3-G","1-G","1-G","教育課",null,null,null,null,null,null,null,null,null,{"$f":"COUNTA(H1710:BA1710)","v":19}]
[null,null,null,null,null,null,"1-7担","芸術","芸術","芸術","芸術",null,null,null,null,"美術","美術",null,null,"芸術","芸術",null,null,"芸術","芸術","",null,"美術","美術",null,null,"",null,null,null,null,null,null,null,"選芸","選芸","美術","美術",""]
[null,null,null,null,71,"芸","高橋","3-AFH","3-AFH","2-ABC","2-ABC","進路",null,null,null,null,null,null,"学年会","3-CEG","3-CEG",null,null,"3-24","3-24",null,null,"1-C","1-C",null,null,null,null,"2-DEF","2-DEF",null,null,null,null,"3-G","3-G","1-H","1-H",null,null,null,null,null,null,null,null,null,null,{"$f":"COUNTA(H1712:BA1712)","v":18}]
[null,null,null,null,null,null,"2-34副","芸術","芸術","芸術","芸術","",null,null,null,null,null,null,"","芸術","芸術",null,null,"芸術","芸術",null,null,"書道","書道",null,null,null,null,"芸術","芸術",null,null,null,null,"選芸","選芸","書道","書道"]
[null,null,null,null,72," ","後藤","3-AFH","3-AFH","2-ABC","2-ABC",null,null,null,null,"学年会",null,null,null,"3-CEG","3-CEG",null,null,"3-24","3-24",null,null,null,null,null,null,"2-GH","2-GH","2-DEF","2-DEF",null,null,null,null,"3-G","3-G","1-A","1-A",null,null,null,null,null,null,null,null,null,null,{"$f":"COUNTA(H1714:BA1714)","v":17}]
[null,null,null,null,null,null,"3-6副","芸術","芸術","芸術","芸術",null,null,null,null,"",null,null,null,"芸術","芸術",null,null,"芸術","芸術",null,null,null,null,null,null,"音美","音美","芸術","芸術",null,null,null,null,"選芸","選芸","音楽","音楽"]
[null,null,null,null,73," ","上原",null,null,null,null,"1-D","1-D",null,null,"1-F","1-F",null,null,null,null,null,null,null,null,null,null,null,null,null,null,null,null,null,null,null,null,null,null,null,null,null,null,null,null,null,null,null,null,null,null,null,null,{"$f":"COUNTA(H1716:BA1716)","v":4}]
[null,null,null,null,null,null,null,null,null,null,null,"音楽","音楽",null,null,"音楽","音楽"]
[null,null,null,null,74,"術","秦",null,null,null,null,null,null,null,null,null,null,null,null,null,null,null,null,null,null,null,null,null,null,null,null,"2-GH","2-GH","2-DEF","2-DEF",null,null,null,null,null,null,null,null,null,null,null,null,null,null,null,null,null,null,{"$f":"COUNTA(H1718:BA1718)","v":4}]
[null,null,null,null,null,null,null,null,null,null,null,null,null,null,null,null,null,null,null,null,null,null,null,null,null,null,null,null,null,null,null,"音美","音美","芸術","芸術"]
[null,null,null,null,75," ","t75",null,null,null,null,null,null,null,null,null,null,null,null,null,null,null,null,null,null,null,null,null,null,null,null,null,null,null,null,null,null,null,null,null,null,null,null,null,null,null,null,null,null,null,null,null,null,{"$f":"COUNTA(H1720:BA1720)","v":0}]
[]
[null,null,null,null,76," ","木島",null,null,null,null,null,null,null,null,null,null,null,null,null,null,null,null,null,null,null,null,null,null,null,null,"学年会",null,"教科会","生徒指",null,null,null,null,null,null,null,null,null,null,null,null,null,null,null,null,null,null,{"$f":"COUNTA(H1722:BA1722)","v":3}]
[null,null,null,null,null,null,"1-3担"]
[null,null,null,null,77,null,"安藤",null,null,null,null,null,null,null,null,null,null,null,null,null,null,null,null,null,null,"教務",null,null,null,null,null,"学年会",null,"教科会",null,null,null,null,null,null,null,null,null,"教育課",null,null,null,null,null,null,null,null,null,{"$f":"COUNTA(H1724:BA1724)","v":4}]
[null,null,null,null,null,null,"1-56副"]
[null,null,null,null,78,"英","小井川",null,"2-EF","校務",null,null,"2-AB",null,null,null,null,"2-EF","学年会","2-AB",null,null,null,"2-AB",null,null,null,null,"2-EF",null,null,null,null,"教科会",null,null,null,null,null,null,null,null,"2-AB",null,null,null,null,null,"2-EF",null,null,null,null,{"$f":"COUNTA(H1726:BA1726)","v":11}]
[null,null,null,null,null,null,"2年主",null,"英Ⅱ",null,null,null,"英Ⅱ",null,null,null,null,"英Ⅱ",null,"英Ⅱ",null,null,null,"英Ⅱ",null,null,null,null,"英Ⅱ",null,null,null,null,null,null,null,null,null,null,null,null,null,"英Ⅱ",null,null,null,null,null,"英Ⅱ"]
[null,null,null,null,79," ","清水ﾀ",null,"2-EF",null,null,null,"2-AB",null,null,null,null,"2-EF","学年会","2-AB",null,null,null,"2-AB",null,"教務",null,null,"2-EF",null,null,null,null,"教科会",null,null,null,null,null,null,null,null,"2-AB",null,null,null,null,null,"2-EF",null,null,null,null,{"$f":"COUNTA(H1728:BA1728)","v":11}]
[null,null,null,null,null,null,"2-57副",null,"英Ⅱ",null,null,null,"英Ⅱ",null,null,null,null,"英Ⅱ",null,"英Ⅱ",null,null,null,"英Ⅱ",null,null,null,null,"英Ⅱ",null,null,null,null,null,null,null,null,null,null,null,null,null,"英Ⅱ",null,null,null,null,null,"英Ⅱ"]
[null,null,null,null,80," ","清水ﾖ",null,"2-CD",null,null,null,"2-AB",null,null,null,null,null,"学年会","2-AB","2-CD",null,null,"2-AB",null,"2-CD",null,null,null,null,null,null,null,"教科会","生徒指",null,null,null,null,null,"2-CD",null,"2-AB",null,null,null,null,null,null,null,null,null,null,{"$f":"COUNTA(H1730:BA1730)","v":11}]
[null,null,null,null,null,null,"2年付",null,"英Ⅱ",null,null,null,"英Ⅱ",null,null,null,null,null,null,"英Ⅱ","英Ⅱ",null,null,"英Ⅱ",null,"英Ⅱ",null,null,null,null,null,null,null,null,null,null,null,null,null,null,"英Ⅱ",null,"英Ⅱ"]
[null,null,null,null,81,null,"加藤",null,"2-CD",null,"2-GH","進路",null,null,null,"学年会",null,null,"2-GH",null,"2-CD",null,null,null,"2-GH","2-CD",null,null,null,null,null,null,null,"教科会",null,null,null,null,null,null,"2-CD",null,null,"2-GH",null,null,null,null,null,null,null,null,null,{"$f":"COUNTA(H1732:BA1732)","v":11}]
[null,null,null,null,null,null,"3-3担",null,"英Ⅱ",null,"英Ⅱ",null,null,null,null,null,null,null,"英Ⅱ",null,"英Ⅱ",null,null,null,"英Ⅱ","英Ⅱ",null,null,null,null,null,null,null,null,null,null,null,null,null,null,"英Ⅱ",null,null,"英Ⅱ"]
[null,null,null,null,82," ","松田",null,"2-CD",null,"2-GH",null,null,null,null,"学年会",null,null,"2-GH",null,"2-CD",null,null,null,"2-GH","2-CD",null,null,null,null,null,null,null,"教科会",null,null,null,null,null,null,"2-CD",null,null,"2-GH",null,null,null,null,null,null,null,null,null,{"$f":"COUNTA(H1734:BA1734)","v":10}]
[null,null,null,null,null,null,"3-6担",null,"英Ⅱ",null,"英Ⅱ",null,null,null,null,null,null,null,"英Ⅱ",null,"英Ⅱ",null,null,null,"英Ⅱ","英Ⅱ",null,null,null,null,null,null,null,null,null,null,null,null,null,null,"英Ⅱ",null,null,"英Ⅱ"]
[null,null,null,null,83," ","小林",null,"",null,null,null,null,null,null,"学年会",null,null,null,null,null,null,null,null,null,null,null,null,null,null,null,null,null,"教科会",null,null,null,null,null,null,null,null,null,null,null,null,null,null,null,null,null,null,null,{"$f":"COUNTA(H1736:BA1736)","v":3}]
[null,null,null,null,null,null,"3-7副",null,""]
[null,null,null,null,84,null,"舘",null,"2-EF","校務","2-GH",null,null,null,null,null,null,"2-EF","2-GH",null,null,null,null,null,"2-GH","教務",null,null,"2-EF",null,null,null,null,"教科会",null,null,null,null,null,null,null,null,null,"2-GH",null,null,null,null,"2-EF",null,null,null,null,{"$f":"COUNTA(H1738:BA1738)","v":11}]
[null,null,null,null,null,null,"教務主",null,"英Ⅱ",null,"英Ⅱ",null,null,null,null,null,null,"英Ⅱ","英Ⅱ",null,null,null,null,null,"英Ⅱ",null,null,null,"英Ⅱ",null,null,null,null,null,null,null,null,null,null,null,null,null,null,"英Ⅱ",null,null,null,null,"英Ⅱ"]
[null,null,null,null,85,"語","t85",null,null,null,null,null,null,null,null,null,null,null,null,null,null,null,null,null,null,null,null,null,null,null,null,null,null,null,null,null,null,null,null,null,null,null,null,null,null,null,null,null,null,null,null,null,null,{"$f":"COUNTA(H1740:BA1740)","v":0}]
[]
[null,null,null,null,86," ","t86",null,null,null,null,null,null,null,null,null,null,null,null,null,null,null,null,null,null,null,null,null,null,null,null,null,null,null,null,null,null,null,null,null,null,null,null,null,null,null,null,null,null,null,null,null,null,{"$f":"COUNTA(H1742:BA1742)","v":0}]
[]
[null,null,null,null,87,null,"t87",null,null,null,null,null,null,null,null,null,null,null,null,null,null,null,null,null,null,null,null,null,null,null,null,null,null,null,null,null,null,null,null,null,null,null,null,null,null,null,null,null,null,null,null,null,null,{"$f":"COUNTA(H1744:BA1744)","v":0}]
[]
[null,null,null,null,88,null,"t88",null,null,null,null,null,null,null,null,null,null,null,null,null,null,null,null,null,null,null,null,null,null,null,null,null,null,null,null,null,null,null,null,null,null,null,null,null,null,null,null,null,null,null,null,null,null,{"$f":"COUNTA(H1746:BA1746)","v":0}]
[]
[null,null,null,null,89,null,"t89",null,null,null,null,null,null,null,null,null,null,null,null,null,null,null,null,null,null,null,null,null,null,null,null,null,null,null,null,null,null,null,null,null,null,null,null,null,null,null,null,null,null,null,null,null,null,{"$f":"COUNTA(H1748:BA1748)","v":0}]
[]
[null,null,null,null,90,null,"t90",null,null,null,null,null,null,null,null,null,null,null,null,null,null,null,null,null,null,null,null,null,null,null,null,null,null,null,null,null,null,null,null,null,null,null,null,null,null,null,null,null,null,null,null,null,null,{"$f":"COUNTA(H1750:BA1750)","v":0}]
[]
[null,null,null,null,91,null,"村山",null,null,"2-D","2-D","1-C","1-C",null,null,"1-B","1-B","2-B","2-B",null,null,null,null,"2-C","2-C","2-A","2-A",null,null,null,null,"学年会",null,"1-A","1-A",null,null,null,null,null,null,"1-D","1-D","教育課",null,null,null,null,null,null,null,null,null,{"$f":"COUNTA(H1752:BA1752)","v":18}]
[null,null,null,null,null,null,"1-1副",null,null,"家庭","家庭","家庭","家庭",null,null,"家庭","家庭","家庭","家庭",null,null,null,null,"家庭","家庭","家庭","家庭",null,null,null,null,"",null,"家庭","家庭",null,null,null,null,null,null,"家庭","家庭",""]
[null,null,null,null,92,"家","川崎",null,null,"1-E","1-E","進路",null,null,null,"学年会",null,"1-H","1-H","1-G","1-G",null,null,null,null,"3-B","3-B","2-H","2-H",null,null,"1-F","1-F",null,null,null,null,null,null,"2-G","2-G","2-F","2-F",null,null,null,null,null,null,null,null,null,null,{"$f":"COUNTA(H1754:BA1754)","v":18}]
[null,null,null,null,null,null,"3-1担",null,null,"家庭","家庭","",null,null,null,"",null,"家庭","家庭","家庭","家庭",null,null,null,null,"食物","食物","家庭","家庭",null,null,"家庭","家庭",null,null,null,null,null,null,"家庭","家庭","家庭","家庭"]
[null,null,null,null,93,null,"寺西",null,null,null,null,null,null,null,null,"2-E","2-E",null,null,null,null,null,null,null,null,null,null,null,null,null,null,null,null,null,null,null,null,null,null,null,null,null,null,null,null,null,null,null,null,null,null,null,null,{"$f":"COUNTA(H1756:BA1756)","v":2}]
[null,null,null,null,null,null,null,null,null,null,null,null,null,null,null,"家庭","家庭"]
[null,null,null,null,94,null,"t94",null,null,null,null,null,null,null,null,null,null,null,null,null,null,null,null,null,null,null,null,null,null,null,null,null,null,null,null,null,null,null,null,null,null,null,null,null,null,null,null,null,null,null,null,null,null,{"$f":"COUNTA(H1758:BA1758)","v":0}]
[null,null,null,null,null,"庭"]
[null,null,null,null,95,null,"t95",null,null,null,null,null,null,null,null,null,null,null,null,null,null,null,null,null,null,null,null,null,null,null,null,null,null,null,null,null,null,null,null,null,null,null,null,null,null,null,null,null,null,null,null,null,null,{"$f":"COUNTA(H1760:BA1760)","v":0}]
[]
[null,null,null,null,96,null,"宮木",null,null,null,null,null,null,null,null,"*","*","*","*","*",null,null,null,"*","*","*","*",null,null,null,null,"学年会",null,null,null,null,null,null,null,null,null,null,null,"教育課",null,null,null,null,null,null,null,null,null,{"$f":"COUNTA(H1762:BA1762)","v":11}]
[null,null,null,null,null,null,"1-8副"]
[null,null,null,null,97,"情","t97",null,null,null,null,null,null,null,null,null,null,null,null,null,null,null,null,null,null,null,null,null,null,null,null,null,null,null,null,null,null,null,null,null,null,null,null,null,null,null,null,null,null,null,null,null,null,{"$f":"COUNTA(H1764:BA1764)","v":0}]
[]
[null,null,null,null,98,null,"t98",null,null,null,null,null,null,null,null,null,null,null,null,null,null,null,null,null,null,null,null,null,null,null,null,null,null,null,null,null,null,null,null,null,null,null,null,null,null,null,null,null,null,null,null,null,null,{"$f":"COUNTA(H1766:BA1766)","v":0}]
[]
[null,null,null,null,99,null,"t99",null,null,null,null,null,null,null,null,null,null,null,null,null,null,null,null,null,null,null,null,null,null,null,null,null,null,null,null,null,null,null,null,null,null,null,null,null,null,null,null,null,null,null,null,null,null,{"$f":"COUNTA(H1768:BA1768)","v":0}]
[null,null,null,null,null,"報"]
[null,null,null,null,100,null,"t100"]
[]
[null,null,null,null,101,null,"t101"]
[]
[null,null,null,null,102,"専","t102"]
[]
[null,null,null,null,103,null,"t103"]
[]
[null,null,null,null,104,null,"t104"]
[]
[null,null,null,null,105,null,"t105"]
[]
[null,null,null,null,106,"門","t106"]
[]
[null,null,null,null,107,null,"t107"]
[]
[null,null,null,null,108,null,"t108"]
[]
[null,null,null,null,109,null,"t109"]
[null,null,null,null,null,"１"]
[null,null,null,null,110,null,"t110"]
[]
[null,null,null,null,111,null,"t111"]
[]
[null,null,null,null,112,"専","t112"]
[]
[null,null,null,null,113,null,"t113"]
[]
[null,null,null,null,114,null,"t114"]
[]
[null,null,null,null,115,null,"t115"]
[]
[null,null,null,null,116,"門","t116"]
[]
[null,null,null,null,117,null,"t117"]
[]
[null,null,null,null,118,null,"t118"]
[]
[null,null,null,null,119,null,"t119"]
[null,null,null,null,null,"２"]
[null,null,null,null,120,null,"t120"]
[]
[null,null,null,null,121,null,"t121"]
[]
[null,null,null,null,122,"専","t122"]
[]
[null,null,null,null,123,null,"t123"]
[]
[null,null,null,null,124,null,"t124"]
[]
[null,null,null,null,125,null,"t125"]
[]
[null,null,null,null,126,"門","t126"]
[]
[null,null,null,null,127,null,"t127"]
[]
[null,null,null,null,128,null,"t128"]
[]
[null,null,null,null,129,null,"t129"]
[null,null,null,null,null,"３"]
[null,null,null,null,130,null,"t130"]
[]
[null,null,null,null,131,null,"t131"]
[]
[null,null,null,null,132,"専","t132"]
[]
[null,null,null,null,133,null,"t133"]
[]
[null,null,null,null,134,null,"t134"]
[]
[null,null,null,null,135,null,"t135"]
[]
[null,null,null,null,136,"門","t136"]
[]
[null,null,null,null,137,null,"t137"]
[]
[null,null,null,null,138,null,"t138"]
[]
[null,null,null,null,139,null,"t139"]
[null,null,null,null,null,"４"]
[null,null,null,null,140,null,"t140"]
[]
[null,null,null,null,141,null,"t141"]
[]
[null,null,null,null,142,"専","t142"]
[]
[null,null,null,null,143,null,"t143"]
[]
[null,null,null,null,144,null,"t144"]
[]
[null,null,null,null,145,null,"t145"]
[]
[null,null,null,null,146,"門","t146"]
[]
[null,null,null,null,147,null,"t147"]
[]
[null,null,null,null,148,null,"t148"]
[]
[null,null,null,null,149,null,"t149"]
[null,null,null,null,null,"５"]
[null,null,null,null,150," ","t150",null,null,null,null,null,null,null,null,null,null,null,null,null,null,null,null,null,null,null,null,null,null,null,null,null,null,null,null,null,null,null,null,null,null,null,null,null,null,null,null,null,null,null,null,null,null,{"$f":"COUNTA(H1870:BA1870)","v":0}]
[]
[null,null,null,null,null,null,null,null,null,null,null,null,null,null,null,null,null,null,null,null,null,null,null,null,null,null,null,null,null,null,null,null,null,null,null,null,null,null,null,null,null,null,null,null,null,null,null,null,null,null,null,null,null,{"$f":"SUM(BB1572:BB1871)","v":471}]
[]
[]
[null,null,null,null,null,null,"時間割〔ｸﾗｽ・特別教室別1〕中間入力"]
[null,null,null,null,null,null,null,null,null,null,"  月",null,null,null,null,null,null,null,"　火",null,null,null,null,null,null,null,"　水",null,null,null,null,null,null,null,"  木",null,null,null,null,null,null,null,"  金",null,null,null,null,null,null,"　土"]
[null,null,null,null,null,null,null,1,2,3,4,5,6,7,8,1,2,3,4,5,6,7,8,1,2,3,4,5,6,7,8,1,2,3,4,5,6,7,8,1,2,3,4,5,6,7,8,1,2,3,4,5,6]
[null,null,null,null,null,null,"ｺﾒﾝﾄ１",null,null,null,null,null,null,"*","*",null,null,null,null,null,null,"*","*",null,null,null,null,null,null,"*","*",null,null,null,null,null,null,"*","*",null,null,null,null,null,"土1,2","*","*",null,null,"必修ク","必修ク","*","*"]
[null,null,null,null,null,null,"ｺﾒﾝﾄ２",null,null,null,null,null,null,"*","*",null,null,null,null,null,null,"*","*",null,null,null,null,null,null,"*","*",null,null,null,null,null,null,"*","*",null,null,null,null,null,"-","*","*",null,null,"-","-","*","*"]
[]
[]
[]
[null,null,null,null,null,null,"時間割〔ｸﾗｽ・特別教室別2〕中間入力"]
[null,null,null,null,null,"ｺﾒﾝﾄ１",null,null,null,null,"  月",null,null,null,null,null,null,null,"　火",null,null,null,null,null,null,null,"　水",null,null,null,null,null,null,null,"  木",null,null,null,null,null,null,null,"  金",null,null,null,null,null,null,"　土"]
[null,null,null,null,null,"ｺﾒﾝﾄ２","ｸﾗｽ",1,2,3,4,5,6,7,8,1,2,3,4,5,6,7,8,1,2,3,4,5,6,7,8,1,2,3,4,5,6,7,8,1,2,3,4,5,6,7,8,1,2,3,4,5,6]
[null,null,null,null,null,null,"1-1","体育",null,null,null,null,null,null,null,null,null,null,null,"保健","体育",null,null,null,null,null,"体育",null,null,null,null,null,null,"家庭","家庭",null,null,null,null,null,null,"音楽","音楽"]
[null,null,null,null,null,null,null,"名児耶  国延",null,null,null,null,null,null,null,null,null,null,null,"山崎","名児耶  大徳",null,null,null,null,null,"名児耶  国延",null,null,null,null,null,null,"村山","村山",null,null,null,null,null,null,"後藤","後藤"]
[null,null,null,null,null,null,"1-2","体育",null,null,null,null,null,null,null,"家庭","家庭",null,null,null,"体育",null,null,null,null,null,"体育","美術","美術",null,null,"保健"]
[null,null,null,null,null,null,null,"名児耶  国延",null,null,null,null,null,null,null,"村山","村山",null,null,null,"名児耶  大徳",null,null,null,null,null,"名児耶  国延","杉山","杉山",null,null,"山崎"]
[null,null,null,null,null,null,"1-3",null,"体育",null,null,"家庭","家庭",null,null,null,null,null,"体育",null,null,null,null,null,null,null,null,"書道","書道",null,null,null,null,null,null,"保健",null,null,null,"体育"]
[null,null,null,null,null,null,null,null,"名児耶  大徳",null,null,"村山","村山",null,null,null,null,null,"名児耶  国延",null,null,null,null,null,null,null,null,"高橋","高橋",null,null,null,null,null,null,"山崎",null,null,null,"名児耶  国延"]
[null,null,null,null,null,null,"1-4",null,"体育",null,null,"音楽","音楽",null,null,null,null,"保健","体育",null,null,null,null,null,null,null,null,null,null,null,null,null,null,null,null,null,null,null,null,"体育",null,"家庭","家庭"]
[null,null,null,null,null,null,null,null,"名児耶  大徳",null,null,"上原","上原",null,null,null,null,"名児耶","名児耶  国延",null,null,null,null,null,null,null,null,null,null,null,null,null,null,null,null,null,null,null,null,"名児耶  国延",null,"村山","村山"]
[null,null,null,null,null,null,"1-5",null,"体育","家庭","家庭",null,null,null,null,"美術","美術",null,null,null,null,null,null,"体育",null,null,null,null,null,null,null,null,null,null,null,null,null,null,null,null,null,"体育","保健"]
[null,null,null,null,null,null,null,null,"国延  八木","川崎","川崎",null,null,null,null,"杉山","杉山",null,null,null,null,null,null,"国延  八木",null,null,null,null,null,null,null,null,null,null,null,null,null,null,null,null,null,"国延  大徳","名児耶"]
[null,null,null,null,null,null,"1-6",null,"体育",null,null,null,null,null,null,"音楽","音楽",null,null,"保健",null,null,null,"体育",null,null,null,null,null,null,null,"家庭","家庭",null,null,null,null,null,null,null,null,"体育"]
[null,null,null,null,null,null,null,null,"国延  八木",null,null,null,null,null,null,"上原","上原",null,null,"国延",null,null,null,"国延  八木",null,null,null,null,null,null,null,"川崎","川崎",null,null,null,null,null,null,null,null,"国延  大徳"]
[null,null,null,null,null,null,"1-7",null,null,null,null,"体育",null,null,null,"体育",null,null,null,"家庭","家庭",null,null,null,null,null,null,null,null,null,null,null,null,"体育",null,null,null,null,null,null,null,"美術","美術","保健"]
[null,null,null,null,null,null,null,null,null,null,null,"国延  山崎",null,null,null,"国延  大徳",null,null,null,"川崎","川崎",null,null,null,null,null,null,null,null,null,null,null,null,"国延  山崎",null,null,null,null,null,null,null,"杉山","杉山","国延"]
[null,null,null,null,null,null,"1-8",null,null,null,null,"体育",null,null,null,"体育",null,"家庭","家庭",null,null,null,null,null,null,"保健",null,null,null,null,null,null,null,"体育",null,null,null,null,null,null,null,"書道","書道"]
[null,null,null,null,null,null,null,null,null,null,null,"国延  山崎",null,null,null,"国延  大徳",null,"川崎","川崎",null,null,null,null,null,null,"国延",null,null,null,null,null,null,null,"国延  山崎",null,null,null,null,null,null,null,"高橋","高橋"]
[null,null,null,null,null,null,"1-9"]
[]
[null,null,null,null,null,null,"1-10"]
[]
[null,null,null,null,null,null,"2-1",null,null,"芸術","芸術",null,"英Ⅱ",null,null,null,null,null,null,"英Ⅱ","体育",null,null,"英Ⅱ",null,"家庭","家庭",null,null,null,null,null,null,null,"体育",null,null,null,null,null,null,"体育","英Ⅱ","保健"]
[null,null,null,null,null,null,null,null,null,"杉山  高橋  後藤","杉山  高橋  後藤",null,"小井川  清水ﾖ",null,null,null,null,null,null,"小井川  清水ﾖ","八木  井上",null,null,"小井川  清水ﾖ",null,"村山","村山",null,null,null,null,null,null,null,"八木  井上",null,null,null,null,null,null,"八木  井上","小井川  清水ﾖ","八木"]
[null,null,null,null,null,null,"2-2",null,null,"芸術","芸術",null,"英Ⅱ",null,null,"保健",null,"家庭","家庭","英Ⅱ","体育",null,null,"英Ⅱ",null,null,null,null,null,null,null,null,null,null,"体育",null,null,null,null,null,null,"体育","英Ⅱ"]
[null,null,null,null,null,null,null,null,null,"杉山  高橋  後藤","杉山  高橋  後藤",null,"小井川  清水ﾀ",null,null,"八木",null,"村山","村山","小井川  清水ﾀ","八木  井上",null,null,"小井川  清水ﾀ",null,null,null,null,null,null,null,null,null,null,"八木  井上",null,null,null,null,null,null,"八木  井上","小井川  清水ﾀ"]
[null,null,null,null,null,null,"2-3","体育","英Ⅱ","芸術","芸術",null,null,null,null,null,null,"体育",null,null,"英Ⅱ",null,null,"家庭","家庭","英Ⅱ","保健",null,null,null,null,"体育",null,null,null,null,null,null,null,null,"英Ⅱ"]
[null,null,null,null,null,null,null,"仙徳  大徳","清水ﾖ 松田","杉山  高橋  後藤","杉山  高橋  後藤",null,null,null,null,null,null,"仙徳  大徳",null,null,"清水ﾖ 松田",null,null,"村山","村山","清水ﾖ 松田","井上",null,null,null,null,"仙徳  大徳",null,null,null,null,null,null,null,null,"清水ﾖ 松田"]
[null,null,null,null,null,null,"2-4","体育","英Ⅱ","家庭","家庭",null,null,null,null,null,null,"体育","保健",null,"英Ⅱ",null,null,null,null,"英Ⅱ",null,null,null,null,null,"体育",null,"芸術","芸術",null,null,null,null,null,"英Ⅱ"]
[null,null,null,null,null,null,null,"仙徳  大徳","清水ﾖ 加藤","村山","村山",null,null,null,null,null,null,"仙徳  大徳","井上",null,"清水ﾖ 加藤",null,null,null,null,"清水ﾖ 加藤",null,null,null,null,null,"仙徳  大徳",null,"高橋  後藤  秦","高橋  後藤  秦",null,null,null,null,null,"清水ﾖ 加藤"]
[null,null,null,null,null,null,"2-5",null,"英Ⅱ",null,null,"保健",null,null,null,"家庭","家庭","英Ⅱ",null,null,null,null,null,null,null,"体育",null,null,"英Ⅱ",null,null,null,null,"芸術","芸術","体育",null,null,null,"体育",null,null,null,null,null,null,null,null,"英Ⅱ"]
[null,null,null,null,null,null,null,null,"清水ﾀ 舘",null,null,"大徳",null,null,null,"寺西","寺西","清水ﾀ 舘",null,null,null,null,null,null,null,"八木  大徳",null,null,"清水ﾀ 舘",null,null,null,null,"高橋  後藤  秦","高橋  後藤  秦","八木  大徳",null,null,null,"八木  大徳",null,null,null,null,null,null,null,null,"清水ﾀ 舘"]
[null,null,null,null,null,null,"2-6",null,"英Ⅱ",null,null,null,null,null,null,null,null,"英Ⅱ",null,null,null,null,null,null,"保健","体育",null,null,"英Ⅱ",null,null,null,null,"芸術","芸術","体育",null,null,null,"体育",null,"家庭","家庭",null,null,null,null,null,"英Ⅱ"]
[null,null,null,null,null,null,null,null,"小井川  清水ﾀ",null,null,null,null,null,null,null,null,"小井川  清水ﾀ",null,null,null,null,null,null,"大徳","八木  大徳",null,null,"小井川  清水ﾀ",null,null,null,null,"高橋  後藤  秦","高橋  後藤  秦","八木  大徳",null,null,null,"八木  大徳",null,"川崎","川崎",null,null,null,null,null,"小井川  清水ﾀ"]
[null,null,null,null,null,null,"2-7",null,null,null,"英Ⅱ","体育",null,null,null,null,null,null,"英Ⅱ","体育",null,null,null,"体育","英Ⅱ",null,"保健",null,null,null,null,"音美","音美",null,null,null,null,null,null,"家庭","家庭",null,null,"英Ⅱ"]
[null,null,null,null,null,null,null,null,null,null,"松田 舘","名児耶  仙徳",null,null,null,null,null,null,"松田 舘","名児耶  仙徳",null,null,null,"名児耶  仙徳","松田 舘",null,"仙徳",null,null,null,null,"後藤    秦","後藤    秦",null,null,null,null,null,null,"川崎","川崎",null,null,"松田 舘"]
[null,null,null,null,null,null,"2-8",null,null,null,"英Ⅱ","体育",null,null,null,null,null,null,"英Ⅱ","体育",null,null,null,"体育","英Ⅱ",null,null,"家庭","家庭",null,null,"音美","音美",null,null,null,null,null,null,null,"保健",null,null,"英Ⅱ"]
[null,null,null,null,null,null,null,null,null,null,"加藤 舘","名児耶  仙徳",null,null,null,null,null,null,"加藤 舘","名児耶  仙徳",null,null,null,"名児耶  仙徳","加藤 舘",null,null,"川崎","川崎",null,null,"後藤    秦","後藤    秦",null,null,null,null,null,null,null,"仙徳",null,null,"加藤 舘"]
[null,null,null,null,null,null,"2-9"]
[]
[null,null,null,null,null,null,"2-10"]
[]
[null,null,null,null,null,null,"3-1","芸術","芸術",null,"体育",null,null,null,null,null,null,"現文",null,null,null,null,null,null,null,null,null,null,null,null,null,"現文","体育",null,null,null,null,null,null,null,"体育","現文"]
[null,null,null,null,null,null,null,"杉山  高橋  後藤","杉山  高橋  後藤",null,"国延  仙徳  山崎  井上",null,null,null,null,null,null,"千田",null,null,null,null,null,null,null,null,null,null,null,null,null,"千田","国延  仙徳  山崎  井上",null,null,null,null,null,null,null,"名児耶 大徳 山崎  井上","千田"]
[null,null,null,null,null,null,"3-2",null,null,"体育",null,null,null,null,null,null,"体育",null,null,null,null,null,null,"芸術","芸術","食物","食物",null,null,null,null,null,null,null,null,null,null,null,null,null,null,null,"体育"]
[null,null,null,null,null,null,null,null,null,"名児耶 大徳 山崎  井上",null,null,null,null,null,null,"八木  仙徳  山崎  井上",null,null,null,null,null,null,"杉山  高橋  後藤","杉山  高橋  後藤","川崎","川崎",null,null,null,null,null,null,null,null,null,null,null,null,null,null,null,"八木  仙徳  山崎  井上"]
[null,null,null,null,null,null,"3-3",null,null,null,null,null,"体育",null,null,null,null,"表現","現文","芸術","芸術",null,null,null,"体育",null,null,null,null,null,null,null,"現文",null,"表現",null,null,null,null,null,"現文",null,null,"体育"]
[null,null,null,null,null,null,null,null,null,null,null,null,"八木  仙徳  山崎  井上",null,null,null,null,"松本ﾔ 山田","千田","杉山  高橋  後藤","杉山  高橋  後藤",null,null,null,"八木  仙徳  山崎  井上",null,null,null,null,null,null,null,"千田",null,"松本ﾔ 山田",null,null,null,null,null,"千田",null,null,"名児耶 大徳 山崎  井上"]
[null,null,null,null,null,null,"3-4",null,"数Ｃ",null,"体育",null,null,null,null,null,null,null,null,null,null,null,null,"芸術","芸術",null,null,"選体","選体",null,null,null,"体育","数Ｃ",null,null,null,null,null,null,"体育"]
[null,null,null,null,null,null,null,null,"菊川   多田",null,"国延  仙徳  山崎  井上",null,null,null,null,null,null,null,null,null,null,null,null,"杉山  高橋  後藤","杉山  高橋  後藤",null,null,"名 国 八 仙 大 山 井","名 国 八 仙 大 山 井",null,null,null,"国延  仙徳  山崎  井上","菊川   多田",null,null,null,null,null,null,"名児耶 大徳 山崎  井上"]
[null,null,null,null,null,null,"3-5",null,null,"体育",null,null,null,null,null,null,"体育",null,null,"芸術","芸術",null,null,null,null,null,"物化",null,null,null,null,null,null,null,null,null,null,null,null,null,null,null,"体育",null,null,null,null,"物化"]
[null,null,null,null,null,null,null,null,null,"名児耶 大徳 山崎  井上",null,null,null,null,null,null,"八木  仙徳  山崎  井上",null,null,"杉山  高橋  後藤","杉山  高橋  後藤",null,null,null,null,null,"関   斉藤ｻ",null,null,null,null,null,null,null,null,null,null,null,null,null,null,null,"八木  仙徳  山崎  井上",null,null,null,null,"関   斉藤ｻ"]
[null,null,null,null,null,null,"3-6","芸術","芸術",null,null,null,"体育",null,null,null,null,null,null,null,null,null,null,null,"体育",null,null,null,null,null,null,null,null,null,null,null,null,null,null,null,null,null,null,"体育"]
[null,null,null,null,null,null,null,"杉山  高橋  後藤","杉山  高橋  後藤",null,null,null,"八木  仙徳  山崎  井上",null,null,null,null,null,null,null,null,null,null,null,"八木  仙徳  山崎  井上",null,null,null,null,null,null,null,null,null,null,null,null,null,null,null,null,null,null,"名児耶 大徳 山崎  井上"]
[null,null,null,null,null,null,"3-7",null,null,null,null,null,"体育",null,null,null,null,null,null,"芸術","芸術",null,null,null,"体育",null,null,null,null,null,null,null,null,null,null,null,null,null,null,"選芸","選芸",null,null,"体育"]
[null,null,null,null,null,null,null,null,null,null,null,null,"八木  仙徳  山崎  井上",null,null,null,null,null,null,"杉山  高橋  後藤","杉山  高橋  後藤",null,null,null,"八木  仙徳  山崎  井上",null,null,null,null,null,null,null,null,null,null,null,null,null,null,"杉山  高橋  後藤","杉山  高橋  後藤",null,null,"名児耶 大徳 山崎  井上"]
[null,null,null,null,null,null,"3-8","芸術","芸術","体育",null,null,null,null,null,null,"体育",null,"表現",null,null,null,null,null,null,null,null,null,null,null,null,null,null,"表現",null,null,null,null,null,null,null,null,"体育"]
[null,null,null,null,null,null,null,"杉山  高橋  後藤","杉山  高橋  後藤","名児耶 大徳 山崎  井上",null,null,null,null,null,null,"八木  仙徳  山崎  井上",null,"関根  山田",null,null,null,null,null,null,null,null,null,null,null,null,null,null,"関根  山田",null,null,null,null,null,null,null,null,"八木  仙徳  山崎  井上"]
[null,null,null,null,null,null,"3-9"]
[]
[null,null,null,null,null,null,"3-10"]
[]
[null,null,null,null,null,null,"*1-1","体育",null,null,null,null,null,null,null,null,null,null,null,"保健","体育",null,null,null,null,null,"体育",null,null,null,null,null,null,"家庭","家庭",null,null,null,null,null,null,"音楽","音楽"]
[null,null,null,null,null,null,null,"名児耶  国延",null,null,null,null,null,null,null,null,null,null,null,"山崎","名児耶  大徳",null,null,null,null,null,"名児耶  国延",null,null,null,null,null,null,"村山","村山",null,null,null,null,null,null,"後藤","後藤"]
[null,null,null,null,null,null,"*1-2","体育",null,null,null,null,null,null,null,"家庭","家庭",null,null,null,"体育",null,null,null,null,null,"体育","美術","美術",null,null,"保健"]
[null,null,null,null,null,null,null,"名児耶  国延",null,null,null,null,null,null,null,"村山","村山",null,null,null,"名児耶  大徳",null,null,null,null,null,"名児耶  国延","杉山","杉山",null,null,"山崎"]
[null,null,null,null,null,null,"*1-3",null,"体育",null,null,"家庭","家庭",null,null,null,null,null,"体育",null,null,null,null,null,null,null,null,"書道","書道",null,null,null,null,null,null,"保健",null,null,null,"体育"]
[null,null,null,null,null,null,null,null,"名児耶  大徳",null,null,"村山","村山",null,null,null,null,null,"名児耶  国延",null,null,null,null,null,null,null,null,"高橋","高橋",null,null,null,null,null,null,"山崎",null,null,null,"名児耶  国延"]
[null,null,null,null,null,null,"*1-4",null,"体育",null,null,"音楽","音楽",null,null,null,null,"保健","体育",null,null,null,null,null,null,null,null,null,null,null,null,null,null,null,null,null,null,null,null,"体育",null,"家庭","家庭"]
[null,null,null,null,null,null,null,null,"名児耶  大徳",null,null,"上原","上原",null,null,null,null,"名児耶","名児耶  国延",null,null,null,null,null,null,null,null,null,null,null,null,null,null,null,null,null,null,null,null,"名児耶  国延",null,"村山","村山"]
[null,null,null,null,null,null,"*1-5",null,"体育","家庭","家庭",null,null,null,null,"美術","美術",null,null,null,null,null,null,"体育",null,null,null,null,null,null,null,null,null,null,null,null,null,null,null,null,null,"体育","保健"]
[null,null,null,null,null,null,null,null,"国延  八木","川崎","川崎",null,null,null,null,"杉山","杉山",null,null,null,null,null,null,"国延  八木",null,null,null,null,null,null,null,null,null,null,null,null,null,null,null,null,null,"国延  大徳","名児耶"]
[null,null,null,null,null,null,"*1-6",null,"体育",null,null,null,null,null,null,"音楽","音楽",null,null,"保健",null,null,null,"体育",null,null,null,null,null,null,null,"家庭","家庭",null,null,null,null,null,null,null,null,"体育"]
[null,null,null,null,null,null,null,null,"国延  八木",null,null,null,null,null,null,"上原","上原",null,null,"国延",null,null,null,"国延  八木",null,null,null,null,null,null,null,"川崎","川崎",null,null,null,null,null,null,null,null,"国延  大徳"]
[null,null,null,null,null,null,"*1-7",null,null,null,null,"体育",null,null,null,"体育",null,null,null,"家庭","家庭",null,null,null,null,null,null,null,null,null,null,null,null,"体育",null,null,null,null,null,null,null,"美術","美術","保健"]
[null,null,null,null,null,null,null,null,null,null,null,"国延  山崎",null,null,null,"国延  大徳",null,null,null,"川崎","川崎",null,null,null,null,null,null,null,null,null,null,null,null,"国延  山崎",null,null,null,null,null,null,null,"杉山","杉山","国延"]
[null,null,null,null,null,null,"*1-8",null,null,null,null,"体育",null,null,null,"体育",null,"家庭","家庭",null,null,null,null,null,null,"保健",null,null,null,null,null,null,null,"体育",null,null,null,null,null,null,null,"書道","書道"]
[null,null,null,null,null,null,null,null,null,null,null,"国延  山崎",null,null,null,"国延  大徳",null,"川崎","川崎",null,null,null,null,null,null,"国延",null,null,null,null,null,null,null,"国延  山崎",null,null,null,null,null,null,null,"高橋","高橋"]
[null,null,null,null,null,null,"*1-9"]
[]
[null,null,null,null,null,null,"*1-10"]
[]
[null,null,null,null,null,null,"*1-11"]
[]
[null,null,null,null,null,null,"*1-12"]
[]
[null,null,null,null,null,null,"*1-13"]
[]
[null,null,null,null,null,null,"*1-14"]
[]
[null,null,null,null,null,null,"*1-15"]
[]
[null,null,null,null,null,null,"*1-16"]
[]
[null,null,null,null,null,null,"*1-17"]
[]
[null,null,null,null,null,null,"*1-18"]
[]
[null,null,null,null,null,null,"*1-19"]
[]
[null,null,null,null,null,null,"*1-20"]
[]
[null,null,null,null,null,null,"*2-1",null,null,"芸術","芸術",null,"英Ⅱ",null,null,null,null,null,null,"英Ⅱ","体育",null,null,"英Ⅱ",null,"家庭","家庭",null,null,null,null,null,null,null,"体育",null,null,null,null,null,null,"体育","英Ⅱ","保健"]
[null,null,null,null,null,null,null,null,null,"杉山  高橋  後藤","杉山  高橋  後藤",null,"小井川  清水ﾖ",null,null,null,null,null,null,"小井川  清水ﾖ","八木  井上",null,null,"小井川  清水ﾖ",null,"村山","村山",null,null,null,null,null,null,null,"八木  井上",null,null,null,null,null,null,"八木  井上","小井川  清水ﾖ","八木"]
[null,null,null,null,null,null,"*2-2",null,null,"芸術","芸術",null,"英Ⅱ",null,null,"保健",null,"家庭","家庭","英Ⅱ","体育",null,null,"英Ⅱ",null,null,null,null,null,null,null,null,null,null,"体育",null,null,null,null,null,null,"体育","英Ⅱ"]
[null,null,null,null,null,null,null,null,null,"杉山  高橋  後藤","杉山  高橋  後藤",null,"小井川  清水ﾀ",null,null,"八木",null,"村山","村山","小井川  清水ﾀ","八木  井上",null,null,"小井川  清水ﾀ",null,null,null,null,null,null,null,null,null,null,"八木  井上",null,null,null,null,null,null,"八木  井上","小井川  清水ﾀ"]
[null,null,null,null,null,null,"*2-3","体育","英Ⅱ","芸術","芸術",null,null,null,null,null,null,"体育",null,null,"英Ⅱ",null,null,"家庭","家庭","英Ⅱ","保健",null,null,null,null,"体育",null,null,null,null,null,null,null,null,"英Ⅱ"]
[null,null,null,null,null,null,null,"仙徳  大徳","清水ﾖ 松田","杉山  高橋  後藤","杉山  高橋  後藤",null,null,null,null,null,null,"仙徳  大徳",null,null,"清水ﾖ 松田",null,null,"村山","村山","清水ﾖ 松田","井上",null,null,null,null,"仙徳  大徳",null,null,null,null,null,null,null,null,"清水ﾖ 松田"]
[null,null,null,null,null,null,"*2-4","体育","英Ⅱ","家庭","家庭",null,null,null,null,null,null,"体育","保健",null,"英Ⅱ",null,null,null,null,"英Ⅱ",null,null,null,null,null,"体育",null,"芸術","芸術",null,null,null,null,null,"英Ⅱ"]
[null,null,null,null,null,null,null,"仙徳  大徳","清水ﾖ 加藤","村山","村山",null,null,null,null,null,null,"仙徳  大徳","井上",null,"清水ﾖ 加藤",null,null,null,null,"清水ﾖ 加藤",null,null,null,null,null,"仙徳  大徳",null,"高橋  後藤  秦","高橋  後藤  秦",null,null,null,null,null,"清水ﾖ 加藤"]
[null,null,null,null,null,null,"*2-5",null,"英Ⅱ",null,null,"保健",null,null,null,"家庭","家庭","英Ⅱ",null,null,null,null,null,null,null,"体育",null,null,"英Ⅱ",null,null,null,null,"芸術","芸術","体育",null,null,null,"体育",null,null,null,null,null,null,null,null,"英Ⅱ"]
[null,null,null,null,null,null,null,null,"清水ﾀ 舘",null,null,"大徳",null,null,null,"寺西","寺西","清水ﾀ 舘",null,null,null,null,null,null,null,"八木  大徳",null,null,"清水ﾀ 舘",null,null,null,null,"高橋  後藤  秦","高橋  後藤  秦","八木  大徳",null,null,null,"八木  大徳",null,null,null,null,null,null,null,null,"清水ﾀ 舘"]
[null,null,null,null,null,null,"*2-6",null,"英Ⅱ",null,null,null,null,null,null,null,null,"英Ⅱ",null,null,null,null,null,null,"保健","体育",null,null,"英Ⅱ",null,null,null,null,"芸術","芸術","体育",null,null,null,"体育",null,"家庭","家庭",null,null,null,null,null,"英Ⅱ"]
[null,null,null,null,null,null,null,null,"小井川  清水ﾀ",null,null,null,null,null,null,null,null,"小井川  清水ﾀ",null,null,null,null,null,null,"大徳","八木  大徳",null,null,"小井川  清水ﾀ",null,null,null,null,"高橋  後藤  秦","高橋  後藤  秦","八木  大徳",null,null,null,"八木  大徳",null,"川崎","川崎",null,null,null,null,null,"小井川  清水ﾀ"]
[null,null,null,null,null,null,"*2-7",null,null,null,"英Ⅱ","体育",null,null,null,null,null,null,"英Ⅱ","体育",null,null,null,"体育","英Ⅱ",null,"保健",null,null,null,null,"音美","音美",null,null,null,null,null,null,"家庭","家庭",null,null,"英Ⅱ"]
[null,null,null,null,null,null,null,null,null,null,"松田 舘","名児耶  仙徳",null,null,null,null,null,null,"松田 舘","名児耶  仙徳",null,null,null,"名児耶  仙徳","松田 舘",null,"仙徳",null,null,null,null,"後藤    秦","後藤    秦",null,null,null,null,null,null,"川崎","川崎",null,null,"松田 舘"]
[null,null,null,null,null,null,"*2-8",null,null,null,"英Ⅱ","体育",null,null,null,null,null,null,"英Ⅱ","体育",null,null,null,"体育","英Ⅱ",null,null,"家庭","家庭",null,null,"音美","音美",null,null,null,null,null,null,null,"保健",null,null,"英Ⅱ"]
[null,null,null,null,null,null,null,null,null,null,"加藤 舘","名児耶  仙徳",null,null,null,null,null,null,"加藤 舘","名児耶  仙徳",null,null,null,"名児耶  仙徳","加藤 舘",null,null,"川崎","川崎",null,null,"後藤    秦","後藤    秦",null,null,null,null,null,null,null,"仙徳",null,null,"加藤 舘"]
[null,null,null,null,null,null,"*2-9"]
[]
[null,null,null,null,null,null,"*2-10"]
[]
[null,null,null,null,null,null,"*2-11"]
[]
[null,null,null,null,null,null,"*2-12"]
[]
[null,null,null,null,null,null,"*2-13"]
[]
[null,null,null,null,null,null,"*2-14"]
[]
[null,null,null,null,null,null,"*2-15"]
[]
[null,null,null,null,null,null,"*2-16"]
[]
[null,null,null,null,null,null,"*2-17"]
[]
[null,null,null,null,null,null,"*2-18"]
[]
[null,null,null,null,null,null,"*2-19"]
[]
[null,null,null,null,null,null,"*2-20"]
[]
[null,null,null,null,null,null,"*3-1","芸術","芸術",null,"体育",null,null,null,null,null,null,"現文",null,null,null,null,null,null,null,null,null,null,null,null,null,"現文","体育",null,null,null,null,null,null,null,"体育","現文"]
[null,null,null,null,null,null,null,"杉山  高橋  後藤","杉山  高橋  後藤",null,"国延  仙徳  山崎  井上",null,null,null,null,null,null,"千田",null,null,null,null,null,null,null,null,null,null,null,null,null,"千田","国延  仙徳  山崎  井上",null,null,null,null,null,null,null,"名児耶 大徳 山崎  井上","千田"]
[null,null,null,null,null,null,"*3-2",null,null,"体育",null,null,null,null,null,null,"体育",null,null,null,null,null,null,"芸術","芸術","食物","食物",null,null,null,null,null,null,null,null,null,null,null,null,null,null,null,"体育"]
[null,null,null,null,null,null,null,null,null,"名児耶 大徳 山崎  井上",null,null,null,null,null,null,"八木  仙徳  山崎  井上",null,null,null,null,null,null,"杉山  高橋  後藤","杉山  高橋  後藤","川崎","川崎",null,null,null,null,null,null,null,null,null,null,null,null,null,null,null,"八木  仙徳  山崎  井上"]
[null,null,null,null,null,null,"*3-3",null,null,null,null,null,"体育",null,null,null,null,"表現","現文","芸術","芸術",null,null,null,"体育",null,null,null,null,null,null,null,"現文",null,"表現",null,null,null,null,null,"現文",null,null,"体育"]
[null,null,null,null,null,null,null,null,null,null,null,null,"八木  仙徳  山崎  井上",null,null,null,null,"松本ﾔ 山田","千田","杉山  高橋  後藤","杉山  高橋  後藤",null,null,null,"八木  仙徳  山崎  井上",null,null,null,null,null,null,null,"千田",null,"松本ﾔ 山田",null,null,null,null,null,"千田",null,null,"名児耶 大徳 山崎  井上"]
[null,null,null,null,null,null,"*3-4",null,"数Ｃ",null,"体育",null,null,null,null,null,null,null,null,null,null,null,null,"芸術","芸術",null,null,"選体","選体",null,null,null,"体育","数Ｃ",null,null,null,null,null,null,"体育"]
[null,null,null,null,null,null,null,null,"菊川   多田",null,"国延  仙徳  山崎  井上",null,null,null,null,null,null,null,null,null,null,null,null,"杉山  高橋  後藤","杉山  高橋  後藤",null,null,"名 国 八 仙 大 山 井","名 国 八 仙 大 山 井",null,null,null,"国延  仙徳  山崎  井上","菊川   多田",null,null,null,null,null,null,"名児耶 大徳 山崎  井上"]
[null,null,null,null,null,null,"*3-5",null,null,"体育",null,null,null,null,null,null,"体育",null,null,"芸術","芸術",null,null,null,null,null,"物化",null,null,null,null,null,null,null,null,null,null,null,null,null,null,null,"体育",null,null,null,null,"物化"]
[null,null,null,null,null,null,null,null,null,"名児耶 大徳 山崎  井上",null,null,null,null,null,null,"八木  仙徳  山崎  井上",null,null,"杉山  高橋  後藤","杉山  高橋  後藤",null,null,null,null,null,"関   斉藤ｻ",null,null,null,null,null,null,null,null,null,null,null,null,null,null,null,"八木  仙徳  山崎  井上",null,null,null,null,"関   斉藤ｻ"]
[null,null,null,null,null,null,"*3-6","芸術","芸術",null,null,null,"体育",null,null,null,null,null,null,null,null,null,null,null,"体育",null,null,null,null,null,null,null,null,null,null,null,null,null,null,null,null,null,null,"体育"]
[null,null,null,null,null,null,null,"杉山  高橋  後藤","杉山  高橋  後藤",null,null,null,"八木  仙徳  山崎  井上",null,null,null,null,null,null,null,null,null,null,null,"八木  仙徳  山崎  井上",null,null,null,null,null,null,null,null,null,null,null,null,null,null,null,null,null,null,"名児耶 大徳 山崎  井上"]
[null,null,null,null,null,null,"*3-7",null,null,null,null,null,"体育",null,null,null,null,null,null,"芸術","芸術",null,null,null,"体育",null,null,null,null,null,null,null,null,null,null,null,null,null,null,"選芸","選芸",null,null,"体育"]
[null,null,null,null,null,null,null,null,null,null,null,null,"八木  仙徳  山崎  井上",null,null,null,null,null,null,"杉山  高橋  後藤","杉山  高橋  後藤",null,null,null,"八木  仙徳  山崎  井上",null,null,null,null,null,null,null,null,null,null,null,null,null,null,"杉山  高橋  後藤","杉山  高橋  後藤",null,null,"名児耶 大徳 山崎  井上"]
[null,null,null,null,null,null,"*3-8","芸術","芸術","体育",null,null,null,null,null,null,"体育",null,"表現",null,null,null,null,null,null,null,null,null,null,null,null,null,null,"表現",null,null,null,null,null,null,null,null,"体育"]
[null,null,null,null,null,null,null,"杉山  高橋  後藤","杉山  高橋  後藤","名児耶 大徳 山崎  井上",null,null,null,null,null,null,"八木  仙徳  山崎  井上",null,"関根  山田",null,null,null,null,null,null,null,null,null,null,null,null,null,null,"関根  山田",null,null,null,null,null,null,null,null,"八木  仙徳  山崎  井上"]
[null,null,null,null,null,null,"*3-9"]
[]
[null,null,null,null,null,null,"*3-10"]
[]
[null,null,null,null,null,null,"*3-11"]
[]
[null,null,null,null,null,null,"*3-12"]
[]
[null,null,null,null,null,null,"*3-13"]
[]
[null,null,null,null,null,null,"*3-14"]
[]
[null,null,null,null,null,null,"*3-15"]
[]
[null,null,null,null,null,null,"*3-16"]
[]
[null,null,null,null,null,null,"*3-17"]
[]
[null,null,null,null,null,null,"*3-18"]
[]
[null,null,null,null,null,null,"*3-19"]
[]
[null,null,null,null,null,null,"*3-20"]
[]
[null,null,null,null,null,null,"1-A","体育",null,null,null,null,null,null,null,null,null,null,null,"保健","体育",null,null,null,null,null,"体育",null,null,null,null,null,null,"家庭","家庭",null,null,null,null,null,null,"音楽","音楽"]
[null,null,null,null,null,null,null,"名児耶  国延",null,null,null,null,null,null,null,null,null,null,null,"山崎","名児耶  大徳",null,null,null,null,null,"名児耶  国延",null,null,null,null,null,null,"村山","村山",null,null,null,null,null,null,"後藤","後藤"]
[null,null,null,null,null,null,"1-B","体育",null,null,null,null,null,null,null,"家庭","家庭",null,null,null,"体育",null,null,null,null,null,"体育","美術","美術",null,null,"保健"]
[null,null,null,null,null,null,null,"名児耶  国延",null,null,null,null,null,null,null,"村山","村山",null,null,null,"名児耶  大徳",null,null,null,null,null,"名児耶  国延","杉山","杉山",null,null,"山崎"]
[null,null,null,null,null,null,"1-C",null,"体育",null,null,"家庭","家庭",null,null,null,null,null,"体育",null,null,null,null,null,null,null,null,"書道","書道",null,null,null,null,null,null,"保健",null,null,null,"体育"]
[null,null,null,null,null,null,null,null,"名児耶  大徳",null,null,"村山","村山",null,null,null,null,null,"名児耶  国延",null,null,null,null,null,null,null,null,"高橋","高橋",null,null,null,null,null,null,"山崎",null,null,null,"名児耶  国延"]
[null,null,null,null,null,null,"1-D",null,"体育",null,null,"音楽","音楽",null,null,null,null,"保健","体育",null,null,null,null,null,null,null,null,null,null,null,null,null,null,null,null,null,null,null,null,"体育",null,"家庭","家庭"]
[null,null,null,null,null,null,null,null,"名児耶  大徳",null,null,"上原","上原",null,null,null,null,"名児耶","名児耶  国延",null,null,null,null,null,null,null,null,null,null,null,null,null,null,null,null,null,null,null,null,"名児耶  国延",null,"村山","村山"]
[null,null,null,null,null,null,"1-E",null,"体育","家庭","家庭",null,null,null,null,"美術","美術",null,null,null,null,null,null,"体育",null,null,null,null,null,null,null,null,null,null,null,null,null,null,null,null,null,"体育","保健"]
[null,null,null,null,null,null,null,null,"国延  八木","川崎","川崎",null,null,null,null,"杉山","杉山",null,null,null,null,null,null,"国延  八木",null,null,null,null,null,null,null,null,null,null,null,null,null,null,null,null,null,"国延  大徳","名児耶"]
[null,null,null,null,null,null,"1-F",null,"体育",null,null,null,null,null,null,"音楽","音楽",null,null,"保健",null,null,null,"体育",null,null,null,null,null,null,null,"家庭","家庭",null,null,null,null,null,null,null,null,"体育"]
[null,null,null,null,null,null,null,null,"国延  八木",null,null,null,null,null,null,"上原","上原",null,null,"国延",null,null,null,"国延  八木",null,null,null,null,null,null,null,"川崎","川崎",null,null,null,null,null,null,null,null,"国延  大徳"]
[null,null,null,null,null,null,"1-G",null,null,null,null,"体育",null,null,null,"体育",null,null,null,"家庭","家庭",null,null,null,null,null,null,null,null,null,null,null,null,"体育",null,null,null,null,null,null,null,"美術","美術","保健"]
[null,null,null,null,null,null,null,null,null,null,null,"国延  山崎",null,null,null,"国延  大徳",null,null,null,"川崎","川崎",null,null,null,null,null,null,null,null,null,null,null,null,"国延  山崎",null,null,null,null,null,null,null,"杉山","杉山","国延"]
[null,null,null,null,null,null,"1-H",null,null,null,null,"体育",null,null,null,"体育",null,"家庭","家庭",null,null,null,null,null,null,"保健",null,null,null,null,null,null,null,"体育",null,null,null,null,null,null,null,"書道","書道"]
[null,null,null,null,null,null,null,null,null,null,null,"国延  山崎",null,null,null,"国延  大徳",null,"川崎","川崎",null,null,null,null,null,null,"国延",null,null,null,null,null,null,null,"国延  山崎",null,null,null,null,null,null,null,"高橋","高橋"]
[null,null,null,null,null,null,"1-I"]
[]
[null,null,null,null,null,null,"1-J"]
[]
[null,null,null,null,null,null,"1-K"]
[]
[null,null,null,null,null,null,"1-L"]
[]
[null,null,null,null,null,null,"1-M"]
[]
[null,null,null,null,null,null,"1-N"]
[]
[null,null,null,null,null,null,"1-O"]
[]
[null,null,null,null,null,null,"1-P"]
[]
[null,null,null,null,null,null,"1-Q"]
[]
[null,null,null,null,null,null,"1-R"]
[]
[null,null,null,null,null,null,"1-Q"]
[]
[null,null,null,null,null,null,"1-S"]
[]
[null,null,null,null,null,null,"2-A",null,null,"芸術","芸術",null,"英Ⅱ",null,null,null,null,null,null,"英Ⅱ","体育",null,null,"英Ⅱ",null,"家庭","家庭",null,null,null,null,null,null,null,"体育",null,null,null,null,null,null,"体育","英Ⅱ","保健"]
[null,null,null,null,null,null,null,null,null,"杉山  高橋  後藤","杉山  高橋  後藤",null,"小井川  清水ﾖ",null,null,null,null,null,null,"小井川  清水ﾖ","八木  井上",null,null,"小井川  清水ﾖ",null,"村山","村山",null,null,null,null,null,null,null,"八木  井上",null,null,null,null,null,null,"八木  井上","小井川  清水ﾖ","八木"]
[null,null,null,null,null,null,"2-B",null,null,"芸術","芸術",null,"英Ⅱ",null,null,"保健",null,"家庭","家庭","英Ⅱ","体育",null,null,"英Ⅱ",null,null,null,null,null,null,null,null,null,null,"体育",null,null,null,null,null,null,"体育","英Ⅱ"]
[null,null,null,null,null,null,null,null,null,"杉山  高橋  後藤","杉山  高橋  後藤",null,"小井川  清水ﾀ",null,null,"八木",null,"村山","村山","小井川  清水ﾀ","八木  井上",null,null,"小井川  清水ﾀ",null,null,null,null,null,null,null,null,null,null,"八木  井上",null,null,null,null,null,null,"八木  井上","小井川  清水ﾀ"]
[null,null,null,null,null,null,"2-C","体育","英Ⅱ","芸術","芸術",null,null,null,null,null,null,"体育",null,null,"英Ⅱ",null,null,"家庭","家庭","英Ⅱ","保健",null,null,null,null,"体育",null,null,null,null,null,null,null,null,"英Ⅱ"]
[null,null,null,null,null,null,null,"仙徳  大徳","清水ﾖ 松田","杉山  高橋  後藤","杉山  高橋  後藤",null,null,null,null,null,null,"仙徳  大徳",null,null,"清水ﾖ 松田",null,null,"村山","村山","清水ﾖ 松田","井上",null,null,null,null,"仙徳  大徳",null,null,null,null,null,null,null,null,"清水ﾖ 松田"]
[null,null,null,null,null,null,"2-D","体育","英Ⅱ","家庭","家庭",null,null,null,null,null,null,"体育","保健",null,"英Ⅱ",null,null,null,null,"英Ⅱ",null,null,null,null,null,"体育",null,"芸術","芸術",null,null,null,null,null,"英Ⅱ"]
[null,null,null,null,null,null,null,"仙徳  大徳","清水ﾖ 加藤","村山","村山",null,null,null,null,null,null,"仙徳  大徳","井上",null,"清水ﾖ 加藤",null,null,null,null,"清水ﾖ 加藤",null,null,null,null,null,"仙徳  大徳",null,"高橋  後藤  秦","高橋  後藤  秦",null,null,null,null,null,"清水ﾖ 加藤"]
[null,null,null,null,null,null,"2-E",null,"英Ⅱ",null,null,"保健",null,null,null,"家庭","家庭","英Ⅱ",null,null,null,null,null,null,null,"体育",null,null,"英Ⅱ",null,null,null,null,"芸術","芸術","体育",null,null,null,"体育",null,null,null,null,null,null,null,null,"英Ⅱ"]
[null,null,null,null,null,null,null,null,"清水ﾀ 舘",null,null,"大徳",null,null,null,"寺西","寺西","清水ﾀ 舘",null,null,null,null,null,null,null,"八木  大徳",null,null,"清水ﾀ 舘",null,null,null,null,"高橋  後藤  秦","高橋  後藤  秦","八木  大徳",null,null,null,"八木  大徳",null,null,null,null,null,null,null,null,"清水ﾀ 舘"]
[null,null,null,null,null,null,"2-F",null,"英Ⅱ",null,null,null,null,null,null,null,null,"英Ⅱ",null,null,null,null,null,null,"保健","体育",null,null,"英Ⅱ",null,null,null,null,"芸術","芸術","体育",null,null,null,"体育",null,"家庭","家庭",null,null,null,null,null,"英Ⅱ"]
[null,null,null,null,null,null,null,null,"小井川  清水ﾀ",null,null,null,null,null,null,null,null,"小井川  清水ﾀ",null,null,null,null,null,null,"大徳","八木  大徳",null,null,"小井川  清水ﾀ",null,null,null,null,"高橋  後藤  秦","高橋  後藤  秦","八木  大徳",null,null,null,"八木  大徳",null,"川崎","川崎",null,null,null,null,null,"小井川  清水ﾀ"]
[null,null,null,null,null,null,"2-G",null,null,null,"英Ⅱ","体育",null,null,null,null,null,null,"英Ⅱ","体育",null,null,null,"体育","英Ⅱ",null,"保健",null,null,null,null,"音美","音美",null,null,null,null,null,null,"家庭","家庭",null,null,"英Ⅱ"]
[null,null,null,null,null,null,null,null,null,null,"松田 舘","名児耶  仙徳",null,null,null,null,null,null,"松田 舘","名児耶  仙徳",null,null,null,"名児耶  仙徳","松田 舘",null,"仙徳",null,null,null,null,"後藤    秦","後藤    秦",null,null,null,null,null,null,"川崎","川崎",null,null,"松田 舘"]
[null,null,null,null,null,null,"2-H",null,null,null,"英Ⅱ","体育",null,null,null,null,null,null,"英Ⅱ","体育",null,null,null,"体育","英Ⅱ",null,null,"家庭","家庭",null,null,"音美","音美",null,null,null,null,null,null,null,"保健",null,null,"英Ⅱ"]
[null,null,null,null,null,null,null,null,null,null,"加藤 舘","名児耶  仙徳",null,null,null,null,null,null,"加藤 舘","名児耶  仙徳",null,null,null,"名児耶  仙徳","加藤 舘",null,null,"川崎","川崎",null,null,"後藤    秦","後藤    秦",null,null,null,null,null,null,null,"仙徳",null,null,"加藤 舘"]
[null,null,null,null,null,null,"2-I"]
[]
[null,null,null,null,null,null,"2-J"]
[]
[null,null,null,null,null,null,"2-K"]
[]
[null,null,null,null,null,null,"2-L"]
[]
[null,null,null,null,null,null,"2-M"]
[]
[null,null,null,null,null,null,"2-N"]
[]
[null,null,null,null,null,null,"2-O"]
[]
[null,null,null,null,null,null,"2-P"]
[]
[null,null,null,null,null,null,"2-Q"]
[]
[null,null,null,null,null,null,"2-R"]
[]
[null,null,null,null,null,null,"2-Q"]
[]
[null,null,null,null,null,null,"2-S"]
[]
[null,null,null,null,null,null,"3-A","芸術","芸術",null,"体育",null,null,null,null,null,null,"現文",null,null,null,null,null,null,null,null,null,null,null,null,null,"現文","体育",null,null,null,null,null,null,null,"体育","現文"]
[null,null,null,null,null,null,null,"杉山  高橋  後藤","杉山  高橋  後藤",null,"国延  仙徳  山崎  井上",null,null,null,null,null,null,"千田",null,null,null,null,null,null,null,null,null,null,null,null,null,"千田","国延  仙徳  山崎  井上",null,null,null,null,null,null,null,"名児耶 大徳 山崎  井上","千田"]
[null,null,null,null,null,null,"3-B",null,null,"体育",null,null,null,null,null,null,"体育",null,null,null,null,null,null,"芸術","芸術","食物","食物",null,null,null,null,null,null,null,null,null,null,null,null,null,null,null,"体育"]
[null,null,null,null,null,null,null,null,null,"名児耶 大徳 山崎  井上",null,null,null,null,null,null,"八木  仙徳  山崎  井上",null,null,null,null,null,null,"杉山  高橋  後藤","杉山  高橋  後藤","川崎","川崎",null,null,null,null,null,null,null,null,null,null,null,null,null,null,null,"八木  仙徳  山崎  井上"]
[null,null,null,null,null,null,"3-C",null,null,null,null,null,"体育",null,null,null,null,"表現","現文","芸術","芸術",null,null,null,"体育",null,null,null,null,null,null,null,"現文",null,"表現",null,null,null,null,null,"現文",null,null,"体育"]
[null,null,null,null,null,null,null,null,null,null,null,null,"八木  仙徳  山崎  井上",null,null,null,null,"松本ﾔ 山田","千田","杉山  高橋  後藤","杉山  高橋  後藤",null,null,null,"八木  仙徳  山崎  井上",null,null,null,null,null,null,null,"千田",null,"松本ﾔ 山田",null,null,null,null,null,"千田",null,null,"名児耶 大徳 山崎  井上"]
[null,null,null,null,null,null,"3-D",null,"数Ｃ",null,"体育",null,null,null,null,null,null,null,null,null,null,null,null,"芸術","芸術",null,null,"選体","選体",null,null,null,"体育","数Ｃ",null,null,null,null,null,null,"体育"]
[null,null,null,null,null,null,null,null,"菊川   多田",null,"国延  仙徳  山崎  井上",null,null,null,null,null,null,null,null,null,null,null,null,"杉山  高橋  後藤","杉山  高橋  後藤",null,null,"名 国 八 仙 大 山 井","名 国 八 仙 大 山 井",null,null,null,"国延  仙徳  山崎  井上","菊川   多田",null,null,null,null,null,null,"名児耶 大徳 山崎  井上"]
[null,null,null,null,null,null,"3-E",null,null,"体育",null,null,null,null,null,null,"体育",null,null,"芸術","芸術",null,null,null,null,null,"物化",null,null,null,null,null,null,null,null,null,null,null,null,null,null,null,"体育",null,null,null,null,"物化"]
[null,null,null,null,null,null,null,null,null,"名児耶 大徳 山崎  井上",null,null,null,null,null,null,"八木  仙徳  山崎  井上",null,null,"杉山  高橋  後藤","杉山  高橋  後藤",null,null,null,null,null,"関   斉藤ｻ",null,null,null,null,null,null,null,null,null,null,null,null,null,null,null,"八木  仙徳  山崎  井上",null,null,null,null,"関   斉藤ｻ"]
[null,null,null,null,null,null,"3-F","芸術","芸術",null,null,null,"体育",null,null,null,null,null,null,null,null,null,null,null,"体育",null,null,null,null,null,null,null,null,null,null,null,null,null,null,null,null,null,null,"体育"]
[null,null,null,null,null,null,null,"杉山  高橋  後藤","杉山  高橋  後藤",null,null,null,"八木  仙徳  山崎  井上",null,null,null,null,null,null,null,null,null,null,null,"八木  仙徳  山崎  井上",null,null,null,null,null,null,null,null,null,null,null,null,null,null,null,null,null,null,"名児耶 大徳 山崎  井上"]
[null,null,null,null,null,null,"3-G",null,null,null,null,null,"体育",null,null,null,null,null,null,"芸術","芸術",null,null,null,"体育",null,null,null,null,null,null,null,null,null,null,null,null,null,null,"選芸","選芸",null,null,"体育"]
[null,null,null,null,null,null,null,null,null,null,null,null,"八木  仙徳  山崎  井上",null,null,null,null,null,null,"杉山  高橋  後藤","杉山  高橋  後藤",null,null,null,"八木  仙徳  山崎  井上",null,null,null,null,null,null,null,null,null,null,null,null,null,null,"杉山  高橋  後藤","杉山  高橋  後藤",null,null,"名児耶 大徳 山崎  井上"]
[null,null,null,null,null,null,"3-H","芸術","芸術","体育",null,null,null,null,null,null,"体育",null,"表現",null,null,null,null,null,null,null,null,null,null,null,null,null,null,"表現",null,null,null,null,null,null,null,null,"体育"]
[null,null,null,null,null,null,null,"杉山  高橋  後藤","杉山  高橋  後藤","名児耶 大徳 山崎  井上",null,null,null,null,null,null,"八木  仙徳  山崎  井上",null,"関根  山田",null,null,null,null,null,null,null,null,null,null,null,null,null,null,"関根  山田",null,null,null,null,null,null,null,null,"八木  仙徳  山崎  井上"]
[null,null,null,null,null,null,"3-I"]
[]
[null,null,null,null,null,null,"3-J"]
[]
[null,null,null,null,null,null,"3-K"]
[]
[null,null,null,null,null,null,"3-L"]
[]
[null,null,null,null,null,null,"3-M"]
[]
[null,null,null,null,null,null,"3-N"]
[]
[null,null,null,null,null,null,"3-O"]
[]
[null,null,null,null,null,null,"3-P"]
[]
[null,null,null,null,null,null,"3-Q"]
[]
[null,null,null,null,null,null,"3-R"]
[]
[null,null,null,null,null,null,"3-Q"]
[]
[null,null,null,null,null,null,"3-S"]
[]
[null,null,null,null,null,null,"社会科講義室"]
[]
[null,null,null,null,null,null,"物理講義室"]
[]
[null,null,null,null,null,null,"化学講義室"]
[]
[null,null,null,null,null,null,"生物講義室"]
[]
[null,null,null,null,null,null,"地学講義室"]
[]
[null,null,null,null,null,null,"音楽室"]
[]
[null,null,null,null,null,null,"美術室"]
[]
[null,null,null,null,null,null,"書道室"]
[]
[null,null,null,null,null,null,"家庭科室"]
[]
[null,null,null,null,null,null,"ＬＬ教室"]
[]
[null,null,null,null,null,null,"多目的室"]
[]
[null,null,null,null,null,null,"第１多目的室"]
[]
[null,null,null,null,null,null,"第２多目的室"]
[]
[null,null,null,null,null,null,"第３多目的室"]
[]
[null,null,null,null,null,null,"第１セミナー室"]
[]
[null,null,null,null,null,null,"第２セミナー室"]
[]
[null,null,null,null,null,null,"第３セミナー室"]
[]
[null,null,null,null,null,null,"第４セミナー室"]
[]
[null,null,null,null,null,null,"第５セミナー室"]
[]
[null,null,null,null,null,null,"視聴覚室"]
[]
["最終行","最終行","最終行","最終行",null,"最終行","最終行","最終行","最終行","最終行","最終行","最終行","最終行","最終行","最終行","最終行","最終行","最終行","最終行","最終行","最終行","最終行","最終行","最終行","最終行","最終行","最終行","最終行","最終行","最終行","最終行","最終行","最終行","最終行","最終行","最終行","最終行","最終行","最終行","最終行","最終行","最終行","最終行","最終行","最終行","最終行","最終行","最終行","最終行","最終行","最終行","最終行","最終行","最終行"]

{"sheet":"特別教室コード・表示内容変更","index":3,"n_rows":26,"n_cols":5,"rows_kept":26,"cut":false,"hidden":false,"merged":[[24,4,24,5],[25,4,25,5],[20,4,20,5],[21,4,21,5],[22,4,22,5],[23,4,23,5],[16,4,16,5],[17,4,17,5],[18,4,18,5],[19,4,19,5],[12,4,12,5],[13,4,13,5],[14,4,14,5],[15,4,15,5],[8,4,8,5],[9,4,9,5],[10,4,10,5],[11,4,11,5],[3,2,3,5],[5,4,5,5],[6,4,6,5],[7,4,7,5]]}
[]
[]
[]
[null,null,"特別教室コード・表示内容変更"]
[]
[null,null,"ＮＯ","コード","呼出表示"]
[null,null,1,"sykkgst","社会科講義室"]
[null,null,2,"btrkgst","物理講義室"]
[null,null,3,"kgkkgst","化学講義室"]
[null,null,4,"sbtkgst","生物講義室"]
[null,null,5,"tgkkgst","地学講義室"]
[null,null,6,"ogkkgst","音楽室"]
[null,null,7,"bjgst","美術室"]
[null,null,8,"sdkgst","書道室"]
[null,null,9,"ktkkgst","家庭科室"]
[null,null,10,"llkyst","ＬＬ教室"]
[null,null,11,"tmktkst","多目的室"]
[null,null,12,"d1tmktkst","第１多目的室"]
[null,null,13,"d2tmktkst","第２多目的室"]
[null,null,14,"d3tmktkst","第３多目的室"]
[null,null,15,"d1smnst","第１セミナー室"]
[null,null,16,"d2smnst","第２セミナー室"]
[null,null,17,"d3smnst","第３セミナー室"]
[null,null,18,"d4smnst","第４セミナー室"]
[null,null,19,"d5smnst","第５セミナー室"]
[null,null,20,"stykkst","視聴覚室"]

{"sheet":"インターフェース画面設定","index":4,"n_rows":7,"n_cols":4,"rows_kept":7,"cut":false,"hidden":false,"merged":[]}
[]
[]
[null,null,"インターフェース画面設定"]
[null,null,"項目","設定値"]
[null,null,"画面高さ",810]
[null,null,"画面幅",1440]
[null,null,"画面Zoom",216]

{"sheet":"呼出ファイル","index":5,"n_rows":9,"n_cols":4,"rows_kept":9,"cut":false,"hidden":false,"merged":[]}
[]
[]
[null,"      呼出ファイルのドライブ・ディレクトリー位置及びファイル名"]
[]
[null,"変数区分","DriveDirectoryName","FileName"]
[null,"Jhs","D:\\時間割編成システム64ビット版漢字変換へ\\2010週46時間対応150人60クラス入力版新版(アルファベット入力あり)\\２台登録用\\２台登録処理ツール","150人60クラス時間割システム2台登録Ver1.xlsm"]
[null,"Jhsk","D:\\時間割編成システム64ビット版漢字変換へ\\2010週46時間対応150人60クラス入力版新版(アルファベット入力あり)\\２台登録用\\２台登録処理ツール","150人60クラス時間割システム簡易版2台登録Ver1.xlsm"]
[null,"Jkns","D:\\時間割編成システム64ビット版漢字変換へ\\2010週46時間対応150人60クラス入力版新版(アルファベット入力あり)\\２台登録用\\２台登録処理ツール","150人60クラスコマ入力システム2台登録Ver1.xlsm"]
[null,"Jhss","D:\\時間割編成システム64ビット版漢字変換へ\\2010週46時間対応150人60クラス入力版新版(アルファベット入力あり)\\２台登録用\\２台登録処理ツール","150人60クラス時間割システム制御2台登録Ver1.xlsm"]